Workbook

Sheet 1
B1: Demand Forecasting Chagas LATAM
B7: Esta herramienta pretende estimar, a 10 años, la demanda de tratamientos en la población y optimización de la fabricación de los comprimidos necesarios, por parte del productor, con el fin de abastecer los requerimientos de los países de Latinoamérica , de un modo práctico y sustentado en un procedimiento sistemático.

Sheet 2
B1: Demand Forecasting Chagas LATAM
B6: Principales procesos intervinientes

Sheet 3
B1: Demand Forecasting Chagas LATAM
B5: Input
C6: Región | F6: Zona de influencia | G6: Area endémica + no endémica
F8: Grupo etáreo | G8: Total
F10: Escenario | G10: Actual
B15: Output
C16: Métricas | D16: Datos en absoluto
C18: Tipo de estudio | D18: Comprimidos
C20: Producto | F20: Método de cálculo | G20: A partir de Población
C21: Tratamiento | D21: 60 | F21: =IF(G20="A partir de Población","",IF(G20="Histórico de Tratamientos","Información histórica","Información histórica")) ->  | G21: Por Grupo de edad
C22: Días de Tratamiento | D22: 7
C24: Datos de referencia por grupo etáreo
D25: Peso promedio | E25: Dosis diaria | F25: Comp./tratamiento | G25: Indicación
C26: =IF(INDIRECT(ADDRESS(MATCH($BG$94,P!$B:$B,0),8,4,1,"P"))="NO","",INDIRECT(ADDRESS(MATCH($BG$94,P!$B:$B,0),7,4,1,"P"))) -> Casos congénitos | D26: =IF(C26<>"",VLOOKUP(G26&C26,DatosDefault!$A:$F,4,0),"") -> 8 | E26: =IF(C26<>"",VLOOKUP(G26&C26,DatosDefault!$A:$F,5,0),"") -> 6.25 | F26: =IF(C26="",0,VLOOKUP($BG$94&C26,P!$A$4:$M$55,13,0)) -> 240 | G26: =IF(INDIRECT(ADDRESS(MATCH($BG$94,P!$B:$B,0),8,4,1,"P"))="NO","",INDIRECT(ADDRESS(MATCH($BG$94,P!$B:$B,0),3,4,1,"P"))) -> Benznidazol 12,5 mg
C27: =IF(INDIRECT(ADDRESS(MATCH($BG$94,P!$B:$B,0)+1,8,4,1,"P"))="NO","",INDIRECT(ADDRESS(MATCH($BG$94,P!$B:$B,0)+1,7,4,1,"P"))) ->  | D27: =IF(C27<>"",VLOOKUP(G27&C27,DatosDefault!$A:$F,4,0),"") ->  | E27: =IF(C27<>"",VLOOKUP(G27&C27,DatosDefault!$A:$F,5,0),"") ->  | F27: =IF(C27="",0,VLOOKUP($BG$94&C27,P!$A$4:$M$55,13,0)) -> 0 | G27: =IF(INDIRECT(ADDRESS(MATCH($BG$94,P!$B:$B,0)+1,8,4,1,"P"))="NO","",INDIRECT(ADDRESS(MATCH($BG$94,P!$B:$B,0)+1,3,4,1,"P"))) -> 
C28: =IF(INDIRECT(ADDRESS(MATCH($BG$94,P!$B:$B,0)+2,8,4,1,"P"))="NO","",INDIRECT(ADDRESS(MATCH($BG$94,P!$B:$B,0)+2,7,4,1,"P"))) ->  | D28: =IF(C28<>"",VLOOKUP(G28&C28,DatosDefault!$A:$F,4,0),"") ->  | E28: =IF(C28<>"",VLOOKUP(G28&C28,DatosDefault!$A:$F,5,0),"") ->  | F28: =IF(C28="",0,VLOOKUP($BG$94&C28,P!$A$4:$M$55,13,0)) -> 0 | G28: =IF(INDIRECT(ADDRESS(MATCH($BG$94,P!$B:$B,0)+2,8,4,1,"P"))="NO","",INDIRECT(ADDRESS(MATCH($BG$94,P!$B:$B,0)+2,3,4,1,"P"))) -> 
C29: =IF(INDIRECT(ADDRESS(MATCH($BG$94,P!$B:$B,0)+3,8,4,1,"P"))="NO","",INDIRECT(ADDRESS(MATCH($BG$94,P!$B:$B,0)+3,7,4,1,"P"))) ->  | D29: =IF(C29<>"",VLOOKUP(G29&C29,DatosDefault!$A:$F,4,0),"") ->  | E29: =IF(C29<>"",VLOOKUP(G29&C29,DatosDefault!$A:$F,5,0),"") ->  | F29: =IF(C29="",0,VLOOKUP($BG$94&C29,P!$A$4:$M$55,13,0)) -> 0 | G29: =IF(INDIRECT(ADDRESS(MATCH($BG$94,P!$B:$B,0)+3,8,4,1,"P"))="NO","",INDIRECT(ADDRESS(MATCH($BG$94,P!$B:$B,0)+3,3,4,1,"P"))) -> 
C30: =IF(INDIRECT(ADDRESS(MATCH($BG$94,P!$B:$B,0)+4,8,4,1,"P"))="NO","",INDIRECT(ADDRESS(MATCH($BG$94,P!$B:$B,0)+4,7,4,1,"P"))) ->  | D30: =IF(C30<>"",VLOOKUP(G30&C30,DatosDefault!$A:$F,4,0),"") ->  | E30: =IF(C30<>"",VLOOKUP(G30&C30,DatosDefault!$A:$F,5,0),"") ->  | F30: =IF(C30="",0,VLOOKUP($BG$94&C30,P!$A$4:$M$55,13,0)) -> 0 | G30: =IF(INDIRECT(ADDRESS(MATCH($BG$94,P!$B:$B,0)+4,8,4,1,"P"))="NO","",INDIRECT(ADDRESS(MATCH($BG$94,P!$B:$B,0)+4,3,4,1,"P"))) -> 
AP71: NO BORRAR
AP73: Países | AQ73: ISO | AS73: Región | AU73: Días tratamiento | BB73: Zona de influencia | BD73: Escenario | BG73: Grupo etario | BI73: Años | BK73: Tipos de estudio | BN73: Métricas | BQ73: Reportes | BT73: Impacto general | BV73: Capacidad de tratamiento | BX73: Programas especiales
AP74: ='C'!B5 -> Argentina | AQ74: ='C'!C5 -> AR | AS74: Latinoamérica | AU74: 15 | BB74: Endémica | BD74: Actual | BE74: 1 | BG74: Menores de 1 año | BI74: 2010 | BK74: Tratamientos | BL74: 1 | BN74: Datos en absoluto | BO74: 1 | BQ74: Gráfico de linea | BR74: 1 | BT74: Inclusión de medicamentos LME | BV74: Medicamentos estan disponibles (abastecimiento/distribución) | BX74: Gobierno aplica campañas masivas
AP75: ='C'!B6 -> Belize | AQ75: ='C'!C6 -> BZ | AS75: Selección de países | AU75: 30 | BB75: No endémica | BD75: Nuevo | BE75: 2 | BG75: Niños de 1 a 5 años | BI75: 2011 | BK75: Comprimidos | BL75: 2 | BN75: Variación % | BO75: 2 | BQ75: Tabla | BR75: 2 | BT75: Registro tratamiento especial | BV75: Pacientes responsables (cumplimiento con el tratamiento) | BX75: ONG participan activamente en concientizar a la población
AP76: ='C'!B7 -> Bolivia | AQ76: ='C'!C7 -> BO | AU76: 60 | BB76: Endémica + no endémica | BG76: Niños de 5 a 15 años | BI76: 2012 | BV76: Médicos aplican control sobre pacientes | BX76: Canal privado colabora con información a Médicos
AP77: ='C'!B8 -> Brasil | AQ77: ='C'!C8 -> BR | AU77: 90 | BG77: Jóvenes de 15 a 20 años | BI77: 2013
AP78: ='C'!B9 -> Chile | AQ78: ='C'!C9 -> CL | AU78: Otro | BG78: Adultos | BI78: 2014
AP79: ='C'!B10 -> Colombia | AQ79: ='C'!C10 -> CO | BG79: Total | BI79: 2015
AP80: ='C'!B11 -> Costa Rica | AQ80: ='C'!C11 -> CR | BI80: 2016
AP81: ='C'!B12 -> Ecuador | AQ81: ='C'!C12 -> CE | AU81: Región | AW81: Países | AY81: Periodo | BB81: Método de cálculo | BD81: Método de cálculo seleccionado | BI81: 2017
AP82: ='C'!B13 -> El Salvador | AQ82: ='C'!C13 -> SV | AU82: Selección de países | AW82: Argentina | AY82: 2010 | BB82: A partir de Población | BD82: =G20 -> A partir de Población | BI82: 2018
AP83: ='C'!B14 -> Guatemala | AQ83: ='C'!C14 -> GT | AY83: 2011 | BB83: =IF(BG94<>"Benznidazol 12,5 mg (III)","Histórico de Tratamientos","") ->  | BI83: 2019
AP84: ='C'!B15 -> Guyana | AQ84: ='C'!C15 -> GY | AY84: 2012 | BB84: =IF(BG94<>"Benznidazol 12,5 mg (III)","Histórico de Compras","") -> 
AP85: ='C'!B16 -> Guyana Francesa | AQ85: ='C'!C16 -> GF | AY85: 2013
AP86: ='C'!B17 -> Honduras | AQ86: ='C'!C17 -> HN | AY86: 2014
AP87: ='C'!B18 -> México | AQ87: ='C'!C18 -> MX | AY87: 2015 | BB87: Información histórica
AP88: ='C'!B19 -> Nicaragua | AQ88: ='C'!C19 -> NI | AY88: 2016 | BB88: Por Grupo de edad
AP89: ='C'!B20 -> Panamá | AQ89: ='C'!C20 -> PA | AY89: 2017 | BB89: =IF(OR(BG94="Mix 1",BG94="Mix 2"),"","Total") -> Total | BC89: -> | BD89: =BB89 -> Total
AP90: ='C'!B21 -> Paraguay | AQ90: ='C'!C21 -> PY | AY90: 2018
AP91: ='C'!B22 -> Perú | AQ91: ='C'!C22 -> PE | AY91: 2019 | BD91: Count of Denominación
AP92: ='C'!B23 -> Surinam | AQ92: ='C'!C23 -> SR | BB92: Productos | BD92: Denominación | BE92: Total | BG92: Producto seleccionado | BI92: Productos 2 | BN92: Definición Mix 1 | BT92: Comp./tratamiento PROMEDIO
AP93: ='C'!B24 -> Uruguay | AQ93: ='C'!C24 -> UY | BA93: 1 | BB93: =BD93 -> Benznidazol 12,5 mg (I) | BD93: Benznidazol 12,5 mg (I) | BE93: 1 | BG93: 3 | BI93: Benznidazol 12,5 mg | BM93: TRUE | BN93: =IF(BM93=FALSE,"","Menores de 1 año") -> Menores de 1 año | BP93: 1 | BQ93: =IF(BN93="","",IF(BP93=1,$BI$93,IF(BP93=2,$BI$94,IF(BP93=3,$BI$95,$BI$96)))) -> Benznidazol 12,5 mg | BT93: =IF(C26="",0,VLOOKUP(G26&C26,DatosDefault!$A:$K,11,0)) -> 240
AP94: ='C'!B25 -> Venezuela | AQ94: ='C'!C25 -> VE | BA94: 2 | BB94: =BD94 -> Benznidazol 12,5 mg (II) | BD94: Benznidazol 12,5 mg (II) | BE94: 1 | BG94: =VLOOKUP(BG93,$BA$93:$BB$102,2,0) -> Benznidazol 12,5 mg (III) | BI94: Benznidazol 50 mg | BM94: TRUE | BN94: =IF(BM94=FALSE,"","Niños de 1 a 2 años") -> Niños de 1 a 2 años | BP94: 1 | BQ94: =IF(BN94="","",IF(BP94=1,$BI$93,IF(BP94=2,$BI$94,IF(BP94=3,$BI$95,$BI$96)))) -> Benznidazol 12,5 mg | BT94: =IF(C27="",0,VLOOKUP(G27&C27,DatosDefault!$A:$K,11,0)) -> 0
BA95: 3 | BB95: Benznidazol 12,5 mg (III) | BD95: Benznidazol 12,5 mg (III) | BE95: 1 | BI95: Benznidazol 100 mg | BM95: TRUE | BN95: =IF(BM95=FALSE,"","Niños de 2 a 5 años") -> Niños de 2 a 5 años | BP95: 2 | BQ95: Benznidazol 50 mg | BT95: =IF(C28="",0,VLOOKUP(G28&C28,DatosDefault!$A:$K,11,0)) -> 0
BA96: 4 | BB96: Benznidazol 50 mg (I) | BD96: Benznidazol 50 mg (I) | BE96: 1 | BI96: Nifurtimox 120 mg | BM96: TRUE | BN96: =IF(BM96=FALSE,"","Niños de 5 a 15 años") -> Niños de 5 a 15 años | BP96: 2 | BQ96: Benznidazol 50 mg | BT96: =IF(C29="",0,VLOOKUP(G29&C29,DatosDefault!$A:$K,11,0)) -> 0
BA97: 5 | BB97: Benznidazol 50 mg (II) | BD97: Benznidazol 50 mg (II) | BE97: 1 | BM97: TRUE | BN97: =IF(BM97=FALSE,"","Mayores de 15 años") -> Mayores de 15 años | BP97: 3 | BQ97: Benznidazol 100 mg | BT97: =IF(C30="",0,VLOOKUP(G30&C30,DatosDefault!$A:$K,11,0)) -> 0
BA98: 6 | BB98: Benznidazol 100 mg (I) | BD98: Benznidazol 100 mg (I) | BE98: 1 | BT98: =AVERAGEIF(BT93:BT97, "<>0") -> 240
BA99: 7 | BB99: Benznidazol 100 mg (II) | BD99: Benznidazol 100 mg (II) | BE99: 1 | BN99: Definición Mix 2
BA100: 8 | BB100: Nifurtimox 120 mg | BD100: Nifurtimox 120 mg | BE100: 1 | BM100: TRUE | BN100: =IF(BM100=FALSE,"","Menores de 1 año") -> Menores de 1 año | BP100: 1 | BQ100: =IF(BN100="","",IF(BP100=1,$BI$93,IF(BP100=2,$BI$94,IF(BP100=3,$BI$95,$BI$96)))) -> Benznidazol 12,5 mg
BA101: 9 | BB101: Mix 1 | BD101: Mix 1 | BE101: 1 | BM101: TRUE | BN101: =IF(BM101=FALSE,"","Niños de 1 a 5 años") -> Niños de 1 a 5 años | BP101: 1 | BQ101: =IF(BN101="","",IF(BP101=1,$BI$93,IF(BP101=2,$BI$94,IF(BP101=3,$BI$95,$BI$96)))) -> Benznidazol 12,5 mg
BA102: 10 | BB102: Mix 2 | BD102: Mix 2 | BE102: 1 | BM102: TRUE | BN102: =IF(BM102=FALSE,"","Niños de 5 a 15 años") -> Niños de 5 a 15 años | BP102: 2 | BQ102: Benznidazol 50 mg
BM103: TRUE | BN103: =IF(BM103=FALSE,"","Jóvenes de 15 a 20 años") -> Jóvenes de 15 a 20 años | BP103: 3 | BQ103: Benznidazol 100 mg
BM104: TRUE | BN104: =IF(BM104=FALSE,"","Adultos") -> Adultos | BP104: 3 | BQ104: Benznidazol 100 mg

Sheet C (hidden)
A1: Países incluidos
C3: ISO | D3: Informar
B4: Latinoamérica | C4: LATAM | D4: =IF(B4='3'!AU82=FALSE,"No","Sí") -> No
B5: Argentina | C5: AR | D5: =IF($D$4="Sí","No",IF(ISNA(VLOOKUP(B5,'3'!$AW$82:$AW$91,1,0)),"No","Sí")) -> Sí
B6: Belize | C6: BZ | D6: =IF($D$4="Sí","No",IF(ISNA(VLOOKUP(B6,'3'!$AW$82:$AW$91,1,0)),"No","Sí")) -> No
B7: Bolivia | C7: BO | D7: =IF($D$4="Sí","No",IF(ISNA(VLOOKUP(B7,'3'!$AW$82:$AW$91,1,0)),"No","Sí")) -> No
B8: Brasil | C8: BR | D8: =IF($D$4="Sí","No",IF(ISNA(VLOOKUP(B8,'3'!$AW$82:$AW$91,1,0)),"No","Sí")) -> No
B9: Chile | C9: CL | D9: =IF($D$4="Sí","No",IF(ISNA(VLOOKUP(B9,'3'!$AW$82:$AW$91,1,0)),"No","Sí")) -> No
B10: Colombia | C10: CO | D10: =IF($D$4="Sí","No",IF(ISNA(VLOOKUP(B10,'3'!$AW$82:$AW$91,1,0)),"No","Sí")) -> No
B11: Costa Rica | C11: CR | D11: =IF($D$4="Sí","No",IF(ISNA(VLOOKUP(B11,'3'!$AW$82:$AW$91,1,0)),"No","Sí")) -> No
B12: Ecuador | C12: CE | D12: =IF($D$4="Sí","No",IF(ISNA(VLOOKUP(B12,'3'!$AW$82:$AW$91,1,0)),"No","Sí")) -> No
B13: El Salvador | C13: SV | D13: =IF($D$4="Sí","No",IF(ISNA(VLOOKUP(B13,'3'!$AW$82:$AW$91,1,0)),"No","Sí")) -> No
B14: Guatemala | C14: GT | D14: =IF($D$4="Sí","No",IF(ISNA(VLOOKUP(B14,'3'!$AW$82:$AW$91,1,0)),"No","Sí")) -> No
B15: Guyana | C15: GY | D15: =IF($D$4="Sí","No",IF(ISNA(VLOOKUP(B15,'3'!$AW$82:$AW$91,1,0)),"No","Sí")) -> No
B16: Guyana Francesa | C16: GF | D16: =IF($D$4="Sí","No",IF(ISNA(VLOOKUP(B16,'3'!$AW$82:$AW$91,1,0)),"No","Sí")) -> No
B17: Honduras | C17: HN | D17: =IF($D$4="Sí","No",IF(ISNA(VLOOKUP(B17,'3'!$AW$82:$AW$91,1,0)),"No","Sí")) -> No
B18: México | C18: MX | D18: =IF($D$4="Sí","No",IF(ISNA(VLOOKUP(B18,'3'!$AW$82:$AW$91,1,0)),"No","Sí")) -> No
B19: Nicaragua | C19: NI | D19: =IF($D$4="Sí","No",IF(ISNA(VLOOKUP(B19,'3'!$AW$82:$AW$91,1,0)),"No","Sí")) -> No
B20: Panamá | C20: PA | D20: =IF($D$4="Sí","No",IF(ISNA(VLOOKUP(B20,'3'!$AW$82:$AW$91,1,0)),"No","Sí")) -> No
B21: Paraguay | C21: PY | D21: =IF($D$4="Sí","No",IF(ISNA(VLOOKUP(B21,'3'!$AW$82:$AW$91,1,0)),"No","Sí")) -> No
B22: Perú | C22: PE | D22: =IF($D$4="Sí","No",IF(ISNA(VLOOKUP(B22,'3'!$AW$82:$AW$91,1,0)),"No","Sí")) -> No
B23: Surinam | C23: SR | D23: =IF($D$4="Sí","No",IF(ISNA(VLOOKUP(B23,'3'!$AW$82:$AW$91,1,0)),"No","Sí")) -> No
B24: Uruguay | C24: UY | D24: =IF($D$4="Sí","No",IF(ISNA(VLOOKUP(B24,'3'!$AW$82:$AW$91,1,0)),"No","Sí")) -> No
B25: Venezuela | C25: VE | D25: =IF($D$4="Sí","No",IF(ISNA(VLOOKUP(B25,'3'!$AW$82:$AW$91,1,0)),"No","Sí")) -> No

Sheet DatosDefault (hidden)
A1: ID | B1: Producto | C1: Grupo de edad | D1: Peso prom | E1: Dosis diaria | F1: Comprimidos | G1: Dosis diaria total | H1: Comprimidos Tratam. | I1: Composición | J1: Pack | K1: Comp./tratamiento PROMEDIO
A2: =B2&C2 -> Benznidazol 12,5 mgMenores de 1 año | B2: Benznidazol 12,5 mg | C2: Menores de 1 año | D2: 8 | E2: 6.25 | F2: 4 | G2: 50 | H2: =F2*60 -> 240 | I2: 12.5 | J2: 100 | K2: 240
A3: Benznidazol 12,5 mgNiños de 1 a 2 años | B3: Benznidazol 12,5 mg | C3: Niños de 1 a 2 años | D3: 12.5 | E3: 6 | F3: 6 | G3: 75 | H3: =F3*60 -> 360 | I3: 12.5 | J3: 100 | K3: =K2 -> 240
A4: Benznidazol 12,5 mgNiños de 1 a 5 años | B4: Benznidazol 12,5 mg | C4: Niños de 1 a 5 años | D4: 12.5 | E4: 6 | F4: 6 | G4: 75 | H4: =F4*60 -> 360 | I4: 12.5 | J4: 100 | K4: =K3 -> 240
A5: Benznidazol 12,5 mgNiños de 2 a 5 años | B5: Benznidazol 12,5 mg | C5: Niños de 2 a 5 años | D5: 25 | I5: 12.5 | J5: 100 | K5: 240
A6: Benznidazol 12,5 mgNiños de 5 a 15 años | B6: Benznidazol 12,5 mg | C6: Niños de 5 a 15 años | D6: 30 | I6: 12.5 | J6: 100 | K6: 240
A7: Benznidazol 12,5 mgJóvenes de 15 a 20 años | B7: Benznidazol 12,5 mg | C7: Jóvenes de 15 a 20 años | D7: 50 | I7: 12.5 | J7: 100 | K7: 240
A8: Benznidazol 12,5 mgMayores de 15 años | B8: Benznidazol 12,5 mg | C8: Mayores de 15 años | D8: 60 | I8: 12.5 | J8: 100 | K8: 240
A9: Benznidazol 12,5 mgAdultos | B9: Benznidazol 12,5 mg | C9: Adultos | D9: 80 | I9: 12.5 | J9: 100 | K9: 240
A10: Benznidazol 50 mgMenores de 1 año | B10: Benznidazol 50 mg | C10: Menores de 1 año | D10: 8 | I10: 50 | J10: 20 | K10: 240
A11: Benznidazol 50 mgNiños de 1 a 2 años | B11: Benznidazol 50 mg | C11: Niños de 1 a 2 años | D11: 12.5 | E11: 8 | F11: 2 | G11: 100 | H11: =F11*60 -> 120 | I11: 50 | J11: 20 | K11: =K10 -> 240
A12: Benznidazol 50 mgNiños de 1 a 5 años | B12: Benznidazol 50 mg | C12: Niños de 1 a 5 años | D12: 12.5 | E12: 8 | F12: 2 | G12: 100 | H12: 120 | I12: 50 | J12: 20 | K12: =K11 -> 240
A13: Benznidazol 50 mgNiños de 2 a 5 años | B13: Benznidazol 50 mg | C13: Niños de 2 a 5 años | D13: 25 | E13: 8 | F13: 4 | G13: 200 | H13: 240 | I13: 50 | J13: 20 | K13: 240
A14: Benznidazol 50 mgNiños de 5 a 15 años | B14: Benznidazol 50 mg | C14: Niños de 5 a 15 años | D14: 30 | E14: 6.67 | F14: 4 | G14: 200 | H14: 240 | I14: 50 | J14: 20 | K14: 240
A15: Benznidazol 50 mgJóvenes de 15 a 20 años | B15: Benznidazol 50 mg | C15: Jóvenes de 15 a 20 años | D15: 50 | I15: 250 | J15: 20 | K15: 240
A16: Benznidazol 50 mgMayores de 15 años | B16: Benznidazol 50 mg | C16: Mayores de 15 años | D16: 60 | I16: 50 | J16: 20 | K16: 240
A17: Benznidazol 50 mgAdultos | B17: Benznidazol 50 mg | C17: Adultos | D17: 80 | I17: 250 | J17: 20 | K17: 240
A18: Benznidazol 100 mgMenores de 1 año | B18: Benznidazol 100 mg | C18: Menores de 1 año | D18: 8 | I18: 100 | J18: 100 | K18: 180
A19: Benznidazol 100 mgNiños de 1 a 2 años | B19: Benznidazol 100 mg | C19: Niños de 1 a 2 años | D19: 12.5 | I19: 100 | J19: 100 | K19: =K18 -> 180
A20: Benznidazol 100 mgNiños de 1 a 5 años | B20: Benznidazol 100 mg | C20: Niños de 1 a 5 años | D20: 12.5 | E20: 8 | F20: 1 | G20: 100 | H20: =F20*60 -> 60 | I20: 100 | J20: 100 | K20: =K19 -> 180
A21: Benznidazol 100 mgNiños de 2 a 5 años | B21: Benznidazol 100 mg | C21: Niños de 2 a 5 años | D21: 25 | E21: 8 | F21: 2 | G21: 200 | H21: 120 | I21: 100 | J21: 100 | K21: 180
A22: Benznidazol 100 mgNiños de 5 a 15 años | B22: Benznidazol 100 mg | C22: Niños de 5 a 15 años | D22: 30 | E22: 6.67 | F22: 2 | G22: 200 | H22: 120 | I22: 100 | J22: 100 | K22: 180
A23: Benznidazol 100 mgJóvenes de 15 a 20 años | B23: Benznidazol 100 mg | C23: Jóvenes de 15 a 20 años | D23: 50 | E23: 6 | F23: 3 | G23: 300 | H23: 180 | I23: 100 | J23: 100 | K23: 180
A24: Benznidazol 100 mgMayores de 15 años | B24: Benznidazol 100 mg | C24: Mayores de 15 años | D24: 60 | E24: 5.83 | F24: 3.5 | G24: 350 | H24: =F24*60 -> 210 | I24: 100 | J24: 100 | K24: 180
A25: Benznidazol 100 mgAdultos | B25: Benznidazol 100 mg | C25: Adultos | D25: 80 | E25: 5 | F25: 4 | G25: 400 | H25: =F25*60 -> 240 | I25: 100 | J25: 100 | K25: 180
A26: Nifurtimox 120 mgMenores de 1 año | B26: Nifurtimox 120 mg | C26: Menores de 1 año | D26: 8 | E26: 15 | F26: 1 | G26: 120 | H26: 60 | I26: 120 | J26: 100 | K26: =AVERAGEIF('3'!$F$26:$F$30, "<>0") -> 240
A27: Nifurtimox 120 mgNiños de 1 a 2 años | B27: Nifurtimox 120 mg | C27: Niños de 1 a 2 años | D27: 12.5 | I27: 120 | J27: 100 | K27: =K26 -> 240
A28: Nifurtimox 120 mgNiños de 1 a 5 años | B28: Nifurtimox 120 mg | C28: Niños de 1 a 5 años | D28: 12.5 | E28: 15 | F28: 1.5 | G28: 180 | H28: 90 | I28: 120 | J28: 100 | K28: =K27 -> 240
A29: Nifurtimox 120 mgNiños de 2 a 5 años | B29: Nifurtimox 120 mg | C29: Niños de 2 a 5 años | D29: 25 | I29: 120 | J29: 100 | K29: 240
A30: Nifurtimox 120 mgNiños de 5 a 15 años | B30: Nifurtimox 120 mg | C30: Niños de 5 a 15 años | D30: 30 | E30: 10 | F30: 2.5 | G30: 300 | H30: 150 | I30: 120 | J30: 100 | K30: 240
A31: Nifurtimox 120 mgJóvenes de 15 a 20 años | B31: Nifurtimox 120 mg | C31: Jóvenes de 15 a 20 años | D31: 50 | E31: 10 | F31: 4 | G31: 480 | H31: 240 | I31: 120 | J31: 100 | K31: 240
A32: Nifurtimox 120 mgMayores de 15 años | B32: Nifurtimox 120 mg | C32: Mayores de 15 años | D32: 60 | E32: 9 | F32: 4.5 | G32: 560 | H32: 270 | I32: 120 | J32: 100 | K32: 240
A33: Nifurtimox 120 mgAdultos | B33: Nifurtimox 120 mg | C33: Adultos | D33: 80 | E33: 8 | F33: 5 | G33: 640 | H33: 300 | I33: 120 | J33: 100 | K33: 240
A34: =B34&C34 -> Mix 1Menores de 1 año | B34: Mix 1 | C34: Menores de 1 año | D34: 8 | K34: -
A35: Mix 1Niños de 1 a 2 años | B35: Mix 1 | C35: Niños de 1 a 2 años | D35: 12.5 | K35: -
A36: Mix 1Niños de 2 a 5 años | B36: Mix 1 | C36: Niños de 2 a 5 años | D36: 25 | K36: -
A37: Mix 1Niños de 5 a 15 años | B37: Mix 1 | C37: Niños de 5 a 15 años | D37: 30 | K37: -
A38: Mix 1Mayores de 15 años | B38: Mix 1 | C38: Mayores de 15 años | D38: 60 | K38: -
A39: Mix 2Menores de 1 año | B39: Mix 2 | C39: Menores de 1 año | D39: 8 | K39: -
A40: Mix 2Niños de 1 a 5 años | B40: Mix 2 | C40: Niños de 1 a 5 años | D40: 12.5 | K40: -
A41: Mix 2Niños de 5 a 15 años | B41: Mix 2 | C41: Niños de 5 a 15 años | D41: 30 | K41: -
A42: Mix 2Jóvenes de 15 a 20 años | B42: Mix 2 | C42: Jóvenes de 15 a 20 años | D42: 50 | K42: -
A43: Mix 2Adultos | B43: Mix 2 | C43: Adultos | D43: 80 | K43: -
A44: Benznidazol 12,5 mgCasos congénitos | B44: Benznidazol 12,5 mg | C44: Casos congénitos | D44: 8 | E44: 6.25 | F44: 4 | G44: 50 | H44: =F44*60 -> 240 | I44: 12.5 | J44: 100 | K44: 240
A45: Benznidazol 12,5 mgNiños de 1 a 2 años | B45: Benznidazol 12,5 mg | C45: Niños de 1 a 2 años | D45: 12.5 | K45: =K44 -> 240
A46: Benznidazol 12,5 mgNiños de 1 a 5 años | B46: Benznidazol 12,5 mg | C46: Niños de 1 a 5 años | D46: 12.5 | K46: =K45 -> 240
A47: Benznidazol 12,5 mgNiños de 2 a 5 años | B47: Benznidazol 12,5 mg | C47: Niños de 2 a 5 años | D47: 25 | K47: 240
A48: Benznidazol 12,5 mgNiños de 5 a 15 años | B48: Benznidazol 12,5 mg | C48: Niños de 5 a 15 años | D48: 30 | K48: 240
A49: Benznidazol 12,5 mgJóvenes de 15 a 20 años | B49: Benznidazol 12,5 mg | C49: Jóvenes de 15 a 20 años | D49: 50 | K49: 240
A50: Benznidazol 12,5 mgMayores de 15 años | B50: Benznidazol 12,5 mg | C50: Mayores de 15 años | D50: 60 | K50: 240
A51: Benznidazol 12,5 mgAdultos | B51: Benznidazol 12,5 mg | C51: Adultos | D51: 80 | K51: 240

Sheet P (hidden)
B1: Lista de productos, información y algunos cálculos
A4: ID | B4: Denominación | C4: Producto incluido | D4: Composición | E4: Pack | F4: Días tratamiento | G4: Grupo de edad | H4: Corresponde Producto a Grupo de edad? | I4: Peso prom | J4: Dosis | M4: Total
J5: Dosis | K5: mg | L5: Comprimidos
A6: =$B$6&G6 -> Benznidazol 12,5 mg (I)Menores de 1 año | B6: Benznidazol 12,5 mg (I) | C6: Benznidazol 12,5 mg | D6: 12.5 | E6: 100 | F6: ='3'!$D$21 -> 60 | G6: Menores de 1 año | H6: SI | I6: ='3'!$D$26 -> 8 | J6: ='3'!$E$26 -> 6.25 | K6: =I6*J6 -> 50 | L6: =MROUND(K6/D6,1) -> 4 | M6: =IF(F6<>"Otro",ROUND(L6*F6,0),ROUND(L6*'3'!$D$22,0)) -> 240
A7: =$B$6&G7 -> Benznidazol 12,5 mg (I)Niños de 1 a 2 años | C7: Benznidazol 12,5 mg | D7: 12.5 | E7: 100 | F7: ='3'!$D$21 -> 60 | G7: Niños de 1 a 2 años | H7: SI | I7: ='3'!$D$27 ->  | J7: ='3'!$E$27 ->  | K7: =I7*J7 ->  | L7: =MROUND(K7/D7,1) ->  | M7: =IF(F7<>"Otro",ROUND(L7*F7,0),ROUND(L7*'3'!$D$22,0)) -> 
A8: =$B$6&G8 -> Benznidazol 12,5 mg (I)Niños de 2 a 5 años | C8: Benznidazol 12,5 mg | D8: 12.5 | E8: 100 | F8: ='3'!$D$21 -> 60 | G8: Niños de 2 a 5 años | H8: NO | I8: ='3'!$D$28 ->  | J8: ='3'!$E$28 ->  | K8: =I8*J8 ->  | M8: =IF(F8<>"Otro",ROUND(L8*F8,0),ROUND(L8*'3'!$D$22,0)) -> 
A9: =$B$6&G9 -> Benznidazol 12,5 mg (I)Niños de 5 a 15 años | C9: Benznidazol 12,5 mg | D9: 12.5 | E9: 100 | F9: ='3'!$D$21 -> 60 | G9: Niños de 5 a 15 años | H9: NO | I9: ='3'!$D$29 ->  | J9: ='3'!$E$29 ->  | M9: =IF(F9<>"Otro",ROUND(L9*F9,0),ROUND(L9*'3'!$D$22,0)) -> 
A10: =$B$6&G10 -> Benznidazol 12,5 mg (I)Mayores de 15 años | C10: Benznidazol 12,5 mg | D10: 12.5 | E10: 100 | F10: ='3'!$D$21 -> 60 | G10: Mayores de 15 años | H10: NO | I10: ='3'!$D$30 ->  | J10: ='3'!$E$30 ->  | M10: =IF(F10<>"Otro",ROUND(L10*F10,0),ROUND(L10*'3'!$D$22,0)) -> 
A11: =$B$11&G11 -> Benznidazol 12,5 mg (II)Menores de 1 año | B11: Benznidazol 12,5 mg (II) | C11: Benznidazol 12,5 mg | D11: 12.5 | E11: 100 | F11: ='3'!$D$21 -> 60 | G11: Menores de 1 año | H11: NO | I11: ='3'!$D$26 -> 8 | J11: ='3'!$E$26 -> 6.25 | K11: =I11*J11 -> 50 | L11: 4 | M11: =IF(F11<>"Otro",ROUND(L11*F11,0),ROUND(L11*'3'!$D$22,0)) -> 240
A12: =$B$11&G12 -> Benznidazol 12,5 mg (II)Niños de 1 a 5 años | C12: Benznidazol 12,5 mg | D12: 12.5 | E12: 100 | F12: ='3'!$D$21 -> 60 | G12: Niños de 1 a 5 años | H12: SI | I12: ='3'!$D$27 ->  | J12: ='3'!$E$27 ->  | K12: =I12*J12 ->  | M12: =IF(F12<>"Otro",ROUND(L12*F12,0),ROUND(L12*'3'!$D$22,0)) -> 
A13: =$B$11&G13 -> Benznidazol 12,5 mg (II)Niños de 5 a 15 años | C13: Benznidazol 12,5 mg | D13: 12.5 | E13: 100 | F13: ='3'!$D$21 -> 60 | G13: Niños de 5 a 15 años | H13: NO | I13: ='3'!$D$28 ->  | J13: ='3'!$E$28 ->  | K13: =I13*J13 ->  | M13: =IF(F13<>"Otro",ROUND(L13*F13,0),ROUND(L13*'3'!$D$22,0)) -> 
A14: =$B$11&G14 -> Benznidazol 12,5 mg (II)Jóvenes de 15 a 20 años | C14: Benznidazol 12,5 mg | D14: 12.5 | E14: 100 | F14: ='3'!$D$21 -> 60 | G14: Jóvenes de 15 a 20 años | H14: NO | I14: ='3'!$D$29 ->  | J14: ='3'!$E$29 ->  | M14: =IF(F14<>"Otro",ROUND(L14*F14,0),ROUND(L14*'3'!$D$22,0)) -> 
A15: =$B$11&G15 -> Benznidazol 12,5 mg (II)Adultos | C15: Benznidazol 12,5 mg | D15: 12.5 | E15: 100 | F15: ='3'!$D$21 -> 60 | G15: Adultos | H15: NO | I15: ='3'!$D$30 ->  | J15: ='3'!$E$30 ->  | M15: =IF(F15<>"Otro",ROUND(L15*F15,0),ROUND(L15*'3'!$D$22,0)) -> 
A16: =$B$16&G16 -> Benznidazol 50 mg (I)Menores de 1 año | B16: Benznidazol 50 mg (I) | C16: Benznidazol 50 mg | D16: 50 | E16: 20 | F16: ='3'!$D$21 -> 60 | G16: Menores de 1 año | H16: NO | I16: ='3'!$D$26 -> 8 | J16: ='3'!$E$26 -> 6.25 | K16: =I16*J16 -> 50 | L16: 1 | M16: =IF(F16<>"Otro",ROUND(L16*F16,0),ROUND(L16*'3'!$D$22,0)) -> 60
A17: =$B$16&G17 -> Benznidazol 50 mg (I)Niños de 1 a 2 años | C17: Benznidazol 50 mg | D17: 50 | E17: 20 | F17: ='3'!$D$21 -> 60 | G17: Niños de 1 a 2 años | H17: SI | I17: ='3'!$D$27 ->  | J17: ='3'!$E$27 ->  | K17: =I17*J17 ->  | M17: =IF(F17<>"Otro",ROUND(L17*F17,0),ROUND(L17*'3'!$D$22,0)) -> 
A18: =$B$16&G18 -> Benznidazol 50 mg (I)Niños de 2 a 5 años | C18: Benznidazol 50 mg | D18: 50 | E18: 20 | F18: ='3'!$D$21 -> 60 | G18: Niños de 2 a 5 años | H18: SI | I18: ='3'!$D$28 ->  | J18: ='3'!$E$28 ->  | K18: =I18*J18 ->  | M18: =IF(F18<>"Otro",ROUND(L18*F18,0),ROUND(L18*'3'!$D$22,0)) -> 
A19: =$B$16&G19 -> Benznidazol 50 mg (I)Niños de 5 a 15 años | C19: Benznidazol 50 mg | D19: 50 | E19: 20 | F19: ='3'!$D$21 -> 60 | G19: Niños de 5 a 15 años | H19: SI | I19: ='3'!$D$29 ->  | J19: ='3'!$E$29 ->  | M19: =IF(F19<>"Otro",ROUND(L19*F19,0),ROUND(L19*'3'!$D$22,0)) -> 
A20: =$B$16&G20 -> Benznidazol 50 mg (I)Mayores de 15 años | C20: Benznidazol 50 mg | D20: 50 | E20: 20 | F20: ='3'!$D$21 -> 60 | G20: Mayores de 15 años | H20: NO | I20: ='3'!$D$30 ->  | J20: ='3'!$E$30 ->  | M20: =IF(F20<>"Otro",ROUND(L20*F20,0),ROUND(L20*'3'!$D$22,0)) -> 
A21: =$B$21&G21 -> Benznidazol 50 mg (II)Menores de 1 año | B21: Benznidazol 50 mg (II) | C21: Benznidazol 50 mg | D21: 50 | E21: 20 | F21: ='3'!$D$21 -> 60 | G21: Menores de 1 año | H21: NO | I21: ='3'!$D$26 -> 8 | J21: ='3'!$E$26 -> 6.25 | K21: =I21*J21 -> 50 | L21: 1 | M21: =IF(F21<>"Otro",ROUND(L21*F21,0),ROUND(L21*'3'!$D$22,0)) -> 60
A22: =$B$21&G22 -> Benznidazol 50 mg (II)Niños de 1 a 5 años | C22: Benznidazol 50 mg | D22: 50 | E22: 20 | F22: ='3'!$D$21 -> 60 | G22: Niños de 1 a 5 años | H22: SI | I22: ='3'!$D$27 ->  | J22: ='3'!$E$27 ->  | K22: =I22*J22 ->  | M22: =IF(F22<>"Otro",ROUND(L22*F22,0),ROUND(L22*'3'!$D$22,0)) -> 
A23: =$B$21&G23 -> Benznidazol 50 mg (II)Niños de 5 a 15 años | C23: Benznidazol 50 mg | D23: 50 | E23: 20 | F23: ='3'!$D$21 -> 60 | G23: Niños de 5 a 15 años | H23: SI | I23: ='3'!$D$28 ->  | J23: ='3'!$E$28 ->  | K23: =I23*J23 ->  | M23: =IF(F23<>"Otro",ROUND(L23*F23,0),ROUND(L23*'3'!$D$22,0)) -> 
A24: =$B$21&G24 -> Benznidazol 50 mg (II)Jóvenes de 15 a 20 años | C24: Benznidazol 50 mg | D24: 250 | E24: 20 | F24: ='3'!$D$21 -> 60 | G24: Jóvenes de 15 a 20 años | H24: NO | I24: ='3'!$D$29 ->  | J24: ='3'!$E$29 ->  | M24: =IF(F24<>"Otro",ROUND(L24*F24,0),ROUND(L24*'3'!$D$22,0)) -> 
A25: =$B$21&G25 -> Benznidazol 50 mg (II)Adultos | C25: Benznidazol 50 mg | D25: 250 | E25: 20 | F25: ='3'!$D$21 -> 60 | G25: Adultos | H25: NO | I25: ='3'!$D$30 ->  | J25: ='3'!$E$30 ->  | M25: =IF(F25<>"Otro",ROUND(L25*F25,0),ROUND(L25*'3'!$D$22,0)) -> 
A26: =$B$26&G26 -> Benznidazol 100 mg (I)Niños de 1 a 2 años | B26: Benznidazol 100 mg (I) | C26: Benznidazol 100 mg | D26: 100 | E26: 100 | F26: ='3'!$D$21 -> 60 | G26: Niños de 1 a 2 años | H26: NO | I26: ='3'!$D$27 ->  | J26: ='3'!$E$27 ->  | K26: =I26*J26 ->  | M26: =IF(F26<>"Otro",ROUND(L26*F26,0),ROUND(L26*'3'!$D$22,0)) -> 
A27: =$B$26&G27 -> Benznidazol 100 mg (I)Niños de 2 a 5 años | C27: Benznidazol 100 mg | D27: 100 | E27: 100 | F27: ='3'!$D$21 -> 60 | G27: Niños de 2 a 5 años | H27: SI | I27: ='3'!$D$28 ->  | J27: ='3'!$E$28 ->  | K27: =I27*J27 ->  | M27: =IF(F27<>"Otro",ROUND(L27*F27,0),ROUND(L27*'3'!$D$22,0)) -> 
A28: =$B$26&G28 -> Benznidazol 100 mg (I)Niños de 5 a 15 años | C28: Benznidazol 100 mg | D28: 100 | E28: 100 | F28: ='3'!$D$21 -> 60 | G28: Niños de 5 a 15 años | H28: SI | I28: ='3'!$D$28 ->  | J28: ='3'!$E$28 ->  | M28: =IF(F28<>"Otro",ROUND(L28*F28,0),ROUND(L28*'3'!$D$22,0)) -> 
A29: =$B$26&G29 -> Benznidazol 100 mg (I)Jóvenes de 15 a 20 años | C29: Benznidazol 100 mg | D29: 100 | E29: 100 | F29: ='3'!$D$21 -> 60 | G29: Jóvenes de 15 a 20 años | H29: SI | I29: ='3'!$D$29 ->  | J29: ='3'!$E$29 ->  | M29: =IF(F29<>"Otro",ROUND(L29*F29,0),ROUND(L29*'3'!$D$22,0)) -> 
A30: =$B$26&G30 -> Benznidazol 100 mg (I)Adultos | C30: Benznidazol 100 mg | D30: 100 | E30: 100 | F30: ='3'!$D$21 -> 60 | G30: Adultos | H30: SI | I30: ='3'!$D$30 ->  | J30: ='3'!$E$30 ->  | M30: =IF(F30<>"Otro",ROUND(L30*F30,0),ROUND(L30*'3'!$D$22,0)) -> 
A31: =$B$31&G31 -> Benznidazol 100 mg (II)Menores de 1 año | B31: Benznidazol 100 mg (II) | C31: Benznidazol 100 mg | D31: 100 | E31: 100 | F31: ='3'!$D$21 -> 60 | G31: Menores de 1 año | H31: NO | I31: ='3'!$D$26 -> 8 | J31: ='3'!$E$26 -> 6.25 | K31: =I31*J31 -> 50 | L31: 1 | M31: =IF(F31<>"Otro",ROUND(L31*F31,0),ROUND(L31*'3'!$D$22,0)) -> 60
A32: =$B$31&G32 -> Benznidazol 100 mg (II)Niños de 1 a 5 años | C32: Benznidazol 100 mg | D32: 100 | E32: 100 | F32: ='3'!$D$21 -> 60 | G32: Niños de 1 a 5 años | H32: SI | I32: ='3'!$D$27 ->  | J32: ='3'!$E$27 ->  | K32: =I32*J32 ->  | M32: =IF(F32<>"Otro",ROUND(L32*F32,0),ROUND(L32*'3'!$D$22,0)) -> 
A33: =$B$31&G33 -> Benznidazol 100 mg (II)Niños de 5 a 15 años | C33: Benznidazol 100 mg | D33: 100 | E33: 100 | F33: ='3'!$D$21 -> 60 | G33: Niños de 5 a 15 años | H33: SI | I33: ='3'!$D$28 ->  | J33: ='3'!$E$28 ->  | K33: =I33*J33 ->  | M33: =IF(F33<>"Otro",ROUND(L33*F33,0),ROUND(L33*'3'!$D$22,0)) -> 
A34: =$B$31&G34 -> Benznidazol 100 mg (II)Jóvenes de 15 a 20 años | C34: Benznidazol 100 mg | D34: 100 | E34: 100 | F34: ='3'!$D$21 -> 60 | G34: Jóvenes de 15 a 20 años | H34: SI | I34: ='3'!$D$29 ->  | J34: ='3'!$E$29 ->  | M34: =IF(F34<>"Otro",ROUND(L34*F34,0),ROUND(L34*'3'!$D$22,0)) -> 
A35: =$B$31&G35 -> Benznidazol 100 mg (II)Adultos | C35: Benznidazol 100 mg | D35: 100 | E35: 100 | F35: ='3'!$D$21 -> 60 | G35: Adultos | H35: SI | I35: ='3'!$D$30 ->  | J35: ='3'!$E$30 ->  | M35: =IF(F35<>"Otro",ROUND(L35*F35,0),ROUND(L35*'3'!$D$22,0)) -> 
A36: =$B$36&G36 -> Nifurtimox 120 mgMenores de 1 año | B36: Nifurtimox 120 mg | C36: Nifurtimox 120 mg | D36: 120 | E36: 100 | F36: ='3'!$D$21 -> 60 | G36: Menores de 1 año | H36: SI | I36: ='3'!$D$26 -> 8 | J36: ='3'!$E$26 -> 6.25 | K36: =I36*J36 -> 50 | L36: 0 | M36: =IF(F36<>"Otro",ROUND(L36*F36,0),ROUND(L36*'3'!$D$22,0)) -> 0
A37: =$B$36&G37 -> Nifurtimox 120 mgNiños de 1 a 5 años | C37: Nifurtimox 120 mg | D37: 120 | E37: 100 | F37: ='3'!$D$21 -> 60 | G37: Niños de 1 a 5 años | H37: SI | I37: ='3'!$D$27 ->  | J37: ='3'!$E$27 ->  | K37: =I37*J37 ->  | M37: =IF(F37<>"Otro",ROUND(L37*F37,0),ROUND(L37*'3'!$D$22,0)) -> 
A38: =$B$36&G38 -> Nifurtimox 120 mgNiños de 5 a 15 años | C38: Nifurtimox 120 mg | D38: 120 | E38: 100 | F38: ='3'!$D$21 -> 60 | G38: Niños de 5 a 15 años | H38: SI | I38: ='3'!$D$28 ->  | J38: ='3'!$E$28 ->  | K38: =I38*J38 ->  | M38: =IF(F38<>"Otro",ROUND(L38*F38,0),ROUND(L38*'3'!$D$22,0)) -> 
A39: =$B$36&G39 -> Nifurtimox 120 mgJóvenes de 15 a 20 años | C39: Nifurtimox 120 mg | D39: 120 | E39: 100 | F39: ='3'!$D$21 -> 60 | G39: Jóvenes de 15 a 20 años | H39: SI | I39: ='3'!$D$29 ->  | J39: ='3'!$E$29 ->  | M39: =IF(F39<>"Otro",ROUND(L39*F39,0),ROUND(L39*'3'!$D$22,0)) -> 
A40: =$B$36&G40 -> Nifurtimox 120 mgAdultos | C40: Nifurtimox 120 mg | D40: 120 | E40: 100 | F40: ='3'!$D$21 -> 60 | G40: Adultos | H40: SI | I40: ='3'!$D$30 ->  | J40: ='3'!$E$30 ->  | M40: =IF(F40<>"Otro",ROUND(L40*F40,0),ROUND(L40*'3'!$D$22,0)) -> 
A41: =$B$41&G41 -> Mix 1Menores de 1 año | B41: Mix 1 | C41: ='3'!BQ93 -> Benznidazol 12,5 mg | D41: =VLOOKUP(C41&G41,DatosDefault!$A:$I,9,0) -> 12.5 | E41: =VLOOKUP(C41&G41,DatosDefault!$A:$J,10,0) -> 100 | F41: ='3'!$D$21 -> 60 | G41: Menores de 1 año | H41: =IF('3'!BM93=TRUE,"SI","NO") -> SI | I41: ='3'!$D$26 -> 8 | J41: ='3'!$E$26 -> 6.25 | K41: =I41*J41 -> 50 | L41: 4 | M41: =IF(F41<>"Otro",ROUND(L41*F41,0),ROUND(L41*'3'!$D$22,0)) -> 240
A42: =$B$41&G42 -> Mix 1Niños de 1 a 2 años | C42: ='3'!BQ94 -> Benznidazol 12,5 mg | D42: =VLOOKUP(C42&G42,DatosDefault!$A:$I,9,0) -> 12.5 | E42: =VLOOKUP(C42&G42,DatosDefault!$A:$J,10,0) -> 100 | F42: ='3'!$D$21 -> 60 | G42: Niños de 1 a 2 años | H42: =IF('3'!BM94=TRUE,"SI","NO") -> SI | I42: ='3'!$D$27 ->  | J42: ='3'!$E$27 ->  | K42: =I42*J42 ->  | M42: =IF(F42<>"Otro",ROUND(L42*F42,0),ROUND(L42*'3'!$D$22,0)) -> 
A43: =$B$41&G43 -> Mix 1Niños de 2 a 5 años | C43: ='3'!BQ95 -> Benznidazol 50 mg | D43: =VLOOKUP(C43&G43,DatosDefault!$A:$I,9,0) -> 50 | E43: =VLOOKUP(C43&G43,DatosDefault!$A:$J,10,0) -> 20 | F43: ='3'!$D$21 -> 60 | G43: Niños de 2 a 5 años | H43: =IF('3'!BM95=TRUE,"SI","NO") -> SI | I43: ='3'!$D$28 ->  | J43: ='3'!$E$28 ->  | K43: =I43*J43 ->  | M43: =IF(F43<>"Otro",ROUND(L43*F43,0),ROUND(L43*'3'!$D$22,0)) -> 
A44: =$B$41&G44 -> Mix 1Niños de 5 a 15 años | C44: ='3'!BQ96 -> Benznidazol 50 mg | D44: =VLOOKUP(C44&G44,DatosDefault!$A:$I,9,0) -> 50 | E44: =VLOOKUP(C44&G44,DatosDefault!$A:$J,10,0) -> 20 | F44: ='3'!$D$21 -> 60 | G44: Niños de 5 a 15 años | H44: =IF('3'!BM96=TRUE,"SI","NO") -> SI | I44: ='3'!$D$29 ->  | J44: ='3'!$E$29 ->  | M44: =IF(F44<>"Otro",ROUND(L44*F44,0),ROUND(L44*'3'!$D$22,0)) -> 
A45: =$B$41&G45 -> Mix 1Mayores de 15 años | C45: ='3'!BQ97 -> Benznidazol 100 mg | D45: =VLOOKUP(C45&G45,DatosDefault!$A:$I,9,0) -> 100 | E45: =VLOOKUP(C45&G45,DatosDefault!$A:$J,10,0) -> 100 | F45: ='3'!$D$21 -> 60 | G45: Mayores de 15 años | H45: =IF('3'!BM97=TRUE,"SI","NO") -> SI | I45: ='3'!$D$30 ->  | J45: ='3'!$E$30 ->  | M45: =IF(F45<>"Otro",ROUND(L45*F45,0),ROUND(L45*'3'!$D$22,0)) -> 
A46: =$B$46&G46 -> Mix 2Menores de 1 año | B46: Mix 2 | C46: ='3'!BQ100 -> Benznidazol 12,5 mg | D46: =VLOOKUP(C46&G46,DatosDefault!$A:$I,9,0) -> 12.5 | E46: =VLOOKUP(C46&G46,DatosDefault!$A:$J,10,0) -> 100 | F46: ='3'!$D$21 -> 60 | G46: Menores de 1 año | H46: =IF('3'!BM100=TRUE,"SI","NO") -> SI | I46: ='3'!$D$26 -> 8 | J46: ='3'!$E$26 -> 6.25 | K46: =I46*J46 -> 50 | L46: 4 | M46: =IF(F46<>"Otro",ROUND(L46*F46,0),ROUND(L46*'3'!$D$22,0)) -> 240
A47: =$B$46&G47 -> Mix 2Niños de 1 a 5 años | C47: ='3'!BQ101 -> Benznidazol 12,5 mg | D47: =VLOOKUP(C47&G47,DatosDefault!$A:$I,9,0) -> 12.5 | E47: =VLOOKUP(C47&G47,DatosDefault!$A:$J,10,0) -> 100 | F47: ='3'!$D$21 -> 60 | G47: Niños de 1 a 5 años | H47: =IF('3'!BM101=TRUE,"SI","NO") -> SI | I47: ='3'!$D$27 ->  | J47: ='3'!$E$27 ->  | K47: =I47*J47 ->  | M47: =IF(F47<>"Otro",ROUND(L47*F47,0),ROUND(L47*'3'!$D$22,0)) -> 
A48: =$B$46&G48 -> Mix 2Niños de 5 a 15 años | C48: ='3'!BQ102 -> Benznidazol 50 mg | D48: =VLOOKUP(C48&G48,DatosDefault!$A:$I,9,0) -> 50 | E48: =VLOOKUP(C48&G48,DatosDefault!$A:$J,10,0) -> 20 | F48: ='3'!$D$21 -> 60 | G48: Niños de 5 a 15 años | H48: =IF('3'!BM102=TRUE,"SI","NO") -> SI | I48: ='3'!$D$28 ->  | J48: ='3'!$E$28 ->  | K48: =I48*J48 ->  | M48: =IF(F48<>"Otro",ROUND(L48*F48,0),ROUND(L48*'3'!$D$22,0)) -> 
A49: =$B$46&G49 -> Mix 2Jóvenes de 15 a 20 años | C49: ='3'!BQ103 -> Benznidazol 100 mg | D49: =VLOOKUP(C49&G49,DatosDefault!$A:$I,9,0) -> 100 | E49: =VLOOKUP(C49&G49,DatosDefault!$A:$J,10,0) -> 100 | F49: ='3'!$D$21 -> 60 | G49: Jóvenes de 15 a 20 años | H49: =IF('3'!BM103=TRUE,"SI","NO") -> SI | I49: ='3'!$D$29 ->  | J49: ='3'!$E$29 ->  | M49: =IF(F49<>"Otro",ROUND(L49*F49,0),ROUND(L49*'3'!$D$22,0)) -> 
A50: =$B$46&G50 -> Mix 2Adultos | C50: ='3'!BQ104 -> Benznidazol 100 mg | D50: =VLOOKUP(C50&G50,DatosDefault!$A:$I,9,0) -> 100 | E50: =VLOOKUP(C50&G50,DatosDefault!$A:$J,10,0) -> 100 | F50: ='3'!$D$21 -> 60 | G50: Adultos | H50: =IF('3'!BM104=TRUE,"SI","NO") -> SI | I50: ='3'!$D$30 ->  | J50: ='3'!$E$30 ->  | M50: =IF(F50<>"Otro",ROUND(L50*F50,0),ROUND(L50*'3'!$D$22,0)) -> 
A51: =$B$51&G51 -> Benznidazol 12,5 mg (III)Casos congénitos | B51: Benznidazol 12,5 mg (III) | C51: Benznidazol 12,5 mg | D51: 12.5 | E51: 100 | F51: ='3'!$D$21 -> 60 | G51: Casos congénitos | H51: SI | I51: ='3'!$D$26 -> 8 | J51: ='3'!$E$26 -> 6.25 | K51: =I51*J51 -> 50 | L51: 4 | M51: =IF(F51<>"Otro",ROUND(L51*F51,0),ROUND(L51*'3'!$D$22,0)) -> 240
A52: =$B$51&G52 -> Benznidazol 12,5 mg (III)Niños de 1 a 2 años | C52: Benznidazol 12,5 mg | D52: 50 | E52: 20 | F52: ='3'!$D$21 -> 60 | G52: Niños de 1 a 2 años | H52: NO | I52: ='3'!$D$27 ->  | J52: ='3'!$E$27 ->  | K52: =I52*J52 ->  | M52: =IF(F52<>"Otro",ROUND(L52*F52,0),ROUND(L52*'3'!$D$22,0)) -> 
A53: =$B$51&G53 -> Benznidazol 12,5 mg (III)Niños de 2 a 5 años | C53: Benznidazol 12,5 mg | D53: 100 | E53: 100 | F53: ='3'!$D$21 -> 60 | G53: Niños de 2 a 5 años | H53: NO | I53: ='3'!$D$28 ->  | J53: ='3'!$E$28 ->  | K53: =I53*J53 ->  | M53: =IF(F53<>"Otro",ROUND(L53*F53,0),ROUND(L53*'3'!$D$22,0)) -> 
A54: =$B$51&G54 -> Benznidazol 12,5 mg (III)Niños de 5 a 15 años | C54: Benznidazol 12,5 mg | D54: 100 | E54: 100 | F54: ='3'!$D$21 -> 60 | G54: Niños de 5 a 15 años | H54: NO | I54: ='3'!$D$29 ->  | J54: ='3'!$E$29 ->  | M54: =IF(F54<>"Otro",ROUND(L54*F54,0),ROUND(L54*'3'!$D$22,0)) -> 
A55: =$B$51&G55 -> Benznidazol 12,5 mg (III)Mayores de 15 años | C55: Benznidazol 12,5 mg | D55: 100 | E55: 100 | F55: ='3'!$D$21 -> 60 | G55: Mayores de 15 años | H55: NO | I55: ='3'!$D$30 ->  | J55: ='3'!$E$30 ->  | M55: =IF(F55<>"Otro",ROUND(L55*F55,0),ROUND(L55*'3'!$D$22,0)) -> 
B58: Ingreso por portada

Sheet R (hidden)
B1: =IF('3'!C26="Casos congénitos","Información básica necesaria (A partir de Población de Mujeres Embarazadas con Chagas)","Información básica necesaria"&" ("&'3'!BB82&")") -> Información básica necesaria (A partir de Población de Mujeres Embarazadas con Chagas)
E3: Área endémica | K3: Área no endémica | R3: Fuente consultada en la obtencion del dato | V3: Crecimiento anual esperado en la Población | AW3: Filtro Avanzado
A4: ID | B4: País | C4: Grupo de edad | D4: Población total | E4: % respecto a Población total | F4: Población total estimada | G4: Prevalencia estimada | H4: Posibilidad Diagnóstico | I4: Posibilidad Tratamiento | J4: Población estimada positiva | K4: % respecto a Población total | L4: Población total estimada | M4: Prevalencia estimada | N4: Posibilidad Diagnóstico | O4: Posibilidad Tratamiento | P4: Población estimada positiva | R4: Población estimada | S4: Prevalencia estimada | T4: Población estimada positiva | U4: x | V4: Tasa ref. | W4: 2012 | X4: 2013 | Y4: 2014 | Z4: 2015 | AA4: 2016 | AB4: 2017 | AC4: 2018 | AD4: 2019 | AE4: 2020 | AF4: 2021 | AW4: País | AX4: x
A5: =B5&C5 -> ArgentinaCasos congénitos | B5: Argentina | C5: ='3'!C26:C26 -> Casos congénitos | D5: 100000 | E5: 0.5 | F5: =IF(C5="",0,E5*D5) -> 50000 | G5: 0.9 | H5: 0.5 | I5: 0.1 | J5: =G5*F5 -> 45000 | K5: =1-E5 -> 0.5 | L5: =IF(C5="",0,K5*D5) -> 50000 | P5: =M5*L5 -> 0 | R5: OPS | S5: OPS | T5: OPS | U5: =IF(C5="","x","") ->  | V5: -0.001089610613 | W5: -0.001089610613 | X5: -0.001089610613 | Y5: -0.001089610613 | Z5: -0.001089610613 | AA5: -0.001089610613 | AB5: -0.001089610613 | AC5: -0.001089610613 | AD5: -0.001089610613 | AE5: -0.001089610613 | AF5: -0.001089610613 | AW5: ='3'!AW82 -> Argentina | AX5: <>x
A6: Argentina | B6: Argentina | C6: ='3'!C27:C27 ->  | D6: 400000 | F6: =IF(C6="",0,E5*D6) -> 0 | G6: 0.9 | H6: 0.5 | I6: 0.1 | J6: 0 | L6: =IF(C6="",0,K5*D6) -> 0 | P6: =M6*L6 -> 0 | R6: OPS | S6: OPS | T6: OPS | U6: =IF(C6="","x","") -> x | V6: -0.001089610613 | W6: -0.001089610613 | X6: -0.001089610613 | Y6: -0.001089610613 | Z6: -0.001089610613 | AA6: -0.001089610613 | AB6: -0.001089610613 | AC6: -0.001089610613 | AD6: -0.001089610613 | AE6: -0.001089610613 | AF6: -0.001089610613 | AW6: ='3'!AW83 -> 0 | AX6: <>x
A7: Argentina | B7: Argentina | C7: ='3'!C28:C28 ->  | F7: =IF(C7="",0,E5*D7) -> 0 | J7: 0 | L7: =IF(C7="",0,K5*D7) -> 0 | P7: 0 | R7: OPS | S7: OPS | T7: OPS | U7: x | V7: 0.00171823897 | W7: 0.00171823897 | X7: 0.00171823897 | Y7: 0.00171823897 | Z7: 0.00171823897 | AA7: 0.00171823897 | AB7: 0.00171823897 | AC7: 0.00171823897 | AD7: 0.00171823897 | AE7: 0.00171823897 | AF7: 0.00171823897 | AW7: ='3'!AW84 -> 0 | AX7: <>x
A8: Argentina | B8: Argentina | C8: ='3'!C29:C29 ->  | F8: =IF(C8="",0,E5*D8) -> 0 | J8: 0 | L8: =IF(C8="",0,K5*D8) -> 0 | P8: 0 | R8: OPS | S8: OPS | T8: OPS | U8: x | V8: -0.003783037826 | W8: -0.003783037826 | X8: -0.003783037826 | Y8: -0.003783037826 | Z8: -0.003783037826 | AA8: -0.003783037826 | AB8: -0.003783037826 | AC8: -0.003783037826 | AD8: -0.003783037826 | AE8: -0.003783037826 | AF8: -0.003783037826 | AW8: ='3'!AW85 -> 0 | AX8: <>x
A9: Argentina | B9: Argentina | C9: ='3'!C30:C30 ->  | F9: =IF(C9="",0,E5*D9) -> 0 | J9: 0 | L9: =IF(C9="",0,K5*D9) -> 0 | P9: 0 | R9: OPS | S9: OPS | T9: OPS | U9: x | V9: 0.01403717133 | W9: 0.01403717133 | X9: 0.01403717133 | Y9: 0.01403717133 | Z9: 0.01403717133 | AA9: 0.01403717133 | AB9: 0.01403717133 | AC9: 0.01403717133 | AD9: 0.01403717133 | AE9: 0.01403717133 | AF9: 0.01403717133 | AW9: ='3'!AW86 -> 0 | AX9: <>x
A10: BelizeCasos congénitos | B10: Belize | C10: =C5 -> Casos congénitos | F10: =IF(C10="",0,E10*D10) -> 0 | J10: 0 | K10: 1 | L10: =IF(C10="",0,K10*D10) -> 0 | P10: 0 | R10: OPS | S10: OPS | T10: OPS | V10: 0 | W10: 0 | X10: 0 | Y10: 0 | Z10: 0 | AA10: 0 | AB10: 0 | AC10: 0 | AD10: 0 | AE10: 0 | AF10: 0 | AW10: ='3'!AW87 -> 0 | AX10: <>x
A11: Belize | B11: Belize | C11: =C6 ->  | F11: =IF(C11="",0,E10*D11) -> 0 | J11: 0 | K11: 1 | L11: =IF(C11="",0,K10*D11) -> 0 | P11: 0 | R11: OPS | S11: OPS | T11: OPS | U11: x | V11: 0 | W11: 0 | X11: 0 | Y11: 0 | Z11: 0 | AA11: 0 | AB11: 0 | AC11: 0 | AD11: 0 | AE11: 0 | AF11: 0 | AW11: ='3'!AW88 -> 0 | AX11: <>x
A12: Belize | B12: Belize | F12: =IF(C12="",0,E10*D12) -> 0 | J12: 0 | K12: 1 | L12: =IF(C12="",0,K10*D12) -> 0 | P12: 0 | R12: OPS | S12: OPS | T12: OPS | U12: x | V12: 0 | W12: 0 | X12: 0 | Y12: 0 | Z12: 0 | AA12: 0 | AB12: 0 | AC12: 0 | AD12: 0 | AE12: 0 | AF12: 0 | AW12: ='3'!AW89 -> 0 | AX12: <>x
A13: Belize | B13: Belize | F13: =IF(C13="",0,E10*D13) -> 0 | J13: 0 | K13: 1 | L13: =IF(C13="",0,K10*D13) -> 0 | P13: 0 | R13: OPS | S13: OPS | T13: OPS | U13: x | V13: 0 | W13: 0 | X13: 0 | Y13: 0 | Z13: 0 | AA13: 0 | AB13: 0 | AC13: 0 | AD13: 0 | AE13: 0 | AF13: 0 | AW13: ='3'!AW90 -> 0 | AX13: <>x
A14: Belize | B14: Belize | F14: =IF(C14="",0,E10*D14) -> 0 | J14: 0 | K14: 1 | L14: =IF(C14="",0,K10*D14) -> 0 | P14: 0 | R14: OPS | S14: OPS | T14: OPS | U14: x | V14: 0 | W14: 0 | X14: 0 | Y14: 0 | Z14: 0 | AA14: 0 | AB14: 0 | AC14: 0 | AD14: 0 | AE14: 0 | AF14: 0 | AW14: ='3'!AW91 -> 0 | AX14: <>x
A15: BoliviaCasos congénitos | B15: Bolivia | C15: Casos congénitos | F15: =IF(C15="",0,E15*D15) -> 0 | J15: 0 | K15: 1 | L15: =IF(C15="",0,K15*D15) -> 0 | P15: 0 | R15: OPS | S15: OPS | T15: OPS | V15: -0.002179534718 | W15: -0.002179534718 | X15: -0.002179534718 | Y15: -0.002179534718 | Z15: -0.002179534718 | AA15: -0.002179534718 | AB15: -0.002179534718 | AC15: -0.002179534718 | AD15: -0.002179534718 | AE15: -0.002179534718 | AF15: -0.002179534718 | AW15: ='3'!AW92 -> 0 | AX15: <>x
A16: Bolivia | B16: Bolivia | F16: =IF(C16="",0,E15*D16) -> 0 | J16: 0 | K16: 1 | L16: =IF(C16="",0,K15*D16) -> 0 | P16: 0 | R16: OPS | S16: OPS | T16: OPS | U16: x | V16: -0.002179534718 | W16: -0.002179534718 | X16: -0.002179534718 | Y16: -0.002179534718 | Z16: -0.002179534718 | AA16: -0.002179534718 | AB16: -0.002179534718 | AC16: -0.002179534718 | AD16: -0.002179534718 | AE16: -0.002179534718 | AF16: -0.002179534718 | AW16: ='3'!AW93 -> 0 | AX16: <>x
A17: Bolivia | B17: Bolivia | F17: =IF(C17="",0,E15*D17) -> 0 | J17: 0 | K17: 1 | L17: =IF(C17="",0,K15*D17) -> 0 | P17: 0 | R17: OPS | S17: OPS | T17: OPS | U17: x | V17: 0.002573732257 | W17: 0.002573732257 | X17: 0.002573732257 | Y17: 0.002573732257 | Z17: 0.002573732257 | AA17: 0.002573732257 | AB17: 0.002573732257 | AC17: 0.002573732257 | AD17: 0.002573732257 | AE17: 0.002573732257 | AF17: 0.002573732257 | AW17: ='3'!AW94 -> 0 | AX17: <>x
A18: Bolivia | B18: Bolivia | F18: =IF(C18="",0,E15*D18) -> 0 | J18: 0 | K18: 1 | L18: =IF(C18="",0,K15*D18) -> 0 | P18: 0 | R18: OPS | S18: OPS | T18: OPS | U18: x | V18: 0.008187744653 | W18: 0.008187744653 | X18: 0.008187744653 | Y18: 0.008187744653 | Z18: 0.008187744653 | AA18: 0.008187744653 | AB18: 0.008187744653 | AC18: 0.008187744653 | AD18: 0.008187744653 | AE18: 0.008187744653 | AF18: 0.008187744653 | AW18: ='3'!AW95 -> 0 | AX18: <>x
A19: Bolivia | B19: Bolivia | F19: =IF(C19="",0,E15*D19) -> 0 | J19: 0 | K19: 1 | L19: =IF(C19="",0,K15*D19) -> 0 | P19: 0 | R19: OPS | S19: OPS | T19: OPS | U19: x | V19: 0.02768976852 | W19: 0.02768976852 | X19: 0.02768976852 | Y19: 0.02768976852 | Z19: 0.02768976852 | AA19: 0.02768976852 | AB19: 0.02768976852 | AC19: 0.02768976852 | AD19: 0.02768976852 | AE19: 0.02768976852 | AF19: 0.02768976852 | AW19: ='3'!AW96 -> 0 | AX19: <>x
A20: BrasilCasos congénitos | B20: Brasil | C20: Casos congénitos | F20: =IF(C20="",0,E20*D20) -> 0 | J20: 0 | K20: 1 | L20: =IF(C20="",0,K20*D20) -> 0 | P20: 0 | R20: OPS | S20: OPS | T20: OPS | V20: -0.01418459987 | W20: -0.01418459987 | X20: -0.01418459987 | Y20: -0.01418459987 | Z20: -0.01418459987 | AA20: -0.01418459987 | AB20: -0.01418459987 | AC20: -0.01418459987 | AD20: -0.01418459987 | AE20: -0.01418459987 | AF20: -0.01418459987 | AW20: ='3'!AW97 -> 0 | AX20: <>x
A21: Brasil | B21: Brasil | F21: =IF(C21="",0,E20*D21) -> 0 | J21: 0 | K21: 1 | L21: =IF(C21="",0,K20*D21) -> 0 | P21: 0 | R21: OPS | S21: OPS | T21: OPS | U21: x | V21: -0.01418459987 | W21: -0.01418459987 | X21: -0.01418459987 | Y21: -0.01418459987 | Z21: -0.01418459987 | AA21: -0.01418459987 | AB21: -0.01418459987 | AC21: -0.01418459987 | AD21: -0.01418459987 | AE21: -0.01418459987 | AF21: -0.01418459987 | AW21: ='3'!AW98 -> 0 | AX21: <>x
A22: Brasil | B22: Brasil | F22: =IF(C22="",0,E20*D22) -> 0 | J22: 0 | K22: 1 | L22: =IF(C22="",0,K20*D22) -> 0 | P22: 0 | R22: OPS | S22: OPS | T22: OPS | U22: x | V22: -0.01632259557 | W22: -0.01632259557 | X22: -0.01632259557 | Y22: -0.01632259557 | Z22: -0.01632259557 | AA22: -0.01632259557 | AB22: -0.01632259557 | AC22: -0.01632259557 | AD22: -0.01632259557 | AE22: -0.01632259557 | AF22: -0.01632259557 | AW22: ='3'!AW99 -> 0 | AX22: <>x
A23: Brasil | B23: Brasil | F23: =IF(C23="",0,E20*D23) -> 0 | J23: 0 | K23: 1 | L23: =IF(C23="",0,K20*D23) -> 0 | P23: 0 | R23: OPS | S23: OPS | T23: OPS | U23: x | V23: 0.003667702981 | W23: 0.003667702981 | X23: 0.003667702981 | Y23: 0.003667702981 | Z23: 0.003667702981 | AA23: 0.003667702981 | AB23: 0.003667702981 | AC23: 0.003667702981 | AD23: 0.003667702981 | AE23: 0.003667702981 | AF23: 0.003667702981 | AW23: ='3'!AW100 -> 0 | AX23: <>x
A24: Brasil | B24: Brasil | F24: =IF(C24="",0,E20*D24) -> 0 | J24: 0 | K24: 1 | L24: =IF(C24="",0,K20*D24) -> 0 | P24: 0 | R24: OPS | S24: OPS | T24: OPS | U24: x | V24: 0.01601842619 | W24: 0.01601842619 | X24: 0.01601842619 | Y24: 0.01601842619 | Z24: 0.01601842619 | AA24: 0.01601842619 | AB24: 0.01601842619 | AC24: 0.01601842619 | AD24: 0.01601842619 | AE24: 0.01601842619 | AF24: 0.01601842619 | AW24: ='3'!AW101 -> 0 | AX24: <>x
A25: ChileCasos congénitos | B25: Chile | C25: Casos congénitos | F25: =IF(C25="",0,E25*D25) -> 0 | J25: 0 | K25: 1 | L25: =IF(C25="",0,K25*D25) -> 0 | P25: 0 | R25: OPS | S25: OPS | T25: OPS | V25: -0.0002347944367 | W25: -0.0002347944367 | X25: -0.0002347944367 | Y25: -0.0002347944367 | Z25: -0.0002347944367 | AA25: -0.0002347944367 | AB25: -0.0002347944367 | AC25: -0.0002347944367 | AD25: -0.0002347944367 | AE25: -0.0002347944367 | AF25: -0.0002347944367 | AW25: ='3'!AW102 -> 0 | AX25: <>x
A26: Chile | B26: Chile | F26: =IF(C26="",0,E25*D26) -> 0 | J26: 0 | K26: 1 | L26: =IF(C26="",0,K25*D26) -> 0 | P26: 0 | R26: OPS | S26: OPS | T26: OPS | U26: x | V26: -0.0002347944367 | W26: -0.0002347944367 | X26: -0.0002347944367 | Y26: -0.0002347944367 | Z26: -0.0002347944367 | AA26: -0.0002347944367 | AB26: -0.0002347944367 | AC26: -0.0002347944367 | AD26: -0.0002347944367 | AE26: -0.0002347944367 | AF26: -0.0002347944367
A27: Chile | B27: Chile | F27: =IF(C27="",0,E25*D27) -> 0 | J27: 0 | K27: 1 | L27: =IF(C27="",0,K25*D27) -> 0 | P27: 0 | R27: OPS | S27: OPS | T27: OPS | U27: x | V27: -0.002348204451 | W27: -0.002348204451 | X27: -0.002348204451 | Y27: -0.002348204451 | Z27: -0.002348204451 | AA27: -0.002348204451 | AB27: -0.002348204451 | AC27: -0.002348204451 | AD27: -0.002348204451 | AE27: -0.002348204451 | AF27: -0.002348204451
A28: Chile | B28: Chile | F28: =IF(C28="",0,E25*D28) -> 0 | J28: 0 | K28: 1 | L28: =IF(C28="",0,K25*D28) -> 0 | P28: 0 | R28: OPS | S28: OPS | T28: OPS | U28: x | V28: -0.01689652346 | W28: -0.01689652346 | X28: -0.01689652346 | Y28: -0.01689652346 | Z28: -0.01689652346 | AA28: -0.01689652346 | AB28: -0.01689652346 | AC28: -0.01689652346 | AD28: -0.01689652346 | AE28: -0.01689652346 | AF28: -0.01689652346
A29: Chile | B29: Chile | F29: =IF(C29="",0,E25*D29) -> 0 | J29: 0 | K29: 1 | L29: =IF(C29="",0,K25*D29) -> 0 | P29: 0 | R29: OPS | S29: OPS | T29: OPS | U29: x | V29: 0.01500406427 | W29: 0.01500406427 | X29: 0.01500406427 | Y29: 0.01500406427 | Z29: 0.01500406427 | AA29: 0.01500406427 | AB29: 0.01500406427 | AC29: 0.01500406427 | AD29: 0.01500406427 | AE29: 0.01500406427 | AF29: 0.01500406427
A30: ColombiaCasos congénitos | B30: Colombia | C30: Casos congénitos | F30: =IF(C30="",0,E30*D30) -> 0 | J30: 0 | K30: 1 | L30: =IF(C30="",0,K30*D30) -> 0 | P30: 0 | R30: OPS | S30: OPS | T30: OPS | V30: -0.002336678321 | W30: -0.002336678321 | X30: -0.002336678321 | Y30: -0.002336678321 | Z30: -0.002336678321 | AA30: -0.002336678321 | AB30: -0.002336678321 | AC30: -0.002336678321 | AD30: -0.002336678321 | AE30: -0.002336678321 | AF30: -0.002336678321
A31: Colombia | B31: Colombia | F31: =IF(C31="",0,E30*D31) -> 0 | J31: 0 | K31: 1 | L31: =IF(C31="",0,K30*D31) -> 0 | P31: 0 | R31: OPS | S31: OPS | T31: OPS | U31: x | V31: -0.002336678321 | W31: -0.002336678321 | X31: -0.002336678321 | Y31: -0.002336678321 | Z31: -0.002336678321 | AA31: -0.002336678321 | AB31: -0.002336678321 | AC31: -0.002336678321 | AD31: -0.002336678321 | AE31: -0.002336678321 | AF31: -0.002336678321
A32: Colombia | B32: Colombia | F32: =IF(C32="",0,E30*D32) -> 0 | J32: 0 | K32: 1 | L32: =IF(C32="",0,K30*D32) -> 0 | P32: 0 | R32: OPS | S32: OPS | T32: OPS | U32: x | V32: 0.0008276099357 | W32: 0.0008276099357 | X32: 0.0008276099357 | Y32: 0.0008276099357 | Z32: 0.0008276099357 | AA32: 0.0008276099357 | AB32: 0.0008276099357 | AC32: 0.0008276099357 | AD32: 0.0008276099357 | AE32: 0.0008276099357 | AF32: 0.0008276099357
A33: Colombia | B33: Colombia | F33: =IF(C33="",0,E30*D33) -> 0 | J33: 0 | K33: 1 | L33: =IF(C33="",0,K30*D33) -> 0 | P33: 0 | R33: OPS | S33: OPS | T33: OPS | U33: x | V33: 0.0003447426121 | W33: 0.0003447426121 | X33: 0.0003447426121 | Y33: 0.0003447426121 | Z33: 0.0003447426121 | AA33: 0.0003447426121 | AB33: 0.0003447426121 | AC33: 0.0003447426121 | AD33: 0.0003447426121 | AE33: 0.0003447426121 | AF33: 0.0003447426121
A34: Colombia | B34: Colombia | F34: =IF(C34="",0,E30*D34) -> 0 | J34: 0 | K34: 1 | L34: =IF(C34="",0,K30*D34) -> 0 | P34: 0 | R34: OPS | S34: OPS | T34: OPS | U34: x | V34: 0.02091046132 | W34: 0.02091046132 | X34: 0.02091046132 | Y34: 0.02091046132 | Z34: 0.02091046132 | AA34: 0.02091046132 | AB34: 0.02091046132 | AC34: 0.02091046132 | AD34: 0.02091046132 | AE34: 0.02091046132 | AF34: 0.02091046132
A35: Costa RicaCasos congénitos | B35: Costa Rica | C35: Casos congénitos | F35: =IF(C35="",0,E35*D35) -> 0 | J35: 0 | K35: 1 | L35: =IF(C35="",0,K35*D35) -> 0 | P35: 0 | R35: OPS | S35: OPS | T35: OPS | V35: 0.002488646783 | W35: 0.002488646783 | X35: 0.002488646783 | Y35: 0.002488646783 | Z35: 0.002488646783 | AA35: 0.002488646783 | AB35: 0.002488646783 | AC35: 0.002488646783 | AD35: 0.002488646783 | AE35: 0.002488646783 | AF35: 0.002488646783
A36: Costa Rica | B36: Costa Rica | F36: =IF(C36="",0,E35*D36) -> 0 | J36: 0 | K36: 1 | L36: =IF(C36="",0,K35*D36) -> 0 | P36: 0 | R36: OPS | S36: OPS | T36: OPS | U36: x | V36: 0.002488646783 | W36: 0.002488646783 | X36: 0.002488646783 | Y36: 0.002488646783 | Z36: 0.002488646783 | AA36: 0.002488646783 | AB36: 0.002488646783 | AC36: 0.002488646783 | AD36: 0.002488646783 | AE36: 0.002488646783 | AF36: 0.002488646783
A37: Costa Rica | B37: Costa Rica | F37: =IF(C37="",0,E35*D37) -> 0 | J37: 0 | K37: 1 | L37: =IF(C37="",0,K35*D37) -> 0 | P37: 0 | R37: OPS | S37: OPS | T37: OPS | U37: x | V37: -0.003978747556 | W37: -0.003978747556 | X37: -0.003978747556 | Y37: -0.003978747556 | Z37: -0.003978747556 | AA37: -0.003978747556 | AB37: -0.003978747556 | AC37: -0.003978747556 | AD37: -0.003978747556 | AE37: -0.003978747556 | AF37: -0.003978747556
A38: Costa Rica | B38: Costa Rica | F38: =IF(C38="",0,E35*D38) -> 0 | J38: 0 | K38: 1 | L38: =IF(C38="",0,K35*D38) -> 0 | P38: 0 | R38: OPS | S38: OPS | T38: OPS | U38: x | V38: -0.006717175102 | W38: -0.006717175102 | X38: -0.006717175102 | Y38: -0.006717175102 | Z38: -0.006717175102 | AA38: -0.006717175102 | AB38: -0.006717175102 | AC38: -0.006717175102 | AD38: -0.006717175102 | AE38: -0.006717175102 | AF38: -0.006717175102
A39: Costa Rica | B39: Costa Rica | F39: =IF(C39="",0,E35*D39) -> 0 | J39: 0 | K39: 1 | L39: =IF(C39="",0,K35*D39) -> 0 | P39: 0 | R39: OPS | S39: OPS | T39: OPS | U39: x | V39: 0.02197673697 | W39: 0.02197673697 | X39: 0.02197673697 | Y39: 0.02197673697 | Z39: 0.02197673697 | AA39: 0.02197673697 | AB39: 0.02197673697 | AC39: 0.02197673697 | AD39: 0.02197673697 | AE39: 0.02197673697 | AF39: 0.02197673697
A40: EcuadorCasos congénitos | B40: Ecuador | C40: Casos congénitos | F40: =IF(C40="",0,E40*D40) -> 0 | J40: 0 | K40: 1 | L40: =IF(C40="",0,K40*D40) -> 0 | P40: 0 | R40: OPS | S40: OPS | T40: OPS | V40: -0.003614833122 | W40: -0.003614833122 | X40: -0.003614833122 | Y40: -0.003614833122 | Z40: -0.003614833122 | AA40: -0.003614833122 | AB40: -0.003614833122 | AC40: -0.003614833122 | AD40: -0.003614833122 | AE40: -0.003614833122 | AF40: -0.003614833122
A41: Ecuador | B41: Ecuador | F41: =IF(C41="",0,E40*D41) -> 0 | J41: 0 | K41: 1 | L41: =IF(C41="",0,K40*D41) -> 0 | P41: 0 | R41: OPS | S41: OPS | T41: OPS | U41: x | V41: -0.003614833122 | W41: -0.003614833122 | X41: -0.003614833122 | Y41: -0.003614833122 | Z41: -0.003614833122 | AA41: -0.003614833122 | AB41: -0.003614833122 | AC41: -0.003614833122 | AD41: -0.003614833122 | AE41: -0.003614833122 | AF41: -0.003614833122
A42: Ecuador | B42: Ecuador | F42: =IF(C42="",0,E40*D42) -> 0 | J42: 0 | K42: 1 | L42: =IF(C42="",0,K40*D42) -> 0 | P42: 0 | R42: OPS | S42: OPS | T42: OPS | U42: x | V42: -0.005643253204 | W42: -0.005643253204 | X42: -0.005643253204 | Y42: -0.005643253204 | Z42: -0.005643253204 | AA42: -0.005643253204 | AB42: -0.005643253204 | AC42: -0.005643253204 | AD42: -0.005643253204 | AE42: -0.005643253204 | AF42: -0.005643253204
A43: Ecuador | B43: Ecuador | F43: =IF(C43="",0,E40*D43) -> 0 | J43: 0 | K43: 1 | L43: =IF(C43="",0,K40*D43) -> 0 | P43: 0 | R43: OPS | S43: OPS | T43: OPS | U43: x | V43: 0.003147944603 | W43: 0.003147944603 | X43: 0.003147944603 | Y43: 0.003147944603 | Z43: 0.003147944603 | AA43: 0.003147944603 | AB43: 0.003147944603 | AC43: 0.003147944603 | AD43: 0.003147944603 | AE43: 0.003147944603 | AF43: 0.003147944603
A44: Ecuador | B44: Ecuador | F44: =IF(C44="",0,E40*D44) -> 0 | J44: 0 | K44: 1 | L44: =IF(C44="",0,K40*D44) -> 0 | P44: 0 | R44: OPS | S44: OPS | T44: OPS | U44: x | V44: 0.02117272129 | W44: 0.02117272129 | X44: 0.02117272129 | Y44: 0.02117272129 | Z44: 0.02117272129 | AA44: 0.02117272129 | AB44: 0.02117272129 | AC44: 0.02117272129 | AD44: 0.02117272129 | AE44: 0.02117272129 | AF44: 0.02117272129
A45: El SalvadorCasos congénitos | B45: El Salvador | C45: Casos congénitos | F45: =IF(C45="",0,E45*D45) -> 0 | J45: 0 | K45: 1 | L45: =IF(C45="",0,K45*D45) -> 0 | P45: 0 | R45: OPS | S45: OPS | T45: OPS | V45: 0.001642421166 | W45: 0.001642421166 | X45: 0.001642421166 | Y45: 0.001642421166 | Z45: 0.001642421166 | AA45: 0.001642421166 | AB45: 0.001642421166 | AC45: 0.001642421166 | AD45: 0.001642421166 | AE45: 0.001642421166 | AF45: 0.001642421166
A46: El Salvador | B46: El Salvador | F46: =IF(C46="",0,E45*D46) -> 0 | J46: 0 | K46: 1 | L46: =IF(C46="",0,K45*D46) -> 0 | P46: 0 | R46: OPS | S46: OPS | T46: OPS | U46: x | V46: 0.001642421166 | W46: 0.001642421166 | X46: 0.001642421166 | Y46: 0.001642421166 | Z46: 0.001642421166 | AA46: 0.001642421166 | AB46: 0.001642421166 | AC46: 0.001642421166 | AD46: 0.001642421166 | AE46: 0.001642421166 | AF46: 0.001642421166
A47: El Salvador | B47: El Salvador | F47: =IF(C47="",0,E45*D47) -> 0 | J47: 0 | K47: 1 | L47: =IF(C47="",0,K45*D47) -> 0 | P47: 0 | R47: OPS | S47: OPS | T47: OPS | U47: x | V47: -0.01204097835 | W47: -0.01204097835 | X47: -0.01204097835 | Y47: -0.01204097835 | Z47: -0.01204097835 | AA47: -0.01204097835 | AB47: -0.01204097835 | AC47: -0.01204097835 | AD47: -0.01204097835 | AE47: -0.01204097835 | AF47: -0.01204097835
A48: El Salvador | B48: El Salvador | F48: =IF(C48="",0,E45*D48) -> 0 | J48: 0 | K48: 1 | L48: =IF(C48="",0,K45*D48) -> 0 | P48: 0 | R48: OPS | S48: OPS | T48: OPS | U48: x | V48: -0.01779176456 | W48: -0.01779176456 | X48: -0.01779176456 | Y48: -0.01779176456 | Z48: -0.01779176456 | AA48: -0.01779176456 | AB48: -0.01779176456 | AC48: -0.01779176456 | AD48: -0.01779176456 | AE48: -0.01779176456 | AF48: -0.01779176456
A49: El Salvador | B49: El Salvador | F49: =IF(C49="",0,E45*D49) -> 0 | J49: 0 | K49: 1 | L49: =IF(C49="",0,K45*D49) -> 0 | P49: 0 | R49: OPS | S49: OPS | T49: OPS | U49: x | V49: 0.01966598779 | W49: 0.01966598779 | X49: 0.01966598779 | Y49: 0.01966598779 | Z49: 0.01966598779 | AA49: 0.01966598779 | AB49: 0.01966598779 | AC49: 0.01966598779 | AD49: 0.01966598779 | AE49: 0.01966598779 | AF49: 0.01966598779
A50: GuatemalaCasos congénitos | B50: Guatemala | C50: Casos congénitos | F50: =IF(C50="",0,E50*D50) -> 0 | J50: 0 | K50: 1 | L50: =IF(C50="",0,K50*D50) -> 0 | P50: 0 | R50: OPS | S50: OPS | T50: OPS | V50: 0.006974508529 | W50: 0.006974508529 | X50: 0.006974508529 | Y50: 0.006974508529 | Z50: 0.006974508529 | AA50: 0.006974508529 | AB50: 0.006974508529 | AC50: 0.006974508529 | AD50: 0.006974508529 | AE50: 0.006974508529 | AF50: 0.006974508529
A51: Guatemala | B51: Guatemala | F51: =IF(C51="",0,E50*D51) -> 0 | J51: 0 | K51: 1 | L51: =IF(C51="",0,K50*D51) -> 0 | P51: 0 | R51: OPS | S51: OPS | T51: OPS | U51: x | V51: 0.006974508529 | W51: 0.006974508529 | X51: 0.006974508529 | Y51: 0.006974508529 | Z51: 0.006974508529 | AA51: 0.006974508529 | AB51: 0.006974508529 | AC51: 0.006974508529 | AD51: 0.006974508529 | AE51: 0.006974508529 | AF51: 0.006974508529
A52: Guatemala | B52: Guatemala | F52: =IF(C52="",0,E50*D52) -> 0 | J52: 0 | K52: 1 | L52: =IF(C52="",0,K50*D52) -> 0 | P52: 0 | R52: OPS | S52: OPS | T52: OPS | U52: x | V52: 0.01503151913 | W52: 0.01503151913 | X52: 0.01503151913 | Y52: 0.01503151913 | Z52: 0.01503151913 | AA52: 0.01503151913 | AB52: 0.01503151913 | AC52: 0.01503151913 | AD52: 0.01503151913 | AE52: 0.01503151913 | AF52: 0.01503151913
A53: Guatemala | B53: Guatemala | F53: =IF(C53="",0,E50*D53) -> 0 | J53: 0 | K53: 1 | L53: =IF(C53="",0,K50*D53) -> 0 | P53: 0 | R53: OPS | S53: OPS | T53: OPS | U53: x | V53: 0.0240514393 | W53: 0.0240514393 | X53: 0.0240514393 | Y53: 0.0240514393 | Z53: 0.0240514393 | AA53: 0.0240514393 | AB53: 0.0240514393 | AC53: 0.0240514393 | AD53: 0.0240514393 | AE53: 0.0240514393 | AF53: 0.0240514393
A54: Guatemala | B54: Guatemala | F54: =IF(C54="",0,E50*D54) -> 0 | J54: 0 | K54: 1 | L54: =IF(C54="",0,K50*D54) -> 0 | P54: 0 | R54: OPS | S54: OPS | T54: OPS | U54: x | V54: 0.03801875745 | W54: 0.03801875745 | X54: 0.03801875745 | Y54: 0.03801875745 | Z54: 0.03801875745 | AA54: 0.03801875745 | AB54: 0.03801875745 | AC54: 0.03801875745 | AD54: 0.03801875745 | AE54: 0.03801875745 | AF54: 0.03801875745
A55: GuyanaCasos congénitos | B55: Guyana | C55: Casos congénitos | F55: =IF(C55="",0,E55*D55) -> 0 | J55: =G55*F55 -> 0 | K55: =1-E55 -> 1 | L55: =IF(C55="",0,K55*D55) -> 0 | P55: =M55*L55 -> 0 | R55: OPS | S55: OPS | T55: OPS | V55: 0 | W55: 0 | X55: 0 | Y55: 0 | Z55: 0 | AA55: 0 | AB55: 0 | AC55: 0 | AD55: 0 | AE55: 0 | AF55: 0
A56: Guyana | B56: Guyana | F56: =IF(C56="",0,E55*D56) -> 0 | J56: 0 | K56: 1 | L56: =IF(C56="",0,K55*D56) -> 0 | P56: 0 | R56: OPS | S56: OPS | T56: OPS | U56: x | V56: 0 | W56: 0 | X56: 0 | Y56: 0 | Z56: 0 | AA56: 0 | AB56: 0 | AC56: 0 | AD56: 0 | AE56: 0 | AF56: 0
A57: Guyana | B57: Guyana | F57: =IF(C57="",0,E55*D57) -> 0 | J57: 0 | K57: 1 | L57: =IF(C57="",0,K55*D57) -> 0 | P57: 0 | R57: OPS | S57: OPS | T57: OPS | U57: x | V57: 0 | W57: 0 | X57: 0 | Y57: 0 | Z57: 0 | AA57: 0 | AB57: 0 | AC57: 0 | AD57: 0 | AE57: 0 | AF57: 0
A58: Guyana | B58: Guyana | F58: =IF(C58="",0,E55*D58) -> 0 | J58: 0 | K58: 1 | L58: =IF(C58="",0,K55*D58) -> 0 | P58: 0 | R58: OPS | S58: OPS | T58: OPS | U58: x | V58: 0 | W58: 0 | X58: 0 | Y58: 0 | Z58: 0 | AA58: 0 | AB58: 0 | AC58: 0 | AD58: 0 | AE58: 0 | AF58: 0
A59: =B59&C59 -> Guyana | B59: Guyana | F59: =IF(C59="",0,E55*D59) -> 0 | J59: 0 | K59: 1 | L59: =IF(C59="",0,K55*D59) -> 0 | P59: 0 | R59: OPS | S59: OPS | T59: OPS | U59: x | V59: 0 | W59: 0 | X59: 0 | Y59: 0 | Z59: 0 | AA59: 0 | AB59: 0 | AC59: 0 | AD59: 0 | AE59: 0 | AF59: 0
A60: Guyana FrancesaCasos congénitos | B60: Guyana Francesa | C60: Casos congénitos | F60: =IF(C60="",0,E60*D60) -> 0 | J60: 0 | K60: 1 | L60: =IF(C60="",0,K60*D60) -> 0 | P60: 0 | R60: OPS | S60: OPS | T60: OPS | V60: 0 | W60: 0 | X60: 0 | Y60: 0 | Z60: 0 | AA60: 0 | AB60: 0 | AC60: 0 | AD60: 0 | AE60: 0 | AF60: 0
A61: Guyana Francesa | B61: Guyana Francesa | F61: =IF(C61="",0,E60*D61) -> 0 | J61: 0 | K61: 1 | L61: =IF(C61="",0,K60*D61) -> 0 | P61: 0 | R61: OPS | S61: OPS | T61: OPS | U61: x | V61: 0 | W61: 0 | X61: 0 | Y61: 0 | Z61: 0 | AA61: 0 | AB61: 0 | AC61: 0 | AD61: 0 | AE61: 0 | AF61: 0
A62: Guyana Francesa | B62: Guyana Francesa | F62: =IF(C62="",0,E60*D62) -> 0 | J62: 0 | K62: 1 | L62: =IF(C62="",0,K60*D62) -> 0 | P62: 0 | R62: OPS | S62: OPS | T62: OPS | U62: x | V62: 0 | W62: 0 | X62: 0 | Y62: 0 | Z62: 0 | AA62: 0 | AB62: 0 | AC62: 0 | AD62: 0 | AE62: 0 | AF62: 0
A63: Guyana Francesa | B63: Guyana Francesa | F63: =IF(C63="",0,E60*D63) -> 0 | J63: 0 | K63: 1 | L63: =IF(C63="",0,K60*D63) -> 0 | P63: 0 | R63: OPS | S63: OPS | T63: OPS | U63: x | V63: 0 | W63: 0 | X63: 0 | Y63: 0 | Z63: 0 | AA63: 0 | AB63: 0 | AC63: 0 | AD63: 0 | AE63: 0 | AF63: 0
A64: Guyana Francesa | B64: Guyana Francesa | F64: =IF(C64="",0,E60*D64) -> 0 | J64: 0 | K64: 1 | L64: =IF(C64="",0,K60*D64) -> 0 | P64: 0 | R64: OPS | S64: OPS | T64: OPS | U64: x | V64: 0 | W64: 0 | X64: 0 | Y64: 0 | Z64: 0 | AA64: 0 | AB64: 0 | AC64: 0 | AD64: 0 | AE64: 0 | AF64: 0
A65: HondurasCasos congénitos | B65: Honduras | C65: Casos congénitos | F65: =IF(C65="",0,E65*D65) -> 0 | J65: =G65*F65 -> 0 | K65: =1-E65 -> 1 | L65: =IF(C65="",0,K65*D65) -> 0 | P65: =M65*L65 -> 0 | R65: OPS | S65: OPS | T65: OPS | V65: 0.001366163606 | W65: 0.001366163606 | X65: 0.001366163606 | Y65: 0.001366163606 | Z65: 0.001366163606 | AA65: 0.001366163606 | AB65: 0.001366163606 | AC65: 0.001366163606 | AD65: 0.001366163606 | AE65: 0.001366163606 | AF65: 0.001366163606
A66: Honduras | B66: Honduras | F66: =IF(C66="",0,E65*D66) -> 0 | J66: 0 | K66: 1 | L66: =IF(C66="",0,K65*D66) -> 0 | P66: 0 | R66: OPS | S66: OPS | T66: OPS | U66: x | V66: 0.001366163606 | W66: 0.001366163606 | X66: 0.001366163606 | Y66: 0.001366163606 | Z66: 0.001366163606 | AA66: 0.001366163606 | AB66: 0.001366163606 | AC66: 0.001366163606 | AD66: 0.001366163606 | AE66: 0.001366163606 | AF66: 0.001366163606
A67: Honduras | B67: Honduras | F67: =IF(C67="",0,E65*D67) -> 0 | J67: 0 | K67: 1 | L67: =IF(C67="",0,K65*D67) -> 0 | P67: 0 | R67: OPS | S67: OPS | T67: OPS | U67: x | V67: 0.004718800629 | W67: 0.004718800629 | X67: 0.004718800629 | Y67: 0.004718800629 | Z67: 0.004718800629 | AA67: 0.004718800629 | AB67: 0.004718800629 | AC67: 0.004718800629 | AD67: 0.004718800629 | AE67: 0.004718800629 | AF67: 0.004718800629
A68: Honduras | B68: Honduras | F68: =IF(C68="",0,E65*D68) -> 0 | J68: 0 | K68: 1 | L68: =IF(C68="",0,K65*D68) -> 0 | P68: 0 | R68: OPS | S68: OPS | T68: OPS | U68: x | V68: 0.005363595578 | W68: 0.005363595578 | X68: 0.005363595578 | Y68: 0.005363595578 | Z68: 0.005363595578 | AA68: 0.005363595578 | AB68: 0.005363595578 | AC68: 0.005363595578 | AD68: 0.005363595578 | AE68: 0.005363595578 | AF68: 0.005363595578
A69: Honduras | B69: Honduras | F69: =IF(C69="",0,E65*D69) -> 0 | J69: 0 | K69: 1 | L69: =IF(C69="",0,K65*D69) -> 0 | P69: 0 | R69: OPS | S69: OPS | T69: OPS | U69: x | V69: 0.03470553497 | W69: 0.03470553497 | X69: 0.03470553497 | Y69: 0.03470553497 | Z69: 0.03470553497 | AA69: 0.03470553497 | AB69: 0.03470553497 | AC69: 0.03470553497 | AD69: 0.03470553497 | AE69: 0.03470553497 | AF69: 0.03470553497
A70: MéxicoCasos congénitos | B70: México | C70: Casos congénitos | F70: =IF(C70="",0,E70*D70) -> 0 | J70: 0 | K70: 1 | L70: =IF(C70="",0,K70*D70) -> 0 | P70: 0 | R70: OPS | S70: OPS | T70: OPS | U70: =IF(C70="","x","") ->  | V70: -0.01208929467 | W70: -0.01208929467 | X70: -0.01208929467 | Y70: -0.01208929467 | Z70: -0.01208929467 | AA70: -0.01208929467 | AB70: -0.01208929467 | AC70: -0.01208929467 | AD70: -0.01208929467 | AE70: -0.01208929467 | AF70: -0.01208929467
A71: México | B71: México | F71: =IF(C71="",0,E70*D71) -> 0 | J71: 0 | K71: 1 | L71: =IF(C71="",0,K70*D71) -> 0 | P71: 0 | R71: OPS | S71: OPS | T71: OPS | U71: x | V71: -0.01208929467 | W71: -0.01208929467 | X71: -0.01208929467 | Y71: -0.01208929467 | Z71: -0.01208929467 | AA71: -0.01208929467 | AB71: -0.01208929467 | AC71: -0.01208929467 | AD71: -0.01208929467 | AE71: -0.01208929467 | AF71: -0.01208929467
A72: México | B72: México | F72: =IF(C72="",0,E70*D72) -> 0 | J72: 0 | K72: 1 | L72: =IF(C72="",0,K70*D72) -> 0 | P72: 0 | R72: OPS | S72: OPS | T72: OPS | U72: x | V72: -0.008009878499 | W72: -0.008009878499 | X72: -0.008009878499 | Y72: -0.008009878499 | Z72: -0.008009878499 | AA72: -0.008009878499 | AB72: -0.008009878499 | AC72: -0.008009878499 | AD72: -0.008009878499 | AE72: -0.008009878499 | AF72: -0.008009878499
A73: México | B73: México | F73: =IF(C73="",0,E70*D73) -> 0 | J73: 0 | K73: 1 | L73: =IF(C73="",0,K70*D73) -> 0 | P73: 0 | R73: OPS | S73: OPS | T73: OPS | U73: x | V73: -0.006505840313 | W73: -0.006505840313 | X73: -0.006505840313 | Y73: -0.006505840313 | Z73: -0.006505840313 | AA73: -0.006505840313 | AB73: -0.006505840313 | AC73: -0.006505840313 | AD73: -0.006505840313 | AE73: -0.006505840313 | AF73: -0.006505840313
A74: México | B74: México | F74: =IF(C74="",0,E70*D74) -> 0 | J74: 0 | K74: 1 | L74: =IF(C74="",0,K70*D74) -> 0 | P74: 0 | R74: OPS | S74: OPS | T74: OPS | U74: x | V74: 0.01866021823 | W74: 0.01866021823 | X74: 0.01866021823 | Y74: 0.01866021823 | Z74: 0.01866021823 | AA74: 0.01866021823 | AB74: 0.01866021823 | AC74: 0.01866021823 | AD74: 0.01866021823 | AE74: 0.01866021823 | AF74: 0.01866021823
A75: NicaraguaCasos congénitos | B75: Nicaragua | C75: =C70 -> Casos congénitos | F75: =IF(C75="",0,E75*D75) -> 0 | J75: 0 | K75: 1 | L75: =IF(C75="",0,K75*D75) -> 0 | P75: 0 | R75: OPS | S75: OPS | T75: OPS | V75: -0.004120238214 | W75: -0.004120238214 | X75: -0.004120238214 | Y75: -0.004120238214 | Z75: -0.004120238214 | AA75: -0.004120238214 | AB75: -0.004120238214 | AC75: -0.004120238214 | AD75: -0.004120238214 | AE75: -0.004120238214 | AF75: -0.004120238214
A76: Nicaragua | B76: Nicaragua | F76: =IF(C76="",0,E75*D76) -> 0 | J76: 0 | K76: 1 | L76: =IF(C76="",0,K75*D76) -> 0 | P76: 0 | R76: OPS | S76: OPS | T76: OPS | U76: x | V76: -0.004120238214 | W76: -0.004120238214 | X76: -0.004120238214 | Y76: -0.004120238214 | Z76: -0.004120238214 | AA76: -0.004120238214 | AB76: -0.004120238214 | AC76: -0.004120238214 | AD76: -0.004120238214 | AE76: -0.004120238214 | AF76: -0.004120238214
A77: Nicaragua | B77: Nicaragua | F77: =IF(C77="",0,E75*D77) -> 0 | J77: 0 | K77: 1 | L77: =IF(C77="",0,K75*D77) -> 0 | P77: 0 | R77: OPS | S77: OPS | T77: OPS | U77: x | V77: -0.0005567556079 | W77: -0.0005567556079 | X77: -0.0005567556079 | Y77: -0.0005567556079 | Z77: -0.0005567556079 | AA77: -0.0005567556079 | AB77: -0.0005567556079 | AC77: -0.0005567556079 | AD77: -0.0005567556079 | AE77: -0.0005567556079 | AF77: -0.0005567556079
A78: Nicaragua | B78: Nicaragua | F78: =IF(C78="",0,E75*D78) -> 0 | J78: 0 | K78: 1 | L78: =IF(C78="",0,K75*D78) -> 0 | P78: 0 | R78: OPS | S78: OPS | T78: OPS | U78: x | V78: -0.008741621641 | W78: -0.008741621641 | X78: -0.008741621641 | Y78: -0.008741621641 | Z78: -0.008741621641 | AA78: -0.008741621641 | AB78: -0.008741621641 | AC78: -0.008741621641 | AD78: -0.008741621641 | AE78: -0.008741621641 | AF78: -0.008741621641
A79: Nicaragua | B79: Nicaragua | F79: =IF(C79="",0,E75*D79) -> 0 | J79: 0 | K79: 1 | L79: =IF(C79="",0,K75*D79) -> 0 | P79: 0 | R79: OPS | S79: OPS | T79: OPS | U79: x | V79: 0.02532246168 | W79: 0.02532246168 | X79: 0.02532246168 | Y79: 0.02532246168 | Z79: 0.02532246168 | AA79: 0.02532246168 | AB79: 0.02532246168 | AC79: 0.02532246168 | AD79: 0.02532246168 | AE79: 0.02532246168 | AF79: 0.02532246168
A80: PanamáCasos congénitos | B80: Panamá | C80: Casos congénitos | F80: =IF(C80="",0,E80*D80) -> 0 | J80: 0 | K80: 1 | L80: =IF(C80="",0,K80*D80) -> 0 | P80: 0 | R80: OPS | S80: OPS | T80: OPS | V80: -0.0006107158414 | W80: -0.0006107158414 | X80: -0.0006107158414 | Y80: -0.0006107158414 | Z80: -0.0006107158414 | AA80: -0.0006107158414 | AB80: -0.0006107158414 | AC80: -0.0006107158414 | AD80: -0.0006107158414 | AE80: -0.0006107158414 | AF80: -0.0006107158414
A81: Panamá | B81: Panamá | F81: =IF(C81="",0,E80*D81) -> 0 | J81: 0 | K81: 1 | L81: =IF(C81="",0,K80*D81) -> 0 | P81: 0 | R81: OPS | S81: OPS | T81: OPS | U81: x | V81: -0.0006107158414 | W81: -0.0006107158414 | X81: -0.0006107158414 | Y81: -0.0006107158414 | Z81: -0.0006107158414 | AA81: -0.0006107158414 | AB81: -0.0006107158414 | AC81: -0.0006107158414 | AD81: -0.0006107158414 | AE81: -0.0006107158414 | AF81: -0.0006107158414
A82: Panamá | B82: Panamá | F82: =IF(C82="",0,E80*D82) -> 0 | J82: 0 | K82: 1 | L82: =IF(C82="",0,K80*D82) -> 0 | P82: 0 | R82: OPS | S82: OPS | T82: OPS | U82: x | V82: 0.002029673502 | W82: 0.002029673502 | X82: 0.002029673502 | Y82: 0.002029673502 | Z82: 0.002029673502 | AA82: 0.002029673502 | AB82: 0.002029673502 | AC82: 0.002029673502 | AD82: 0.002029673502 | AE82: 0.002029673502 | AF82: 0.002029673502
A83: Panamá | B83: Panamá | F83: =IF(C83="",0,E80*D83) -> 0 | J83: 0 | K83: 1 | L83: =IF(C83="",0,K80*D83) -> 0 | P83: 0 | R83: OPS | S83: OPS | T83: OPS | U83: x | V83: 0.01100155733 | W83: 0.01100155733 | X83: 0.01100155733 | Y83: 0.01100155733 | Z83: 0.01100155733 | AA83: 0.01100155733 | AB83: 0.01100155733 | AC83: 0.01100155733 | AD83: 0.01100155733 | AE83: 0.01100155733 | AF83: 0.01100155733
A84: Panamá | B84: Panamá | F84: =IF(C84="",0,E80*D84) -> 0 | J84: 0 | K84: 1 | L84: =IF(C84="",0,K80*D84) -> 0 | P84: 0 | R84: OPS | S84: OPS | T84: OPS | U84: x | V84: 0.02161223918 | W84: 0.02161223918 | X84: 0.02161223918 | Y84: 0.02161223918 | Z84: 0.02161223918 | AA84: 0.02161223918 | AB84: 0.02161223918 | AC84: 0.02161223918 | AD84: 0.02161223918 | AE84: 0.02161223918 | AF84: 0.02161223918
A85: ParaguayCasos congénitos | B85: Paraguay | C85: Casos congénitos | F85: =IF(C85="",0,E85*D85) -> 0 | J85: 0 | K85: 1 | L85: =IF(C85="",0,K85*D85) -> 0 | P85: 0 | R85: OPS | S85: OPS | T85: OPS | V85: 0.0005446045137 | W85: 0.0005446045137 | X85: 0.0005446045137 | Y85: 0.0005446045137 | Z85: 0.0005446045137 | AA85: 0.0005446045137 | AB85: 0.0005446045137 | AC85: 0.0005446045137 | AD85: 0.0005446045137 | AE85: 0.0005446045137 | AF85: 0.0005446045137
A86: Paraguay | B86: Paraguay | F86: =IF(C86="",0,E85*D86) -> 0 | J86: 0 | K86: 1 | L86: =IF(C86="",0,K85*D86) -> 0 | P86: 0 | R86: OPS | S86: OPS | T86: OPS | U86: x | V86: 0.0005446045137 | W86: 0.0005446045137 | X86: 0.0005446045137 | Y86: 0.0005446045137 | Z86: 0.0005446045137 | AA86: 0.0005446045137 | AB86: 0.0005446045137 | AC86: 0.0005446045137 | AD86: 0.0005446045137 | AE86: 0.0005446045137 | AF86: 0.0005446045137
A87: Paraguay | B87: Paraguay | F87: =IF(C87="",0,E85*D87) -> 0 | J87: 0 | K87: 1 | L87: =IF(C87="",0,K85*D87) -> 0 | P87: 0 | R87: OPS | S87: OPS | T87: OPS | U87: x | V87: 0.003506410805 | W87: 0.003506410805 | X87: 0.003506410805 | Y87: 0.003506410805 | Z87: 0.003506410805 | AA87: 0.003506410805 | AB87: 0.003506410805 | AC87: 0.003506410805 | AD87: 0.003506410805 | AE87: 0.003506410805 | AF87: 0.003506410805
A88: Paraguay | B88: Paraguay | F88: =IF(C88="",0,E85*D88) -> 0 | J88: 0 | K88: 1 | L88: =IF(C88="",0,K85*D88) -> 0 | P88: 0 | R88: OPS | S88: OPS | T88: OPS | U88: x | V88: 0.005883363954 | W88: 0.005883363954 | X88: 0.005883363954 | Y88: 0.005883363954 | Z88: 0.005883363954 | AA88: 0.005883363954 | AB88: 0.005883363954 | AC88: 0.005883363954 | AD88: 0.005883363954 | AE88: 0.005883363954 | AF88: 0.005883363954
A89: Paraguay | B89: Paraguay | F89: =IF(C89="",0,E85*D89) -> 0 | J89: 0 | K89: 1 | L89: =IF(C89="",0,K85*D89) -> 0 | P89: 0 | R89: OPS | S89: OPS | T89: OPS | U89: x | V89: 0.0270268417 | W89: 0.0270268417 | X89: 0.0270268417 | Y89: 0.0270268417 | Z89: 0.0270268417 | AA89: 0.0270268417 | AB89: 0.0270268417 | AC89: 0.0270268417 | AD89: 0.0270268417 | AE89: 0.0270268417 | AF89: 0.0270268417
A90: PerúCasos congénitos | B90: Perú | C90: Casos congénitos | F90: =IF(C90="",0,E90*D90) -> 0 | J90: 0 | K90: 1 | L90: =IF(C90="",0,K90*D90) -> 0 | P90: 0 | R90: OPS | S90: OPS | T90: OPS | V90: -0.005672703303 | W90: -0.005672703303 | X90: -0.005672703303 | Y90: -0.005672703303 | Z90: -0.005672703303 | AA90: -0.005672703303 | AB90: -0.005672703303 | AC90: -0.005672703303 | AD90: -0.005672703303 | AE90: -0.005672703303 | AF90: -0.005672703303
A91: Perú | B91: Perú | F91: =IF(C91="",0,E90*D91) -> 0 | J91: 0 | K91: 1 | L91: =IF(C91="",0,K90*D91) -> 0 | P91: 0 | R91: OPS | S91: OPS | T91: OPS | U91: x | V91: -0.005672703303 | W91: -0.005672703303 | X91: -0.005672703303 | Y91: -0.005672703303 | Z91: -0.005672703303 | AA91: -0.005672703303 | AB91: -0.005672703303 | AC91: -0.005672703303 | AD91: -0.005672703303 | AE91: -0.005672703303 | AF91: -0.005672703303
A92: Perú | B92: Perú | F92: =IF(C92="",0,E90*D92) -> 0 | J92: 0 | K92: 1 | L92: =IF(C92="",0,K90*D92) -> 0 | P92: 0 | R92: OPS | S92: OPS | T92: OPS | U92: x | V92: -0.002185119992 | W92: -0.002185119992 | X92: -0.002185119992 | Y92: -0.002185119992 | Z92: -0.002185119992 | AA92: -0.002185119992 | AB92: -0.002185119992 | AC92: -0.002185119992 | AD92: -0.002185119992 | AE92: -0.002185119992 | AF92: -0.002185119992
A93: Perú | B93: Perú | F93: =IF(C93="",0,E90*D93) -> 0 | J93: 0 | K93: 1 | L93: =IF(C93="",0,K90*D93) -> 0 | P93: 0 | R93: OPS | S93: OPS | T93: OPS | U93: x | V93: -0.000261791866 | W93: -0.000261791866 | X93: -0.000261791866 | Y93: -0.000261791866 | Z93: -0.000261791866 | AA93: -0.000261791866 | AB93: -0.000261791866 | AC93: -0.000261791866 | AD93: -0.000261791866 | AE93: -0.000261791866 | AF93: -0.000261791866
A94: Perú | B94: Perú | F94: =IF(C94="",0,E90*D94) -> 0 | J94: 0 | K94: 1 | L94: =IF(C94="",0,K90*D94) -> 0 | P94: 0 | R94: OPS | S94: OPS | T94: OPS | U94: x | V94: 0.02070734571 | W94: 0.02070734571 | X94: 0.02070734571 | Y94: 0.02070734571 | Z94: 0.02070734571 | AA94: 0.02070734571 | AB94: 0.02070734571 | AC94: 0.02070734571 | AD94: 0.02070734571 | AE94: 0.02070734571 | AF94: 0.02070734571
A95: SurinamCasos congénitos | B95: Surinam | C95: Casos congénitos | F95: =IF(C95="",0,E95*D95) -> 0 | J95: 0 | K95: 1 | L95: =IF(C95="",0,K95*D95) -> 0 | P95: 0 | R95: OPS | S95: OPS | T95: OPS | V95: 0 | W95: 0 | X95: 0 | Y95: 0 | Z95: 0 | AA95: 0 | AB95: 0 | AC95: 0 | AD95: 0 | AE95: 0 | AF95: 0
A96: Surinam | B96: Surinam | F96: =IF(C96="",0,E95*D96) -> 0 | J96: 0 | K96: 1 | L96: =IF(C96="",0,K95*D96) -> 0 | P96: 0 | R96: OPS | S96: OPS | T96: OPS | U96: x | V96: 0 | W96: 0 | X96: 0 | Y96: 0 | Z96: 0 | AA96: 0 | AB96: 0 | AC96: 0 | AD96: 0 | AE96: 0 | AF96: 0
A97: Surinam | B97: Surinam | F97: =IF(C97="",0,E95*D97) -> 0 | J97: 0 | K97: 1 | L97: =IF(C97="",0,K95*D97) -> 0 | P97: 0 | R97: OPS | S97: OPS | T97: OPS | U97: x | V97: 0 | W97: 0 | X97: 0 | Y97: 0 | Z97: 0 | AA97: 0 | AB97: 0 | AC97: 0 | AD97: 0 | AE97: 0 | AF97: 0
A98: Surinam | B98: Surinam | F98: =IF(C98="",0,E95*D98) -> 0 | J98: 0 | K98: 1 | L98: =IF(C98="",0,K95*D98) -> 0 | P98: 0 | R98: OPS | S98: OPS | T98: OPS | U98: x | V98: 0 | W98: 0 | X98: 0 | Y98: 0 | Z98: 0 | AA98: 0 | AB98: 0 | AC98: 0 | AD98: 0 | AE98: 0 | AF98: 0
A99: Surinam | B99: Surinam | F99: =IF(C99="",0,E95*D99) -> 0 | J99: 0 | K99: 1 | L99: =IF(C99="",0,K95*D99) -> 0 | P99: 0 | R99: OPS | S99: OPS | T99: OPS | U99: x | V99: 0 | W99: 0 | X99: 0 | Y99: 0 | Z99: 0 | AA99: 0 | AB99: 0 | AC99: 0 | AD99: 0 | AE99: 0 | AF99: 0
A100: UruguayCasos congénitos | B100: Uruguay | C100: Casos congénitos | F100: =IF(C100="",0,E100*D100) -> 0 | J100: 0 | K100: 1 | L100: =IF(C100="",0,K100*D100) -> 0 | P100: 0 | R100: OPS | S100: OPS | T100: OPS | V100: -0.004850230181 | W100: -0.004850230181 | X100: -0.004850230181 | Y100: -0.004850230181 | Z100: -0.004850230181 | AA100: -0.004850230181 | AB100: -0.004850230181 | AC100: -0.004850230181 | AD100: -0.004850230181 | AE100: -0.004850230181 | AF100: -0.004850230181
A101: Uruguay | B101: Uruguay | F101: =IF(C101="",0,E100*D101) -> 0 | J101: 0 | K101: 1 | L101: =IF(C101="",0,K100*D101) -> 0 | P101: 0 | R101: OPS | S101: OPS | T101: OPS | U101: x | V101: -0.004850230181 | W101: -0.004850230181 | X101: -0.004850230181 | Y101: -0.004850230181 | Z101: -0.004850230181 | AA101: -0.004850230181 | AB101: -0.004850230181 | AC101: -0.004850230181 | AD101: -0.004850230181 | AE101: -0.004850230181 | AF101: -0.004850230181
A102: Uruguay | B102: Uruguay | F102: =IF(C102="",0,E100*D102) -> 0 | J102: 0 | K102: 1 | L102: =IF(C102="",0,K100*D102) -> 0 | P102: 0 | R102: OPS | S102: OPS | T102: OPS | U102: x | V102: -0.005976150048 | W102: -0.005976150048 | X102: -0.005976150048 | Y102: -0.005976150048 | Z102: -0.005976150048 | AA102: -0.005976150048 | AB102: -0.005976150048 | AC102: -0.005976150048 | AD102: -0.005976150048 | AE102: -0.005976150048 | AF102: -0.005976150048
A103: Uruguay | B103: Uruguay | F103: =IF(C103="",0,E100*D103) -> 0 | J103: 0 | K103: 1 | L103: =IF(C103="",0,K100*D103) -> 0 | P103: 0 | R103: OPS | S103: OPS | T103: OPS | U103: x | V103: -0.006858868197 | W103: -0.006858868197 | X103: -0.006858868197 | Y103: -0.006858868197 | Z103: -0.006858868197 | AA103: -0.006858868197 | AB103: -0.006858868197 | AC103: -0.006858868197 | AD103: -0.006858868197 | AE103: -0.006858868197 | AF103: -0.006858868197
A104: Uruguay | B104: Uruguay | F104: =IF(C104="",0,E100*D104) -> 0 | J104: 0 | K104: 1 | L104: =IF(C104="",0,K100*D104) -> 0 | P104: 0 | R104: OPS | S104: OPS | T104: OPS | U104: x | V104: 0.007650697465 | W104: 0.007650697465 | X104: 0.007650697465 | Y104: 0.007650697465 | Z104: 0.007650697465 | AA104: 0.007650697465 | AB104: 0.007650697465 | AC104: 0.007650697465 | AD104: 0.007650697465 | AE104: 0.007650697465 | AF104: 0.007650697465
A105: VenezuelaCasos congénitos | B105: Venezuela | C105: Casos congénitos | F105: =IF(C105="",0,E105*D105) -> 0 | J105: 0 | K105: 1 | L105: =IF(C105="",0,K105*D105) -> 0 | P105: 0 | R105: OPS | S105: OPS | T105: OPS | V105: -0.0006462493102 | W105: -0.0006462493102 | X105: -0.0006462493102 | Y105: -0.0006462493102 | Z105: -0.0006462493102 | AA105: -0.0006462493102 | AB105: -0.0006462493102 | AC105: -0.0006462493102 | AD105: -0.0006462493102 | AE105: -0.0006462493102 | AF105: -0.0006462493102
A106: Venezuela | B106: Venezuela | F106: =IF(C106="",0,E105*D106) -> 0 | J106: 0 | K106: 1 | L106: =IF(C106="",0,K105*D106) -> 0 | P106: 0 | R106: OPS | S106: OPS | T106: OPS | U106: x | V106: -0.0006462493102 | W106: -0.0006462493102 | X106: -0.0006462493102 | Y106: -0.0006462493102 | Z106: -0.0006462493102 | AA106: -0.0006462493102 | AB106: -0.0006462493102 | AC106: -0.0006462493102 | AD106: -0.0006462493102 | AE106: -0.0006462493102 | AF106: -0.0006462493102
A107: Venezuela | B107: Venezuela | F107: =IF(C107="",0,E105*D107) -> 0 | J107: 0 | K107: 1 | L107: =IF(C107="",0,K105*D107) -> 0 | P107: 0 | R107: OPS | S107: OPS | T107: OPS | U107: x | V107: 0.00427844091 | W107: 0.00427844091 | X107: 0.00427844091 | Y107: 0.00427844091 | Z107: 0.00427844091 | AA107: 0.00427844091 | AB107: 0.00427844091 | AC107: 0.00427844091 | AD107: 0.00427844091 | AE107: 0.00427844091 | AF107: 0.00427844091
A108: Venezuela | B108: Venezuela | F108: =IF(C108="",0,E105*D108) -> 0 | J108: 0 | K108: 1 | L108: =IF(C108="",0,K105*D108) -> 0 | P108: 0 | R108: OPS | S108: OPS | T108: OPS | U108: x | V108: 0.004402992571 | W108: 0.004402992571 | X108: 0.004402992571 | Y108: 0.004402992571 | Z108: 0.004402992571 | AA108: 0.004402992571 | AB108: 0.004402992571 | AC108: 0.004402992571 | AD108: 0.004402992571 | AE108: 0.004402992571 | AF108: 0.004402992571
A109: Venezuela | B109: Venezuela | F109: =IF(C109="",0,E105*D109) -> 0 | J109: 0 | K109: 1 | L109: =IF(C109="",0,K105*D109) -> 0 | P109: 0 | R109: OPS | S109: OPS | T109: OPS | U109: x | V109: 0.02264595848 | W109: 0.02264595848 | X109: 0.02264595848 | Y109: 0.02264595848 | Z109: 0.02264595848 | AA109: 0.02264595848 | AB109: 0.02264595848 | AC109: 0.02264595848 | AD109: 0.02264595848 | AE109: 0.02264595848 | AF109: 0.02264595848
B110: LATAM

Sheet R2 (hidden)
B1: ="Información básica necesaria"&" ("&'3'!BB84&")" -> Información básica necesaria ()
D3: Área endémica | I3: Área endémica | N3: Área no endémica | S3: Área no endémica | Y3: Coeficiente de crecimiento promedio de base histórico | AZ3: Filtro Avanzado
A4: ID | B4: País | C4: Grupo de edad | D4: 2007 | E4: 2008 | F4: 2009 | G4: 2010 | H4: 2011 | I4: 2007 | J4: 2008 | K4: 2009 | L4: 2010 | M4: 2011 | N4: 2007 | O4: 2008 | P4: 2009 | Q4: 2010 | R4: 2011 | S4: 2007 | T4: 2008 | U4: 2009 | V4: 2010 | W4: 2011 | X4: Producto | Y4: Tasa ref. | Z4: 2012 | AA4: 2013 | AB4: 2014 | AC4: 2015 | AD4: 2016 | AE4: 2017 | AF4: 2018 | AG4: 2019 | AH4: 2020 | AI4: 2021 | AJ4: x | AZ4: País | BA4: Grupo de edad | BB4: x
A5: =B5&C5 -> ArgentinaCasos congénitos | B5: Argentina | C5: ='3'!C26 -> Casos congénitos | D5: 100000 | E5: =+D5*1.1 -> 110000 | F5: =+E5*1.1 -> 121000 | G5: 133100 | H5: 146410 | I5: =IF($C5="",0,D5) -> 100000 | J5: 110000 | K5: 121000 | L5: 133100 | M5: 146410 | N5: 100 | O5: =+N5*1.1 -> 110 | P5: 121 | Q5: 133.1 | R5: 146.41 | S5: =IF($C5="",0,N5) -> 100 | T5: =IF($C5="",0,O5) -> 110 | U5: =IF($C5="",0,P5) -> 121 | V5: =IF($C5="",0,Q5) -> 133.1 | W5: =IF($C5="",0,R5) -> 146.41 | X5: ='3'!$G$26 -> Benznidazol 12,5 mg | Y5: =IF(AND(D5=0,E5=0,F5=0,G5=0,H5=0,N5=0,O5=0,P5=0,Q5=0,R5=0),"",AVERAGE(IF((D5+N5)<>0,(E5+O5)/(D5+N5)-1,"-"),IF((E5+O5)<>0,(F5+P5)/(E5+O5)-1,"-"),IF((F5+P5)<>0,(G5+Q5)/(F5+P5)-1,"-"),IF((G5+Q5)<>0,(H5+R5)/(G5+Q5)-1,"-"))) -> 0.1 | Z5: =Y5 -> 0.1 | AA5: =Z5 -> 0.1 | AB5: =AA5 -> 0.1 | AC5: =AB5 -> 0.1 | AD5: =AC5 -> 0.1 | AE5: =AD5 -> 0.1 | AF5: =AE5 -> 0.1 | AG5: =AF5 -> 0.1 | AH5: =AG5 -> 0.1 | AI5: =AH5 -> 0.1 | AJ5: =IF(C5="","x","") ->  | AZ5: ='3'!AW82 -> Argentina | BA5: =IF('3'!$G$21<>"Total","<>Total","Total") -> <>Total | BB5: <>x
A6: Argentina | B6: Argentina | C6: ='3'!C27 ->  | D6: 1500 | E6: =+D6*1.1 -> 1650 | F6: =+E6*1.1 -> 1815 | G6: 1996.5 | H6: 2196.15 | I6: 0 | J6: 0 | K6: 0 | L6: 0 | M6: 0 | N6: 300 | O6: =+N6*1.1 -> 330 | P6: 363 | Q6: 399.3 | R6: 439.23 | S6: =IF($C6="",0,N6) -> 0 | T6: =IF($C6="",0,O6) -> 0 | U6: =IF($C6="",0,P6) -> 0 | V6: =IF($C6="",0,Q6) -> 0 | W6: =IF($C6="",0,R6) -> 0 | X6: ='3'!$G$27 ->  | Y6: 0.1 | Z6: =Y6 -> 0.1 | AA6: =Z6 -> 0.1 | AB6: 0.1 | AC6: 0.1 | AD6: 0.1 | AE6: 0.1 | AF6: 0.1 | AG6: 0.1 | AH6: 0.1 | AI6: 0.1 | AJ6: =IF(C6="","x","") -> x | AZ6: ='3'!AW83 -> 0 | BA6: =IF('3'!$G$21<>"Total","<>Total","Total") -> <>Total | BB6: <>x
A7: Argentina | B7: Argentina | C7: ='3'!C28 ->  | D7: 973.6701283 | E7: 975.3431262 | F7: 977.0189988 | G7: 978.6977509 | H7: 980.3793875 | I7: 0 | J7: 0 | K7: 0 | L7: 0 | M7: 0 | N7: 757.2989887 | O7: 758.6002093 | P7: 759.9036657 | Q7: 761.2093618 | R7: 762.5173014 | S7: 0 | T7: 0 | U7: 0 | V7: 0 | W7: 0 | X7: ='3'!$G$28 ->  | Y7: 0.00171823897 | Z7: 0.00171823897 | AA7: =Z7 -> 0.00171823897 | AB7: 0.00171823897 | AC7: 0.00171823897 | AD7: 0.00171823897 | AE7: 0.00171823897 | AF7: 0.00171823897 | AG7: 0.00171823897 | AH7: 0.00171823897 | AI7: 0.00171823897 | AJ7: x | AZ7: ='3'!AW84 -> 0 | BA7: =IF('3'!$G$21<>"Total","<>Total","Total") -> <>Total | BB7: <>x
A8: Argentina | B8: Argentina | C8: ='3'!C29 ->  | D8: 66.65289207 | E8: 66.40074166 | F8: 66.14954514 | G8: 65.89929891 | H8: 65.64999937 | I8: 0 | J8: 0 | K8: 0 | L8: 0 | M8: 0 | N8: 51.84113828 | O8: 51.64502129 | P8: 51.44964622 | Q8: 51.25501026 | R8: 51.06111062 | S8: 0 | T8: 0 | U8: 0 | V8: 0 | W8: 0 | X8: ='3'!$G$29 ->  | Y8: -0.003783037826 | Z8: -0.003783037826 | AA8: =Z8 -> -0.003783037826 | AB8: -0.003783037826 | AC8: -0.003783037826 | AD8: -0.003783037826 | AE8: -0.003783037826 | AF8: -0.003783037826 | AG8: -0.003783037826 | AH8: -0.003783037826 | AI8: -0.003783037826 | AJ8: x | AZ8: ='3'!AW85 -> 0 | BA8: =IF('3'!$G$21<>"Total","<>Total","Total") -> <>Total | BB8: <>x
A9: Argentina | B9: Argentina | C9: ='3'!C30 ->  | D9: 4 | E9: 4 | F9: 4 | G9: 4 | H9: 3 | I9: 0 | J9: 0 | K9: 0 | L9: 0 | M9: 0 | N9: 3 | O9: 3 | P9: 3 | Q9: 2 | R9: 2 | S9: 0 | T9: 0 | U9: 0 | V9: 0 | W9: 0 | X9: ='3'!$G$30 ->  | Y9: -0.07738095238 | Z9: -0.07738095238 | AA9: =Z9 -> -0.07738095238 | AB9: -0.07738095238 | AC9: -0.07738095238 | AD9: -0.07738095238 | AE9: -0.07738095238 | AF9: -0.07738095238 | AG9: -0.07738095238 | AH9: -0.07738095238 | AI9: -0.07738095238 | AJ9: x | AZ9: ='3'!AW86 -> 0 | BA9: =IF('3'!$G$21<>"Total","<>Total","Total") -> <>Total | BB9: <>x
A10: ArgentinaTotal | B10: Argentina | C10: ='3'!$BD$89 -> Total | D10: =IF($C5="",0,D5)+IF($C6="",0,D6)+IF($C7="",0,D7)+IF($C8="",0,D8)+IF($C9="",0,D9) -> 100000 | E10: =IF($C5="",0,E5)+IF($C6="",0,E6)+IF($C7="",0,E7)+IF($C8="",0,E8)+IF($C9="",0,E9) -> 110000 | F10: 121000 | G10: 133100 | H10: 146410 | I10: 100000 | J10: 110000 | K10: 121000 | L10: 133100 | M10: 146410 | N10: =IF($C5="",0,N5)+IF($C6="",0,N6)+IF($C7="",0,N7)+IF($C8="",0,N8)+IF($C9="",0,N9) -> 100 | O10: =IF($C5="",0,O5)+IF($C6="",0,O6)+IF($C7="",0,O7)+IF($C8="",0,O8)+IF($C9="",0,O9) -> 110 | P10: =IF($C5="",0,P5)+IF($C6="",0,P6)+IF($C7="",0,P7)+IF($C8="",0,P8)+IF($C9="",0,P9) -> 121 | Q10: =IF($C5="",0,Q5)+IF($C6="",0,Q6)+IF($C7="",0,Q7)+IF($C8="",0,Q8)+IF($C9="",0,Q9) -> 133.1 | R10: =IF($C5="",0,R5)+IF($C6="",0,R6)+IF($C7="",0,R7)+IF($C8="",0,R8)+IF($C9="",0,R9) -> 146.41 | S10: 100 | T10: 110 | U10: 121 | V10: 133.1 | W10: 146.41 | X10: ='3'!$BG$94 -> Benznidazol 12,5 mg (III) | Y10: 0.1 | Z10: 0.1 | AA10: 0.1 | AB10: 0.1 | AC10: 0.1 | AD10: 0.1 | AE10: 0.1 | AF10: 0.1 | AG10: 0.1 | AH10: 0.1 | AI10: 0.1 | AZ10: ='3'!AW87 -> 0 | BA10: =IF('3'!$G$21<>"Total","<>Total","Total") -> <>Total | BB10: <>x
A11: BelizeCasos congénitos | B11: Belize | C11: =C5 -> Casos congénitos | I11: 0 | J11: 0 | K11: 0 | L11: 0 | M11: 0 | S11: 0 | T11: 0 | U11: 0 | V11: 0 | W11: 0 | X11: ='3'!$G$26 -> Benznidazol 12,5 mg | AZ11: ='3'!AW88 -> 0 | BA11: =IF('3'!$G$21<>"Total","<>Total","Total") -> <>Total | BB11: <>x
A12: Belize | B12: Belize | C12: =C6 ->  | I12: =IF($C12="",0,D12) -> 0 | J12: =IF($C12="",0,E12) -> 0 | K12: =IF($C12="",0,F12) -> 0 | L12: =IF($C12="",0,G12) -> 0 | M12: =IF($C12="",0,H12) -> 0 | S12: 0 | T12: 0 | U12: 0 | V12: 0 | W12: 0 | X12: ='3'!$G$27 ->  | AJ12: x | AZ12: ='3'!AW89 -> 0 | BA12: =IF('3'!$G$21<>"Total","<>Total","Total") -> <>Total | BB12: <>x
A13: Belize | B13: Belize | C13: =C7 ->  | D13: 973.6701283 | E13: 975.3431262 | F13: 977.0189988 | G13: 978.6977509 | H13: 980.3793875 | I13: 0 | J13: 0 | K13: 0 | L13: 0 | M13: 0 | N13: 757.2989887 | O13: 758.6002093 | P13: 759.9036657 | Q13: 761.2093618 | R13: 762.5173014 | S13: 0 | T13: 0 | U13: 0 | V13: 0 | W13: 0 | X13: ='3'!$G$28 ->  | Y13: 0.00171823897 | Z13: 0.00171823897 | AA13: 0.00171823897 | AB13: 0.00171823897 | AC13: 0.00171823897 | AD13: 0.00171823897 | AE13: 0.00171823897 | AF13: 0.00171823897 | AG13: 0.00171823897 | AH13: 0.00171823897 | AI13: 0.00171823897 | AJ13: x | AZ13: ='3'!AW90 -> 0 | BA13: =IF('3'!$G$21<>"Total","<>Total","Total") -> <>Total | BB13: <>x
A14: Belize | B14: Belize | C14: =C8 ->  | D14: 66.65289207 | E14: 66.40074166 | F14: 66.14954514 | G14: 65.89929891 | H14: 65.64999937 | I14: 0 | J14: 0 | K14: 0 | L14: 0 | M14: 0 | N14: 51.84113828 | O14: 51.64502129 | P14: 51.44964622 | Q14: 51.25501026 | R14: 51.06111062 | S14: 0 | T14: 0 | U14: 0 | V14: 0 | W14: 0 | X14: ='3'!$G$29 ->  | Y14: -0.003783037826 | Z14: -0.003783037826 | AA14: =Z14 -> -0.003783037826 | AB14: =AA14 -> -0.003783037826 | AC14: =AB14 -> -0.003783037826 | AD14: =AC14 -> -0.003783037826 | AE14: =AD14 -> -0.003783037826 | AF14: =AE14 -> -0.003783037826 | AG14: =AF14 -> -0.003783037826 | AH14: =AG14 -> -0.003783037826 | AI14: =AH14 -> -0.003783037826 | AJ14: x | AZ14: ='3'!AW91 -> 0 | BA14: =IF('3'!$G$21<>"Total","<>Total","Total") -> <>Total | BB14: <>x
A15: Belize | B15: Belize | C15: =C9 ->  | D15: 4 | E15: 4 | F15: 4 | G15: 4 | H15: 3 | I15: 0 | J15: 0 | K15: 0 | L15: 0 | M15: 0 | N15: 3 | O15: 3 | P15: 3 | Q15: 2 | R15: 2 | S15: 0 | T15: 0 | U15: 0 | V15: 0 | W15: 0 | X15: ='3'!$G$30 ->  | Y15: -0.07738095238 | Z15: -0.07738095238 | AA15: -0.07738095238 | AB15: -0.07738095238 | AC15: -0.07738095238 | AD15: -0.07738095238 | AE15: -0.07738095238 | AF15: -0.07738095238 | AG15: -0.07738095238 | AH15: -0.07738095238 | AI15: -0.07738095238 | AJ15: x | AZ15: ='3'!AW92 -> 0 | BA15: =IF('3'!$G$21<>"Total","<>Total","Total") -> <>Total | BB15: <>x
A16: BelizeTotal | B16: Belize | C16: ='3'!$BD$89 -> Total | D16: =IF($C11="",0,D11)+IF($C12="",0,D12)+IF($C13="",0,D13)+IF($C14="",0,D14)+IF($C15="",0,D15) -> 0 | E16: =IF($C11="",0,E11)+IF($C12="",0,E12)+IF($C13="",0,E13)+IF($C14="",0,E14)+IF($C15="",0,E15) -> 0 | F16: =IF($C11="",0,F11)+IF($C12="",0,F12)+IF($C13="",0,F13)+IF($C14="",0,F14)+IF($C15="",0,F15) -> 0 | G16: =IF($C11="",0,G11)+IF($C12="",0,G12)+IF($C13="",0,G13)+IF($C14="",0,G14)+IF($C15="",0,G15) -> 0 | H16: =IF($C11="",0,H11)+IF($C12="",0,H12)+IF($C13="",0,H13)+IF($C14="",0,H14)+IF($C15="",0,H15) -> 0 | I16: 0 | J16: 0 | K16: 0 | L16: 0 | M16: 0 | N16: =IF($C11="",0,N11)+IF($C12="",0,N12)+IF($C13="",0,N13)+IF($C14="",0,N14)+IF($C15="",0,N15) -> 0 | O16: =IF($C11="",0,O11)+IF($C12="",0,O12)+IF($C13="",0,O13)+IF($C14="",0,O14)+IF($C15="",0,O15) -> 0 | P16: =IF($C11="",0,P11)+IF($C12="",0,P12)+IF($C13="",0,P13)+IF($C14="",0,P14)+IF($C15="",0,P15) -> 0 | Q16: =IF($C11="",0,Q11)+IF($C12="",0,Q12)+IF($C13="",0,Q13)+IF($C14="",0,Q14)+IF($C15="",0,Q15) -> 0 | R16: =IF($C11="",0,R11)+IF($C12="",0,R12)+IF($C13="",0,R13)+IF($C14="",0,R14)+IF($C15="",0,R15) -> 0 | S16: 0 | T16: 0 | U16: 0 | V16: 0 | W16: 0 | X16: ='3'!$BG$94 -> Benznidazol 12,5 mg (III) | Z16: =Y16 ->  | AZ16: ='3'!AW93 -> 0 | BA16: =IF('3'!$G$21<>"Total","<>Total","Total") -> <>Total | BB16: <>x
A17: BoliviaCasos congénitos | B17: Bolivia | C17: =C11 -> Casos congénitos | I17: 0 | J17: 0 | K17: 0 | L17: 0 | M17: 0 | S17: 0 | T17: 0 | U17: 0 | V17: 0 | W17: 0 | X17: ='3'!$G$26 -> Benznidazol 12,5 mg | AZ17: ='3'!AW94 -> 0 | BA17: =IF('3'!$G$21<>"Total","<>Total","Total") -> <>Total | BB17: <>x
A18: Bolivia | B18: Bolivia | C18: =C12 ->  | I18: 0 | J18: 0 | K18: 0 | L18: 0 | M18: 0 | S18: 0 | T18: 0 | U18: 0 | V18: 0 | W18: 0 | X18: ='3'!$G$27 ->  | AJ18: x | AZ18: ='3'!AW95 -> 0 | BA18: =IF('3'!$G$21<>"Total","<>Total","Total") -> <>Total | BB18: <>x
A19: Bolivia | B19: Bolivia | C19: =C13 ->  | D19: 973.6701283 | E19: 975.3431262 | F19: 977.0189988 | G19: 978.6977509 | H19: 980.3793875 | I19: 0 | J19: 0 | K19: 0 | L19: 0 | M19: 0 | N19: 757.2989887 | O19: 758.6002093 | P19: 759.9036657 | Q19: 761.2093618 | R19: 762.5173014 | S19: 0 | T19: 0 | U19: 0 | V19: 0 | W19: 0 | X19: ='3'!$G$28 ->  | Y19: 0.00171823897 | Z19: 0.00171823897 | AA19: 0.00171823897 | AB19: 0.00171823897 | AC19: 0.00171823897 | AD19: 0.00171823897 | AE19: 0.00171823897 | AF19: 0.00171823897 | AG19: 0.00171823897 | AH19: 0.00171823897 | AI19: 0.00171823897 | AJ19: x | AZ19: ='3'!AW96 -> 0 | BA19: =IF('3'!$G$21<>"Total","<>Total","Total") -> <>Total | BB19: <>x
A20: Bolivia | B20: Bolivia | C20: =C14 ->  | D20: 66.65289207 | E20: 66.40074166 | F20: 66.14954514 | G20: 65.89929891 | H20: 65.64999937 | I20: 0 | J20: 0 | K20: 0 | L20: 0 | M20: 0 | N20: 51.84113828 | O20: 51.64502129 | P20: 51.44964622 | Q20: 51.25501026 | R20: 51.06111062 | S20: 0 | T20: 0 | U20: 0 | V20: 0 | W20: 0 | X20: ='3'!$G$29 ->  | Y20: -0.003783037826 | Z20: -0.003783037826 | AA20: -0.003783037826 | AB20: -0.003783037826 | AC20: -0.003783037826 | AD20: -0.003783037826 | AE20: -0.003783037826 | AF20: -0.003783037826 | AG20: -0.003783037826 | AH20: -0.003783037826 | AI20: -0.003783037826 | AJ20: x | AZ20: ='3'!AW97 -> 0 | BA20: =IF('3'!$G$21<>"Total","<>Total","Total") -> <>Total | BB20: <>x
A21: Bolivia | B21: Bolivia | C21: =C15 ->  | D21: 4 | E21: 4 | F21: 4 | G21: 4 | H21: 3 | I21: 0 | J21: 0 | K21: 0 | L21: 0 | M21: 0 | N21: 3 | O21: 3 | P21: 3 | Q21: 2 | R21: 2 | S21: 0 | T21: 0 | U21: 0 | V21: 0 | W21: 0 | X21: ='3'!$G$30 ->  | Y21: -0.07738095238 | Z21: -0.07738095238 | AA21: -0.07738095238 | AB21: -0.07738095238 | AC21: -0.07738095238 | AD21: -0.07738095238 | AE21: -0.07738095238 | AF21: -0.07738095238 | AG21: -0.07738095238 | AH21: -0.07738095238 | AI21: -0.07738095238 | AJ21: x | AZ21: ='3'!AW98 -> 0 | BA21: =IF('3'!$G$21<>"Total","<>Total","Total") -> <>Total | BB21: <>x
A22: BoliviaTotal | B22: Bolivia | C22: ='3'!$BD$89 -> Total | D22: =IF($C17="",0,D17)+IF($C18="",0,D18)+IF($C19="",0,D19)+IF($C20="",0,D20)+IF($C21="",0,D21) -> 0 | E22: =IF($C17="",0,E17)+IF($C18="",0,E18)+IF($C19="",0,E19)+IF($C20="",0,E20)+IF($C21="",0,E21) -> 0 | F22: 0 | G22: 0 | H22: 0 | I22: 0 | J22: 0 | K22: 0 | L22: 0 | M22: 0 | N22: =IF($C17="",0,N17)+IF($C18="",0,N18)+IF($C19="",0,N19)+IF($C20="",0,N20)+IF($C21="",0,N21) -> 0 | O22: =IF($C17="",0,O17)+IF($C18="",0,O18)+IF($C19="",0,O19)+IF($C20="",0,O20)+IF($C21="",0,O21) -> 0 | P22: 0 | Q22: 0 | R22: 0 | S22: 0 | T22: 0 | U22: 0 | V22: 0 | W22: 0 | X22: ='3'!$BG$94 -> Benznidazol 12,5 mg (III) | AZ22: ='3'!AW99 -> 0 | BA22: =IF('3'!$G$21<>"Total","<>Total","Total") -> <>Total | BB22: <>x
A23: BrasilCasos congénitos | B23: Brasil | C23: =C17 -> Casos congénitos | D23: 200000 | E23: =+D23*1.15 -> 230000 | F23: =+E23*1.15 -> 264500 | G23: 304175 | H23: 349801.25 | I23: 200000 | J23: 230000 | K23: 264500 | L23: 304175 | M23: 349801.25 | N23: 100000 | O23: =+N23*1.15 -> 115000 | P23: =+O23*1.15 -> 132250 | Q23: =+P23*1.15 -> 152087.5 | R23: =+Q23*1.15 -> 174900.625 | S23: 100000 | T23: 115000 | U23: 132250 | V23: 152087.5 | W23: 174900.625 | X23: ='3'!$G$26 -> Benznidazol 12,5 mg | Y23: 0.15 | Z23: 0.15 | AA23: 0.15 | AB23: 0.15 | AC23: 0.15 | AD23: 0.15 | AE23: 0.15 | AF23: 0.15 | AG23: 0.15 | AH23: 0.15 | AI23: 0.15 | AZ23: ='3'!AW100 -> 0 | BA23: =IF('3'!$G$21<>"Total","<>Total","Total") -> <>Total | BB23: <>x
A24: Brasil | B24: Brasil | C24: =C18 ->  | D24: 100000 | E24: =+D24*1.1 -> 110000 | F24: =+E24*1.1 -> 121000 | G24: 133100 | H24: 146410 | I24: 0 | J24: 0 | K24: 0 | L24: 0 | M24: 0 | N24: 50000 | O24: =+N24*1.1 -> 55000 | P24: =+O24*1.1 -> 60500 | Q24: 66550 | R24: 73205 | S24: 0 | T24: 0 | U24: 0 | V24: 0 | W24: 0 | X24: ='3'!$G$27 ->  | Y24: 0.1 | Z24: 0.1 | AA24: 0.1 | AB24: 0.1 | AC24: 0.1 | AD24: 0.1 | AE24: 0.1 | AF24: 0.1 | AG24: 0.1 | AH24: 0.1 | AI24: 0.1 | AJ24: x | AZ24: ='3'!AW101 -> 0 | BA24: =IF('3'!$G$21<>"Total","<>Total","Total") -> <>Total | BB24: <>x
A25: Brasil | B25: Brasil | C25: =C19 ->  | D25: =+D24/2 -> 50000 | E25: =+E24/2 -> 55000 | F25: 60500 | G25: 66550 | H25: 73205 | I25: 0 | J25: 0 | K25: 0 | L25: 0 | M25: 0 | N25: =+N24/2 -> 25000 | O25: =+O24/2 -> 27500 | P25: 30250 | Q25: 33275 | R25: 36602.5 | S25: 0 | T25: 0 | U25: 0 | V25: 0 | W25: 0 | X25: ='3'!$G$28 ->  | Y25: 0.1 | Z25: 0.1 | AA25: 0.1 | AB25: 0.1 | AC25: 0.1 | AD25: 0.1 | AE25: 0.1 | AF25: 0.1 | AG25: 0.1 | AH25: 0.1 | AI25: 0.1 | AJ25: x | AZ25: ='3'!AW102 -> 0 | BA25: =IF('3'!$G$21<>"Total","<>Total","Total") -> <>Total | BB25: <>x
A26: Brasil | B26: Brasil | C26: =C20 ->  | D26: =+D25*3 -> 150000 | E26: =+E25*3 -> 165000 | F26: 181500 | G26: 199650 | H26: 219615 | I26: 0 | J26: 0 | K26: 0 | L26: 0 | M26: 0 | N26: =+N25*3 -> 75000 | O26: =+O25*3 -> 82500 | P26: 90750 | Q26: 99825 | R26: 109807.5 | S26: 0 | T26: 0 | U26: 0 | V26: 0 | W26: 0 | X26: ='3'!$G$29 ->  | Y26: 0.1 | Z26: 0.1 | AA26: 0.1 | AB26: 0.1 | AC26: 0.1 | AD26: 0.1 | AE26: 0.1 | AF26: 0.1 | AG26: 0.1 | AH26: 0.1 | AI26: 0.1 | AJ26: x
A27: Brasil | B27: Brasil | C27: =C21 ->  | D27: 500000 | E27: =+D27*1.1 -> 550000 | F27: =+E27*1.1 -> 605000 | G27: 665500 | H27: 732050 | I27: 0 | J27: 0 | K27: 0 | L27: 0 | M27: 0 | N27: 150000 | O27: =+N27*1.1 -> 165000 | P27: 181500 | Q27: 199650 | R27: 219615 | S27: 0 | T27: 0 | U27: 0 | V27: 0 | W27: 0 | X27: ='3'!$G$30 ->  | Y27: 0.1 | Z27: 0.1 | AA27: 0.1 | AB27: 0.1 | AC27: 0.1 | AD27: 0.1 | AE27: 0.1 | AF27: 0.1 | AG27: 0.1 | AH27: 0.1 | AI27: 0.1 | AJ27: x
A28: BrasilTotal | B28: Brasil | C28: ='3'!$BD$89 -> Total | D28: 71000 | E28: 69200 | F28: 79138 | G28: 75400 | H28: 74302 | I28: 71000 | J28: 69200 | K28: 79138 | L28: 75400 | M28: 74302 | N28: 72200 | O28: 154600 | P28: 346830 | Q28: 200500 | R28: 376500 | S28: 72200 | T28: 154600 | U28: 346830 | V28: 200500 | W28: 376500 | X28: ='3'!$BG$94 -> Benznidazol 12,5 mg (III) | Y28: 0.436956313 | Z28: 0.436956313 | AA28: 0.436956313 | AB28: 0.436956313 | AC28: 0.436956313 | AD28: 0.436956313 | AE28: 0.436956313 | AF28: 0.436956313 | AG28: 0.436956313 | AH28: 0.436956313 | AI28: 0.436956313
A29: ChileCasos congénitos | B29: Chile | C29: =C23 -> Casos congénitos | I29: 0 | J29: 0 | K29: 0 | L29: 0 | M29: 0 | S29: 0 | T29: 0 | U29: 0 | V29: 0 | W29: 0 | X29: ='3'!$G$26 -> Benznidazol 12,5 mg
A30: Chile | B30: Chile | C30: =C24 ->  | I30: 0 | J30: 0 | K30: 0 | L30: 0 | M30: 0 | S30: 0 | T30: 0 | U30: 0 | V30: 0 | W30: 0 | X30: ='3'!$G$27 ->  | AJ30: x
A31: Chile | B31: Chile | C31: =C25 ->  | D31: 973.6701283 | E31: 975.3431262 | F31: 977.0189988 | G31: 978.6977509 | H31: 980.3793875 | I31: 0 | J31: 0 | K31: 0 | L31: 0 | M31: 0 | N31: 757.2989887 | O31: 758.6002093 | P31: 759.9036657 | Q31: 761.2093618 | R31: 762.5173014 | S31: 0 | T31: 0 | U31: 0 | V31: 0 | W31: 0 | X31: ='3'!$G$28 ->  | Y31: 0.00171823897 | Z31: 0.00171823897 | AA31: 0.00171823897 | AB31: 0.00171823897 | AC31: 0.00171823897 | AD31: 0.00171823897 | AE31: 0.00171823897 | AF31: 0.00171823897 | AG31: 0.00171823897 | AH31: 0.00171823897 | AI31: 0.00171823897 | AJ31: x
A32: Chile | B32: Chile | C32: =C26 ->  | D32: 66.65289207 | E32: 66.40074166 | F32: 66.14954514 | G32: 65.89929891 | H32: 65.64999937 | I32: 0 | J32: 0 | K32: 0 | L32: 0 | M32: 0 | N32: 51.84113828 | O32: 51.64502129 | P32: 51.44964622 | Q32: 51.25501026 | R32: 51.06111062 | S32: 0 | T32: 0 | U32: 0 | V32: 0 | W32: 0 | X32: ='3'!$G$29 ->  | Y32: -0.003783037826 | Z32: -0.003783037826 | AA32: -0.003783037826 | AB32: -0.003783037826 | AC32: -0.003783037826 | AD32: -0.003783037826 | AE32: -0.003783037826 | AF32: -0.003783037826 | AG32: -0.003783037826 | AH32: -0.003783037826 | AI32: -0.003783037826 | AJ32: x
A33: Chile | B33: Chile | C33: =C27 ->  | D33: 4 | E33: 4 | F33: 4 | G33: 4 | H33: 3 | I33: 0 | J33: 0 | K33: 0 | L33: 0 | M33: 0 | N33: 3 | O33: 3 | P33: 3 | Q33: 2 | R33: 2 | S33: 0 | T33: 0 | U33: 0 | V33: 0 | W33: 0 | X33: ='3'!$G$30 ->  | Y33: -0.07738095238 | Z33: -0.07738095238 | AA33: -0.07738095238 | AB33: -0.07738095238 | AC33: -0.07738095238 | AD33: -0.07738095238 | AE33: -0.07738095238 | AF33: -0.07738095238 | AG33: -0.07738095238 | AH33: -0.07738095238 | AI33: -0.07738095238 | AJ33: x
A34: ChileTotal | B34: Chile | C34: ='3'!$BD$89 -> Total | D34: =IF($C29="",0,D29)+IF($C30="",0,D30)+IF($C31="",0,D31)+IF($C32="",0,D32)+IF($C33="",0,D33) -> 0 | E34: =IF($C29="",0,E29)+IF($C30="",0,E30)+IF($C31="",0,E31)+IF($C32="",0,E32)+IF($C33="",0,E33) -> 0 | F34: =IF($C29="",0,F29)+IF($C30="",0,F30)+IF($C31="",0,F31)+IF($C32="",0,F32)+IF($C33="",0,F33) -> 0 | G34: =IF($C29="",0,G29)+IF($C30="",0,G30)+IF($C31="",0,G31)+IF($C32="",0,G32)+IF($C33="",0,G33) -> 0 | H34: =IF($C29="",0,H29)+IF($C30="",0,H30)+IF($C31="",0,H31)+IF($C32="",0,H32)+IF($C33="",0,H33) -> 0 | I34: 0 | J34: 0 | K34: 0 | L34: 0 | M34: 0 | N34: =IF($C29="",0,N29)+IF($C30="",0,N30)+IF($C31="",0,N31)+IF($C32="",0,N32)+IF($C33="",0,N33) -> 0 | O34: =IF($C29="",0,O29)+IF($C30="",0,O30)+IF($C31="",0,O31)+IF($C32="",0,O32)+IF($C33="",0,O33) -> 0 | P34: =IF($C29="",0,P29)+IF($C30="",0,P30)+IF($C31="",0,P31)+IF($C32="",0,P32)+IF($C33="",0,P33) -> 0 | Q34: =IF($C29="",0,Q29)+IF($C30="",0,Q30)+IF($C31="",0,Q31)+IF($C32="",0,Q32)+IF($C33="",0,Q33) -> 0 | R34: =IF($C29="",0,R29)+IF($C30="",0,R30)+IF($C31="",0,R31)+IF($C32="",0,R32)+IF($C33="",0,R33) -> 0 | S34: 0 | T34: 0 | U34: 0 | V34: 0 | W34: 0 | X34: ='3'!$BG$94 -> Benznidazol 12,5 mg (III)
A35: ColombiaCasos congénitos | B35: Colombia | C35: =C29 -> Casos congénitos | I35: 0 | J35: 0 | K35: 0 | L35: 0 | M35: 0 | S35: 0 | T35: 0 | U35: 0 | V35: 0 | W35: 0 | X35: ='3'!$G$26 -> Benznidazol 12,5 mg
A36: Colombia | B36: Colombia | C36: =C30 ->  | I36: 0 | J36: 0 | K36: 0 | L36: 0 | M36: 0 | S36: 0 | T36: 0 | U36: 0 | V36: 0 | W36: 0 | X36: ='3'!$G$27 ->  | AJ36: x
A37: Colombia | B37: Colombia | C37: =C31 ->  | D37: 973.6701283 | E37: 975.3431262 | F37: 977.0189988 | G37: 978.6977509 | H37: 980.3793875 | I37: 0 | J37: 0 | K37: 0 | L37: 0 | M37: 0 | N37: 757.2989887 | O37: 758.6002093 | P37: 759.9036657 | Q37: 761.2093618 | R37: 762.5173014 | S37: 0 | T37: 0 | U37: 0 | V37: 0 | W37: 0 | X37: ='3'!$G$28 ->  | Y37: 0.00171823897 | Z37: 0.00171823897 | AA37: 0.00171823897 | AB37: 0.00171823897 | AC37: 0.00171823897 | AD37: 0.00171823897 | AE37: 0.00171823897 | AF37: 0.00171823897 | AG37: 0.00171823897 | AH37: 0.00171823897 | AI37: 0.00171823897 | AJ37: x
A38: Colombia | B38: Colombia | C38: =C32 ->  | D38: 66.65289207 | E38: 66.40074166 | F38: 66.14954514 | G38: 65.89929891 | H38: 65.64999937 | I38: 0 | J38: 0 | K38: 0 | L38: 0 | M38: 0 | N38: 51.84113828 | O38: 51.64502129 | P38: 51.44964622 | Q38: 51.25501026 | R38: 51.06111062 | S38: 0 | T38: 0 | U38: 0 | V38: 0 | W38: 0 | X38: ='3'!$G$29 ->  | Y38: -0.003783037826 | Z38: -0.003783037826 | AA38: -0.003783037826 | AB38: -0.003783037826 | AC38: -0.003783037826 | AD38: -0.003783037826 | AE38: -0.003783037826 | AF38: -0.003783037826 | AG38: -0.003783037826 | AH38: -0.003783037826 | AI38: -0.003783037826 | AJ38: x
A39: Colombia | B39: Colombia | C39: =C33 ->  | D39: 4 | E39: 4 | F39: 4 | G39: 4 | H39: 3 | I39: 0 | J39: 0 | K39: 0 | L39: 0 | M39: 0 | N39: 3 | O39: 3 | P39: 3 | Q39: 2 | R39: 2 | S39: 0 | T39: 0 | U39: 0 | V39: 0 | W39: 0 | X39: ='3'!$G$30 ->  | Y39: -0.07738095238 | Z39: -0.07738095238 | AA39: -0.07738095238 | AB39: -0.07738095238 | AC39: -0.07738095238 | AD39: -0.07738095238 | AE39: -0.07738095238 | AF39: -0.07738095238 | AG39: -0.07738095238 | AH39: -0.07738095238 | AI39: -0.07738095238 | AJ39: x
A40: ColombiaTotal | B40: Colombia | C40: ='3'!$BD$89 -> Total | D40: =IF($C35="",0,D35)+IF($C36="",0,D36)+IF($C37="",0,D37)+IF($C38="",0,D38)+IF($C39="",0,D39) -> 0 | E40: =IF($C35="",0,E35)+IF($C36="",0,E36)+IF($C37="",0,E37)+IF($C38="",0,E38)+IF($C39="",0,E39) -> 0 | F40: =IF($C35="",0,F35)+IF($C36="",0,F36)+IF($C37="",0,F37)+IF($C38="",0,F38)+IF($C39="",0,F39) -> 0 | G40: =IF($C35="",0,G35)+IF($C36="",0,G36)+IF($C37="",0,G37)+IF($C38="",0,G38)+IF($C39="",0,G39) -> 0 | H40: =IF($C35="",0,H35)+IF($C36="",0,H36)+IF($C37="",0,H37)+IF($C38="",0,H38)+IF($C39="",0,H39) -> 0 | I40: 0 | J40: 0 | K40: 0 | L40: 0 | M40: 0 | N40: =IF($C35="",0,N35)+IF($C36="",0,N36)+IF($C37="",0,N37)+IF($C38="",0,N38)+IF($C39="",0,N39) -> 0 | O40: =IF($C35="",0,O35)+IF($C36="",0,O36)+IF($C37="",0,O37)+IF($C38="",0,O38)+IF($C39="",0,O39) -> 0 | P40: =IF($C35="",0,P35)+IF($C36="",0,P36)+IF($C37="",0,P37)+IF($C38="",0,P38)+IF($C39="",0,P39) -> 0 | Q40: =IF($C35="",0,Q35)+IF($C36="",0,Q36)+IF($C37="",0,Q37)+IF($C38="",0,Q38)+IF($C39="",0,Q39) -> 0 | R40: =IF($C35="",0,R35)+IF($C36="",0,R36)+IF($C37="",0,R37)+IF($C38="",0,R38)+IF($C39="",0,R39) -> 0 | S40: 0 | T40: 0 | U40: 0 | V40: 0 | W40: 0 | X40: ='3'!$BG$94 -> Benznidazol 12,5 mg (III)
A41: Costa RicaCasos congénitos | B41: Costa Rica | C41: =C35 -> Casos congénitos | I41: 0 | J41: 0 | K41: 0 | L41: 0 | M41: 0 | S41: 0 | T41: 0 | U41: 0 | V41: 0 | W41: 0 | X41: ='3'!$G$26 -> Benznidazol 12,5 mg
A42: Costa Rica | B42: Costa Rica | C42: =C36 ->  | I42: 0 | J42: 0 | K42: 0 | L42: 0 | M42: 0 | S42: 0 | T42: 0 | U42: 0 | V42: 0 | W42: 0 | X42: ='3'!$G$27 ->  | AJ42: x
A43: Costa Rica | B43: Costa Rica | C43: =C37 ->  | D43: 973.6701283 | E43: 975.3431262 | F43: 977.0189988 | G43: 978.6977509 | H43: 980.3793875 | I43: 0 | J43: 0 | K43: 0 | L43: 0 | M43: 0 | N43: 757.2989887 | O43: 758.6002093 | P43: 759.9036657 | Q43: 761.2093618 | R43: 762.5173014 | S43: 0 | T43: 0 | U43: 0 | V43: 0 | W43: 0 | X43: ='3'!$G$28 ->  | Y43: 0.00171823897 | Z43: 0.00171823897 | AA43: 0.00171823897 | AB43: 0.00171823897 | AC43: 0.00171823897 | AD43: 0.00171823897 | AE43: 0.00171823897 | AF43: 0.00171823897 | AG43: 0.00171823897 | AH43: 0.00171823897 | AI43: 0.00171823897 | AJ43: x
A44: Costa Rica | B44: Costa Rica | C44: =C38 ->  | D44: 66.65289207 | E44: 66.40074166 | F44: 66.14954514 | G44: 65.89929891 | H44: 65.64999937 | I44: 0 | J44: 0 | K44: 0 | L44: 0 | M44: 0 | N44: 51.84113828 | O44: 51.64502129 | P44: 51.44964622 | Q44: 51.25501026 | R44: 51.06111062 | S44: 0 | T44: 0 | U44: 0 | V44: 0 | W44: 0 | X44: ='3'!$G$29 ->  | Y44: -0.003783037826 | Z44: -0.003783037826 | AA44: -0.003783037826 | AB44: -0.003783037826 | AC44: -0.003783037826 | AD44: -0.003783037826 | AE44: -0.003783037826 | AF44: -0.003783037826 | AG44: -0.003783037826 | AH44: -0.003783037826 | AI44: -0.003783037826 | AJ44: x
A45: Costa Rica | B45: Costa Rica | C45: =C39 ->  | D45: 4 | E45: 4 | F45: 4 | G45: 4 | H45: 3 | I45: 0 | J45: 0 | K45: 0 | L45: 0 | M45: 0 | N45: 3 | O45: 3 | P45: 3 | Q45: 2 | R45: 2 | S45: 0 | T45: 0 | U45: 0 | V45: 0 | W45: 0 | X45: ='3'!$G$30 ->  | Y45: -0.07738095238 | Z45: -0.07738095238 | AA45: -0.07738095238 | AB45: -0.07738095238 | AC45: -0.07738095238 | AD45: -0.07738095238 | AE45: -0.07738095238 | AF45: -0.07738095238 | AG45: -0.07738095238 | AH45: -0.07738095238 | AI45: -0.07738095238 | AJ45: x
A46: Costa RicaTotal | B46: Costa Rica | C46: ='3'!$BD$89 -> Total | D46: =IF($C41="",0,D41)+IF($C42="",0,D42)+IF($C43="",0,D43)+IF($C44="",0,D44)+IF($C45="",0,D45) -> 0 | E46: =IF($C41="",0,E41)+IF($C42="",0,E42)+IF($C43="",0,E43)+IF($C44="",0,E44)+IF($C45="",0,E45) -> 0 | F46: =IF($C41="",0,F41)+IF($C42="",0,F42)+IF($C43="",0,F43)+IF($C44="",0,F44)+IF($C45="",0,F45) -> 0 | G46: =IF($C41="",0,G41)+IF($C42="",0,G42)+IF($C43="",0,G43)+IF($C44="",0,G44)+IF($C45="",0,G45) -> 0 | H46: =IF($C41="",0,H41)+IF($C42="",0,H42)+IF($C43="",0,H43)+IF($C44="",0,H44)+IF($C45="",0,H45) -> 0 | I46: 0 | J46: 0 | K46: 0 | L46: 0 | M46: 0 | N46: =IF($C41="",0,N41)+IF($C42="",0,N42)+IF($C43="",0,N43)+IF($C44="",0,N44)+IF($C45="",0,N45) -> 0 | O46: =IF($C41="",0,O41)+IF($C42="",0,O42)+IF($C43="",0,O43)+IF($C44="",0,O44)+IF($C45="",0,O45) -> 0 | P46: =IF($C41="",0,P41)+IF($C42="",0,P42)+IF($C43="",0,P43)+IF($C44="",0,P44)+IF($C45="",0,P45) -> 0 | Q46: =IF($C41="",0,Q41)+IF($C42="",0,Q42)+IF($C43="",0,Q43)+IF($C44="",0,Q44)+IF($C45="",0,Q45) -> 0 | R46: =IF($C41="",0,R41)+IF($C42="",0,R42)+IF($C43="",0,R43)+IF($C44="",0,R44)+IF($C45="",0,R45) -> 0 | S46: 0 | T46: 0 | U46: 0 | V46: 0 | W46: 0 | X46: ='3'!$BG$94 -> Benznidazol 12,5 mg (III)
A47: EcuadorCasos congénitos | B47: Ecuador | C47: =C41 -> Casos congénitos | I47: 0 | J47: 0 | K47: 0 | L47: 0 | M47: 0 | S47: 0 | T47: 0 | U47: 0 | V47: 0 | W47: 0 | X47: ='3'!$G$26 -> Benznidazol 12,5 mg
A48: Ecuador | B48: Ecuador | C48: =C42 ->  | I48: 0 | J48: 0 | K48: 0 | L48: 0 | M48: 0 | S48: 0 | T48: 0 | U48: 0 | V48: 0 | W48: 0 | X48: ='3'!$G$27 ->  | AJ48: x
A49: Ecuador | B49: Ecuador | C49: =C43 ->  | D49: 973.6701283 | E49: 975.3431262 | F49: 977.0189988 | G49: 978.6977509 | H49: 980.3793875 | I49: 0 | J49: 0 | K49: 0 | L49: 0 | M49: 0 | N49: 757.2989887 | O49: 758.6002093 | P49: 759.9036657 | Q49: 761.2093618 | R49: 762.5173014 | S49: 0 | T49: 0 | U49: 0 | V49: 0 | W49: 0 | X49: ='3'!$G$28 ->  | Y49: 0.00171823897 | Z49: 0.00171823897 | AA49: 0.00171823897 | AB49: 0.00171823897 | AC49: 0.00171823897 | AD49: 0.00171823897 | AE49: 0.00171823897 | AF49: 0.00171823897 | AG49: 0.00171823897 | AH49: 0.00171823897 | AI49: 0.00171823897 | AJ49: x
A50: Ecuador | B50: Ecuador | C50: =C44 ->  | D50: 66.65289207 | E50: 66.40074166 | F50: 66.14954514 | G50: 65.89929891 | H50: 65.64999937 | I50: 0 | J50: 0 | K50: 0 | L50: 0 | M50: 0 | N50: 51.84113828 | O50: 51.64502129 | P50: 51.44964622 | Q50: 51.25501026 | R50: 51.06111062 | S50: 0 | T50: 0 | U50: 0 | V50: 0 | W50: 0 | X50: ='3'!$G$29 ->  | Y50: -0.003783037826 | Z50: -0.003783037826 | AA50: -0.003783037826 | AB50: -0.003783037826 | AC50: -0.003783037826 | AD50: -0.003783037826 | AE50: -0.003783037826 | AF50: -0.003783037826 | AG50: -0.003783037826 | AH50: -0.003783037826 | AI50: -0.003783037826 | AJ50: x
A51: Ecuador | B51: Ecuador | C51: =C45 ->  | D51: 4 | E51: 4 | F51: 4 | G51: 4 | H51: 3 | I51: 0 | J51: 0 | K51: 0 | L51: 0 | M51: 0 | N51: 3 | O51: 3 | P51: 3 | Q51: 2 | R51: 2 | S51: 0 | T51: 0 | U51: 0 | V51: 0 | W51: 0 | X51: ='3'!$G$30 ->  | Y51: -0.07738095238 | Z51: -0.07738095238 | AA51: -0.07738095238 | AB51: -0.07738095238 | AC51: -0.07738095238 | AD51: -0.07738095238 | AE51: -0.07738095238 | AF51: -0.07738095238 | AG51: -0.07738095238 | AH51: -0.07738095238 | AI51: -0.07738095238 | AJ51: x
A52: EcuadorTotal | B52: Ecuador | C52: ='3'!$BD$89 -> Total | D52: =IF($C47="",0,D47)+IF($C48="",0,D48)+IF($C49="",0,D49)+IF($C50="",0,D50)+IF($C51="",0,D51) -> 0 | E52: =IF($C47="",0,E47)+IF($C48="",0,E48)+IF($C49="",0,E49)+IF($C50="",0,E50)+IF($C51="",0,E51) -> 0 | F52: =IF($C47="",0,F47)+IF($C48="",0,F48)+IF($C49="",0,F49)+IF($C50="",0,F50)+IF($C51="",0,F51) -> 0 | G52: =IF($C47="",0,G47)+IF($C48="",0,G48)+IF($C49="",0,G49)+IF($C50="",0,G50)+IF($C51="",0,G51) -> 0 | H52: =IF($C47="",0,H47)+IF($C48="",0,H48)+IF($C49="",0,H49)+IF($C50="",0,H50)+IF($C51="",0,H51) -> 0 | I52: 0 | J52: 0 | K52: 0 | L52: 0 | M52: 0 | N52: =IF($C47="",0,N47)+IF($C48="",0,N48)+IF($C49="",0,N49)+IF($C50="",0,N50)+IF($C51="",0,N51) -> 0 | O52: =IF($C47="",0,O47)+IF($C48="",0,O48)+IF($C49="",0,O49)+IF($C50="",0,O50)+IF($C51="",0,O51) -> 0 | P52: =IF($C47="",0,P47)+IF($C48="",0,P48)+IF($C49="",0,P49)+IF($C50="",0,P50)+IF($C51="",0,P51) -> 0 | Q52: =IF($C47="",0,Q47)+IF($C48="",0,Q48)+IF($C49="",0,Q49)+IF($C50="",0,Q50)+IF($C51="",0,Q51) -> 0 | R52: =IF($C47="",0,R47)+IF($C48="",0,R48)+IF($C49="",0,R49)+IF($C50="",0,R50)+IF($C51="",0,R51) -> 0 | S52: 0 | T52: 0 | U52: 0 | V52: 0 | W52: 0 | X52: ='3'!$BG$94 -> Benznidazol 12,5 mg (III)
A53: El SalvadorCasos congénitos | B53: El Salvador | C53: =C47 -> Casos congénitos | I53: 0 | J53: 0 | K53: 0 | L53: 0 | M53: 0 | S53: 0 | T53: 0 | U53: 0 | V53: 0 | W53: 0 | X53: ='3'!$G$26 -> Benznidazol 12,5 mg
A54: El Salvador | B54: El Salvador | C54: =C48 ->  | I54: 0 | J54: 0 | K54: 0 | L54: 0 | M54: 0 | S54: 0 | T54: 0 | U54: 0 | V54: 0 | W54: 0 | X54: ='3'!$G$27 ->  | AJ54: x
A55: El Salvador | B55: El Salvador | C55: =C49 ->  | D55: 973.6701283 | E55: 975.3431262 | F55: 977.0189988 | G55: 978.6977509 | H55: 980.3793875 | I55: 0 | J55: 0 | K55: 0 | L55: 0 | M55: 0 | N55: 757.2989887 | O55: 758.6002093 | P55: 759.9036657 | Q55: 761.2093618 | R55: 762.5173014 | S55: 0 | T55: 0 | U55: 0 | V55: 0 | W55: 0 | X55: ='3'!$G$28 ->  | Y55: 0.00171823897 | Z55: 0.00171823897 | AA55: 0.00171823897 | AB55: 0.00171823897 | AC55: 0.00171823897 | AD55: 0.00171823897 | AE55: 0.00171823897 | AF55: 0.00171823897 | AG55: 0.00171823897 | AH55: 0.00171823897 | AI55: 0.00171823897 | AJ55: x
A56: El Salvador | B56: El Salvador | C56: =C50 ->  | D56: 66.65289207 | E56: 66.40074166 | F56: 66.14954514 | G56: 65.89929891 | H56: 65.64999937 | I56: 0 | J56: 0 | K56: 0 | L56: 0 | M56: 0 | N56: 51.84113828 | O56: 51.64502129 | P56: 51.44964622 | Q56: 51.25501026 | R56: 51.06111062 | S56: 0 | T56: 0 | U56: 0 | V56: 0 | W56: 0 | X56: ='3'!$G$29 ->  | Y56: -0.003783037826 | Z56: -0.003783037826 | AA56: -0.003783037826 | AB56: -0.003783037826 | AC56: -0.003783037826 | AD56: -0.003783037826 | AE56: -0.003783037826 | AF56: -0.003783037826 | AG56: -0.003783037826 | AH56: -0.003783037826 | AI56: -0.003783037826 | AJ56: x
A57: El Salvador | B57: El Salvador | C57: =C51 ->  | D57: 4 | E57: 4 | F57: 4 | G57: 4 | H57: 3 | I57: 0 | J57: 0 | K57: 0 | L57: 0 | M57: 0 | N57: 3 | O57: 3 | P57: 3 | Q57: 2 | R57: 2 | S57: 0 | T57: 0 | U57: 0 | V57: 0 | W57: 0 | X57: ='3'!$G$30 ->  | Y57: -0.07738095238 | Z57: -0.07738095238 | AA57: -0.07738095238 | AB57: -0.07738095238 | AC57: -0.07738095238 | AD57: -0.07738095238 | AE57: -0.07738095238 | AF57: -0.07738095238 | AG57: -0.07738095238 | AH57: -0.07738095238 | AI57: -0.07738095238 | AJ57: x
A58: El SalvadorTotal | B58: El Salvador | C58: ='3'!$BD$89 -> Total | D58: =IF($C53="",0,D53)+IF($C54="",0,D54)+IF($C55="",0,D55)+IF($C56="",0,D56)+IF($C57="",0,D57) -> 0 | E58: =IF($C53="",0,E53)+IF($C54="",0,E54)+IF($C55="",0,E55)+IF($C56="",0,E56)+IF($C57="",0,E57) -> 0 | F58: =IF($C53="",0,F53)+IF($C54="",0,F54)+IF($C55="",0,F55)+IF($C56="",0,F56)+IF($C57="",0,F57) -> 0 | G58: =IF($C53="",0,G53)+IF($C54="",0,G54)+IF($C55="",0,G55)+IF($C56="",0,G56)+IF($C57="",0,G57) -> 0 | H58: =IF($C53="",0,H53)+IF($C54="",0,H54)+IF($C55="",0,H55)+IF($C56="",0,H56)+IF($C57="",0,H57) -> 0 | I58: 0 | J58: 0 | K58: 0 | L58: 0 | M58: 0 | N58: =IF($C53="",0,N53)+IF($C54="",0,N54)+IF($C55="",0,N55)+IF($C56="",0,N56)+IF($C57="",0,N57) -> 0 | O58: =IF($C53="",0,O53)+IF($C54="",0,O54)+IF($C55="",0,O55)+IF($C56="",0,O56)+IF($C57="",0,O57) -> 0 | P58: =IF($C53="",0,P53)+IF($C54="",0,P54)+IF($C55="",0,P55)+IF($C56="",0,P56)+IF($C57="",0,P57) -> 0 | Q58: =IF($C53="",0,Q53)+IF($C54="",0,Q54)+IF($C55="",0,Q55)+IF($C56="",0,Q56)+IF($C57="",0,Q57) -> 0 | R58: =IF($C53="",0,R53)+IF($C54="",0,R54)+IF($C55="",0,R55)+IF($C56="",0,R56)+IF($C57="",0,R57) -> 0 | S58: 0 | T58: 0 | U58: 0 | V58: 0 | W58: 0 | X58: ='3'!$BG$94 -> Benznidazol 12,5 mg (III)
A59: GuatemalaCasos congénitos | B59: Guatemala | C59: =C53 -> Casos congénitos | I59: 0 | J59: 0 | K59: 0 | L59: 0 | M59: 0 | S59: 0 | T59: 0 | U59: 0 | V59: 0 | W59: 0 | X59: ='3'!$G$26 -> Benznidazol 12,5 mg
A60: Guatemala | B60: Guatemala | C60: =C54 ->  | I60: 0 | J60: 0 | K60: 0 | L60: 0 | M60: 0 | S60: 0 | T60: 0 | U60: 0 | V60: 0 | W60: 0 | X60: ='3'!$G$27 ->  | AJ60: x
A61: Guatemala | B61: Guatemala | C61: =C55 ->  | D61: 973.6701283 | E61: 975.3431262 | F61: 977.0189988 | G61: 978.6977509 | H61: 980.3793875 | I61: 0 | J61: 0 | K61: 0 | L61: 0 | M61: 0 | N61: 757.2989887 | O61: 758.6002093 | P61: 759.9036657 | Q61: 761.2093618 | R61: 762.5173014 | S61: 0 | T61: 0 | U61: 0 | V61: 0 | W61: 0 | X61: ='3'!$G$28 ->  | Y61: 0.00171823897 | Z61: 0.00171823897 | AA61: 0.00171823897 | AB61: 0.00171823897 | AC61: 0.00171823897 | AD61: 0.00171823897 | AE61: 0.00171823897 | AF61: 0.00171823897 | AG61: 0.00171823897 | AH61: 0.00171823897 | AI61: 0.00171823897 | AJ61: x
A62: Guatemala | B62: Guatemala | C62: =C56 ->  | D62: 66.65289207 | E62: 66.40074166 | F62: 66.14954514 | G62: 65.89929891 | H62: 65.64999937 | I62: 0 | J62: 0 | K62: 0 | L62: 0 | M62: 0 | N62: 51.84113828 | O62: 51.64502129 | P62: 51.44964622 | Q62: 51.25501026 | R62: 51.06111062 | S62: 0 | T62: 0 | U62: 0 | V62: 0 | W62: 0 | X62: ='3'!$G$29 ->  | Y62: -0.003783037826 | Z62: -0.003783037826 | AA62: -0.003783037826 | AB62: -0.003783037826 | AC62: -0.003783037826 | AD62: -0.003783037826 | AE62: -0.003783037826 | AF62: -0.003783037826 | AG62: -0.003783037826 | AH62: -0.003783037826 | AI62: -0.003783037826 | AJ62: x
A63: Guatemala | B63: Guatemala | C63: =C57 ->  | D63: 4 | E63: 4 | F63: 4 | G63: 4 | H63: 3 | I63: 0 | J63: 0 | K63: 0 | L63: 0 | M63: 0 | N63: 3 | O63: 3 | P63: 3 | Q63: 2 | R63: 2 | S63: 0 | T63: 0 | U63: 0 | V63: 0 | W63: 0 | X63: ='3'!$G$30 ->  | Y63: -0.07738095238 | Z63: -0.07738095238 | AA63: -0.07738095238 | AB63: -0.07738095238 | AC63: -0.07738095238 | AD63: -0.07738095238 | AE63: -0.07738095238 | AF63: -0.07738095238 | AG63: -0.07738095238 | AH63: -0.07738095238 | AI63: -0.07738095238 | AJ63: x
A64: GuatemalaTotal | B64: Guatemala | C64: ='3'!$BD$89 -> Total | D64: =IF($C59="",0,D59)+IF($C60="",0,D60)+IF($C61="",0,D61)+IF($C62="",0,D62)+IF($C63="",0,D63) -> 0 | E64: =IF($C59="",0,E59)+IF($C60="",0,E60)+IF($C61="",0,E61)+IF($C62="",0,E62)+IF($C63="",0,E63) -> 0 | F64: =IF($C59="",0,F59)+IF($C60="",0,F60)+IF($C61="",0,F61)+IF($C62="",0,F62)+IF($C63="",0,F63) -> 0 | G64: =IF($C59="",0,G59)+IF($C60="",0,G60)+IF($C61="",0,G61)+IF($C62="",0,G62)+IF($C63="",0,G63) -> 0 | H64: =IF($C59="",0,H59)+IF($C60="",0,H60)+IF($C61="",0,H61)+IF($C62="",0,H62)+IF($C63="",0,H63) -> 0 | I64: 0 | J64: 0 | K64: 0 | L64: 0 | M64: 0 | N64: =IF($C59="",0,N59)+IF($C60="",0,N60)+IF($C61="",0,N61)+IF($C62="",0,N62)+IF($C63="",0,N63) -> 0 | O64: =IF($C59="",0,O59)+IF($C60="",0,O60)+IF($C61="",0,O61)+IF($C62="",0,O62)+IF($C63="",0,O63) -> 0 | P64: =IF($C59="",0,P59)+IF($C60="",0,P60)+IF($C61="",0,P61)+IF($C62="",0,P62)+IF($C63="",0,P63) -> 0 | Q64: =IF($C59="",0,Q59)+IF($C60="",0,Q60)+IF($C61="",0,Q61)+IF($C62="",0,Q62)+IF($C63="",0,Q63) -> 0 | R64: =IF($C59="",0,R59)+IF($C60="",0,R60)+IF($C61="",0,R61)+IF($C62="",0,R62)+IF($C63="",0,R63) -> 0 | S64: 0 | T64: 0 | U64: 0 | V64: 0 | W64: 0 | X64: ='3'!$BG$94 -> Benznidazol 12,5 mg (III)
A65: GuyanaCasos congénitos | B65: Guyana | C65: =C59 -> Casos congénitos | I65: 0 | J65: 0 | K65: 0 | L65: 0 | M65: 0 | S65: 0 | T65: 0 | U65: 0 | V65: 0 | W65: 0 | X65: ='3'!$G$26 -> Benznidazol 12,5 mg
A66: Guyana | B66: Guyana | C66: =C60 ->  | I66: 0 | J66: 0 | K66: 0 | L66: 0 | M66: 0 | S66: 0 | T66: 0 | U66: 0 | V66: 0 | W66: 0 | X66: ='3'!$G$27 ->  | AJ66: x
A67: Guyana | B67: Guyana | C67: =C61 ->  | D67: 973.6701283 | E67: 975.3431262 | F67: 977.0189988 | G67: 978.6977509 | H67: 980.3793875 | I67: 0 | J67: 0 | K67: 0 | L67: 0 | M67: 0 | N67: 757.2989887 | O67: 758.6002093 | P67: 759.9036657 | Q67: 761.2093618 | R67: 762.5173014 | S67: 0 | T67: 0 | U67: 0 | V67: 0 | W67: 0 | X67: ='3'!$G$28 ->  | Y67: 0.00171823897 | Z67: 0.00171823897 | AA67: 0.00171823897 | AB67: 0.00171823897 | AC67: 0.00171823897 | AD67: 0.00171823897 | AE67: 0.00171823897 | AF67: 0.00171823897 | AG67: 0.00171823897 | AH67: 0.00171823897 | AI67: 0.00171823897 | AJ67: x
A68: Guyana | B68: Guyana | C68: =C62 ->  | D68: 66.65289207 | E68: 66.40074166 | F68: 66.14954514 | G68: 65.89929891 | H68: 65.64999937 | I68: 0 | J68: 0 | K68: 0 | L68: 0 | M68: 0 | N68: 51.84113828 | O68: 51.64502129 | P68: 51.44964622 | Q68: 51.25501026 | R68: 51.06111062 | S68: 0 | T68: 0 | U68: 0 | V68: 0 | W68: 0 | X68: ='3'!$G$29 ->  | Y68: -0.003783037826 | Z68: -0.003783037826 | AA68: -0.003783037826 | AB68: -0.003783037826 | AC68: -0.003783037826 | AD68: -0.003783037826 | AE68: -0.003783037826 | AF68: -0.003783037826 | AG68: -0.003783037826 | AH68: -0.003783037826 | AI68: -0.003783037826 | AJ68: x
A69: Guyana | B69: Guyana | C69: =C63 ->  | D69: 4 | E69: 4 | F69: 4 | G69: 4 | H69: 3 | I69: 0 | J69: 0 | K69: 0 | L69: 0 | M69: 0 | N69: 3 | O69: 3 | P69: 3 | Q69: 2 | R69: 2 | S69: 0 | T69: 0 | U69: 0 | V69: 0 | W69: 0 | X69: ='3'!$G$30 ->  | Y69: =IF(AND(D69=0,E69=0,F69=0,G69=0,H69=0,N69=0,O69=0,P69=0,Q69=0,R69=0),"",AVERAGE(IF((D69+N69)<>0,(E69+O69)/(D69+N69)-1,"-"),IF((E69+O69)<>0,(F69+P69)/(E69+O69)-1,"-"),IF((F69+P69)<>0,(G69+Q69)/(F69+P69)-1,"-"),IF((G69+Q69)<>0,(H69+R69)/(G69+Q69)-1,"-"))) -> -0.07738095238 | Z69: -0.07738095238 | AA69: -0.07738095238 | AB69: -0.07738095238 | AC69: -0.07738095238 | AD69: -0.07738095238 | AE69: -0.07738095238 | AF69: -0.07738095238 | AG69: -0.07738095238 | AH69: -0.07738095238 | AI69: -0.07738095238 | AJ69: x
A70: GuyanaTotal | B70: Guyana | C70: ='3'!$BD$89 -> Total | D70: =IF($C65="",0,D65)+IF($C66="",0,D66)+IF($C67="",0,D67)+IF($C68="",0,D68)+IF($C69="",0,D69) -> 0 | E70: =IF($C65="",0,E65)+IF($C66="",0,E66)+IF($C67="",0,E67)+IF($C68="",0,E68)+IF($C69="",0,E69) -> 0 | F70: =IF($C65="",0,F65)+IF($C66="",0,F66)+IF($C67="",0,F67)+IF($C68="",0,F68)+IF($C69="",0,F69) -> 0 | G70: =IF($C65="",0,G65)+IF($C66="",0,G66)+IF($C67="",0,G67)+IF($C68="",0,G68)+IF($C69="",0,G69) -> 0 | H70: =IF($C65="",0,H65)+IF($C66="",0,H66)+IF($C67="",0,H67)+IF($C68="",0,H68)+IF($C69="",0,H69) -> 0 | I70: 0 | J70: 0 | K70: 0 | L70: 0 | M70: 0 | N70: =IF($C65="",0,N65)+IF($C66="",0,N66)+IF($C67="",0,N67)+IF($C68="",0,N68)+IF($C69="",0,N69) -> 0 | O70: =IF($C65="",0,O65)+IF($C66="",0,O66)+IF($C67="",0,O67)+IF($C68="",0,O68)+IF($C69="",0,O69) -> 0 | P70: =IF($C65="",0,P65)+IF($C66="",0,P66)+IF($C67="",0,P67)+IF($C68="",0,P68)+IF($C69="",0,P69) -> 0 | Q70: =IF($C65="",0,Q65)+IF($C66="",0,Q66)+IF($C67="",0,Q67)+IF($C68="",0,Q68)+IF($C69="",0,Q69) -> 0 | R70: =IF($C65="",0,R65)+IF($C66="",0,R66)+IF($C67="",0,R67)+IF($C68="",0,R68)+IF($C69="",0,R69) -> 0 | S70: =IF($C70="",0,N70) -> 0 | T70: =IF($C70="",0,O70) -> 0 | U70: =IF($C70="",0,P70) -> 0 | V70: =IF($C70="",0,Q70) -> 0 | W70: =IF($C70="",0,R70) -> 0 | X70: ='3'!$BG$94 -> Benznidazol 12,5 mg (III) | AJ70: =IF(C70="","x","") -> 
A71: Guyana FrancesaCasos congénitos | B71: Guyana Francesa | C71: =C65 -> Casos congénitos | I71: 0 | J71: 0 | K71: 0 | L71: 0 | M71: 0 | S71: 0 | T71: 0 | U71: 0 | V71: 0 | W71: 0 | X71: ='3'!$G$26 -> Benznidazol 12,5 mg
A72: Guyana Francesa | B72: Guyana Francesa | C72: =C66 ->  | I72: 0 | J72: 0 | K72: 0 | L72: 0 | M72: 0 | S72: 0 | T72: 0 | U72: 0 | V72: 0 | W72: 0 | X72: ='3'!$G$27 ->  | AJ72: x
A73: Guyana Francesa | B73: Guyana Francesa | C73: =C67 ->  | D73: 973.6701283 | E73: 975.3431262 | F73: 977.0189988 | G73: 978.6977509 | H73: 980.3793875 | I73: 0 | J73: 0 | K73: 0 | L73: 0 | M73: 0 | N73: 757.2989887 | O73: 758.6002093 | P73: 759.9036657 | Q73: 761.2093618 | R73: 762.5173014 | S73: 0 | T73: 0 | U73: 0 | V73: 0 | W73: 0 | X73: ='3'!$G$28 ->  | Y73: 0.00171823897 | Z73: 0.00171823897 | AA73: 0.00171823897 | AB73: 0.00171823897 | AC73: 0.00171823897 | AD73: 0.00171823897 | AE73: 0.00171823897 | AF73: 0.00171823897 | AG73: 0.00171823897 | AH73: 0.00171823897 | AI73: 0.00171823897 | AJ73: x
A74: Guyana Francesa | B74: Guyana Francesa | C74: =C68 ->  | D74: 66.65289207 | E74: 66.40074166 | F74: 66.14954514 | G74: 65.89929891 | H74: 65.64999937 | I74: 0 | J74: 0 | K74: 0 | L74: 0 | M74: 0 | N74: 51.84113828 | O74: 51.64502129 | P74: 51.44964622 | Q74: 51.25501026 | R74: 51.06111062 | S74: 0 | T74: 0 | U74: 0 | V74: 0 | W74: 0 | X74: ='3'!$G$29 ->  | Y74: -0.003783037826 | Z74: -0.003783037826 | AA74: -0.003783037826 | AB74: -0.003783037826 | AC74: -0.003783037826 | AD74: -0.003783037826 | AE74: -0.003783037826 | AF74: -0.003783037826 | AG74: -0.003783037826 | AH74: -0.003783037826 | AI74: -0.003783037826 | AJ74: x
A75: Guyana Francesa | B75: Guyana Francesa | C75: =C69 ->  | D75: 4 | E75: 4 | F75: 4 | G75: 4 | H75: 3 | I75: 0 | J75: 0 | K75: 0 | L75: 0 | M75: 0 | N75: 3 | O75: 3 | P75: 3 | Q75: 2 | R75: 2 | S75: 0 | T75: 0 | U75: 0 | V75: 0 | W75: 0 | X75: ='3'!$G$30 ->  | Y75: -0.07738095238 | Z75: -0.07738095238 | AA75: -0.07738095238 | AB75: -0.07738095238 | AC75: -0.07738095238 | AD75: -0.07738095238 | AE75: -0.07738095238 | AF75: -0.07738095238 | AG75: -0.07738095238 | AH75: -0.07738095238 | AI75: -0.07738095238 | AJ75: x
A76: Guyana FrancesaTotal | B76: Guyana Francesa | C76: ='3'!$BD$89 -> Total | D76: =IF($C71="",0,D71)+IF($C72="",0,D72)+IF($C73="",0,D73)+IF($C74="",0,D74)+IF($C75="",0,D75) -> 0 | E76: =IF($C71="",0,E71)+IF($C72="",0,E72)+IF($C73="",0,E73)+IF($C74="",0,E74)+IF($C75="",0,E75) -> 0 | F76: =IF($C71="",0,F71)+IF($C72="",0,F72)+IF($C73="",0,F73)+IF($C74="",0,F74)+IF($C75="",0,F75) -> 0 | G76: =IF($C71="",0,G71)+IF($C72="",0,G72)+IF($C73="",0,G73)+IF($C74="",0,G74)+IF($C75="",0,G75) -> 0 | H76: =IF($C71="",0,H71)+IF($C72="",0,H72)+IF($C73="",0,H73)+IF($C74="",0,H74)+IF($C75="",0,H75) -> 0 | I76: =IF($C76="",0,D76) -> 0 | J76: =IF($C76="",0,E76) -> 0 | K76: =IF($C76="",0,F76) -> 0 | L76: =IF($C76="",0,G76) -> 0 | M76: =IF($C76="",0,H76) -> 0 | N76: =IF($C71="",0,N71)+IF($C72="",0,N72)+IF($C73="",0,N73)+IF($C74="",0,N74)+IF($C75="",0,N75) -> 0 | O76: =IF($C71="",0,O71)+IF($C72="",0,O72)+IF($C73="",0,O73)+IF($C74="",0,O74)+IF($C75="",0,O75) -> 0 | P76: =IF($C71="",0,P71)+IF($C72="",0,P72)+IF($C73="",0,P73)+IF($C74="",0,P74)+IF($C75="",0,P75) -> 0 | Q76: =IF($C71="",0,Q71)+IF($C72="",0,Q72)+IF($C73="",0,Q73)+IF($C74="",0,Q74)+IF($C75="",0,Q75) -> 0 | R76: =IF($C71="",0,R71)+IF($C72="",0,R72)+IF($C73="",0,R73)+IF($C74="",0,R74)+IF($C75="",0,R75) -> 0 | S76: 0 | T76: 0 | U76: 0 | V76: 0 | W76: 0 | X76: ='3'!$BG$94 -> Benznidazol 12,5 mg (III)
A77: HondurasCasos congénitos | B77: Honduras | C77: =C71 -> Casos congénitos | I77: 0 | J77: 0 | K77: 0 | L77: 0 | M77: 0 | S77: 0 | T77: 0 | U77: 0 | V77: 0 | W77: 0 | X77: ='3'!$G$26 -> Benznidazol 12,5 mg
A78: Honduras | B78: Honduras | C78: =C72 ->  | I78: 0 | J78: 0 | K78: 0 | L78: 0 | M78: 0 | S78: 0 | T78: 0 | U78: 0 | V78: 0 | W78: 0 | X78: ='3'!$G$27 ->  | AA78: =Z78 ->  | AB78: =AA78 ->  | AC78: =AB78 ->  | AD78: =AC78 ->  | AE78: =AD78 ->  | AF78: =AE78 ->  | AG78: =AF78 ->  | AH78: =AG78 ->  | AJ78: x
A79: Honduras | B79: Honduras | C79: =C73 ->  | D79: 973.6701283 | E79: 975.3431262 | F79: 977.0189988 | G79: 978.6977509 | H79: 980.3793875 | I79: 0 | J79: 0 | K79: 0 | L79: 0 | M79: 0 | N79: 757.2989887 | O79: 758.6002093 | P79: 759.9036657 | Q79: 761.2093618 | R79: 762.5173014 | S79: 0 | T79: 0 | U79: 0 | V79: 0 | W79: 0 | X79: ='3'!$G$28 ->  | Y79: 0.00171823897 | Z79: 0.00171823897 | AA79: 0.00171823897 | AB79: 0.00171823897 | AC79: 0.00171823897 | AD79: 0.00171823897 | AE79: 0.00171823897 | AF79: 0.00171823897 | AG79: 0.00171823897 | AH79: 0.00171823897 | AI79: 0.00171823897 | AJ79: x
A80: Honduras | B80: Honduras | C80: =C74 ->  | D80: 66.65289207 | E80: 66.40074166 | F80: 66.14954514 | G80: 65.89929891 | H80: 65.64999937 | I80: 0 | J80: 0 | K80: 0 | L80: 0 | M80: 0 | N80: 51.84113828 | O80: 51.64502129 | P80: 51.44964622 | Q80: 51.25501026 | R80: 51.06111062 | S80: 0 | T80: 0 | U80: 0 | V80: 0 | W80: 0 | X80: ='3'!$G$29 ->  | Y80: -0.003783037826 | Z80: -0.003783037826 | AA80: -0.003783037826 | AB80: -0.003783037826 | AC80: -0.003783037826 | AD80: -0.003783037826 | AE80: -0.003783037826 | AF80: -0.003783037826 | AG80: -0.003783037826 | AH80: -0.003783037826 | AI80: -0.003783037826 | AJ80: x
A81: =B81&C81 -> Honduras | B81: Honduras | C81: =C75 ->  | D81: 4 | E81: 4 | F81: 4 | G81: 4 | H81: 3 | I81: 0 | J81: 0 | K81: 0 | L81: 0 | M81: 0 | N81: 3 | O81: 3 | P81: 3 | Q81: 2 | R81: 2 | S81: 0 | T81: 0 | U81: 0 | V81: 0 | W81: 0 | X81: ='3'!$G$30 ->  | Y81: -0.07738095238 | Z81: -0.07738095238 | AA81: -0.07738095238 | AB81: -0.07738095238 | AC81: -0.07738095238 | AD81: -0.07738095238 | AE81: -0.07738095238 | AF81: -0.07738095238 | AG81: -0.07738095238 | AH81: -0.07738095238 | AI81: -0.07738095238 | AJ81: x
A82: HondurasTotal | B82: Honduras | C82: ='3'!$BD$89 -> Total | D82: =IF($C77="",0,D77)+IF($C78="",0,D78)+IF($C79="",0,D79)+IF($C80="",0,D80)+IF($C81="",0,D81) -> 0 | E82: =IF($C77="",0,E77)+IF($C78="",0,E78)+IF($C79="",0,E79)+IF($C80="",0,E80)+IF($C81="",0,E81) -> 0 | F82: =IF($C77="",0,F77)+IF($C78="",0,F78)+IF($C79="",0,F79)+IF($C80="",0,F80)+IF($C81="",0,F81) -> 0 | G82: =IF($C77="",0,G77)+IF($C78="",0,G78)+IF($C79="",0,G79)+IF($C80="",0,G80)+IF($C81="",0,G81) -> 0 | H82: =IF($C77="",0,H77)+IF($C78="",0,H78)+IF($C79="",0,H79)+IF($C80="",0,H80)+IF($C81="",0,H81) -> 0 | I82: 0 | J82: 0 | K82: 0 | L82: 0 | M82: 0 | N82: =IF($C77="",0,N77)+IF($C78="",0,N78)+IF($C79="",0,N79)+IF($C80="",0,N80)+IF($C81="",0,N81) -> 0 | O82: =IF($C77="",0,O77)+IF($C78="",0,O78)+IF($C79="",0,O79)+IF($C80="",0,O80)+IF($C81="",0,O81) -> 0 | P82: =IF($C77="",0,P77)+IF($C78="",0,P78)+IF($C79="",0,P79)+IF($C80="",0,P80)+IF($C81="",0,P81) -> 0 | Q82: =IF($C77="",0,Q77)+IF($C78="",0,Q78)+IF($C79="",0,Q79)+IF($C80="",0,Q80)+IF($C81="",0,Q81) -> 0 | R82: =IF($C77="",0,R77)+IF($C78="",0,R78)+IF($C79="",0,R79)+IF($C80="",0,R80)+IF($C81="",0,R81) -> 0 | S82: 0 | T82: 0 | U82: 0 | V82: 0 | W82: 0 | X82: ='3'!$BG$94 -> Benznidazol 12,5 mg (III) | Z82: =Y82 -> 
A83: MéxicoCasos congénitos | B83: México | C83: =C77 -> Casos congénitos | I83: 0 | J83: 0 | K83: 0 | L83: 0 | M83: 0 | S83: 0 | T83: 0 | U83: 0 | V83: 0 | W83: 0 | X83: ='3'!$G$26 -> Benznidazol 12,5 mg
A84: México | B84: México | C84: =C78 ->  | I84: 0 | J84: 0 | K84: 0 | L84: 0 | M84: 0 | S84: 0 | T84: 0 | U84: 0 | V84: 0 | W84: 0 | X84: ='3'!$G$27 ->  | AJ84: x
A85: México | B85: México | C85: =C79 ->  | D85: 973.6701283 | E85: 975.3431262 | F85: 977.0189988 | G85: 978.6977509 | H85: 980.3793875 | I85: 0 | J85: 0 | K85: 0 | L85: 0 | M85: 0 | N85: 757.2989887 | O85: 758.6002093 | P85: 759.9036657 | Q85: 761.2093618 | R85: 762.5173014 | S85: 0 | T85: 0 | U85: 0 | V85: 0 | W85: 0 | X85: ='3'!$G$28 ->  | Y85: 0.00171823897 | Z85: 0.00171823897 | AA85: 0.00171823897 | AB85: 0.00171823897 | AC85: 0.00171823897 | AD85: 0.00171823897 | AE85: 0.00171823897 | AF85: 0.00171823897 | AG85: 0.00171823897 | AH85: 0.00171823897 | AI85: 0.00171823897 | AJ85: x
A86: México | B86: México | C86: =C80 ->  | D86: 66.65289207 | E86: 66.40074166 | F86: 66.14954514 | G86: 65.89929891 | H86: 65.64999937 | I86: 0 | J86: 0 | K86: 0 | L86: 0 | M86: 0 | N86: 51.84113828 | O86: 51.64502129 | P86: 51.44964622 | Q86: 51.25501026 | R86: 51.06111062 | S86: 0 | T86: 0 | U86: 0 | V86: 0 | W86: 0 | X86: ='3'!$G$29 ->  | Y86: -0.003783037826 | Z86: -0.003783037826 | AA86: -0.003783037826 | AB86: -0.003783037826 | AC86: -0.003783037826 | AD86: -0.003783037826 | AE86: -0.003783037826 | AF86: -0.003783037826 | AG86: -0.003783037826 | AH86: -0.003783037826 | AI86: -0.003783037826 | AJ86: x
A87: México | B87: México | C87: =C81 ->  | D87: 4 | E87: 4 | F87: 4 | G87: 4 | H87: 3 | I87: 0 | J87: 0 | K87: 0 | L87: 0 | M87: 0 | N87: 3 | O87: 3 | P87: 3 | Q87: 2 | R87: 2 | S87: 0 | T87: 0 | U87: 0 | V87: 0 | W87: 0 | X87: ='3'!$G$30 ->  | Y87: -0.07738095238 | Z87: -0.07738095238 | AA87: -0.07738095238 | AB87: -0.07738095238 | AC87: -0.07738095238 | AD87: -0.07738095238 | AE87: -0.07738095238 | AF87: -0.07738095238 | AG87: -0.07738095238 | AH87: -0.07738095238 | AI87: -0.07738095238 | AJ87: x
A88: MéxicoTotal | B88: México | C88: ='3'!$BD$89 -> Total | D88: =IF($C83="",0,D83)+IF($C84="",0,D84)+IF($C85="",0,D85)+IF($C86="",0,D86)+IF($C87="",0,D87) -> 0 | E88: =IF($C83="",0,E83)+IF($C84="",0,E84)+IF($C85="",0,E85)+IF($C86="",0,E86)+IF($C87="",0,E87) -> 0 | F88: =IF($C83="",0,F83)+IF($C84="",0,F84)+IF($C85="",0,F85)+IF($C86="",0,F86)+IF($C87="",0,F87) -> 0 | G88: =IF($C83="",0,G83)+IF($C84="",0,G84)+IF($C85="",0,G85)+IF($C86="",0,G86)+IF($C87="",0,G87) -> 0 | H88: =IF($C83="",0,H83)+IF($C84="",0,H84)+IF($C85="",0,H85)+IF($C86="",0,H86)+IF($C87="",0,H87) -> 0 | I88: 0 | J88: 0 | K88: 0 | L88: 0 | M88: 0 | N88: =IF($C83="",0,N83)+IF($C84="",0,N84)+IF($C85="",0,N85)+IF($C86="",0,N86)+IF($C87="",0,N87) -> 0 | O88: =IF($C83="",0,O83)+IF($C84="",0,O84)+IF($C85="",0,O85)+IF($C86="",0,O86)+IF($C87="",0,O87) -> 0 | P88: =IF($C83="",0,P83)+IF($C84="",0,P84)+IF($C85="",0,P85)+IF($C86="",0,P86)+IF($C87="",0,P87) -> 0 | Q88: =IF($C83="",0,Q83)+IF($C84="",0,Q84)+IF($C85="",0,Q85)+IF($C86="",0,Q86)+IF($C87="",0,Q87) -> 0 | R88: =IF($C83="",0,R83)+IF($C84="",0,R84)+IF($C85="",0,R85)+IF($C86="",0,R86)+IF($C87="",0,R87) -> 0 | S88: 0 | T88: 0 | U88: 0 | V88: 0 | W88: 0 | X88: ='3'!$BG$94 -> Benznidazol 12,5 mg (III)
A89: NicaraguaCasos congénitos | B89: Nicaragua | C89: =C83 -> Casos congénitos | I89: 0 | J89: 0 | K89: 0 | L89: 0 | M89: 0 | S89: 0 | T89: 0 | U89: 0 | V89: 0 | W89: 0 | X89: ='3'!$G$26 -> Benznidazol 12,5 mg
A90: Nicaragua | B90: Nicaragua | C90: =C84 ->  | I90: 0 | J90: 0 | K90: 0 | L90: 0 | M90: 0 | S90: 0 | T90: 0 | U90: 0 | V90: 0 | W90: 0 | X90: ='3'!$G$27 ->  | AJ90: x
A91: Nicaragua | B91: Nicaragua | C91: =C85 ->  | D91: 973.6701283 | E91: 975.3431262 | F91: 977.0189988 | G91: 978.6977509 | H91: 980.3793875 | I91: 0 | J91: 0 | K91: 0 | L91: 0 | M91: 0 | N91: 757.2989887 | O91: 758.6002093 | P91: 759.9036657 | Q91: 761.2093618 | R91: 762.5173014 | S91: 0 | T91: 0 | U91: 0 | V91: 0 | W91: 0 | X91: ='3'!$G$28 ->  | Y91: 0.00171823897 | Z91: 0.00171823897 | AA91: 0.00171823897 | AB91: 0.00171823897 | AC91: 0.00171823897 | AD91: 0.00171823897 | AE91: 0.00171823897 | AF91: 0.00171823897 | AG91: 0.00171823897 | AH91: 0.00171823897 | AI91: 0.00171823897 | AJ91: x
A92: Nicaragua | B92: Nicaragua | C92: =C86 ->  | D92: 66.65289207 | E92: 66.40074166 | F92: 66.14954514 | G92: 65.89929891 | H92: 65.64999937 | I92: 0 | J92: 0 | K92: 0 | L92: 0 | M92: 0 | N92: 51.84113828 | O92: 51.64502129 | P92: 51.44964622 | Q92: 51.25501026 | R92: 51.06111062 | S92: 0 | T92: 0 | U92: 0 | V92: 0 | W92: 0 | X92: ='3'!$G$29 ->  | Y92: -0.003783037826 | Z92: -0.003783037826 | AA92: -0.003783037826 | AB92: -0.003783037826 | AC92: -0.003783037826 | AD92: -0.003783037826 | AE92: -0.003783037826 | AF92: -0.003783037826 | AG92: -0.003783037826 | AH92: -0.003783037826 | AI92: -0.003783037826 | AJ92: x
A93: Nicaragua | B93: Nicaragua | C93: =C87 ->  | D93: 4 | E93: 4 | F93: 4 | G93: 4 | H93: 3 | I93: 0 | J93: 0 | K93: 0 | L93: 0 | M93: 0 | N93: 3 | O93: 3 | P93: 3 | Q93: 2 | R93: 2 | S93: 0 | T93: 0 | U93: 0 | V93: 0 | W93: 0 | X93: ='3'!$G$30 ->  | Y93: -0.07738095238 | Z93: -0.07738095238 | AA93: -0.07738095238 | AB93: -0.07738095238 | AC93: -0.07738095238 | AD93: -0.07738095238 | AE93: -0.07738095238 | AF93: -0.07738095238 | AG93: -0.07738095238 | AH93: -0.07738095238 | AI93: -0.07738095238 | AJ93: x
A94: NicaraguaTotal | B94: Nicaragua | C94: ='3'!$BD$89 -> Total | D94: =IF($C89="",0,D89)+IF($C90="",0,D90)+IF($C91="",0,D91)+IF($C92="",0,D92)+IF($C93="",0,D93) -> 0 | E94: =IF($C89="",0,E89)+IF($C90="",0,E90)+IF($C91="",0,E91)+IF($C92="",0,E92)+IF($C93="",0,E93) -> 0 | F94: =IF($C89="",0,F89)+IF($C90="",0,F90)+IF($C91="",0,F91)+IF($C92="",0,F92)+IF($C93="",0,F93) -> 0 | G94: =IF($C89="",0,G89)+IF($C90="",0,G90)+IF($C91="",0,G91)+IF($C92="",0,G92)+IF($C93="",0,G93) -> 0 | H94: =IF($C89="",0,H89)+IF($C90="",0,H90)+IF($C91="",0,H91)+IF($C92="",0,H92)+IF($C93="",0,H93) -> 0 | I94: 0 | J94: 0 | K94: 0 | L94: 0 | M94: 0 | N94: =IF($C89="",0,N89)+IF($C90="",0,N90)+IF($C91="",0,N91)+IF($C92="",0,N92)+IF($C93="",0,N93) -> 0 | O94: =IF($C89="",0,O89)+IF($C90="",0,O90)+IF($C91="",0,O91)+IF($C92="",0,O92)+IF($C93="",0,O93) -> 0 | P94: =IF($C89="",0,P89)+IF($C90="",0,P90)+IF($C91="",0,P91)+IF($C92="",0,P92)+IF($C93="",0,P93) -> 0 | Q94: =IF($C89="",0,Q89)+IF($C90="",0,Q90)+IF($C91="",0,Q91)+IF($C92="",0,Q92)+IF($C93="",0,Q93) -> 0 | R94: =IF($C89="",0,R89)+IF($C90="",0,R90)+IF($C91="",0,R91)+IF($C92="",0,R92)+IF($C93="",0,R93) -> 0 | S94: 0 | T94: 0 | U94: 0 | V94: 0 | W94: 0 | X94: ='3'!$BG$94 -> Benznidazol 12,5 mg (III)
A95: PanamáCasos congénitos | B95: Panamá | C95: =C89 -> Casos congénitos | I95: 0 | J95: 0 | K95: 0 | L95: 0 | M95: 0 | S95: 0 | T95: 0 | U95: 0 | V95: 0 | W95: 0 | X95: ='3'!$G$26 -> Benznidazol 12,5 mg
A96: Panamá | B96: Panamá | C96: =C90 ->  | I96: 0 | J96: 0 | K96: 0 | L96: 0 | M96: 0 | S96: 0 | T96: 0 | U96: 0 | V96: 0 | W96: 0 | X96: ='3'!$G$27 ->  | AJ96: x
A97: Panamá | B97: Panamá | C97: =C91 ->  | D97: 973.6701283 | E97: 975.3431262 | F97: 977.0189988 | G97: 978.6977509 | H97: 980.3793875 | I97: 0 | J97: 0 | K97: 0 | L97: 0 | M97: 0 | N97: 757.2989887 | O97: 758.6002093 | P97: 759.9036657 | Q97: 761.2093618 | R97: 762.5173014 | S97: 0 | T97: 0 | U97: 0 | V97: 0 | W97: 0 | X97: ='3'!$G$28 ->  | Y97: 0.00171823897 | Z97: 0.00171823897 | AA97: 0.00171823897 | AB97: 0.00171823897 | AC97: 0.00171823897 | AD97: 0.00171823897 | AE97: 0.00171823897 | AF97: 0.00171823897 | AG97: 0.00171823897 | AH97: 0.00171823897 | AI97: 0.00171823897 | AJ97: x
A98: Panamá | B98: Panamá | C98: =C92 ->  | D98: 66.65289207 | E98: 66.40074166 | F98: 66.14954514 | G98: 65.89929891 | H98: 65.64999937 | I98: 0 | J98: 0 | K98: 0 | L98: 0 | M98: 0 | N98: 51.84113828 | O98: 51.64502129 | P98: 51.44964622 | Q98: 51.25501026 | R98: 51.06111062 | S98: 0 | T98: 0 | U98: 0 | V98: 0 | W98: 0 | X98: ='3'!$G$29 ->  | Y98: -0.003783037826 | Z98: -0.003783037826 | AA98: -0.003783037826 | AB98: -0.003783037826 | AC98: -0.003783037826 | AD98: -0.003783037826 | AE98: -0.003783037826 | AF98: -0.003783037826 | AG98: -0.003783037826 | AH98: -0.003783037826 | AI98: -0.003783037826 | AJ98: x
A99: Panamá | B99: Panamá | C99: =C93 ->  | D99: 4 | E99: 4 | F99: 4 | G99: 4 | H99: 3 | I99: 0 | J99: 0 | K99: 0 | L99: 0 | M99: 0 | N99: 3 | O99: 3 | P99: 3 | Q99: 2 | R99: 2 | S99: 0 | T99: 0 | U99: 0 | V99: 0 | W99: 0 | X99: ='3'!$G$30 ->  | Y99: -0.07738095238 | Z99: -0.07738095238 | AA99: -0.07738095238 | AB99: -0.07738095238 | AC99: -0.07738095238 | AD99: -0.07738095238 | AE99: -0.07738095238 | AF99: -0.07738095238 | AG99: -0.07738095238 | AH99: -0.07738095238 | AI99: -0.07738095238 | AJ99: x
A100: PanamáTotal | B100: Panamá | C100: ='3'!$BD$89 -> Total | D100: =IF($C95="",0,D95)+IF($C96="",0,D96)+IF($C97="",0,D97)+IF($C98="",0,D98)+IF($C99="",0,D99) -> 0 | E100: =IF($C95="",0,E95)+IF($C96="",0,E96)+IF($C97="",0,E97)+IF($C98="",0,E98)+IF($C99="",0,E99) -> 0 | F100: =IF($C95="",0,F95)+IF($C96="",0,F96)+IF($C97="",0,F97)+IF($C98="",0,F98)+IF($C99="",0,F99) -> 0 | G100: =IF($C95="",0,G95)+IF($C96="",0,G96)+IF($C97="",0,G97)+IF($C98="",0,G98)+IF($C99="",0,G99) -> 0 | H100: =IF($C95="",0,H95)+IF($C96="",0,H96)+IF($C97="",0,H97)+IF($C98="",0,H98)+IF($C99="",0,H99) -> 0 | I100: 0 | J100: 0 | K100: 0 | L100: 0 | M100: 0 | N100: =IF($C95="",0,N95)+IF($C96="",0,N96)+IF($C97="",0,N97)+IF($C98="",0,N98)+IF($C99="",0,N99) -> 0 | O100: =IF($C95="",0,O95)+IF($C96="",0,O96)+IF($C97="",0,O97)+IF($C98="",0,O98)+IF($C99="",0,O99) -> 0 | P100: =IF($C95="",0,P95)+IF($C96="",0,P96)+IF($C97="",0,P97)+IF($C98="",0,P98)+IF($C99="",0,P99) -> 0 | Q100: =IF($C95="",0,Q95)+IF($C96="",0,Q96)+IF($C97="",0,Q97)+IF($C98="",0,Q98)+IF($C99="",0,Q99) -> 0 | R100: =IF($C95="",0,R95)+IF($C96="",0,R96)+IF($C97="",0,R97)+IF($C98="",0,R98)+IF($C99="",0,R99) -> 0 | S100: 0 | T100: 0 | U100: 0 | V100: 0 | W100: 0 | X100: ='3'!$BG$94 -> Benznidazol 12,5 mg (III)
A101: ParaguayCasos congénitos | B101: Paraguay | C101: =C95 -> Casos congénitos | I101: 0 | J101: 0 | K101: 0 | L101: 0 | M101: 0 | S101: 0 | T101: 0 | U101: 0 | V101: 0 | W101: 0 | X101: ='3'!$G$26 -> Benznidazol 12,5 mg
A102: Paraguay | B102: Paraguay | C102: =C96 ->  | I102: 0 | J102: 0 | K102: 0 | L102: 0 | M102: 0 | S102: 0 | T102: 0 | U102: 0 | V102: 0 | W102: 0 | X102: ='3'!$G$27 ->  | AJ102: x
A103: Paraguay | B103: Paraguay | C103: =C97 ->  | D103: 973.6701283 | E103: 975.3431262 | F103: 977.0189988 | G103: 978.6977509 | H103: 980.3793875 | I103: 0 | J103: 0 | K103: 0 | L103: 0 | M103: 0 | N103: 757.2989887 | O103: 758.6002093 | P103: 759.9036657 | Q103: 761.2093618 | R103: 762.5173014 | S103: 0 | T103: 0 | U103: 0 | V103: 0 | W103: 0 | X103: ='3'!$G$28 ->  | Y103: 0.00171823897 | Z103: 0.00171823897 | AA103: 0.00171823897 | AB103: 0.00171823897 | AC103: 0.00171823897 | AD103: 0.00171823897 | AE103: 0.00171823897 | AF103: 0.00171823897 | AG103: 0.00171823897 | AH103: 0.00171823897 | AI103: 0.00171823897 | AJ103: x
A104: Paraguay | B104: Paraguay | C104: =C98 ->  | D104: 66.65289207 | E104: 66.40074166 | F104: 66.14954514 | G104: 65.89929891 | H104: 65.64999937 | I104: 0 | J104: 0 | K104: 0 | L104: 0 | M104: 0 | N104: 51.84113828 | O104: 51.64502129 | P104: 51.44964622 | Q104: 51.25501026 | R104: 51.06111062 | S104: 0 | T104: 0 | U104: 0 | V104: 0 | W104: 0 | X104: ='3'!$G$29 ->  | Y104: -0.003783037826 | Z104: -0.003783037826 | AA104: -0.003783037826 | AB104: -0.003783037826 | AC104: -0.003783037826 | AD104: -0.003783037826 | AE104: -0.003783037826 | AF104: -0.003783037826 | AG104: -0.003783037826 | AH104: -0.003783037826 | AI104: -0.003783037826 | AJ104: x
A105: Paraguay | B105: Paraguay | C105: =C99 ->  | D105: 4 | E105: 4 | F105: 4 | G105: 4 | H105: 3 | I105: 0 | J105: 0 | K105: 0 | L105: 0 | M105: 0 | N105: 3 | O105: 3 | P105: 3 | Q105: 2 | R105: 2 | S105: 0 | T105: 0 | U105: 0 | V105: 0 | W105: 0 | X105: ='3'!$G$30 ->  | Y105: -0.07738095238 | Z105: -0.07738095238 | AA105: -0.07738095238 | AB105: -0.07738095238 | AC105: -0.07738095238 | AD105: -0.07738095238 | AE105: -0.07738095238 | AF105: -0.07738095238 | AG105: -0.07738095238 | AH105: -0.07738095238 | AI105: -0.07738095238 | AJ105: x
A106: ParaguayTotal | B106: Paraguay | C106: ='3'!$BD$89 -> Total | D106: =IF($C101="",0,D101)+IF($C102="",0,D102)+IF($C103="",0,D103)+IF($C104="",0,D104)+IF($C105="",0,D105) -> 0 | E106: =IF($C101="",0,E101)+IF($C102="",0,E102)+IF($C103="",0,E103)+IF($C104="",0,E104)+IF($C105="",0,E105) -> 0 | F106: =IF($C101="",0,F101)+IF($C102="",0,F102)+IF($C103="",0,F103)+IF($C104="",0,F104)+IF($C105="",0,F105) -> 0 | G106: =IF($C101="",0,G101)+IF($C102="",0,G102)+IF($C103="",0,G103)+IF($C104="",0,G104)+IF($C105="",0,G105) -> 0 | H106: =IF($C101="",0,H101)+IF($C102="",0,H102)+IF($C103="",0,H103)+IF($C104="",0,H104)+IF($C105="",0,H105) -> 0 | I106: 0 | J106: 0 | K106: 0 | L106: 0 | M106: 0 | N106: =IF($C101="",0,N101)+IF($C102="",0,N102)+IF($C103="",0,N103)+IF($C104="",0,N104)+IF($C105="",0,N105) -> 0 | O106: =IF($C101="",0,O101)+IF($C102="",0,O102)+IF($C103="",0,O103)+IF($C104="",0,O104)+IF($C105="",0,O105) -> 0 | P106: =IF($C101="",0,P101)+IF($C102="",0,P102)+IF($C103="",0,P103)+IF($C104="",0,P104)+IF($C105="",0,P105) -> 0 | Q106: =IF($C101="",0,Q101)+IF($C102="",0,Q102)+IF($C103="",0,Q103)+IF($C104="",0,Q104)+IF($C105="",0,Q105) -> 0 | R106: =IF($C101="",0,R101)+IF($C102="",0,R102)+IF($C103="",0,R103)+IF($C104="",0,R104)+IF($C105="",0,R105) -> 0 | S106: 0 | T106: 0 | U106: 0 | V106: 0 | W106: 0 | X106: ='3'!$BG$94 -> Benznidazol 12,5 mg (III)
A107: PerúCasos congénitos | B107: Perú | C107: =C101 -> Casos congénitos | I107: 0 | J107: 0 | K107: 0 | L107: 0 | M107: 0 | S107: 0 | T107: 0 | U107: 0 | V107: 0 | W107: 0 | X107: ='3'!$G$26 -> Benznidazol 12,5 mg
A108: Perú | B108: Perú | C108: =C102 ->  | I108: 0 | J108: 0 | K108: 0 | L108: 0 | M108: 0 | S108: 0 | T108: 0 | U108: 0 | V108: 0 | W108: 0 | X108: ='3'!$G$27 ->  | AJ108: x
A109: Perú | B109: Perú | C109: =C103 ->  | D109: 973.6701283 | E109: 975.3431262 | F109: 977.0189988 | G109: 978.6977509 | H109: 980.3793875 | I109: 0 | J109: 0 | K109: 0 | L109: 0 | M109: 0 | N109: 757.2989887 | O109: 758.6002093 | P109: 759.9036657 | Q109: 761.2093618 | R109: 762.5173014 | S109: 0 | T109: 0 | U109: 0 | V109: 0 | W109: 0 | X109: ='3'!$G$28 ->  | Y109: 0.00171823897 | Z109: 0.00171823897 | AA109: 0.00171823897 | AB109: 0.00171823897 | AC109: 0.00171823897 | AD109: 0.00171823897 | AE109: 0.00171823897 | AF109: 0.00171823897 | AG109: 0.00171823897 | AH109: 0.00171823897 | AI109: 0.00171823897 | AJ109: x
A110: Perú | B110: Perú | C110: =C104 ->  | D110: 66.65289207 | E110: 66.40074166 | F110: 66.14954514 | G110: 65.89929891 | H110: 65.64999937 | I110: 0 | J110: 0 | K110: 0 | L110: 0 | M110: 0 | N110: 51.84113828 | O110: 51.64502129 | P110: 51.44964622 | Q110: 51.25501026 | R110: 51.06111062 | S110: 0 | T110: 0 | U110: 0 | V110: 0 | W110: 0 | X110: ='3'!$G$29 ->  | Y110: -0.003783037826 | Z110: -0.003783037826 | AA110: -0.003783037826 | AB110: -0.003783037826 | AC110: -0.003783037826 | AD110: -0.003783037826 | AE110: -0.003783037826 | AF110: -0.003783037826 | AG110: -0.003783037826 | AH110: -0.003783037826 | AI110: -0.003783037826 | AJ110: x
A111: Perú | B111: Perú | C111: =C105 ->  | D111: 4 | E111: 4 | F111: 4 | G111: 4 | H111: 3 | I111: 0 | J111: 0 | K111: 0 | L111: 0 | M111: 0 | N111: 3 | O111: 3 | P111: 3 | Q111: 2 | R111: 2 | S111: 0 | T111: 0 | U111: 0 | V111: 0 | W111: 0 | X111: ='3'!$G$30 ->  | Y111: -0.07738095238 | Z111: -0.07738095238 | AA111: -0.07738095238 | AB111: -0.07738095238 | AC111: -0.07738095238 | AD111: -0.07738095238 | AE111: -0.07738095238 | AF111: -0.07738095238 | AG111: -0.07738095238 | AH111: -0.07738095238 | AI111: -0.07738095238 | AJ111: x
A112: PerúTotal | B112: Perú | C112: ='3'!$BD$89 -> Total | D112: =IF($C107="",0,D107)+IF($C108="",0,D108)+IF($C109="",0,D109)+IF($C110="",0,D110)+IF($C111="",0,D111) -> 0 | E112: =IF($C107="",0,E107)+IF($C108="",0,E108)+IF($C109="",0,E109)+IF($C110="",0,E110)+IF($C111="",0,E111) -> 0 | F112: =IF($C107="",0,F107)+IF($C108="",0,F108)+IF($C109="",0,F109)+IF($C110="",0,F110)+IF($C111="",0,F111) -> 0 | G112: =IF($C107="",0,G107)+IF($C108="",0,G108)+IF($C109="",0,G109)+IF($C110="",0,G110)+IF($C111="",0,G111) -> 0 | H112: =IF($C107="",0,H107)+IF($C108="",0,H108)+IF($C109="",0,H109)+IF($C110="",0,H110)+IF($C111="",0,H111) -> 0 | I112: 0 | J112: 0 | K112: 0 | L112: 0 | M112: 0 | N112: =IF($C107="",0,N107)+IF($C108="",0,N108)+IF($C109="",0,N109)+IF($C110="",0,N110)+IF($C111="",0,N111) -> 0 | O112: =IF($C107="",0,O107)+IF($C108="",0,O108)+IF($C109="",0,O109)+IF($C110="",0,O110)+IF($C111="",0,O111) -> 0 | P112: =IF($C107="",0,P107)+IF($C108="",0,P108)+IF($C109="",0,P109)+IF($C110="",0,P110)+IF($C111="",0,P111) -> 0 | Q112: =IF($C107="",0,Q107)+IF($C108="",0,Q108)+IF($C109="",0,Q109)+IF($C110="",0,Q110)+IF($C111="",0,Q111) -> 0 | R112: =IF($C107="",0,R107)+IF($C108="",0,R108)+IF($C109="",0,R109)+IF($C110="",0,R110)+IF($C111="",0,R111) -> 0 | S112: 0 | T112: 0 | U112: 0 | V112: 0 | W112: 0 | X112: ='3'!$BG$94 -> Benznidazol 12,5 mg (III)
A113: SurinamCasos congénitos | B113: Surinam | C113: =C107 -> Casos congénitos | I113: 0 | J113: 0 | K113: 0 | L113: 0 | M113: 0 | S113: 0 | T113: 0 | U113: 0 | V113: 0 | W113: 0 | X113: ='3'!$G$26 -> Benznidazol 12,5 mg
A114: Surinam | B114: Surinam | C114: =C108 ->  | I114: 0 | J114: 0 | K114: 0 | L114: 0 | M114: 0 | S114: 0 | T114: 0 | U114: 0 | V114: 0 | W114: 0 | X114: ='3'!$G$27 ->  | AJ114: x
A115: Surinam | B115: Surinam | C115: =C109 ->  | D115: 973.6701283 | E115: 975.3431262 | F115: 977.0189988 | G115: 978.6977509 | H115: 980.3793875 | I115: 0 | J115: 0 | K115: 0 | L115: 0 | M115: 0 | N115: 757.2989887 | O115: 758.6002093 | P115: 759.9036657 | Q115: 761.2093618 | R115: 762.5173014 | S115: 0 | T115: 0 | U115: 0 | V115: 0 | W115: 0 | X115: ='3'!$G$28 ->  | Y115: 0.00171823897 | Z115: 0.00171823897 | AA115: 0.00171823897 | AB115: 0.00171823897 | AC115: 0.00171823897 | AD115: 0.00171823897 | AE115: 0.00171823897 | AF115: 0.00171823897 | AG115: 0.00171823897 | AH115: 0.00171823897 | AI115: 0.00171823897 | AJ115: x
A116: Surinam | B116: Surinam | C116: =C110 ->  | D116: 66.65289207 | E116: 66.40074166 | F116: 66.14954514 | G116: 65.89929891 | H116: 65.64999937 | I116: 0 | J116: 0 | K116: 0 | L116: 0 | M116: 0 | N116: 51.84113828 | O116: 51.64502129 | P116: 51.44964622 | Q116: 51.25501026 | R116: 51.06111062 | S116: 0 | T116: 0 | U116: 0 | V116: 0 | W116: 0 | X116: ='3'!$G$29 ->  | Y116: -0.003783037826 | Z116: -0.003783037826 | AA116: -0.003783037826 | AB116: -0.003783037826 | AC116: -0.003783037826 | AD116: -0.003783037826 | AE116: -0.003783037826 | AF116: -0.003783037826 | AG116: -0.003783037826 | AH116: -0.003783037826 | AI116: -0.003783037826 | AJ116: x
A117: Surinam | B117: Surinam | C117: =C111 ->  | D117: 4 | E117: 4 | F117: 4 | G117: 4 | H117: 3 | I117: 0 | J117: 0 | K117: 0 | L117: 0 | M117: 0 | N117: 3 | O117: 3 | P117: 3 | Q117: 2 | R117: 2 | S117: 0 | T117: 0 | U117: 0 | V117: 0 | W117: 0 | X117: ='3'!$G$30 ->  | Y117: -0.07738095238 | Z117: -0.07738095238 | AA117: -0.07738095238 | AB117: -0.07738095238 | AC117: -0.07738095238 | AD117: -0.07738095238 | AE117: -0.07738095238 | AF117: -0.07738095238 | AG117: -0.07738095238 | AH117: -0.07738095238 | AI117: -0.07738095238 | AJ117: x
A118: SurinamTotal | B118: Surinam | C118: ='3'!$BD$89 -> Total | D118: =IF($C113="",0,D113)+IF($C114="",0,D114)+IF($C115="",0,D115)+IF($C116="",0,D116)+IF($C117="",0,D117) -> 0 | E118: =IF($C113="",0,E113)+IF($C114="",0,E114)+IF($C115="",0,E115)+IF($C116="",0,E116)+IF($C117="",0,E117) -> 0 | F118: =IF($C113="",0,F113)+IF($C114="",0,F114)+IF($C115="",0,F115)+IF($C116="",0,F116)+IF($C117="",0,F117) -> 0 | G118: =IF($C113="",0,G113)+IF($C114="",0,G114)+IF($C115="",0,G115)+IF($C116="",0,G116)+IF($C117="",0,G117) -> 0 | H118: =IF($C113="",0,H113)+IF($C114="",0,H114)+IF($C115="",0,H115)+IF($C116="",0,H116)+IF($C117="",0,H117) -> 0 | I118: 0 | J118: 0 | K118: 0 | L118: 0 | M118: 0 | N118: =IF($C113="",0,N113)+IF($C114="",0,N114)+IF($C115="",0,N115)+IF($C116="",0,N116)+IF($C117="",0,N117) -> 0 | O118: =IF($C113="",0,O113)+IF($C114="",0,O114)+IF($C115="",0,O115)+IF($C116="",0,O116)+IF($C117="",0,O117) -> 0 | P118: =IF($C113="",0,P113)+IF($C114="",0,P114)+IF($C115="",0,P115)+IF($C116="",0,P116)+IF($C117="",0,P117) -> 0 | Q118: =IF($C113="",0,Q113)+IF($C114="",0,Q114)+IF($C115="",0,Q115)+IF($C116="",0,Q116)+IF($C117="",0,Q117) -> 0 | R118: =IF($C113="",0,R113)+IF($C114="",0,R114)+IF($C115="",0,R115)+IF($C116="",0,R116)+IF($C117="",0,R117) -> 0 | S118: 0 | T118: 0 | U118: 0 | V118: 0 | W118: 0 | X118: ='3'!$BG$94 -> Benznidazol 12,5 mg (III)
A119: UruguayCasos congénitos | B119: Uruguay | C119: =C113 -> Casos congénitos | I119: 0 | J119: 0 | K119: 0 | L119: 0 | M119: 0 | S119: 0 | T119: 0 | U119: 0 | V119: 0 | W119: 0 | X119: ='3'!$G$26 -> Benznidazol 12,5 mg
A120: Uruguay | B120: Uruguay | C120: =C114 ->  | I120: 0 | J120: 0 | K120: 0 | L120: 0 | M120: 0 | S120: 0 | T120: 0 | U120: 0 | V120: 0 | W120: 0 | X120: ='3'!$G$27 ->  | AJ120: x
A121: Uruguay | B121: Uruguay | C121: =C115 ->  | D121: 973.6701283 | E121: 975.3431262 | F121: 977.0189988 | G121: 978.6977509 | H121: 980.3793875 | I121: 0 | J121: 0 | K121: 0 | L121: 0 | M121: 0 | N121: 757.2989887 | O121: 758.6002093 | P121: 759.9036657 | Q121: 761.2093618 | R121: 762.5173014 | S121: 0 | T121: 0 | U121: 0 | V121: 0 | W121: 0 | X121: ='3'!$G$28 ->  | Y121: 0.00171823897 | Z121: 0.00171823897 | AA121: 0.00171823897 | AB121: 0.00171823897 | AC121: 0.00171823897 | AD121: 0.00171823897 | AE121: 0.00171823897 | AF121: 0.00171823897 | AG121: 0.00171823897 | AH121: 0.00171823897 | AI121: 0.00171823897 | AJ121: x
A122: Uruguay | B122: Uruguay | C122: =C116 ->  | D122: 66.65289207 | E122: 66.40074166 | F122: 66.14954514 | G122: 65.89929891 | H122: 65.64999937 | I122: 0 | J122: 0 | K122: 0 | L122: 0 | M122: 0 | N122: 51.84113828 | O122: 51.64502129 | P122: 51.44964622 | Q122: 51.25501026 | R122: 51.06111062 | S122: 0 | T122: 0 | U122: 0 | V122: 0 | W122: 0 | X122: ='3'!$G$29 ->  | Y122: -0.003783037826 | Z122: -0.003783037826 | AA122: -0.003783037826 | AB122: -0.003783037826 | AC122: -0.003783037826 | AD122: -0.003783037826 | AE122: -0.003783037826 | AF122: -0.003783037826 | AG122: -0.003783037826 | AH122: -0.003783037826 | AI122: -0.003783037826 | AJ122: x
A123: Uruguay | B123: Uruguay | C123: =C117 ->  | D123: 4 | E123: 4 | F123: 4 | G123: 4 | H123: 3 | I123: 0 | J123: 0 | K123: 0 | L123: 0 | M123: 0 | N123: 3 | O123: 3 | P123: 3 | Q123: 2 | R123: 2 | S123: 0 | T123: 0 | U123: 0 | V123: 0 | W123: 0 | X123: ='3'!$G$30 ->  | Y123: -0.07738095238 | Z123: -0.07738095238 | AA123: -0.07738095238 | AB123: -0.07738095238 | AC123: -0.07738095238 | AD123: -0.07738095238 | AE123: -0.07738095238 | AF123: -0.07738095238 | AG123: -0.07738095238 | AH123: -0.07738095238 | AI123: -0.07738095238 | AJ123: x
A124: UruguayTotal | B124: Uruguay | C124: ='3'!$BD$89 -> Total | D124: =IF($C119="",0,D119)+IF($C120="",0,D120)+IF($C121="",0,D121)+IF($C122="",0,D122)+IF($C123="",0,D123) -> 0 | E124: =IF($C119="",0,E119)+IF($C120="",0,E120)+IF($C121="",0,E121)+IF($C122="",0,E122)+IF($C123="",0,E123) -> 0 | F124: =IF($C119="",0,F119)+IF($C120="",0,F120)+IF($C121="",0,F121)+IF($C122="",0,F122)+IF($C123="",0,F123) -> 0 | G124: =IF($C119="",0,G119)+IF($C120="",0,G120)+IF($C121="",0,G121)+IF($C122="",0,G122)+IF($C123="",0,G123) -> 0 | H124: =IF($C119="",0,H119)+IF($C120="",0,H120)+IF($C121="",0,H121)+IF($C122="",0,H122)+IF($C123="",0,H123) -> 0 | I124: 0 | J124: 0 | K124: 0 | L124: 0 | M124: 0 | N124: =IF($C119="",0,N119)+IF($C120="",0,N120)+IF($C121="",0,N121)+IF($C122="",0,N122)+IF($C123="",0,N123) -> 0 | O124: =IF($C119="",0,O119)+IF($C120="",0,O120)+IF($C121="",0,O121)+IF($C122="",0,O122)+IF($C123="",0,O123) -> 0 | P124: =IF($C119="",0,P119)+IF($C120="",0,P120)+IF($C121="",0,P121)+IF($C122="",0,P122)+IF($C123="",0,P123) -> 0 | Q124: =IF($C119="",0,Q119)+IF($C120="",0,Q120)+IF($C121="",0,Q121)+IF($C122="",0,Q122)+IF($C123="",0,Q123) -> 0 | R124: =IF($C119="",0,R119)+IF($C120="",0,R120)+IF($C121="",0,R121)+IF($C122="",0,R122)+IF($C123="",0,R123) -> 0 | S124: 0 | T124: 0 | U124: 0 | V124: 0 | W124: 0 | X124: ='3'!$BG$94 -> Benznidazol 12,5 mg (III)
A125: VenezuelaCasos congénitos | B125: Venezuela | C125: =C119 -> Casos congénitos | I125: 0 | J125: 0 | K125: 0 | L125: 0 | M125: 0 | S125: 0 | T125: 0 | U125: 0 | V125: 0 | W125: 0 | X125: ='3'!$G$26 -> Benznidazol 12,5 mg
A126: Venezuela | B126: Venezuela | C126: =C120 ->  | I126: 0 | J126: 0 | K126: 0 | L126: 0 | M126: 0 | S126: 0 | T126: 0 | U126: 0 | V126: 0 | W126: 0 | X126: ='3'!$G$27 ->  | AJ126: x
A127: Venezuela | B127: Venezuela | C127: =C121 ->  | D127: 973.6701283 | E127: 975.3431262 | F127: 977.0189988 | G127: 978.6977509 | H127: 980.3793875 | I127: 0 | J127: 0 | K127: 0 | L127: 0 | M127: 0 | N127: 757.2989887 | O127: 758.6002093 | P127: 759.9036657 | Q127: 761.2093618 | R127: 762.5173014 | S127: 0 | T127: 0 | U127: 0 | V127: 0 | W127: 0 | X127: ='3'!$G$28 ->  | Y127: 0.00171823897 | Z127: 0.00171823897 | AA127: 0.00171823897 | AB127: 0.00171823897 | AC127: 0.00171823897 | AD127: 0.00171823897 | AE127: 0.00171823897 | AF127: 0.00171823897 | AG127: 0.00171823897 | AH127: 0.00171823897 | AI127: 0.00171823897 | AJ127: x
A128: Venezuela | B128: Venezuela | C128: =C122 ->  | D128: 66.65289207 | E128: 66.40074166 | F128: 66.14954514 | G128: 65.89929891 | H128: 65.64999937 | I128: 0 | J128: 0 | K128: 0 | L128: 0 | M128: 0 | N128: 51.84113828 | O128: 51.64502129 | P128: 51.44964622 | Q128: 51.25501026 | R128: 51.06111062 | S128: 0 | T128: 0 | U128: 0 | V128: 0 | W128: 0 | X128: ='3'!$G$29 ->  | Y128: -0.003783037826 | Z128: -0.003783037826 | AA128: -0.003783037826 | AB128: -0.003783037826 | AC128: -0.003783037826 | AD128: -0.003783037826 | AE128: -0.003783037826 | AF128: -0.003783037826 | AG128: -0.003783037826 | AH128: -0.003783037826 | AI128: -0.003783037826 | AJ128: x
A129: Venezuela | B129: Venezuela | C129: =C123 ->  | D129: 4 | E129: 4 | F129: 4 | G129: 4 | H129: 3 | I129: 0 | J129: 0 | K129: 0 | L129: 0 | M129: 0 | N129: 3 | O129: 3 | P129: 3 | Q129: 2 | R129: 2 | S129: 0 | T129: 0 | U129: 0 | V129: 0 | W129: 0 | X129: ='3'!$G$30 ->  | Y129: -0.07738095238 | Z129: -0.07738095238 | AA129: -0.07738095238 | AB129: -0.07738095238 | AC129: -0.07738095238 | AD129: -0.07738095238 | AE129: -0.07738095238 | AF129: -0.07738095238 | AG129: -0.07738095238 | AH129: -0.07738095238 | AI129: -0.07738095238 | AJ129: x
A130: VenezuelaTotal | B130: Venezuela | C130: ='3'!$BD$89 -> Total | D130: =IF($C125="",0,D125)+IF($C126="",0,D126)+IF($C127="",0,D127)+IF($C128="",0,D128)+IF($C129="",0,D129) -> 0 | E130: =IF($C125="",0,E125)+IF($C126="",0,E126)+IF($C127="",0,E127)+IF($C128="",0,E128)+IF($C129="",0,E129) -> 0 | F130: =IF($C125="",0,F125)+IF($C126="",0,F126)+IF($C127="",0,F127)+IF($C128="",0,F128)+IF($C129="",0,F129) -> 0 | G130: =IF($C125="",0,G125)+IF($C126="",0,G126)+IF($C127="",0,G127)+IF($C128="",0,G128)+IF($C129="",0,G129) -> 0 | H130: =IF($C125="",0,H125)+IF($C126="",0,H126)+IF($C127="",0,H127)+IF($C128="",0,H128)+IF($C129="",0,H129) -> 0 | I130: 0 | J130: 0 | K130: 0 | L130: 0 | M130: 0 | N130: =IF($C125="",0,N125)+IF($C126="",0,N126)+IF($C127="",0,N127)+IF($C128="",0,N128)+IF($C129="",0,N129) -> 0 | O130: =IF($C125="",0,O125)+IF($C126="",0,O126)+IF($C127="",0,O127)+IF($C128="",0,O128)+IF($C129="",0,O129) -> 0 | P130: =IF($C125="",0,P125)+IF($C126="",0,P126)+IF($C127="",0,P127)+IF($C128="",0,P128)+IF($C129="",0,P129) -> 0 | Q130: =IF($C125="",0,Q125)+IF($C126="",0,Q126)+IF($C127="",0,Q127)+IF($C128="",0,Q128)+IF($C129="",0,Q129) -> 0 | R130: =IF($C125="",0,R125)+IF($C126="",0,R126)+IF($C127="",0,R127)+IF($C128="",0,R128)+IF($C129="",0,R129) -> 0 | S130: 0 | T130: 0 | U130: 0 | V130: 0 | W130: 0 | X130: ='3'!$BG$94 -> Benznidazol 12,5 mg (III)
B131: LATAM

Sheet R3 (hidden)
B1: ="Información básica necesaria"&" ("&'3'!BB83&")" -> Información básica necesaria ()
D3: Área endémica | I3: Área endémica | N3: Área no endémica | S3: Área no endémica | Y3: Coeficiente de crecimiento promedio de base histórico | AZ3: Filtro Avanzado
A4: ID | B4: País | C4: Grupo de edad | D4: 2007 | E4: 2008 | F4: 2009 | G4: 2010 | H4: 2011 | I4: 2005 | J4: 2006 | K4: 2007 | L4: 2008 | M4: 2009 | N4: 2007 | O4: 2008 | P4: 2009 | Q4: 2010 | R4: 2011 | S4: 2005 | T4: 2006 | U4: 2007 | V4: 2008 | W4: 2009 | X4: Producto | Y4: Tasa ref. | Z4: 2012 | AA4: 2013 | AB4: 2014 | AC4: 2015 | AD4: 2016 | AE4: 2017 | AF4: 2018 | AG4: 2019 | AH4: 2020 | AI4: 2021 | AJ4: x | AZ4: País | BA4: Grupo de edad | BB4: x
A5: =B5&C5 -> ArgentinaCasos congénitos | B5: Argentina | C5: ='3'!C26 -> Casos congénitos | D5: 100 | E5: =+D5*1.1 -> 110 | F5: =+E5*1.1 -> 121 | G5: 133.1 | H5: 146.41 | I5: =IF($C5="",0,D5) -> 100 | J5: 110 | K5: 121 | L5: 133.1 | M5: 146.41 | N5: 200 | O5: =+N5*1.1 -> 220 | P5: 242 | Q5: 266.2 | R5: 292.82 | S5: =IF($C5="",0,N5) -> 200 | T5: 220 | U5: 242 | V5: 266.2 | W5: 292.82 | X5: ='3'!$G$26 -> Benznidazol 12,5 mg | Y5: =IF(AND(D5=0,E5=0,F5=0,G5=0,H5=0,N5=0,O5=0,P5=0,Q5=0,R5=0),"",AVERAGE(IF((D5+N5)<>0,(E5+O5)/(D5+N5)-1,"-"),IF((E5+O5)<>0,(F5+P5)/(E5+O5)-1,"-"),IF((F5+P5)<>0,(G5+Q5)/(F5+P5)-1,"-"),IF((G5+Q5)<>0,(H5+R5)/(G5+Q5)-1,"-"))) -> 0.1 | Z5: =Y5 -> 0.1 | AA5: 0.1 | AB5: 0.1 | AC5: 0.1 | AD5: 0.1 | AE5: 0.1 | AF5: 0.1 | AG5: 0.1 | AH5: 0.1 | AI5: 0.1 | AJ5: =IF(C5="","x","") ->  | AZ5: ='3'!AW82 -> Argentina | BA5: =IF('3'!$G$21<>"Total","<>Total","Total") -> <>Total | BB5: <>x
A6: Argentina | B6: Argentina | C6: ='3'!C27 ->  | D6: 200 | E6: =+D6*1.1 -> 220 | F6: =+E6*1.1 -> 242 | G6: 266.2 | H6: 292.82 | I6: 0 | J6: 0 | K6: 0 | L6: 0 | M6: 0 | N6: 400 | O6: =+N6*1.1 -> 440 | P6: 484 | Q6: 532.4 | R6: 585.64 | S6: 0 | T6: 0 | U6: 0 | V6: 0 | W6: 0 | X6: ='3'!$G$27 ->  | Y6: 0.1 | Z6: =Y6 -> 0.1 | AA6: =Z6 -> 0.1 | AB6: 0.1 | AC6: 0.1 | AD6: 0.1 | AE6: 0.1 | AF6: 0.1 | AG6: 0.1 | AH6: 0.1 | AI6: 0.1 | AJ6: =IF(C6="","x","") -> x | AZ6: ='3'!AW83 -> 0 | BA6: =IF('3'!$G$21<>"Total","<>Total","Total") -> <>Total | BB6: <>x
A7: Argentina | B7: Argentina | C7: ='3'!C28 ->  | D7: 973.6701283 | E7: 975.3431262 | F7: 977.0189988 | G7: 978.6977509 | H7: 980.3793875 | I7: 0 | J7: 0 | K7: 0 | L7: 0 | M7: 0 | N7: 757.2989887 | O7: 758.6002093 | P7: 759.9036657 | Q7: 761.2093618 | R7: 762.5173014 | S7: 0 | T7: 0 | U7: 0 | V7: 0 | W7: 0 | X7: ='3'!$G$28 ->  | Y7: 0.00171823897 | Z7: 0.00171823897 | AA7: =Z7 -> 0.00171823897 | AB7: 0.00171823897 | AC7: 0.00171823897 | AD7: 0.00171823897 | AE7: 0.00171823897 | AF7: 0.00171823897 | AG7: 0.00171823897 | AH7: 0.00171823897 | AI7: 0.00171823897 | AJ7: x | AZ7: ='3'!AW84 -> 0 | BA7: =IF('3'!$G$21<>"Total","<>Total","Total") -> <>Total | BB7: <>x
A8: Argentina | B8: Argentina | C8: ='3'!C29 ->  | D8: 66.65289207 | E8: 66.40074166 | F8: 66.14954514 | G8: 65.89929891 | H8: 65.64999937 | I8: 0 | J8: 0 | K8: 0 | L8: 0 | M8: 0 | N8: 51.84113828 | O8: 51.64502129 | P8: 51.44964622 | Q8: 51.25501026 | R8: 51.06111062 | S8: 0 | T8: 0 | U8: 0 | V8: 0 | W8: 0 | X8: ='3'!$G$29 ->  | Y8: -0.003783037826 | Z8: -0.003783037826 | AA8: =Z8 -> -0.003783037826 | AB8: -0.003783037826 | AC8: -0.003783037826 | AD8: -0.003783037826 | AE8: -0.003783037826 | AF8: -0.003783037826 | AG8: -0.003783037826 | AH8: -0.003783037826 | AI8: -0.003783037826 | AJ8: x | AZ8: ='3'!AW85 -> 0 | BA8: =IF('3'!$G$21<>"Total","<>Total","Total") -> <>Total | BB8: <>x
A9: Argentina | B9: Argentina | C9: ='3'!C30 ->  | D9: 4 | E9: 4 | F9: 4 | G9: 4 | H9: 3 | I9: 0 | J9: 0 | K9: 0 | L9: 0 | M9: 0 | N9: 3 | O9: 3 | P9: 3 | Q9: 2 | R9: 2 | S9: 0 | T9: 0 | U9: 0 | V9: 0 | W9: 0 | X9: ='3'!$G$30 ->  | Y9: -0.07738095238 | Z9: -0.07738095238 | AA9: =Z9 -> -0.07738095238 | AB9: -0.07738095238 | AC9: -0.07738095238 | AD9: -0.07738095238 | AE9: -0.07738095238 | AF9: -0.07738095238 | AG9: -0.07738095238 | AH9: -0.07738095238 | AI9: -0.07738095238 | AJ9: x | AZ9: ='3'!AW86 -> 0 | BA9: =IF('3'!$G$21<>"Total","<>Total","Total") -> <>Total | BB9: <>x
A10: ArgentinaTotal | B10: Argentina | C10: ='3'!$BD$89 -> Total | D10: =IF($C5="",0,D5)+IF($C6="",0,D6)+IF($C7="",0,D7)+IF($C8="",0,D8)+IF($C9="",0,D9) -> 100 | E10: =IF($C5="",0,E5)+IF($C6="",0,E6)+IF($C7="",0,E7)+IF($C8="",0,E8)+IF($C9="",0,E9) -> 110 | F10: 121 | G10: 133.1 | H10: =IF($C5="",0,H5)+IF($C6="",0,H6)+IF($C7="",0,H7)+IF($C8="",0,H8)+IF($C9="",0,H9) -> 146.41 | I10: 100 | J10: 110 | K10: 121 | L10: 133.1 | M10: 146.41 | N10: =IF($C5="",0,N5)+IF($C6="",0,N6)+IF($C7="",0,N7)+IF($C8="",0,N8)+IF($C9="",0,N9) -> 200 | O10: =IF($C5="",0,O5)+IF($C6="",0,O6)+IF($C7="",0,O7)+IF($C8="",0,O8)+IF($C9="",0,O9) -> 220 | P10: =IF($C5="",0,P5)+IF($C6="",0,P6)+IF($C7="",0,P7)+IF($C8="",0,P8)+IF($C9="",0,P9) -> 242 | Q10: =IF($C5="",0,Q5)+IF($C6="",0,Q6)+IF($C7="",0,Q7)+IF($C8="",0,Q8)+IF($C9="",0,Q9) -> 266.2 | R10: =IF($C5="",0,R5)+IF($C6="",0,R6)+IF($C7="",0,R7)+IF($C8="",0,R8)+IF($C9="",0,R9) -> 292.82 | S10: 200 | T10: 220 | U10: 242 | V10: 266.2 | W10: 292.82 | X10: ='3'!$BG$94 -> Benznidazol 12,5 mg (III) | Y10: 0.1 | Z10: 0.1 | AA10: =Z10 -> 0.1 | AB10: =AA10 -> 0.1 | AC10: =AB10 -> 0.1 | AD10: =AC10 -> 0.1 | AE10: =AD10 -> 0.1 | AF10: =AE10 -> 0.1 | AG10: =AF10 -> 0.1 | AH10: =AG10 -> 0.1 | AI10: =AH10 -> 0.1 | AZ10: ='3'!AW87 -> 0 | BA10: =IF('3'!$G$21<>"Total","<>Total","Total") -> <>Total | BB10: <>x
A11: BelizeCasos congénitos | B11: Belize | C11: =C5 -> Casos congénitos | I11: 0 | J11: 0 | K11: 0 | L11: 0 | M11: 0 | S11: 0 | T11: 0 | U11: 0 | V11: 0 | W11: 0 | X11: ='3'!$G$26 -> Benznidazol 12,5 mg | AZ11: ='3'!AW88 -> 0 | BA11: =IF('3'!$G$21<>"Total","<>Total","Total") -> <>Total | BB11: <>x
A12: Belize | B12: Belize | C12: =C6 ->  | I12: =IF($C12="",0,D12) -> 0 | J12: =IF($C12="",0,E12) -> 0 | K12: =IF($C12="",0,F12) -> 0 | L12: =IF($C12="",0,G12) -> 0 | M12: =IF($C12="",0,H12) -> 0 | S12: =IF($C12="",0,N12) -> 0 | T12: =IF($C12="",0,O12) -> 0 | U12: =IF($C12="",0,P12) -> 0 | V12: =IF($C12="",0,Q12) -> 0 | W12: =IF($C12="",0,R12) -> 0 | X12: ='3'!$G$27 ->  | AJ12: x | AZ12: ='3'!AW89 -> 0 | BA12: =IF('3'!$G$21<>"Total","<>Total","Total") -> <>Total | BB12: <>x
A13: Belize | B13: Belize | C13: =C7 ->  | D13: 200 | E13: 200 | F13: 200 | G13: 200 | H13: 200 | I13: 0 | J13: 0 | K13: 0 | L13: 0 | M13: 0 | N13: 200 | O13: 200 | P13: 200 | Q13: 200 | R13: 200 | S13: 0 | T13: 0 | U13: 0 | V13: 0 | W13: 0 | X13: ='3'!$G$28 ->  | Y13: 0 | Z13: 0 | AA13: 0 | AB13: 0 | AC13: 0 | AD13: 0 | AE13: 0 | AF13: 0 | AG13: 0 | AH13: 0 | AI13: 0 | AJ13: x | AZ13: ='3'!AW90 -> 0 | BA13: =IF('3'!$G$21<>"Total","<>Total","Total") -> <>Total | BB13: <>x
A14: Belize | B14: Belize | C14: =C8 ->  | D14: 300 | E14: 300 | F14: 300 | G14: 300 | H14: 300 | I14: 0 | J14: 0 | K14: 0 | L14: 0 | M14: 0 | N14: 300 | O14: 300 | P14: 300 | Q14: 300 | R14: 300 | S14: 0 | T14: 0 | U14: 0 | V14: 0 | W14: 0 | X14: ='3'!$G$29 ->  | Y14: 0 | Z14: 0 | AA14: 0 | AB14: 0 | AC14: 0 | AD14: 0 | AE14: 0 | AF14: 0 | AG14: 0 | AH14: 0 | AI14: 0 | AJ14: x | AZ14: ='3'!AW91 -> 0 | BA14: =IF('3'!$G$21<>"Total","<>Total","Total") -> <>Total | BB14: <>x
A15: Belize | B15: Belize | C15: =C9 ->  | D15: 500 | E15: 500 | F15: 500 | G15: 500 | H15: 500 | I15: 0 | J15: 0 | K15: 0 | L15: 0 | M15: 0 | N15: 500 | O15: 500 | P15: 500 | Q15: 500 | R15: 500 | S15: 0 | T15: 0 | U15: 0 | V15: 0 | W15: 0 | X15: ='3'!$G$30 ->  | Y15: 0 | Z15: 0 | AA15: 0 | AB15: 0 | AC15: 0 | AD15: 0 | AE15: 0 | AF15: 0 | AG15: 0 | AH15: 0 | AI15: 0 | AJ15: x | AZ15: ='3'!AW92 -> 0 | BA15: =IF('3'!$G$21<>"Total","<>Total","Total") -> <>Total | BB15: <>x
A16: BelizeTotal | B16: Belize | C16: ='3'!$BD$89 -> Total | D16: =IF($C11="",0,D11)+IF($C12="",0,D12)+IF($C13="",0,D13)+IF($C14="",0,D14)+IF($C15="",0,D15) -> 0 | E16: =IF($C11="",0,E11)+IF($C12="",0,E12)+IF($C13="",0,E13)+IF($C14="",0,E14)+IF($C15="",0,E15) -> 0 | F16: =IF($C11="",0,F11)+IF($C12="",0,F12)+IF($C13="",0,F13)+IF($C14="",0,F14)+IF($C15="",0,F15) -> 0 | G16: =IF($C11="",0,G11)+IF($C12="",0,G12)+IF($C13="",0,G13)+IF($C14="",0,G14)+IF($C15="",0,G15) -> 0 | H16: =IF($C11="",0,H11)+IF($C12="",0,H12)+IF($C13="",0,H13)+IF($C14="",0,H14)+IF($C15="",0,H15) -> 0 | I16: 0 | J16: 0 | K16: 0 | L16: 0 | M16: 0 | N16: =IF($C11="",0,N11)+IF($C12="",0,N12)+IF($C13="",0,N13)+IF($C14="",0,N14)+IF($C15="",0,N15) -> 0 | O16: =IF($C11="",0,O11)+IF($C12="",0,O12)+IF($C13="",0,O13)+IF($C14="",0,O14)+IF($C15="",0,O15) -> 0 | P16: =IF($C11="",0,P11)+IF($C12="",0,P12)+IF($C13="",0,P13)+IF($C14="",0,P14)+IF($C15="",0,P15) -> 0 | Q16: =IF($C11="",0,Q11)+IF($C12="",0,Q12)+IF($C13="",0,Q13)+IF($C14="",0,Q14)+IF($C15="",0,Q15) -> 0 | R16: =IF($C11="",0,R11)+IF($C12="",0,R12)+IF($C13="",0,R13)+IF($C14="",0,R14)+IF($C15="",0,R15) -> 0 | S16: 0 | T16: 0 | U16: 0 | V16: 0 | W16: 0 | X16: ='3'!$BG$94 -> Benznidazol 12,5 mg (III) | AZ16: ='3'!AW93 -> 0 | BA16: =IF('3'!$G$21<>"Total","<>Total","Total") -> <>Total | BB16: <>x
A17: BoliviaCasos congénitos | B17: Bolivia | C17: =C11 -> Casos congénitos | I17: 0 | J17: 0 | K17: 0 | L17: 0 | M17: 0 | S17: 0 | T17: 0 | U17: 0 | V17: 0 | W17: 0 | X17: ='3'!$G$26 -> Benznidazol 12,5 mg | AZ17: ='3'!AW94 -> 0 | BA17: =IF('3'!$G$21<>"Total","<>Total","Total") -> <>Total | BB17: <>x
A18: Bolivia | B18: Bolivia | C18: =C12 ->  | I18: 0 | J18: 0 | K18: 0 | L18: 0 | M18: 0 | S18: 0 | T18: 0 | U18: 0 | V18: 0 | W18: 0 | X18: ='3'!$G$27 ->  | AJ18: x | AZ18: ='3'!AW95 -> 0 | BA18: =IF('3'!$G$21<>"Total","<>Total","Total") -> <>Total | BB18: <>x
A19: Bolivia | B19: Bolivia | C19: =C13 ->  | D19: 973.6701283 | E19: 975.3431262 | F19: 977.0189988 | G19: 978.6977509 | H19: 980.3793875 | I19: 0 | J19: 0 | K19: 0 | L19: 0 | M19: 0 | N19: 757.2989887 | O19: 758.6002093 | P19: 759.9036657 | Q19: 761.2093618 | R19: 762.5173014 | S19: 0 | T19: 0 | U19: 0 | V19: 0 | W19: 0 | X19: ='3'!$G$28 ->  | Y19: 0.00171823897 | Z19: 0.00171823897 | AA19: 0.00171823897 | AB19: 0.00171823897 | AC19: 0.00171823897 | AD19: 0.00171823897 | AE19: 0.00171823897 | AF19: 0.00171823897 | AG19: 0.00171823897 | AH19: 0.00171823897 | AI19: 0.00171823897 | AJ19: x | AZ19: ='3'!AW96 -> 0 | BA19: =IF('3'!$G$21<>"Total","<>Total","Total") -> <>Total | BB19: <>x
A20: Bolivia | B20: Bolivia | C20: =C14 ->  | D20: 66.65289207 | E20: 66.40074166 | F20: 66.14954514 | G20: 65.89929891 | H20: 65.64999937 | I20: 0 | J20: 0 | K20: 0 | L20: 0 | M20: 0 | N20: 51.84113828 | O20: 51.64502129 | P20: 51.44964622 | Q20: 51.25501026 | R20: 51.06111062 | S20: 0 | T20: 0 | U20: 0 | V20: 0 | W20: 0 | X20: ='3'!$G$29 ->  | Y20: -0.003783037826 | Z20: -0.003783037826 | AA20: -0.003783037826 | AB20: -0.003783037826 | AC20: -0.003783037826 | AD20: -0.003783037826 | AE20: -0.003783037826 | AF20: -0.003783037826 | AG20: -0.003783037826 | AH20: -0.003783037826 | AI20: -0.003783037826 | AJ20: x | AZ20: ='3'!AW97 -> 0 | BA20: =IF('3'!$G$21<>"Total","<>Total","Total") -> <>Total | BB20: <>x
A21: Bolivia | B21: Bolivia | C21: =C15 ->  | D21: 4 | E21: 4 | F21: 4 | G21: 4 | H21: 3 | I21: 0 | J21: 0 | K21: 0 | L21: 0 | M21: 0 | N21: 3 | O21: 3 | P21: 3 | Q21: 2 | R21: 2 | S21: 0 | T21: 0 | U21: 0 | V21: 0 | W21: 0 | X21: ='3'!$G$30 ->  | Y21: -0.07738095238 | Z21: -0.07738095238 | AA21: -0.07738095238 | AB21: -0.07738095238 | AC21: -0.07738095238 | AD21: -0.07738095238 | AE21: -0.07738095238 | AF21: -0.07738095238 | AG21: -0.07738095238 | AH21: -0.07738095238 | AI21: -0.07738095238 | AJ21: x | AZ21: ='3'!AW98 -> 0 | BA21: =IF('3'!$G$21<>"Total","<>Total","Total") -> <>Total | BB21: <>x
A22: BoliviaTotal | B22: Bolivia | C22: ='3'!$BD$89 -> Total | D22: =IF($C17="",0,D17)+IF($C18="",0,D18)+IF($C19="",0,D19)+IF($C20="",0,D20)+IF($C21="",0,D21) -> 0 | E22: =IF($C17="",0,E17)+IF($C18="",0,E18)+IF($C19="",0,E19)+IF($C20="",0,E20)+IF($C21="",0,E21) -> 0 | F22: =IF($C17="",0,F17)+IF($C18="",0,F18)+IF($C19="",0,F19)+IF($C20="",0,F20)+IF($C21="",0,F21) -> 0 | G22: =IF($C17="",0,G17)+IF($C18="",0,G18)+IF($C19="",0,G19)+IF($C20="",0,G20)+IF($C21="",0,G21) -> 0 | H22: =IF($C17="",0,H17)+IF($C18="",0,H18)+IF($C19="",0,H19)+IF($C20="",0,H20)+IF($C21="",0,H21) -> 0 | I22: 0 | J22: 0 | K22: 0 | L22: 0 | M22: 0 | N22: =IF($C17="",0,N17)+IF($C18="",0,N18)+IF($C19="",0,N19)+IF($C20="",0,N20)+IF($C21="",0,N21) -> 0 | O22: =IF($C17="",0,O17)+IF($C18="",0,O18)+IF($C19="",0,O19)+IF($C20="",0,O20)+IF($C21="",0,O21) -> 0 | P22: =IF($C17="",0,P17)+IF($C18="",0,P18)+IF($C19="",0,P19)+IF($C20="",0,P20)+IF($C21="",0,P21) -> 0 | Q22: =IF($C17="",0,Q17)+IF($C18="",0,Q18)+IF($C19="",0,Q19)+IF($C20="",0,Q20)+IF($C21="",0,Q21) -> 0 | R22: =IF($C17="",0,R17)+IF($C18="",0,R18)+IF($C19="",0,R19)+IF($C20="",0,R20)+IF($C21="",0,R21) -> 0 | S22: 0 | T22: 0 | U22: 0 | V22: 0 | W22: 0 | X22: ='3'!$BG$94 -> Benznidazol 12,5 mg (III) | AZ22: ='3'!AW99 -> 0 | BA22: =IF('3'!$G$21<>"Total","<>Total","Total") -> <>Total | BB22: <>x
A23: BrasilCasos congénitos | B23: Brasil | C23: =C17 -> Casos congénitos | D23: 5 | E23: 1 | F23: 5 | G23: 2 | H23: 2 | I23: 5 | J23: 1 | K23: 5 | L23: 2 | M23: 2 | N23: 1 | O23: 1 | P23: 1 | Q23: 1 | R23: 1 | S23: 1 | T23: 1 | U23: 1 | V23: 1 | W23: 1 | X23: ='3'!$G$26 -> Benznidazol 12,5 mg | Y23: 0.2083333333 | Z23: =+Y23 -> 0.2083333333 | AA23: 0.2083333333 | AB23: 0.2083333333 | AC23: 0.2083333333 | AD23: 0.2083333333 | AE23: 0.2083333333 | AF23: 0.2083333333 | AG23: 0.2083333333 | AH23: 0.2083333333 | AI23: 0.2083333333 | AZ23: ='3'!AW100 -> 0 | BA23: =IF('3'!$G$21<>"Total","<>Total","Total") -> <>Total | BB23: <>x
A24: Brasil | B24: Brasil | C24: =C18 ->  | D24: 6 | E24: 2 | F24: 5 | G24: 1 | H24: 1 | I24: 0 | J24: 0 | K24: 0 | L24: 0 | M24: 0 | N24: 1 | O24: 1 | P24: 1 | Q24: 1 | R24: 1 | S24: 0 | T24: 0 | U24: 0 | V24: 0 | W24: 0 | X24: ='3'!$G$27 ->  | Y24: -0.05952380952 | Z24: =+Y24 -> -0.05952380952 | AA24: -0.05952380952 | AB24: -0.05952380952 | AC24: -0.05952380952 | AD24: -0.05952380952 | AE24: -0.05952380952 | AF24: -0.05952380952 | AG24: -0.05952380952 | AH24: -0.05952380952 | AI24: -0.05952380952 | AJ24: x | AZ24: ='3'!AW101 -> 0 | BA24: =IF('3'!$G$21<>"Total","<>Total","Total") -> <>Total | BB24: <>x
A25: Brasil | B25: Brasil | C25: =C19 ->  | D25: 8 | E25: 5 | F25: 7 | G25: 2 | H25: 5 | I25: 0 | J25: 0 | K25: 0 | L25: 0 | M25: 0 | N25: 1 | O25: 1 | P25: 1 | Q25: 1 | R25: 3 | S25: 0 | T25: 0 | U25: 0 | V25: 0 | W25: 0 | X25: ='3'!$G$28 ->  | Y25: 0.2604166667 | Z25: 0.2604166667 | AA25: 0.2604166667 | AB25: 0.2604166667 | AC25: 0.2604166667 | AD25: 0.2604166667 | AE25: 0.2604166667 | AF25: 0.2604166667 | AG25: 0.2604166667 | AH25: 0.2604166667 | AI25: 0.2604166667 | AJ25: x | AZ25: ='3'!AW102 -> 0 | BA25: =IF('3'!$G$21<>"Total","<>Total","Total") -> <>Total | BB25: <>x
A26: Brasil | B26: Brasil | C26: =C20 ->  | D26: 33 | E26: 30 | F26: 44 | G26: 16 | H26: 15 | I26: 0 | J26: 0 | K26: 0 | L26: 0 | M26: 0 | N26: 3 | O26: 1 | P26: 6 | Q26: 39 | R26: 2 | S26: 0 | T26: 0 | U26: 0 | V26: 0 | W26: 0 | X26: ='3'!$G$29 ->  | Y26: -0.0292236885 | Z26: -0.0292236885 | AA26: -0.0292236885 | AB26: -0.0292236885 | AC26: -0.0292236885 | AD26: -0.0292236885 | AE26: -0.0292236885 | AF26: -0.0292236885 | AG26: -0.0292236885 | AH26: -0.0292236885 | AI26: -0.0292236885 | AJ26: x
A27: Brasil | B27: Brasil | C27: =C21 ->  | D27: 342 | E27: 347 | F27: 379 | G27: 399 | H27: 391 | I27: 0 | J27: 0 | K27: 0 | L27: 0 | M27: 0 | N27: 397 | O27: 857 | P27: 1921 | Q27: 1075 | R27: 2082 | S27: 0 | T27: 0 | U27: 0 | V27: 0 | W27: 0 | X27: ='3'!$G$30 ->  | Y27: 0.4645362204 | Z27: 0.4645362204 | AA27: 0.4645362204 | AB27: 0.4645362204 | AC27: 0.4645362204 | AD27: 0.4645362204 | AE27: 0.4645362204 | AF27: 0.4645362204 | AG27: 0.4645362204 | AH27: 0.4645362204 | AI27: 0.4645362204 | AJ27: x
A28: BrasilTotal | B28: Brasil | C28: ='3'!$BD$89 -> Total | D28: 100 | E28: =+D28*1.1 -> 110 | F28: =+E28*1.1 -> 121 | G28: 133.1 | H28: 200 | I28: 100 | J28: 110 | K28: 121 | L28: 133.1 | M28: 200 | N28: 50 | O28: =+N28*1.1 -> 55 | P28: =+O28*1.1 -> 60.5 | Q28: 66.55 | R28: 100 | S28: 50 | T28: 55 | U28: 60.5 | V28: 66.55 | W28: 100 | X28: ='3'!$BG$94 -> Benznidazol 12,5 mg (III) | Y28: 0.2006574005 | Z28: 0.2006574005 | AA28: 0.2006574005 | AB28: 0.2006574005 | AC28: 0.2006574005 | AD28: 0.2006574005 | AE28: 0.2006574005 | AF28: 0.2006574005 | AG28: 0.2006574005 | AH28: 0.2006574005 | AI28: 0.2006574005
A29: ChileCasos congénitos | B29: Chile | C29: =C23 -> Casos congénitos | I29: 0 | J29: 0 | K29: 0 | L29: 0 | M29: 0 | S29: 0 | T29: 0 | U29: 0 | V29: 0 | W29: 0 | X29: ='3'!$G$26 -> Benznidazol 12,5 mg
A30: Chile | B30: Chile | C30: =C24 ->  | I30: 0 | J30: 0 | K30: 0 | L30: 0 | M30: 0 | S30: 0 | T30: 0 | U30: 0 | V30: 0 | W30: 0 | X30: ='3'!$G$27 ->  | AJ30: x
A31: Chile | B31: Chile | C31: =C25 ->  | D31: 973.6701283 | E31: 975.3431262 | F31: 977.0189988 | G31: 978.6977509 | H31: 980.3793875 | I31: 0 | J31: 0 | K31: 0 | L31: 0 | M31: 0 | N31: 757.2989887 | O31: 758.6002093 | P31: 759.9036657 | Q31: 761.2093618 | R31: 762.5173014 | S31: 0 | T31: 0 | U31: 0 | V31: 0 | W31: 0 | X31: ='3'!$G$28 ->  | Y31: 0.00171823897 | Z31: 0.00171823897 | AA31: 0.00171823897 | AB31: 0.00171823897 | AC31: 0.00171823897 | AD31: 0.00171823897 | AE31: 0.00171823897 | AF31: 0.00171823897 | AG31: 0.00171823897 | AH31: 0.00171823897 | AI31: 0.00171823897 | AJ31: x
A32: Chile | B32: Chile | C32: =C26 ->  | D32: 66.65289207 | E32: 66.40074166 | F32: 66.14954514 | G32: 65.89929891 | H32: 65.64999937 | I32: 0 | J32: 0 | K32: 0 | L32: 0 | M32: 0 | N32: 51.84113828 | O32: 51.64502129 | P32: 51.44964622 | Q32: 51.25501026 | R32: 51.06111062 | S32: 0 | T32: 0 | U32: 0 | V32: 0 | W32: 0 | X32: ='3'!$G$29 ->  | Y32: -0.003783037826 | Z32: -0.003783037826 | AA32: -0.003783037826 | AB32: -0.003783037826 | AC32: -0.003783037826 | AD32: -0.003783037826 | AE32: -0.003783037826 | AF32: -0.003783037826 | AG32: -0.003783037826 | AH32: -0.003783037826 | AI32: -0.003783037826 | AJ32: x
A33: Chile | B33: Chile | C33: =C27 ->  | D33: 4 | E33: 4 | F33: 4 | G33: 4 | H33: 3 | I33: 0 | J33: 0 | K33: 0 | L33: 0 | M33: 0 | N33: 3 | O33: 3 | P33: 3 | Q33: 2 | R33: 2 | S33: 0 | T33: 0 | U33: 0 | V33: 0 | W33: 0 | X33: ='3'!$G$30 ->  | Y33: -0.07738095238 | Z33: -0.07738095238 | AA33: -0.07738095238 | AB33: -0.07738095238 | AC33: -0.07738095238 | AD33: -0.07738095238 | AE33: -0.07738095238 | AF33: -0.07738095238 | AG33: -0.07738095238 | AH33: -0.07738095238 | AI33: -0.07738095238 | AJ33: x
A34: ChileTotal | B34: Chile | C34: ='3'!$BD$89 -> Total | D34: =IF($C29="",0,D29)+IF($C30="",0,D30)+IF($C31="",0,D31)+IF($C32="",0,D32)+IF($C33="",0,D33) -> 0 | E34: =IF($C29="",0,E29)+IF($C30="",0,E30)+IF($C31="",0,E31)+IF($C32="",0,E32)+IF($C33="",0,E33) -> 0 | F34: =IF($C29="",0,F29)+IF($C30="",0,F30)+IF($C31="",0,F31)+IF($C32="",0,F32)+IF($C33="",0,F33) -> 0 | G34: =IF($C29="",0,G29)+IF($C30="",0,G30)+IF($C31="",0,G31)+IF($C32="",0,G32)+IF($C33="",0,G33) -> 0 | H34: =IF($C29="",0,H29)+IF($C30="",0,H30)+IF($C31="",0,H31)+IF($C32="",0,H32)+IF($C33="",0,H33) -> 0 | I34: 0 | J34: 0 | K34: 0 | L34: 0 | M34: 0 | N34: =IF($C29="",0,N29)+IF($C30="",0,N30)+IF($C31="",0,N31)+IF($C32="",0,N32)+IF($C33="",0,N33) -> 0 | O34: =IF($C29="",0,O29)+IF($C30="",0,O30)+IF($C31="",0,O31)+IF($C32="",0,O32)+IF($C33="",0,O33) -> 0 | P34: =IF($C29="",0,P29)+IF($C30="",0,P30)+IF($C31="",0,P31)+IF($C32="",0,P32)+IF($C33="",0,P33) -> 0 | Q34: =IF($C29="",0,Q29)+IF($C30="",0,Q30)+IF($C31="",0,Q31)+IF($C32="",0,Q32)+IF($C33="",0,Q33) -> 0 | R34: =IF($C29="",0,R29)+IF($C30="",0,R30)+IF($C31="",0,R31)+IF($C32="",0,R32)+IF($C33="",0,R33) -> 0 | S34: 0 | T34: 0 | U34: 0 | V34: 0 | W34: 0 | X34: ='3'!$BG$94 -> Benznidazol 12,5 mg (III)
A35: ColombiaCasos congénitos | B35: Colombia | C35: =C29 -> Casos congénitos | I35: 0 | J35: 0 | K35: 0 | L35: 0 | M35: 0 | S35: 0 | T35: 0 | U35: 0 | V35: 0 | W35: 0 | X35: ='3'!$G$26 -> Benznidazol 12,5 mg
A36: Colombia | B36: Colombia | C36: =C30 ->  | I36: 0 | J36: 0 | K36: 0 | L36: 0 | M36: 0 | S36: 0 | T36: 0 | U36: 0 | V36: 0 | W36: 0 | X36: ='3'!$G$27 ->  | AJ36: x
A37: Colombia | B37: Colombia | C37: =C31 ->  | D37: 973.6701283 | E37: 975.3431262 | F37: 977.0189988 | G37: 978.6977509 | H37: 980.3793875 | I37: 0 | J37: 0 | K37: 0 | L37: 0 | M37: 0 | N37: 757.2989887 | O37: 758.6002093 | P37: 759.9036657 | Q37: 761.2093618 | R37: 762.5173014 | S37: 0 | T37: 0 | U37: 0 | V37: 0 | W37: 0 | X37: ='3'!$G$28 ->  | Y37: 0.00171823897 | Z37: 0.00171823897 | AA37: 0.00171823897 | AB37: 0.00171823897 | AC37: 0.00171823897 | AD37: 0.00171823897 | AE37: 0.00171823897 | AF37: 0.00171823897 | AG37: 0.00171823897 | AH37: 0.00171823897 | AI37: 0.00171823897 | AJ37: x
A38: Colombia | B38: Colombia | C38: =C32 ->  | D38: 66.65289207 | E38: 66.40074166 | F38: 66.14954514 | G38: 65.89929891 | H38: 65.64999937 | I38: 0 | J38: 0 | K38: 0 | L38: 0 | M38: 0 | N38: 51.84113828 | O38: 51.64502129 | P38: 51.44964622 | Q38: 51.25501026 | R38: 51.06111062 | S38: 0 | T38: 0 | U38: 0 | V38: 0 | W38: 0 | X38: ='3'!$G$29 ->  | Y38: -0.003783037826 | Z38: -0.003783037826 | AA38: -0.003783037826 | AB38: -0.003783037826 | AC38: -0.003783037826 | AD38: -0.003783037826 | AE38: -0.003783037826 | AF38: -0.003783037826 | AG38: -0.003783037826 | AH38: -0.003783037826 | AI38: -0.003783037826 | AJ38: x
A39: Colombia | B39: Colombia | C39: =C33 ->  | D39: 4 | E39: 4 | F39: 4 | G39: 4 | H39: 3 | I39: 0 | J39: 0 | K39: 0 | L39: 0 | M39: 0 | N39: 3 | O39: 3 | P39: 3 | Q39: 2 | R39: 2 | S39: 0 | T39: 0 | U39: 0 | V39: 0 | W39: 0 | X39: ='3'!$G$30 ->  | Y39: -0.07738095238 | Z39: -0.07738095238 | AA39: -0.07738095238 | AB39: -0.07738095238 | AC39: -0.07738095238 | AD39: -0.07738095238 | AE39: -0.07738095238 | AF39: -0.07738095238 | AG39: -0.07738095238 | AH39: -0.07738095238 | AI39: -0.07738095238 | AJ39: x
A40: ColombiaTotal | B40: Colombia | C40: ='3'!$BD$89 -> Total | D40: =IF($C35="",0,D35)+IF($C36="",0,D36)+IF($C37="",0,D37)+IF($C38="",0,D38)+IF($C39="",0,D39) -> 0 | E40: =IF($C35="",0,E35)+IF($C36="",0,E36)+IF($C37="",0,E37)+IF($C38="",0,E38)+IF($C39="",0,E39) -> 0 | F40: =IF($C35="",0,F35)+IF($C36="",0,F36)+IF($C37="",0,F37)+IF($C38="",0,F38)+IF($C39="",0,F39) -> 0 | G40: =IF($C35="",0,G35)+IF($C36="",0,G36)+IF($C37="",0,G37)+IF($C38="",0,G38)+IF($C39="",0,G39) -> 0 | H40: =IF($C35="",0,H35)+IF($C36="",0,H36)+IF($C37="",0,H37)+IF($C38="",0,H38)+IF($C39="",0,H39) -> 0 | I40: 0 | J40: 0 | K40: 0 | L40: 0 | M40: 0 | N40: =IF($C35="",0,N35)+IF($C36="",0,N36)+IF($C37="",0,N37)+IF($C38="",0,N38)+IF($C39="",0,N39) -> 0 | O40: =IF($C35="",0,O35)+IF($C36="",0,O36)+IF($C37="",0,O37)+IF($C38="",0,O38)+IF($C39="",0,O39) -> 0 | P40: =IF($C35="",0,P35)+IF($C36="",0,P36)+IF($C37="",0,P37)+IF($C38="",0,P38)+IF($C39="",0,P39) -> 0 | Q40: =IF($C35="",0,Q35)+IF($C36="",0,Q36)+IF($C37="",0,Q37)+IF($C38="",0,Q38)+IF($C39="",0,Q39) -> 0 | R40: =IF($C35="",0,R35)+IF($C36="",0,R36)+IF($C37="",0,R37)+IF($C38="",0,R38)+IF($C39="",0,R39) -> 0 | S40: 0 | T40: 0 | U40: 0 | V40: 0 | W40: 0 | X40: ='3'!$BG$94 -> Benznidazol 12,5 mg (III)
A41: Costa RicaCasos congénitos | B41: Costa Rica | C41: =C35 -> Casos congénitos | I41: 0 | J41: 0 | K41: 0 | L41: 0 | M41: 0 | S41: 0 | T41: 0 | U41: 0 | V41: 0 | W41: 0 | X41: ='3'!$G$26 -> Benznidazol 12,5 mg
A42: Costa Rica | B42: Costa Rica | C42: =C36 ->  | I42: 0 | J42: 0 | K42: 0 | L42: 0 | M42: 0 | S42: 0 | T42: 0 | U42: 0 | V42: 0 | W42: 0 | X42: ='3'!$G$27 ->  | AJ42: x
A43: Costa Rica | B43: Costa Rica | C43: =C37 ->  | D43: 973.6701283 | E43: 975.3431262 | F43: 977.0189988 | G43: 978.6977509 | H43: 980.3793875 | I43: 0 | J43: 0 | K43: 0 | L43: 0 | M43: 0 | N43: 757.2989887 | O43: 758.6002093 | P43: 759.9036657 | Q43: 761.2093618 | R43: 762.5173014 | S43: 0 | T43: 0 | U43: 0 | V43: 0 | W43: 0 | X43: ='3'!$G$28 ->  | Y43: 0.00171823897 | Z43: 0.00171823897 | AA43: 0.00171823897 | AB43: 0.00171823897 | AC43: 0.00171823897 | AD43: 0.00171823897 | AE43: 0.00171823897 | AF43: 0.00171823897 | AG43: 0.00171823897 | AH43: 0.00171823897 | AI43: 0.00171823897 | AJ43: x
A44: Costa Rica | B44: Costa Rica | C44: =C38 ->  | D44: 66.65289207 | E44: 66.40074166 | F44: 66.14954514 | G44: 65.89929891 | H44: 65.64999937 | I44: 0 | J44: 0 | K44: 0 | L44: 0 | M44: 0 | N44: 51.84113828 | O44: 51.64502129 | P44: 51.44964622 | Q44: 51.25501026 | R44: 51.06111062 | S44: 0 | T44: 0 | U44: 0 | V44: 0 | W44: 0 | X44: ='3'!$G$29 ->  | Y44: -0.003783037826 | Z44: -0.003783037826 | AA44: -0.003783037826 | AB44: -0.003783037826 | AC44: -0.003783037826 | AD44: -0.003783037826 | AE44: -0.003783037826 | AF44: -0.003783037826 | AG44: -0.003783037826 | AH44: -0.003783037826 | AI44: -0.003783037826 | AJ44: x
A45: Costa Rica | B45: Costa Rica | C45: =C39 ->  | D45: 4 | E45: 4 | F45: 4 | G45: 4 | H45: 3 | I45: 0 | J45: 0 | K45: 0 | L45: 0 | M45: 0 | N45: 3 | O45: 3 | P45: 3 | Q45: 2 | R45: 2 | S45: 0 | T45: 0 | U45: 0 | V45: 0 | W45: 0 | X45: ='3'!$G$30 ->  | Y45: -0.07738095238 | Z45: -0.07738095238 | AA45: -0.07738095238 | AB45: -0.07738095238 | AC45: -0.07738095238 | AD45: -0.07738095238 | AE45: -0.07738095238 | AF45: -0.07738095238 | AG45: -0.07738095238 | AH45: -0.07738095238 | AI45: -0.07738095238 | AJ45: x
A46: Costa RicaTotal | B46: Costa Rica | C46: ='3'!$BD$89 -> Total | D46: =IF($C41="",0,D41)+IF($C42="",0,D42)+IF($C43="",0,D43)+IF($C44="",0,D44)+IF($C45="",0,D45) -> 0 | E46: =IF($C41="",0,E41)+IF($C42="",0,E42)+IF($C43="",0,E43)+IF($C44="",0,E44)+IF($C45="",0,E45) -> 0 | F46: =IF($C41="",0,F41)+IF($C42="",0,F42)+IF($C43="",0,F43)+IF($C44="",0,F44)+IF($C45="",0,F45) -> 0 | G46: =IF($C41="",0,G41)+IF($C42="",0,G42)+IF($C43="",0,G43)+IF($C44="",0,G44)+IF($C45="",0,G45) -> 0 | H46: =IF($C41="",0,H41)+IF($C42="",0,H42)+IF($C43="",0,H43)+IF($C44="",0,H44)+IF($C45="",0,H45) -> 0 | I46: 0 | J46: 0 | K46: 0 | L46: 0 | M46: 0 | N46: =IF($C41="",0,N41)+IF($C42="",0,N42)+IF($C43="",0,N43)+IF($C44="",0,N44)+IF($C45="",0,N45) -> 0 | O46: =IF($C41="",0,O41)+IF($C42="",0,O42)+IF($C43="",0,O43)+IF($C44="",0,O44)+IF($C45="",0,O45) -> 0 | P46: =IF($C41="",0,P41)+IF($C42="",0,P42)+IF($C43="",0,P43)+IF($C44="",0,P44)+IF($C45="",0,P45) -> 0 | Q46: =IF($C41="",0,Q41)+IF($C42="",0,Q42)+IF($C43="",0,Q43)+IF($C44="",0,Q44)+IF($C45="",0,Q45) -> 0 | R46: =IF($C41="",0,R41)+IF($C42="",0,R42)+IF($C43="",0,R43)+IF($C44="",0,R44)+IF($C45="",0,R45) -> 0 | S46: 0 | T46: 0 | U46: 0 | V46: 0 | W46: 0 | X46: ='3'!$BG$94 -> Benznidazol 12,5 mg (III)
A47: EcuadorCasos congénitos | B47: Ecuador | C47: =C41 -> Casos congénitos | I47: 0 | J47: 0 | K47: 0 | L47: 0 | M47: 0 | S47: 0 | T47: 0 | U47: 0 | V47: 0 | W47: 0 | X47: ='3'!$G$26 -> Benznidazol 12,5 mg
A48: Ecuador | B48: Ecuador | C48: =C42 ->  | I48: 0 | J48: 0 | K48: 0 | L48: 0 | M48: 0 | S48: 0 | T48: 0 | U48: 0 | V48: 0 | W48: 0 | X48: ='3'!$G$27 ->  | AJ48: x
A49: Ecuador | B49: Ecuador | C49: =C43 ->  | D49: 973.6701283 | E49: 975.3431262 | F49: 977.0189988 | G49: 978.6977509 | H49: 980.3793875 | I49: 0 | J49: 0 | K49: 0 | L49: 0 | M49: 0 | N49: 757.2989887 | O49: 758.6002093 | P49: 759.9036657 | Q49: 761.2093618 | R49: 762.5173014 | S49: 0 | T49: 0 | U49: 0 | V49: 0 | W49: 0 | X49: ='3'!$G$28 ->  | Y49: 0.00171823897 | Z49: 0.00171823897 | AA49: 0.00171823897 | AB49: 0.00171823897 | AC49: 0.00171823897 | AD49: 0.00171823897 | AE49: 0.00171823897 | AF49: 0.00171823897 | AG49: 0.00171823897 | AH49: 0.00171823897 | AI49: 0.00171823897 | AJ49: x
A50: Ecuador | B50: Ecuador | C50: =C44 ->  | D50: 66.65289207 | E50: 66.40074166 | F50: 66.14954514 | G50: 65.89929891 | H50: 65.64999937 | I50: 0 | J50: 0 | K50: 0 | L50: 0 | M50: 0 | N50: 51.84113828 | O50: 51.64502129 | P50: 51.44964622 | Q50: 51.25501026 | R50: 51.06111062 | S50: 0 | T50: 0 | U50: 0 | V50: 0 | W50: 0 | X50: ='3'!$G$29 ->  | Y50: -0.003783037826 | Z50: -0.003783037826 | AA50: -0.003783037826 | AB50: -0.003783037826 | AC50: -0.003783037826 | AD50: -0.003783037826 | AE50: -0.003783037826 | AF50: -0.003783037826 | AG50: -0.003783037826 | AH50: -0.003783037826 | AI50: -0.003783037826 | AJ50: x
A51: Ecuador | B51: Ecuador | C51: =C45 ->  | D51: 4 | E51: 4 | F51: 4 | G51: 4 | H51: 3 | I51: 0 | J51: 0 | K51: 0 | L51: 0 | M51: 0 | N51: 3 | O51: 3 | P51: 3 | Q51: 2 | R51: 2 | S51: 0 | T51: 0 | U51: 0 | V51: 0 | W51: 0 | X51: ='3'!$G$30 ->  | Y51: -0.07738095238 | Z51: -0.07738095238 | AA51: -0.07738095238 | AB51: -0.07738095238 | AC51: -0.07738095238 | AD51: -0.07738095238 | AE51: -0.07738095238 | AF51: -0.07738095238 | AG51: -0.07738095238 | AH51: -0.07738095238 | AI51: -0.07738095238 | AJ51: x
A52: EcuadorTotal | B52: Ecuador | C52: ='3'!$BD$89 -> Total | D52: =IF($C47="",0,D47)+IF($C48="",0,D48)+IF($C49="",0,D49)+IF($C50="",0,D50)+IF($C51="",0,D51) -> 0 | E52: =IF($C47="",0,E47)+IF($C48="",0,E48)+IF($C49="",0,E49)+IF($C50="",0,E50)+IF($C51="",0,E51) -> 0 | F52: =IF($C47="",0,F47)+IF($C48="",0,F48)+IF($C49="",0,F49)+IF($C50="",0,F50)+IF($C51="",0,F51) -> 0 | G52: =IF($C47="",0,G47)+IF($C48="",0,G48)+IF($C49="",0,G49)+IF($C50="",0,G50)+IF($C51="",0,G51) -> 0 | H52: =IF($C47="",0,H47)+IF($C48="",0,H48)+IF($C49="",0,H49)+IF($C50="",0,H50)+IF($C51="",0,H51) -> 0 | I52: 0 | J52: 0 | K52: 0 | L52: 0 | M52: 0 | N52: =IF($C47="",0,N47)+IF($C48="",0,N48)+IF($C49="",0,N49)+IF($C50="",0,N50)+IF($C51="",0,N51) -> 0 | O52: =IF($C47="",0,O47)+IF($C48="",0,O48)+IF($C49="",0,O49)+IF($C50="",0,O50)+IF($C51="",0,O51) -> 0 | P52: =IF($C47="",0,P47)+IF($C48="",0,P48)+IF($C49="",0,P49)+IF($C50="",0,P50)+IF($C51="",0,P51) -> 0 | Q52: =IF($C47="",0,Q47)+IF($C48="",0,Q48)+IF($C49="",0,Q49)+IF($C50="",0,Q50)+IF($C51="",0,Q51) -> 0 | R52: =IF($C47="",0,R47)+IF($C48="",0,R48)+IF($C49="",0,R49)+IF($C50="",0,R50)+IF($C51="",0,R51) -> 0 | S52: 0 | T52: 0 | U52: 0 | V52: 0 | W52: 0 | X52: ='3'!$BG$94 -> Benznidazol 12,5 mg (III)
A53: El SalvadorCasos congénitos | B53: El Salvador | C53: =C47 -> Casos congénitos | I53: 0 | J53: 0 | K53: 0 | L53: 0 | M53: 0 | S53: 0 | T53: 0 | U53: 0 | V53: 0 | W53: 0 | X53: ='3'!$G$26 -> Benznidazol 12,5 mg
A54: El Salvador | B54: El Salvador | C54: =C48 ->  | I54: 0 | J54: 0 | K54: 0 | L54: 0 | M54: 0 | S54: 0 | T54: 0 | U54: 0 | V54: 0 | W54: 0 | X54: ='3'!$G$27 ->  | AJ54: x
A55: El Salvador | B55: El Salvador | C55: =C49 ->  | D55: 973.6701283 | E55: 975.3431262 | F55: 977.0189988 | G55: 978.6977509 | H55: 980.3793875 | I55: 0 | J55: 0 | K55: 0 | L55: 0 | M55: 0 | N55: 757.2989887 | O55: 758.6002093 | P55: 759.9036657 | Q55: 761.2093618 | R55: 762.5173014 | S55: 0 | T55: 0 | U55: 0 | V55: 0 | W55: 0 | X55: ='3'!$G$28 ->  | Y55: 0.00171823897 | Z55: 0.00171823897 | AA55: 0.00171823897 | AB55: 0.00171823897 | AC55: 0.00171823897 | AD55: 0.00171823897 | AE55: 0.00171823897 | AF55: 0.00171823897 | AG55: 0.00171823897 | AH55: 0.00171823897 | AI55: 0.00171823897 | AJ55: x
A56: El Salvador | B56: El Salvador | C56: =C50 ->  | D56: 66.65289207 | E56: 66.40074166 | F56: 66.14954514 | G56: 65.89929891 | H56: 65.64999937 | I56: 0 | J56: 0 | K56: 0 | L56: 0 | M56: 0 | N56: 51.84113828 | O56: 51.64502129 | P56: 51.44964622 | Q56: 51.25501026 | R56: 51.06111062 | S56: 0 | T56: 0 | U56: 0 | V56: 0 | W56: 0 | X56: ='3'!$G$29 ->  | Y56: -0.003783037826 | Z56: -0.003783037826 | AA56: -0.003783037826 | AB56: -0.003783037826 | AC56: -0.003783037826 | AD56: -0.003783037826 | AE56: -0.003783037826 | AF56: -0.003783037826 | AG56: -0.003783037826 | AH56: -0.003783037826 | AI56: -0.003783037826 | AJ56: x
A57: El Salvador | B57: El Salvador | C57: =C51 ->  | D57: 4 | E57: 4 | F57: 4 | G57: 4 | H57: 3 | I57: 0 | J57: 0 | K57: 0 | L57: 0 | M57: 0 | N57: 3 | O57: 3 | P57: 3 | Q57: 2 | R57: 2 | S57: 0 | T57: 0 | U57: 0 | V57: 0 | W57: 0 | X57: ='3'!$G$30 ->  | Y57: -0.07738095238 | Z57: -0.07738095238 | AA57: -0.07738095238 | AB57: -0.07738095238 | AC57: -0.07738095238 | AD57: -0.07738095238 | AE57: -0.07738095238 | AF57: -0.07738095238 | AG57: -0.07738095238 | AH57: -0.07738095238 | AI57: -0.07738095238 | AJ57: x
A58: El SalvadorTotal | B58: El Salvador | C58: ='3'!$BD$89 -> Total | D58: =IF($C53="",0,D53)+IF($C54="",0,D54)+IF($C55="",0,D55)+IF($C56="",0,D56)+IF($C57="",0,D57) -> 0 | E58: =IF($C53="",0,E53)+IF($C54="",0,E54)+IF($C55="",0,E55)+IF($C56="",0,E56)+IF($C57="",0,E57) -> 0 | F58: =IF($C53="",0,F53)+IF($C54="",0,F54)+IF($C55="",0,F55)+IF($C56="",0,F56)+IF($C57="",0,F57) -> 0 | G58: =IF($C53="",0,G53)+IF($C54="",0,G54)+IF($C55="",0,G55)+IF($C56="",0,G56)+IF($C57="",0,G57) -> 0 | H58: =IF($C53="",0,H53)+IF($C54="",0,H54)+IF($C55="",0,H55)+IF($C56="",0,H56)+IF($C57="",0,H57) -> 0 | I58: 0 | J58: 0 | K58: 0 | L58: 0 | M58: 0 | N58: =IF($C53="",0,N53)+IF($C54="",0,N54)+IF($C55="",0,N55)+IF($C56="",0,N56)+IF($C57="",0,N57) -> 0 | O58: =IF($C53="",0,O53)+IF($C54="",0,O54)+IF($C55="",0,O55)+IF($C56="",0,O56)+IF($C57="",0,O57) -> 0 | P58: =IF($C53="",0,P53)+IF($C54="",0,P54)+IF($C55="",0,P55)+IF($C56="",0,P56)+IF($C57="",0,P57) -> 0 | Q58: =IF($C53="",0,Q53)+IF($C54="",0,Q54)+IF($C55="",0,Q55)+IF($C56="",0,Q56)+IF($C57="",0,Q57) -> 0 | R58: =IF($C53="",0,R53)+IF($C54="",0,R54)+IF($C55="",0,R55)+IF($C56="",0,R56)+IF($C57="",0,R57) -> 0 | S58: 0 | T58: 0 | U58: 0 | V58: 0 | W58: 0 | X58: ='3'!$BG$94 -> Benznidazol 12,5 mg (III)
A59: GuatemalaCasos congénitos | B59: Guatemala | C59: =C53 -> Casos congénitos | I59: 0 | J59: 0 | K59: 0 | L59: 0 | M59: 0 | S59: 0 | T59: 0 | U59: 0 | V59: 0 | W59: 0 | X59: ='3'!$G$26 -> Benznidazol 12,5 mg
A60: Guatemala | B60: Guatemala | C60: =C54 ->  | I60: 0 | J60: 0 | K60: 0 | L60: 0 | M60: 0 | S60: 0 | T60: 0 | U60: 0 | V60: 0 | W60: 0 | X60: ='3'!$G$27 ->  | AJ60: x
A61: Guatemala | B61: Guatemala | C61: =C55 ->  | D61: 973.6701283 | E61: 975.3431262 | F61: 977.0189988 | G61: 978.6977509 | H61: 980.3793875 | I61: 0 | J61: 0 | K61: 0 | L61: 0 | M61: 0 | N61: 757.2989887 | O61: 758.6002093 | P61: 759.9036657 | Q61: 761.2093618 | R61: 762.5173014 | S61: 0 | T61: 0 | U61: 0 | V61: 0 | W61: 0 | X61: ='3'!$G$28 ->  | Y61: 0.00171823897 | Z61: 0.00171823897 | AA61: 0.00171823897 | AB61: 0.00171823897 | AC61: 0.00171823897 | AD61: 0.00171823897 | AE61: 0.00171823897 | AF61: 0.00171823897 | AG61: 0.00171823897 | AH61: 0.00171823897 | AI61: 0.00171823897 | AJ61: x
A62: Guatemala | B62: Guatemala | C62: =C56 ->  | D62: 66.65289207 | E62: 66.40074166 | F62: 66.14954514 | G62: 65.89929891 | H62: 65.64999937 | I62: 0 | J62: 0 | K62: 0 | L62: 0 | M62: 0 | N62: 51.84113828 | O62: 51.64502129 | P62: 51.44964622 | Q62: 51.25501026 | R62: 51.06111062 | S62: 0 | T62: 0 | U62: 0 | V62: 0 | W62: 0 | X62: ='3'!$G$29 ->  | Y62: -0.003783037826 | Z62: -0.003783037826 | AA62: -0.003783037826 | AB62: -0.003783037826 | AC62: -0.003783037826 | AD62: -0.003783037826 | AE62: -0.003783037826 | AF62: -0.003783037826 | AG62: -0.003783037826 | AH62: -0.003783037826 | AI62: -0.003783037826 | AJ62: x
A63: Guatemala | B63: Guatemala | C63: =C57 ->  | D63: 4 | E63: 4 | F63: 4 | G63: 4 | H63: 3 | I63: 0 | J63: 0 | K63: 0 | L63: 0 | M63: 0 | N63: 3 | O63: 3 | P63: 3 | Q63: 2 | R63: 2 | S63: 0 | T63: 0 | U63: 0 | V63: 0 | W63: 0 | X63: ='3'!$G$30 ->  | Y63: -0.07738095238 | Z63: -0.07738095238 | AA63: -0.07738095238 | AB63: -0.07738095238 | AC63: -0.07738095238 | AD63: -0.07738095238 | AE63: -0.07738095238 | AF63: -0.07738095238 | AG63: -0.07738095238 | AH63: -0.07738095238 | AI63: -0.07738095238 | AJ63: x
A64: GuatemalaTotal | B64: Guatemala | C64: ='3'!$BD$89 -> Total | D64: =IF($C59="",0,D59)+IF($C60="",0,D60)+IF($C61="",0,D61)+IF($C62="",0,D62)+IF($C63="",0,D63) -> 0 | E64: =IF($C59="",0,E59)+IF($C60="",0,E60)+IF($C61="",0,E61)+IF($C62="",0,E62)+IF($C63="",0,E63) -> 0 | F64: =IF($C59="",0,F59)+IF($C60="",0,F60)+IF($C61="",0,F61)+IF($C62="",0,F62)+IF($C63="",0,F63) -> 0 | G64: =IF($C59="",0,G59)+IF($C60="",0,G60)+IF($C61="",0,G61)+IF($C62="",0,G62)+IF($C63="",0,G63) -> 0 | H64: =IF($C59="",0,H59)+IF($C60="",0,H60)+IF($C61="",0,H61)+IF($C62="",0,H62)+IF($C63="",0,H63) -> 0 | I64: 0 | J64: 0 | K64: 0 | L64: 0 | M64: 0 | N64: =IF($C59="",0,N59)+IF($C60="",0,N60)+IF($C61="",0,N61)+IF($C62="",0,N62)+IF($C63="",0,N63) -> 0 | O64: =IF($C59="",0,O59)+IF($C60="",0,O60)+IF($C61="",0,O61)+IF($C62="",0,O62)+IF($C63="",0,O63) -> 0 | P64: =IF($C59="",0,P59)+IF($C60="",0,P60)+IF($C61="",0,P61)+IF($C62="",0,P62)+IF($C63="",0,P63) -> 0 | Q64: =IF($C59="",0,Q59)+IF($C60="",0,Q60)+IF($C61="",0,Q61)+IF($C62="",0,Q62)+IF($C63="",0,Q63) -> 0 | R64: =IF($C59="",0,R59)+IF($C60="",0,R60)+IF($C61="",0,R61)+IF($C62="",0,R62)+IF($C63="",0,R63) -> 0 | S64: 0 | T64: 0 | U64: 0 | V64: 0 | W64: 0 | X64: ='3'!$BG$94 -> Benznidazol 12,5 mg (III)
A65: GuyanaCasos congénitos | B65: Guyana | C65: =C59 -> Casos congénitos | I65: 0 | J65: 0 | K65: 0 | L65: 0 | M65: 0 | S65: 0 | T65: 0 | U65: 0 | V65: 0 | W65: 0 | X65: ='3'!$G$26 -> Benznidazol 12,5 mg
A66: Guyana | B66: Guyana | C66: =C60 ->  | I66: 0 | J66: 0 | K66: 0 | L66: 0 | M66: 0 | S66: 0 | T66: 0 | U66: 0 | V66: 0 | W66: 0 | X66: ='3'!$G$27 ->  | AJ66: x
A67: Guyana | B67: Guyana | C67: =C61 ->  | D67: 973.6701283 | E67: 975.3431262 | F67: 977.0189988 | G67: 978.6977509 | H67: 980.3793875 | I67: 0 | J67: 0 | K67: 0 | L67: 0 | M67: 0 | N67: 757.2989887 | O67: 758.6002093 | P67: 759.9036657 | Q67: 761.2093618 | R67: 762.5173014 | S67: 0 | T67: 0 | U67: 0 | V67: 0 | W67: 0 | X67: ='3'!$G$28 ->  | Y67: 0.00171823897 | Z67: 0.00171823897 | AA67: 0.00171823897 | AB67: 0.00171823897 | AC67: 0.00171823897 | AD67: 0.00171823897 | AE67: 0.00171823897 | AF67: 0.00171823897 | AG67: 0.00171823897 | AH67: 0.00171823897 | AI67: 0.00171823897 | AJ67: x
A68: Guyana | B68: Guyana | C68: =C62 ->  | D68: 66.65289207 | E68: 66.40074166 | F68: 66.14954514 | G68: 65.89929891 | H68: 65.64999937 | I68: 0 | J68: 0 | K68: 0 | L68: 0 | M68: 0 | N68: 51.84113828 | O68: 51.64502129 | P68: 51.44964622 | Q68: 51.25501026 | R68: 51.06111062 | S68: 0 | T68: 0 | U68: 0 | V68: 0 | W68: 0 | X68: ='3'!$G$29 ->  | Y68: -0.003783037826 | Z68: -0.003783037826 | AA68: -0.003783037826 | AB68: -0.003783037826 | AC68: -0.003783037826 | AD68: -0.003783037826 | AE68: -0.003783037826 | AF68: -0.003783037826 | AG68: -0.003783037826 | AH68: -0.003783037826 | AI68: -0.003783037826 | AJ68: x
A69: Guyana | B69: Guyana | C69: =C63 ->  | D69: 4 | E69: 4 | F69: 4 | G69: 4 | H69: 3 | I69: 0 | J69: 0 | K69: 0 | L69: 0 | M69: 0 | N69: 3 | O69: 3 | P69: 3 | Q69: 2 | R69: 2 | S69: 0 | T69: 0 | U69: 0 | V69: 0 | W69: 0 | X69: ='3'!$G$30 ->  | Y69: =IF(AND(D69=0,E69=0,F69=0,G69=0,H69=0,N69=0,O69=0,P69=0,Q69=0,R69=0),"",AVERAGE(IF((D69+N69)<>0,(E69+O69)/(D69+N69)-1,"-"),IF((E69+O69)<>0,(F69+P69)/(E69+O69)-1,"-"),IF((F69+P69)<>0,(G69+Q69)/(F69+P69)-1,"-"),IF((G69+Q69)<>0,(H69+R69)/(G69+Q69)-1,"-"))) -> -0.07738095238 | Z69: -0.07738095238 | AA69: -0.07738095238 | AB69: -0.07738095238 | AC69: -0.07738095238 | AD69: -0.07738095238 | AE69: -0.07738095238 | AF69: -0.07738095238 | AG69: -0.07738095238 | AH69: -0.07738095238 | AI69: -0.07738095238 | AJ69: x
A70: GuyanaTotal | B70: Guyana | C70: ='3'!$BD$89 -> Total | D70: =IF($C65="",0,D65)+IF($C66="",0,D66)+IF($C67="",0,D67)+IF($C68="",0,D68)+IF($C69="",0,D69) -> 0 | E70: =IF($C65="",0,E65)+IF($C66="",0,E66)+IF($C67="",0,E67)+IF($C68="",0,E68)+IF($C69="",0,E69) -> 0 | F70: =IF($C65="",0,F65)+IF($C66="",0,F66)+IF($C67="",0,F67)+IF($C68="",0,F68)+IF($C69="",0,F69) -> 0 | G70: =IF($C65="",0,G65)+IF($C66="",0,G66)+IF($C67="",0,G67)+IF($C68="",0,G68)+IF($C69="",0,G69) -> 0 | H70: =IF($C65="",0,H65)+IF($C66="",0,H66)+IF($C67="",0,H67)+IF($C68="",0,H68)+IF($C69="",0,H69) -> 0 | I70: 0 | J70: 0 | K70: 0 | L70: 0 | M70: 0 | N70: =IF($C65="",0,N65)+IF($C66="",0,N66)+IF($C67="",0,N67)+IF($C68="",0,N68)+IF($C69="",0,N69) -> 0 | O70: =IF($C65="",0,O65)+IF($C66="",0,O66)+IF($C67="",0,O67)+IF($C68="",0,O68)+IF($C69="",0,O69) -> 0 | P70: =IF($C65="",0,P65)+IF($C66="",0,P66)+IF($C67="",0,P67)+IF($C68="",0,P68)+IF($C69="",0,P69) -> 0 | Q70: =IF($C65="",0,Q65)+IF($C66="",0,Q66)+IF($C67="",0,Q67)+IF($C68="",0,Q68)+IF($C69="",0,Q69) -> 0 | R70: =IF($C65="",0,R65)+IF($C66="",0,R66)+IF($C67="",0,R67)+IF($C68="",0,R68)+IF($C69="",0,R69) -> 0 | S70: 0 | T70: 0 | U70: 0 | V70: 0 | W70: 0 | X70: ='3'!$BG$94 -> Benznidazol 12,5 mg (III) | AJ70: =IF(C70="","x","") -> 
A71: Guyana FrancesaCasos congénitos | B71: Guyana Francesa | C71: =C65 -> Casos congénitos | I71: 0 | J71: 0 | K71: 0 | L71: 0 | M71: 0 | S71: 0 | T71: 0 | U71: 0 | V71: 0 | W71: 0 | X71: ='3'!$G$26 -> Benznidazol 12,5 mg
A72: Guyana Francesa | B72: Guyana Francesa | C72: =C66 ->  | I72: 0 | J72: 0 | K72: 0 | L72: 0 | M72: 0 | S72: 0 | T72: 0 | U72: 0 | V72: 0 | W72: 0 | X72: ='3'!$G$27 ->  | AJ72: x
A73: Guyana Francesa | B73: Guyana Francesa | C73: =C67 ->  | D73: 973.6701283 | E73: 975.3431262 | F73: 977.0189988 | G73: 978.6977509 | H73: 980.3793875 | I73: 0 | J73: 0 | K73: 0 | L73: 0 | M73: 0 | N73: 757.2989887 | O73: 758.6002093 | P73: 759.9036657 | Q73: 761.2093618 | R73: 762.5173014 | S73: 0 | T73: 0 | U73: 0 | V73: 0 | W73: 0 | X73: ='3'!$G$28 ->  | Y73: 0.00171823897 | Z73: 0.00171823897 | AA73: 0.00171823897 | AB73: 0.00171823897 | AC73: 0.00171823897 | AD73: 0.00171823897 | AE73: 0.00171823897 | AF73: 0.00171823897 | AG73: 0.00171823897 | AH73: 0.00171823897 | AI73: 0.00171823897 | AJ73: x
A74: Guyana Francesa | B74: Guyana Francesa | C74: =C68 ->  | D74: 66.65289207 | E74: 66.40074166 | F74: 66.14954514 | G74: 65.89929891 | H74: 65.64999937 | I74: 0 | J74: 0 | K74: 0 | L74: 0 | M74: 0 | N74: 51.84113828 | O74: 51.64502129 | P74: 51.44964622 | Q74: 51.25501026 | R74: 51.06111062 | S74: 0 | T74: 0 | U74: 0 | V74: 0 | W74: 0 | X74: ='3'!$G$29 ->  | Y74: -0.003783037826 | Z74: -0.003783037826 | AA74: =Z74 -> -0.003783037826 | AB74: =AA74 -> -0.003783037826 | AC74: =AB74 -> -0.003783037826 | AD74: =AC74 -> -0.003783037826 | AE74: =AD74 -> -0.003783037826 | AF74: =AE74 -> -0.003783037826 | AG74: =AF74 -> -0.003783037826 | AH74: =AG74 -> -0.003783037826 | AI74: =AH74 -> -0.003783037826 | AJ74: x
A75: Guyana Francesa | B75: Guyana Francesa | C75: =C69 ->  | D75: 4 | E75: 4 | F75: 4 | G75: 4 | H75: 3 | I75: 0 | J75: 0 | K75: 0 | L75: 0 | M75: 0 | N75: 3 | O75: 3 | P75: 3 | Q75: 2 | R75: 2 | S75: 0 | T75: 0 | U75: 0 | V75: 0 | W75: 0 | X75: ='3'!$G$30 ->  | Y75: -0.07738095238 | Z75: -0.07738095238 | AA75: -0.07738095238 | AB75: -0.07738095238 | AC75: -0.07738095238 | AD75: -0.07738095238 | AE75: -0.07738095238 | AF75: -0.07738095238 | AG75: -0.07738095238 | AH75: -0.07738095238 | AI75: -0.07738095238 | AJ75: x
A76: Guyana FrancesaTotal | B76: Guyana Francesa | C76: ='3'!$BD$89 -> Total | D76: =IF($C71="",0,D71)+IF($C72="",0,D72)+IF($C73="",0,D73)+IF($C74="",0,D74)+IF($C75="",0,D75) -> 0 | E76: =IF($C71="",0,E71)+IF($C72="",0,E72)+IF($C73="",0,E73)+IF($C74="",0,E74)+IF($C75="",0,E75) -> 0 | F76: =IF($C71="",0,F71)+IF($C72="",0,F72)+IF($C73="",0,F73)+IF($C74="",0,F74)+IF($C75="",0,F75) -> 0 | G76: =IF($C71="",0,G71)+IF($C72="",0,G72)+IF($C73="",0,G73)+IF($C74="",0,G74)+IF($C75="",0,G75) -> 0 | H76: =IF($C71="",0,H71)+IF($C72="",0,H72)+IF($C73="",0,H73)+IF($C74="",0,H74)+IF($C75="",0,H75) -> 0 | I76: =IF($C76="",0,D76) -> 0 | J76: =IF($C76="",0,E76) -> 0 | K76: =IF($C76="",0,F76) -> 0 | L76: =IF($C76="",0,G76) -> 0 | M76: =IF($C76="",0,H76) -> 0 | N76: =IF($C71="",0,N71)+IF($C72="",0,N72)+IF($C73="",0,N73)+IF($C74="",0,N74)+IF($C75="",0,N75) -> 0 | O76: =IF($C71="",0,O71)+IF($C72="",0,O72)+IF($C73="",0,O73)+IF($C74="",0,O74)+IF($C75="",0,O75) -> 0 | P76: =IF($C71="",0,P71)+IF($C72="",0,P72)+IF($C73="",0,P73)+IF($C74="",0,P74)+IF($C75="",0,P75) -> 0 | Q76: =IF($C71="",0,Q71)+IF($C72="",0,Q72)+IF($C73="",0,Q73)+IF($C74="",0,Q74)+IF($C75="",0,Q75) -> 0 | R76: =IF($C71="",0,R71)+IF($C72="",0,R72)+IF($C73="",0,R73)+IF($C74="",0,R74)+IF($C75="",0,R75) -> 0 | S76: =IF($C76="",0,N76) -> 0 | T76: =IF($C76="",0,O76) -> 0 | U76: =IF($C76="",0,P76) -> 0 | V76: =IF($C76="",0,Q76) -> 0 | W76: =IF($C76="",0,R76) -> 0 | X76: ='3'!$BG$94 -> Benznidazol 12,5 mg (III)
A77: HondurasCasos congénitos | B77: Honduras | C77: =C71 -> Casos congénitos | I77: 0 | J77: 0 | K77: 0 | L77: 0 | M77: 0 | S77: 0 | T77: 0 | U77: 0 | V77: 0 | W77: 0 | X77: ='3'!$G$26 -> Benznidazol 12,5 mg
A78: Honduras | B78: Honduras | C78: =C72 ->  | I78: 0 | J78: 0 | K78: 0 | L78: 0 | M78: 0 | S78: 0 | T78: 0 | U78: 0 | V78: 0 | W78: 0 | X78: ='3'!$G$27 ->  | AJ78: x
A79: Honduras | B79: Honduras | C79: =C73 ->  | D79: 973.6701283 | E79: 975.3431262 | F79: 977.0189988 | G79: 978.6977509 | H79: 980.3793875 | I79: 0 | J79: 0 | K79: 0 | L79: 0 | M79: 0 | N79: 757.2989887 | O79: 758.6002093 | P79: 759.9036657 | Q79: 761.2093618 | R79: 762.5173014 | S79: 0 | T79: 0 | U79: 0 | V79: 0 | W79: 0 | X79: ='3'!$G$28 ->  | Y79: 0.00171823897 | Z79: 0.00171823897 | AA79: 0.00171823897 | AB79: 0.00171823897 | AC79: 0.00171823897 | AD79: 0.00171823897 | AE79: 0.00171823897 | AF79: 0.00171823897 | AG79: 0.00171823897 | AH79: 0.00171823897 | AI79: 0.00171823897 | AJ79: x
A80: Honduras | B80: Honduras | C80: =C74 ->  | D80: 66.65289207 | E80: 66.40074166 | F80: 66.14954514 | G80: 65.89929891 | H80: 65.64999937 | I80: 0 | J80: 0 | K80: 0 | L80: 0 | M80: 0 | N80: 51.84113828 | O80: 51.64502129 | P80: 51.44964622 | Q80: 51.25501026 | R80: 51.06111062 | S80: 0 | T80: 0 | U80: 0 | V80: 0 | W80: 0 | X80: ='3'!$G$29 ->  | Y80: -0.003783037826 | Z80: -0.003783037826 | AA80: -0.003783037826 | AB80: -0.003783037826 | AC80: -0.003783037826 | AD80: -0.003783037826 | AE80: -0.003783037826 | AF80: -0.003783037826 | AG80: -0.003783037826 | AH80: -0.003783037826 | AI80: -0.003783037826 | AJ80: x
A81: =B81&C81 -> Honduras | B81: Honduras | C81: =C75 ->  | D81: 4 | E81: 4 | F81: 4 | G81: 4 | H81: 3 | I81: 0 | J81: 0 | K81: 0 | L81: 0 | M81: 0 | N81: 3 | O81: 3 | P81: 3 | Q81: 2 | R81: 2 | S81: 0 | T81: 0 | U81: 0 | V81: 0 | W81: 0 | X81: ='3'!$G$30 ->  | Y81: -0.07738095238 | Z81: -0.07738095238 | AA81: -0.07738095238 | AB81: -0.07738095238 | AC81: -0.07738095238 | AD81: -0.07738095238 | AE81: -0.07738095238 | AF81: -0.07738095238 | AG81: -0.07738095238 | AH81: -0.07738095238 | AI81: -0.07738095238 | AJ81: x
A82: HondurasTotal | B82: Honduras | C82: ='3'!$BD$89 -> Total | D82: =IF($C77="",0,D77)+IF($C78="",0,D78)+IF($C79="",0,D79)+IF($C80="",0,D80)+IF($C81="",0,D81) -> 0 | E82: =IF($C77="",0,E77)+IF($C78="",0,E78)+IF($C79="",0,E79)+IF($C80="",0,E80)+IF($C81="",0,E81) -> 0 | F82: =IF($C77="",0,F77)+IF($C78="",0,F78)+IF($C79="",0,F79)+IF($C80="",0,F80)+IF($C81="",0,F81) -> 0 | G82: =IF($C77="",0,G77)+IF($C78="",0,G78)+IF($C79="",0,G79)+IF($C80="",0,G80)+IF($C81="",0,G81) -> 0 | H82: =IF($C77="",0,H77)+IF($C78="",0,H78)+IF($C79="",0,H79)+IF($C80="",0,H80)+IF($C81="",0,H81) -> 0 | I82: 0 | J82: 0 | K82: 0 | L82: 0 | M82: 0 | N82: =IF($C77="",0,N77)+IF($C78="",0,N78)+IF($C79="",0,N79)+IF($C80="",0,N80)+IF($C81="",0,N81) -> 0 | O82: =IF($C77="",0,O77)+IF($C78="",0,O78)+IF($C79="",0,O79)+IF($C80="",0,O80)+IF($C81="",0,O81) -> 0 | P82: =IF($C77="",0,P77)+IF($C78="",0,P78)+IF($C79="",0,P79)+IF($C80="",0,P80)+IF($C81="",0,P81) -> 0 | Q82: =IF($C77="",0,Q77)+IF($C78="",0,Q78)+IF($C79="",0,Q79)+IF($C80="",0,Q80)+IF($C81="",0,Q81) -> 0 | R82: =IF($C77="",0,R77)+IF($C78="",0,R78)+IF($C79="",0,R79)+IF($C80="",0,R80)+IF($C81="",0,R81) -> 0 | S82: 0 | T82: 0 | U82: 0 | V82: 0 | W82: 0 | X82: ='3'!$BG$94 -> Benznidazol 12,5 mg (III) | Z82: =Y82 -> 
A83: MéxicoCasos congénitos | B83: México | C83: =C77 -> Casos congénitos | I83: 0 | J83: 0 | K83: 0 | L83: 0 | M83: 0 | S83: 0 | T83: 0 | U83: 0 | V83: 0 | W83: 0 | X83: ='3'!$G$26 -> Benznidazol 12,5 mg
A84: México | B84: México | C84: =C78 ->  | I84: 0 | J84: 0 | K84: 0 | L84: 0 | M84: 0 | S84: 0 | T84: 0 | U84: 0 | V84: 0 | W84: 0 | X84: ='3'!$G$27 ->  | AJ84: x
A85: México | B85: México | C85: =C79 ->  | D85: 973.6701283 | E85: 975.3431262 | F85: 977.0189988 | G85: 978.6977509 | H85: 980.3793875 | I85: 0 | J85: 0 | K85: 0 | L85: 0 | M85: 0 | N85: 757.2989887 | O85: 758.6002093 | P85: 759.9036657 | Q85: 761.2093618 | R85: 762.5173014 | S85: 0 | T85: 0 | U85: 0 | V85: 0 | W85: 0 | X85: ='3'!$G$28 ->  | Y85: 0.00171823897 | Z85: 0.00171823897 | AA85: 0.00171823897 | AB85: 0.00171823897 | AC85: 0.00171823897 | AD85: 0.00171823897 | AE85: 0.00171823897 | AF85: 0.00171823897 | AG85: 0.00171823897 | AH85: 0.00171823897 | AI85: 0.00171823897 | AJ85: x
A86: México | B86: México | C86: =C80 ->  | D86: 66.65289207 | E86: 66.40074166 | F86: 66.14954514 | G86: 65.89929891 | H86: 65.64999937 | I86: 0 | J86: 0 | K86: 0 | L86: 0 | M86: 0 | N86: 51.84113828 | O86: 51.64502129 | P86: 51.44964622 | Q86: 51.25501026 | R86: 51.06111062 | S86: 0 | T86: 0 | U86: 0 | V86: 0 | W86: 0 | X86: ='3'!$G$29 ->  | Y86: -0.003783037826 | Z86: -0.003783037826 | AA86: -0.003783037826 | AB86: -0.003783037826 | AC86: -0.003783037826 | AD86: -0.003783037826 | AE86: -0.003783037826 | AF86: -0.003783037826 | AG86: -0.003783037826 | AH86: -0.003783037826 | AI86: -0.003783037826 | AJ86: x
A87: México | B87: México | C87: =C81 ->  | D87: 4 | E87: 4 | F87: 4 | G87: 4 | H87: 3 | I87: 0 | J87: 0 | K87: 0 | L87: 0 | M87: 0 | N87: 3 | O87: 3 | P87: 3 | Q87: 2 | R87: 2 | S87: 0 | T87: 0 | U87: 0 | V87: 0 | W87: 0 | X87: ='3'!$G$30 ->  | Y87: -0.07738095238 | Z87: -0.07738095238 | AA87: -0.07738095238 | AB87: -0.07738095238 | AC87: -0.07738095238 | AD87: -0.07738095238 | AE87: -0.07738095238 | AF87: -0.07738095238 | AG87: -0.07738095238 | AH87: -0.07738095238 | AI87: -0.07738095238 | AJ87: x
A88: MéxicoTotal | B88: México | C88: ='3'!$BD$89 -> Total | D88: =IF($C83="",0,D83)+IF($C84="",0,D84)+IF($C85="",0,D85)+IF($C86="",0,D86)+IF($C87="",0,D87) -> 0 | E88: =IF($C83="",0,E83)+IF($C84="",0,E84)+IF($C85="",0,E85)+IF($C86="",0,E86)+IF($C87="",0,E87) -> 0 | F88: =IF($C83="",0,F83)+IF($C84="",0,F84)+IF($C85="",0,F85)+IF($C86="",0,F86)+IF($C87="",0,F87) -> 0 | G88: =IF($C83="",0,G83)+IF($C84="",0,G84)+IF($C85="",0,G85)+IF($C86="",0,G86)+IF($C87="",0,G87) -> 0 | H88: =IF($C83="",0,H83)+IF($C84="",0,H84)+IF($C85="",0,H85)+IF($C86="",0,H86)+IF($C87="",0,H87) -> 0 | I88: 0 | J88: 0 | K88: 0 | L88: 0 | M88: 0 | N88: =IF($C83="",0,N83)+IF($C84="",0,N84)+IF($C85="",0,N85)+IF($C86="",0,N86)+IF($C87="",0,N87) -> 0 | O88: =IF($C83="",0,O83)+IF($C84="",0,O84)+IF($C85="",0,O85)+IF($C86="",0,O86)+IF($C87="",0,O87) -> 0 | P88: =IF($C83="",0,P83)+IF($C84="",0,P84)+IF($C85="",0,P85)+IF($C86="",0,P86)+IF($C87="",0,P87) -> 0 | Q88: =IF($C83="",0,Q83)+IF($C84="",0,Q84)+IF($C85="",0,Q85)+IF($C86="",0,Q86)+IF($C87="",0,Q87) -> 0 | R88: =IF($C83="",0,R83)+IF($C84="",0,R84)+IF($C85="",0,R85)+IF($C86="",0,R86)+IF($C87="",0,R87) -> 0 | S88: 0 | T88: 0 | U88: 0 | V88: 0 | W88: 0 | X88: ='3'!$BG$94 -> Benznidazol 12,5 mg (III)
A89: NicaraguaCasos congénitos | B89: Nicaragua | C89: =C83 -> Casos congénitos | I89: 0 | J89: 0 | K89: 0 | L89: 0 | M89: 0 | S89: 0 | T89: 0 | U89: 0 | V89: 0 | W89: 0 | X89: ='3'!$G$26 -> Benznidazol 12,5 mg
A90: Nicaragua | B90: Nicaragua | C90: =C84 ->  | I90: 0 | J90: 0 | K90: 0 | L90: 0 | M90: 0 | S90: 0 | T90: 0 | U90: 0 | V90: 0 | W90: 0 | X90: ='3'!$G$27 ->  | AJ90: x
A91: Nicaragua | B91: Nicaragua | C91: =C85 ->  | D91: 973.6701283 | E91: 975.3431262 | F91: 977.0189988 | G91: 978.6977509 | H91: 980.3793875 | I91: 0 | J91: 0 | K91: 0 | L91: 0 | M91: 0 | N91: 757.2989887 | O91: 758.6002093 | P91: 759.9036657 | Q91: 761.2093618 | R91: 762.5173014 | S91: 0 | T91: 0 | U91: 0 | V91: 0 | W91: 0 | X91: ='3'!$G$28 ->  | Y91: 0.00171823897 | Z91: 0.00171823897 | AA91: 0.00171823897 | AB91: 0.00171823897 | AC91: 0.00171823897 | AD91: 0.00171823897 | AE91: 0.00171823897 | AF91: 0.00171823897 | AG91: 0.00171823897 | AH91: 0.00171823897 | AI91: 0.00171823897 | AJ91: x
A92: Nicaragua | B92: Nicaragua | C92: =C86 ->  | D92: 66.65289207 | E92: 66.40074166 | F92: 66.14954514 | G92: 65.89929891 | H92: 65.64999937 | I92: 0 | J92: 0 | K92: 0 | L92: 0 | M92: 0 | N92: 51.84113828 | O92: 51.64502129 | P92: 51.44964622 | Q92: 51.25501026 | R92: 51.06111062 | S92: 0 | T92: 0 | U92: 0 | V92: 0 | W92: 0 | X92: ='3'!$G$29 ->  | Y92: -0.003783037826 | Z92: -0.003783037826 | AA92: -0.003783037826 | AB92: -0.003783037826 | AC92: -0.003783037826 | AD92: -0.003783037826 | AE92: -0.003783037826 | AF92: -0.003783037826 | AG92: -0.003783037826 | AH92: -0.003783037826 | AI92: -0.003783037826 | AJ92: x
A93: Nicaragua | B93: Nicaragua | C93: =C87 ->  | D93: 4 | E93: 4 | F93: 4 | G93: 4 | H93: 3 | I93: 0 | J93: 0 | K93: 0 | L93: 0 | M93: 0 | N93: 3 | O93: 3 | P93: 3 | Q93: 2 | R93: 2 | S93: 0 | T93: 0 | U93: 0 | V93: 0 | W93: 0 | X93: ='3'!$G$30 ->  | Y93: -0.07738095238 | Z93: -0.07738095238 | AA93: -0.07738095238 | AB93: -0.07738095238 | AC93: -0.07738095238 | AD93: -0.07738095238 | AE93: -0.07738095238 | AF93: -0.07738095238 | AG93: -0.07738095238 | AH93: -0.07738095238 | AI93: -0.07738095238 | AJ93: x
A94: NicaraguaTotal | B94: Nicaragua | C94: ='3'!$BD$89 -> Total | D94: =IF($C89="",0,D89)+IF($C90="",0,D90)+IF($C91="",0,D91)+IF($C92="",0,D92)+IF($C93="",0,D93) -> 0 | E94: =IF($C89="",0,E89)+IF($C90="",0,E90)+IF($C91="",0,E91)+IF($C92="",0,E92)+IF($C93="",0,E93) -> 0 | F94: =IF($C89="",0,F89)+IF($C90="",0,F90)+IF($C91="",0,F91)+IF($C92="",0,F92)+IF($C93="",0,F93) -> 0 | G94: =IF($C89="",0,G89)+IF($C90="",0,G90)+IF($C91="",0,G91)+IF($C92="",0,G92)+IF($C93="",0,G93) -> 0 | H94: =IF($C89="",0,H89)+IF($C90="",0,H90)+IF($C91="",0,H91)+IF($C92="",0,H92)+IF($C93="",0,H93) -> 0 | I94: 0 | J94: 0 | K94: 0 | L94: 0 | M94: 0 | N94: =IF($C89="",0,N89)+IF($C90="",0,N90)+IF($C91="",0,N91)+IF($C92="",0,N92)+IF($C93="",0,N93) -> 0 | O94: =IF($C89="",0,O89)+IF($C90="",0,O90)+IF($C91="",0,O91)+IF($C92="",0,O92)+IF($C93="",0,O93) -> 0 | P94: =IF($C89="",0,P89)+IF($C90="",0,P90)+IF($C91="",0,P91)+IF($C92="",0,P92)+IF($C93="",0,P93) -> 0 | Q94: =IF($C89="",0,Q89)+IF($C90="",0,Q90)+IF($C91="",0,Q91)+IF($C92="",0,Q92)+IF($C93="",0,Q93) -> 0 | R94: =IF($C89="",0,R89)+IF($C90="",0,R90)+IF($C91="",0,R91)+IF($C92="",0,R92)+IF($C93="",0,R93) -> 0 | S94: 0 | T94: 0 | U94: 0 | V94: 0 | W94: 0 | X94: ='3'!$BG$94 -> Benznidazol 12,5 mg (III)
A95: PanamáCasos congénitos | B95: Panamá | C95: =C89 -> Casos congénitos | I95: 0 | J95: 0 | K95: 0 | L95: 0 | M95: 0 | S95: 0 | T95: 0 | U95: 0 | V95: 0 | W95: 0 | X95: ='3'!$G$26 -> Benznidazol 12,5 mg
A96: Panamá | B96: Panamá | C96: =C90 ->  | I96: 0 | J96: 0 | K96: 0 | L96: 0 | M96: 0 | S96: 0 | T96: 0 | U96: 0 | V96: 0 | W96: 0 | X96: ='3'!$G$27 ->  | AJ96: x
A97: Panamá | B97: Panamá | C97: =C91 ->  | D97: 973.6701283 | E97: 975.3431262 | F97: 977.0189988 | G97: 978.6977509 | H97: 980.3793875 | I97: 0 | J97: 0 | K97: 0 | L97: 0 | M97: 0 | N97: 757.2989887 | O97: 758.6002093 | P97: 759.9036657 | Q97: 761.2093618 | R97: 762.5173014 | S97: 0 | T97: 0 | U97: 0 | V97: 0 | W97: 0 | X97: ='3'!$G$28 ->  | Y97: 0.00171823897 | Z97: 0.00171823897 | AA97: 0.00171823897 | AB97: 0.00171823897 | AC97: 0.00171823897 | AD97: 0.00171823897 | AE97: 0.00171823897 | AF97: 0.00171823897 | AG97: 0.00171823897 | AH97: 0.00171823897 | AI97: 0.00171823897 | AJ97: x
A98: Panamá | B98: Panamá | C98: =C92 ->  | D98: 66.65289207 | E98: 66.40074166 | F98: 66.14954514 | G98: 65.89929891 | H98: 65.64999937 | I98: 0 | J98: 0 | K98: 0 | L98: 0 | M98: 0 | N98: 51.84113828 | O98: 51.64502129 | P98: 51.44964622 | Q98: 51.25501026 | R98: 51.06111062 | S98: 0 | T98: 0 | U98: 0 | V98: 0 | W98: 0 | X98: ='3'!$G$29 ->  | Y98: -0.003783037826 | Z98: -0.003783037826 | AA98: -0.003783037826 | AB98: -0.003783037826 | AC98: -0.003783037826 | AD98: -0.003783037826 | AE98: -0.003783037826 | AF98: -0.003783037826 | AG98: -0.003783037826 | AH98: -0.003783037826 | AI98: -0.003783037826 | AJ98: x
A99: Panamá | B99: Panamá | C99: =C93 ->  | D99: 4 | E99: 4 | F99: 4 | G99: 4 | H99: 3 | I99: 0 | J99: 0 | K99: 0 | L99: 0 | M99: 0 | N99: 3 | O99: 3 | P99: 3 | Q99: 2 | R99: 2 | S99: 0 | T99: 0 | U99: 0 | V99: 0 | W99: 0 | X99: ='3'!$G$30 ->  | Y99: -0.07738095238 | Z99: -0.07738095238 | AA99: -0.07738095238 | AB99: -0.07738095238 | AC99: -0.07738095238 | AD99: -0.07738095238 | AE99: -0.07738095238 | AF99: -0.07738095238 | AG99: -0.07738095238 | AH99: -0.07738095238 | AI99: -0.07738095238 | AJ99: x
A100: PanamáTotal | B100: Panamá | C100: ='3'!$BD$89 -> Total | D100: =IF($C95="",0,D95)+IF($C96="",0,D96)+IF($C97="",0,D97)+IF($C98="",0,D98)+IF($C99="",0,D99) -> 0 | E100: =IF($C95="",0,E95)+IF($C96="",0,E96)+IF($C97="",0,E97)+IF($C98="",0,E98)+IF($C99="",0,E99) -> 0 | F100: =IF($C95="",0,F95)+IF($C96="",0,F96)+IF($C97="",0,F97)+IF($C98="",0,F98)+IF($C99="",0,F99) -> 0 | G100: =IF($C95="",0,G95)+IF($C96="",0,G96)+IF($C97="",0,G97)+IF($C98="",0,G98)+IF($C99="",0,G99) -> 0 | H100: =IF($C95="",0,H95)+IF($C96="",0,H96)+IF($C97="",0,H97)+IF($C98="",0,H98)+IF($C99="",0,H99) -> 0 | I100: 0 | J100: 0 | K100: 0 | L100: 0 | M100: 0 | N100: =IF($C95="",0,N95)+IF($C96="",0,N96)+IF($C97="",0,N97)+IF($C98="",0,N98)+IF($C99="",0,N99) -> 0 | O100: =IF($C95="",0,O95)+IF($C96="",0,O96)+IF($C97="",0,O97)+IF($C98="",0,O98)+IF($C99="",0,O99) -> 0 | P100: =IF($C95="",0,P95)+IF($C96="",0,P96)+IF($C97="",0,P97)+IF($C98="",0,P98)+IF($C99="",0,P99) -> 0 | Q100: =IF($C95="",0,Q95)+IF($C96="",0,Q96)+IF($C97="",0,Q97)+IF($C98="",0,Q98)+IF($C99="",0,Q99) -> 0 | R100: =IF($C95="",0,R95)+IF($C96="",0,R96)+IF($C97="",0,R97)+IF($C98="",0,R98)+IF($C99="",0,R99) -> 0 | S100: 0 | T100: 0 | U100: 0 | V100: 0 | W100: 0 | X100: ='3'!$BG$94 -> Benznidazol 12,5 mg (III)
A101: ParaguayCasos congénitos | B101: Paraguay | C101: =C95 -> Casos congénitos | I101: 0 | J101: 0 | K101: 0 | L101: 0 | M101: 0 | S101: 0 | T101: 0 | U101: 0 | V101: 0 | W101: 0 | X101: ='3'!$G$26 -> Benznidazol 12,5 mg
A102: Paraguay | B102: Paraguay | C102: =C96 ->  | I102: 0 | J102: 0 | K102: 0 | L102: 0 | M102: 0 | S102: 0 | T102: 0 | U102: 0 | V102: 0 | W102: 0 | X102: ='3'!$G$27 ->  | AJ102: x
A103: Paraguay | B103: Paraguay | C103: =C97 ->  | D103: 973.6701283 | E103: 975.3431262 | F103: 977.0189988 | G103: 978.6977509 | H103: 980.3793875 | I103: 0 | J103: 0 | K103: 0 | L103: 0 | M103: 0 | N103: 757.2989887 | O103: 758.6002093 | P103: 759.9036657 | Q103: 761.2093618 | R103: 762.5173014 | S103: 0 | T103: 0 | U103: 0 | V103: 0 | W103: 0 | X103: ='3'!$G$28 ->  | Y103: 0.00171823897 | Z103: 0.00171823897 | AA103: 0.00171823897 | AB103: 0.00171823897 | AC103: 0.00171823897 | AD103: 0.00171823897 | AE103: 0.00171823897 | AF103: 0.00171823897 | AG103: 0.00171823897 | AH103: 0.00171823897 | AI103: 0.00171823897 | AJ103: x
A104: Paraguay | B104: Paraguay | C104: =C98 ->  | D104: 66.65289207 | E104: 66.40074166 | F104: 66.14954514 | G104: 65.89929891 | H104: 65.64999937 | I104: 0 | J104: 0 | K104: 0 | L104: 0 | M104: 0 | N104: 51.84113828 | O104: 51.64502129 | P104: 51.44964622 | Q104: 51.25501026 | R104: 51.06111062 | S104: 0 | T104: 0 | U104: 0 | V104: 0 | W104: 0 | X104: ='3'!$G$29 ->  | Y104: -0.003783037826 | Z104: -0.003783037826 | AA104: -0.003783037826 | AB104: -0.003783037826 | AC104: -0.003783037826 | AD104: -0.003783037826 | AE104: -0.003783037826 | AF104: -0.003783037826 | AG104: -0.003783037826 | AH104: -0.003783037826 | AI104: -0.003783037826 | AJ104: x
A105: Paraguay | B105: Paraguay | C105: =C99 ->  | D105: 4 | E105: 4 | F105: 4 | G105: 4 | H105: 3 | I105: 0 | J105: 0 | K105: 0 | L105: 0 | M105: 0 | N105: 3 | O105: 3 | P105: 3 | Q105: 2 | R105: 2 | S105: 0 | T105: 0 | U105: 0 | V105: 0 | W105: 0 | X105: ='3'!$G$30 ->  | Y105: -0.07738095238 | Z105: -0.07738095238 | AA105: -0.07738095238 | AB105: -0.07738095238 | AC105: -0.07738095238 | AD105: -0.07738095238 | AE105: -0.07738095238 | AF105: -0.07738095238 | AG105: -0.07738095238 | AH105: -0.07738095238 | AI105: -0.07738095238 | AJ105: x
A106: ParaguayTotal | B106: Paraguay | C106: ='3'!$BD$89 -> Total | D106: =IF($C101="",0,D101)+IF($C102="",0,D102)+IF($C103="",0,D103)+IF($C104="",0,D104)+IF($C105="",0,D105) -> 0 | E106: =IF($C101="",0,E101)+IF($C102="",0,E102)+IF($C103="",0,E103)+IF($C104="",0,E104)+IF($C105="",0,E105) -> 0 | F106: =IF($C101="",0,F101)+IF($C102="",0,F102)+IF($C103="",0,F103)+IF($C104="",0,F104)+IF($C105="",0,F105) -> 0 | G106: =IF($C101="",0,G101)+IF($C102="",0,G102)+IF($C103="",0,G103)+IF($C104="",0,G104)+IF($C105="",0,G105) -> 0 | H106: =IF($C101="",0,H101)+IF($C102="",0,H102)+IF($C103="",0,H103)+IF($C104="",0,H104)+IF($C105="",0,H105) -> 0 | I106: 0 | J106: 0 | K106: 0 | L106: 0 | M106: 0 | N106: =IF($C101="",0,N101)+IF($C102="",0,N102)+IF($C103="",0,N103)+IF($C104="",0,N104)+IF($C105="",0,N105) -> 0 | O106: =IF($C101="",0,O101)+IF($C102="",0,O102)+IF($C103="",0,O103)+IF($C104="",0,O104)+IF($C105="",0,O105) -> 0 | P106: =IF($C101="",0,P101)+IF($C102="",0,P102)+IF($C103="",0,P103)+IF($C104="",0,P104)+IF($C105="",0,P105) -> 0 | Q106: =IF($C101="",0,Q101)+IF($C102="",0,Q102)+IF($C103="",0,Q103)+IF($C104="",0,Q104)+IF($C105="",0,Q105) -> 0 | R106: =IF($C101="",0,R101)+IF($C102="",0,R102)+IF($C103="",0,R103)+IF($C104="",0,R104)+IF($C105="",0,R105) -> 0 | S106: 0 | T106: 0 | U106: 0 | V106: 0 | W106: 0 | X106: ='3'!$BG$94 -> Benznidazol 12,5 mg (III)
A107: PerúCasos congénitos | B107: Perú | C107: =C101 -> Casos congénitos | I107: 0 | J107: 0 | K107: 0 | L107: 0 | M107: 0 | S107: 0 | T107: 0 | U107: 0 | V107: 0 | W107: 0 | X107: ='3'!$G$26 -> Benznidazol 12,5 mg
A108: Perú | B108: Perú | C108: =C102 ->  | I108: 0 | J108: 0 | K108: 0 | L108: 0 | M108: 0 | S108: 0 | T108: 0 | U108: 0 | V108: 0 | W108: 0 | X108: ='3'!$G$27 ->  | AJ108: x
A109: Perú | B109: Perú | C109: =C103 ->  | D109: 973.6701283 | E109: 975.3431262 | F109: 977.0189988 | G109: 978.6977509 | H109: 980.3793875 | I109: 0 | J109: 0 | K109: 0 | L109: 0 | M109: 0 | N109: 757.2989887 | O109: 758.6002093 | P109: 759.9036657 | Q109: 761.2093618 | R109: 762.5173014 | S109: 0 | T109: 0 | U109: 0 | V109: 0 | W109: 0 | X109: ='3'!$G$28 ->  | Y109: 0.00171823897 | Z109: 0.00171823897 | AA109: 0.00171823897 | AB109: 0.00171823897 | AC109: 0.00171823897 | AD109: 0.00171823897 | AE109: 0.00171823897 | AF109: 0.00171823897 | AG109: 0.00171823897 | AH109: 0.00171823897 | AI109: 0.00171823897 | AJ109: x
A110: Perú | B110: Perú | C110: =C104 ->  | D110: 66.65289207 | E110: 66.40074166 | F110: 66.14954514 | G110: 65.89929891 | H110: 65.64999937 | I110: 0 | J110: 0 | K110: 0 | L110: 0 | M110: 0 | N110: 51.84113828 | O110: 51.64502129 | P110: 51.44964622 | Q110: 51.25501026 | R110: 51.06111062 | S110: 0 | T110: 0 | U110: 0 | V110: 0 | W110: 0 | X110: ='3'!$G$29 ->  | Y110: -0.003783037826 | Z110: -0.003783037826 | AA110: -0.003783037826 | AB110: -0.003783037826 | AC110: -0.003783037826 | AD110: -0.003783037826 | AE110: -0.003783037826 | AF110: -0.003783037826 | AG110: -0.003783037826 | AH110: -0.003783037826 | AI110: -0.003783037826 | AJ110: x
A111: Perú | B111: Perú | C111: =C105 ->  | D111: 4 | E111: 4 | F111: 4 | G111: 4 | H111: 3 | I111: 0 | J111: 0 | K111: 0 | L111: 0 | M111: 0 | N111: 3 | O111: 3 | P111: 3 | Q111: 2 | R111: 2 | S111: 0 | T111: 0 | U111: 0 | V111: 0 | W111: 0 | X111: ='3'!$G$30 ->  | Y111: -0.07738095238 | Z111: -0.07738095238 | AA111: -0.07738095238 | AB111: -0.07738095238 | AC111: -0.07738095238 | AD111: -0.07738095238 | AE111: -0.07738095238 | AF111: -0.07738095238 | AG111: -0.07738095238 | AH111: -0.07738095238 | AI111: -0.07738095238 | AJ111: x
A112: PerúTotal | B112: Perú | C112: ='3'!$BD$89 -> Total | D112: =IF($C107="",0,D107)+IF($C108="",0,D108)+IF($C109="",0,D109)+IF($C110="",0,D110)+IF($C111="",0,D111) -> 0 | E112: =IF($C107="",0,E107)+IF($C108="",0,E108)+IF($C109="",0,E109)+IF($C110="",0,E110)+IF($C111="",0,E111) -> 0 | F112: =IF($C107="",0,F107)+IF($C108="",0,F108)+IF($C109="",0,F109)+IF($C110="",0,F110)+IF($C111="",0,F111) -> 0 | G112: =IF($C107="",0,G107)+IF($C108="",0,G108)+IF($C109="",0,G109)+IF($C110="",0,G110)+IF($C111="",0,G111) -> 0 | H112: =IF($C107="",0,H107)+IF($C108="",0,H108)+IF($C109="",0,H109)+IF($C110="",0,H110)+IF($C111="",0,H111) -> 0 | I112: 0 | J112: 0 | K112: 0 | L112: 0 | M112: 0 | N112: =IF($C107="",0,N107)+IF($C108="",0,N108)+IF($C109="",0,N109)+IF($C110="",0,N110)+IF($C111="",0,N111) -> 0 | O112: =IF($C107="",0,O107)+IF($C108="",0,O108)+IF($C109="",0,O109)+IF($C110="",0,O110)+IF($C111="",0,O111) -> 0 | P112: =IF($C107="",0,P107)+IF($C108="",0,P108)+IF($C109="",0,P109)+IF($C110="",0,P110)+IF($C111="",0,P111) -> 0 | Q112: =IF($C107="",0,Q107)+IF($C108="",0,Q108)+IF($C109="",0,Q109)+IF($C110="",0,Q110)+IF($C111="",0,Q111) -> 0 | R112: =IF($C107="",0,R107)+IF($C108="",0,R108)+IF($C109="",0,R109)+IF($C110="",0,R110)+IF($C111="",0,R111) -> 0 | S112: 0 | T112: 0 | U112: 0 | V112: 0 | W112: 0 | X112: ='3'!$BG$94 -> Benznidazol 12,5 mg (III)
A113: SurinamCasos congénitos | B113: Surinam | C113: =C107 -> Casos congénitos | I113: 0 | J113: 0 | K113: 0 | L113: 0 | M113: 0 | S113: 0 | T113: 0 | U113: 0 | V113: 0 | W113: 0 | X113: ='3'!$G$26 -> Benznidazol 12,5 mg
A114: Surinam | B114: Surinam | C114: =C108 ->  | I114: 0 | J114: 0 | K114: 0 | L114: 0 | M114: 0 | S114: 0 | T114: 0 | U114: 0 | V114: 0 | W114: 0 | X114: ='3'!$G$27 ->  | AJ114: x
A115: Surinam | B115: Surinam | C115: =C109 ->  | D115: 973.6701283 | E115: 975.3431262 | F115: 977.0189988 | G115: 978.6977509 | H115: 980.3793875 | I115: 0 | J115: 0 | K115: 0 | L115: 0 | M115: 0 | N115: 757.2989887 | O115: 758.6002093 | P115: 759.9036657 | Q115: 761.2093618 | R115: 762.5173014 | S115: 0 | T115: 0 | U115: 0 | V115: 0 | W115: 0 | X115: ='3'!$G$28 ->  | Y115: 0.00171823897 | Z115: 0.00171823897 | AA115: 0.00171823897 | AB115: 0.00171823897 | AC115: 0.00171823897 | AD115: 0.00171823897 | AE115: 0.00171823897 | AF115: 0.00171823897 | AG115: 0.00171823897 | AH115: 0.00171823897 | AI115: 0.00171823897 | AJ115: x
A116: Surinam | B116: Surinam | C116: =C110 ->  | D116: 66.65289207 | E116: 66.40074166 | F116: 66.14954514 | G116: 65.89929891 | H116: 65.64999937 | I116: 0 | J116: 0 | K116: 0 | L116: 0 | M116: 0 | N116: 51.84113828 | O116: 51.64502129 | P116: 51.44964622 | Q116: 51.25501026 | R116: 51.06111062 | S116: 0 | T116: 0 | U116: 0 | V116: 0 | W116: 0 | X116: ='3'!$G$29 ->  | Y116: -0.003783037826 | Z116: -0.003783037826 | AA116: -0.003783037826 | AB116: -0.003783037826 | AC116: -0.003783037826 | AD116: -0.003783037826 | AE116: -0.003783037826 | AF116: -0.003783037826 | AG116: -0.003783037826 | AH116: -0.003783037826 | AI116: -0.003783037826 | AJ116: x
A117: Surinam | B117: Surinam | C117: =C111 ->  | D117: 4 | E117: 4 | F117: 4 | G117: 4 | H117: 3 | I117: 0 | J117: 0 | K117: 0 | L117: 0 | M117: 0 | N117: 3 | O117: 3 | P117: 3 | Q117: 2 | R117: 2 | S117: 0 | T117: 0 | U117: 0 | V117: 0 | W117: 0 | X117: ='3'!$G$30 ->  | Y117: -0.07738095238 | Z117: -0.07738095238 | AA117: -0.07738095238 | AB117: -0.07738095238 | AC117: -0.07738095238 | AD117: -0.07738095238 | AE117: -0.07738095238 | AF117: -0.07738095238 | AG117: -0.07738095238 | AH117: -0.07738095238 | AI117: -0.07738095238 | AJ117: x
A118: SurinamTotal | B118: Surinam | C118: ='3'!$BD$89 -> Total | D118: =IF($C113="",0,D113)+IF($C114="",0,D114)+IF($C115="",0,D115)+IF($C116="",0,D116)+IF($C117="",0,D117) -> 0 | E118: =IF($C113="",0,E113)+IF($C114="",0,E114)+IF($C115="",0,E115)+IF($C116="",0,E116)+IF($C117="",0,E117) -> 0 | F118: =IF($C113="",0,F113)+IF($C114="",0,F114)+IF($C115="",0,F115)+IF($C116="",0,F116)+IF($C117="",0,F117) -> 0 | G118: =IF($C113="",0,G113)+IF($C114="",0,G114)+IF($C115="",0,G115)+IF($C116="",0,G116)+IF($C117="",0,G117) -> 0 | H118: =IF($C113="",0,H113)+IF($C114="",0,H114)+IF($C115="",0,H115)+IF($C116="",0,H116)+IF($C117="",0,H117) -> 0 | I118: 0 | J118: 0 | K118: 0 | L118: 0 | M118: 0 | N118: =IF($C113="",0,N113)+IF($C114="",0,N114)+IF($C115="",0,N115)+IF($C116="",0,N116)+IF($C117="",0,N117) -> 0 | O118: =IF($C113="",0,O113)+IF($C114="",0,O114)+IF($C115="",0,O115)+IF($C116="",0,O116)+IF($C117="",0,O117) -> 0 | P118: =IF($C113="",0,P113)+IF($C114="",0,P114)+IF($C115="",0,P115)+IF($C116="",0,P116)+IF($C117="",0,P117) -> 0 | Q118: =IF($C113="",0,Q113)+IF($C114="",0,Q114)+IF($C115="",0,Q115)+IF($C116="",0,Q116)+IF($C117="",0,Q117) -> 0 | R118: =IF($C113="",0,R113)+IF($C114="",0,R114)+IF($C115="",0,R115)+IF($C116="",0,R116)+IF($C117="",0,R117) -> 0 | S118: 0 | T118: 0 | U118: 0 | V118: 0 | W118: 0 | X118: ='3'!$BG$94 -> Benznidazol 12,5 mg (III)
A119: UruguayCasos congénitos | B119: Uruguay | C119: =C113 -> Casos congénitos | I119: 0 | J119: 0 | K119: 0 | L119: 0 | M119: 0 | S119: 0 | T119: 0 | U119: 0 | V119: 0 | W119: 0 | X119: ='3'!$G$26 -> Benznidazol 12,5 mg
A120: Uruguay | B120: Uruguay | C120: =C114 ->  | I120: 0 | J120: 0 | K120: 0 | L120: 0 | M120: 0 | S120: 0 | T120: 0 | U120: 0 | V120: 0 | W120: 0 | X120: ='3'!$G$27 ->  | AJ120: x
A121: Uruguay | B121: Uruguay | C121: =C115 ->  | D121: 973.6701283 | E121: 975.3431262 | F121: 977.0189988 | G121: 978.6977509 | H121: 980.3793875 | I121: 0 | J121: 0 | K121: 0 | L121: 0 | M121: 0 | N121: 757.2989887 | O121: 758.6002093 | P121: 759.9036657 | Q121: 761.2093618 | R121: 762.5173014 | S121: 0 | T121: 0 | U121: 0 | V121: 0 | W121: 0 | X121: ='3'!$G$28 ->  | Y121: 0.00171823897 | Z121: 0.00171823897 | AA121: 0.00171823897 | AB121: 0.00171823897 | AC121: 0.00171823897 | AD121: 0.00171823897 | AE121: 0.00171823897 | AF121: 0.00171823897 | AG121: 0.00171823897 | AH121: 0.00171823897 | AI121: 0.00171823897 | AJ121: x
A122: Uruguay | B122: Uruguay | C122: =C116 ->  | D122: 66.65289207 | E122: 66.40074166 | F122: 66.14954514 | G122: 65.89929891 | H122: 65.64999937 | I122: 0 | J122: 0 | K122: 0 | L122: 0 | M122: 0 | N122: 51.84113828 | O122: 51.64502129 | P122: 51.44964622 | Q122: 51.25501026 | R122: 51.06111062 | S122: 0 | T122: 0 | U122: 0 | V122: 0 | W122: 0 | X122: ='3'!$G$29 ->  | Y122: -0.003783037826 | Z122: -0.003783037826 | AA122: -0.003783037826 | AB122: -0.003783037826 | AC122: -0.003783037826 | AD122: -0.003783037826 | AE122: -0.003783037826 | AF122: -0.003783037826 | AG122: -0.003783037826 | AH122: -0.003783037826 | AI122: -0.003783037826 | AJ122: x
A123: Uruguay | B123: Uruguay | C123: =C117 ->  | D123: 4 | E123: 4 | F123: 4 | G123: 4 | H123: 3 | I123: 0 | J123: 0 | K123: 0 | L123: 0 | M123: 0 | N123: 3 | O123: 3 | P123: 3 | Q123: 2 | R123: 2 | S123: 0 | T123: 0 | U123: 0 | V123: 0 | W123: 0 | X123: ='3'!$G$30 ->  | Y123: -0.07738095238 | Z123: -0.07738095238 | AA123: -0.07738095238 | AB123: -0.07738095238 | AC123: -0.07738095238 | AD123: -0.07738095238 | AE123: -0.07738095238 | AF123: -0.07738095238 | AG123: -0.07738095238 | AH123: -0.07738095238 | AI123: -0.07738095238 | AJ123: x
A124: UruguayTotal | B124: Uruguay | C124: ='3'!$BD$89 -> Total | D124: =IF($C119="",0,D119)+IF($C120="",0,D120)+IF($C121="",0,D121)+IF($C122="",0,D122)+IF($C123="",0,D123) -> 0 | E124: =IF($C119="",0,E119)+IF($C120="",0,E120)+IF($C121="",0,E121)+IF($C122="",0,E122)+IF($C123="",0,E123) -> 0 | F124: =IF($C119="",0,F119)+IF($C120="",0,F120)+IF($C121="",0,F121)+IF($C122="",0,F122)+IF($C123="",0,F123) -> 0 | G124: =IF($C119="",0,G119)+IF($C120="",0,G120)+IF($C121="",0,G121)+IF($C122="",0,G122)+IF($C123="",0,G123) -> 0 | H124: =IF($C119="",0,H119)+IF($C120="",0,H120)+IF($C121="",0,H121)+IF($C122="",0,H122)+IF($C123="",0,H123) -> 0 | I124: 0 | J124: 0 | K124: 0 | L124: 0 | M124: 0 | N124: =IF($C119="",0,N119)+IF($C120="",0,N120)+IF($C121="",0,N121)+IF($C122="",0,N122)+IF($C123="",0,N123) -> 0 | O124: =IF($C119="",0,O119)+IF($C120="",0,O120)+IF($C121="",0,O121)+IF($C122="",0,O122)+IF($C123="",0,O123) -> 0 | P124: =IF($C119="",0,P119)+IF($C120="",0,P120)+IF($C121="",0,P121)+IF($C122="",0,P122)+IF($C123="",0,P123) -> 0 | Q124: =IF($C119="",0,Q119)+IF($C120="",0,Q120)+IF($C121="",0,Q121)+IF($C122="",0,Q122)+IF($C123="",0,Q123) -> 0 | R124: =IF($C119="",0,R119)+IF($C120="",0,R120)+IF($C121="",0,R121)+IF($C122="",0,R122)+IF($C123="",0,R123) -> 0 | S124: 0 | T124: 0 | U124: 0 | V124: 0 | W124: 0 | X124: ='3'!$BG$94 -> Benznidazol 12,5 mg (III)
A125: VenezuelaCasos congénitos | B125: Venezuela | C125: =C119 -> Casos congénitos | I125: 0 | J125: 0 | K125: 0 | L125: 0 | M125: 0 | S125: 0 | T125: 0 | U125: 0 | V125: 0 | W125: 0 | X125: ='3'!$G$26 -> Benznidazol 12,5 mg
A126: Venezuela | B126: Venezuela | C126: =C120 ->  | I126: 0 | J126: 0 | K126: 0 | L126: 0 | M126: 0 | S126: 0 | T126: 0 | U126: 0 | V126: 0 | W126: 0 | X126: ='3'!$G$27 ->  | AJ126: x
A127: Venezuela | B127: Venezuela | C127: =C121 ->  | D127: 973.6701283 | E127: 975.3431262 | F127: 977.0189988 | G127: 978.6977509 | H127: 980.3793875 | I127: 0 | J127: 0 | K127: 0 | L127: 0 | M127: 0 | N127: 757.2989887 | O127: 758.6002093 | P127: 759.9036657 | Q127: 761.2093618 | R127: 762.5173014 | S127: 0 | T127: 0 | U127: 0 | V127: 0 | W127: 0 | X127: ='3'!$G$28 ->  | Y127: 0.00171823897 | Z127: 0.00171823897 | AA127: 0.00171823897 | AB127: 0.00171823897 | AC127: 0.00171823897 | AD127: 0.00171823897 | AE127: 0.00171823897 | AF127: 0.00171823897 | AG127: 0.00171823897 | AH127: 0.00171823897 | AI127: 0.00171823897 | AJ127: x
A128: Venezuela | B128: Venezuela | C128: =C122 ->  | D128: 66.65289207 | E128: 66.40074166 | F128: 66.14954514 | G128: 65.89929891 | H128: 65.64999937 | I128: 0 | J128: 0 | K128: 0 | L128: 0 | M128: 0 | N128: 51.84113828 | O128: 51.64502129 | P128: 51.44964622 | Q128: 51.25501026 | R128: 51.06111062 | S128: 0 | T128: 0 | U128: 0 | V128: 0 | W128: 0 | X128: ='3'!$G$29 ->  | Y128: -0.003783037826 | Z128: -0.003783037826 | AA128: -0.003783037826 | AB128: -0.003783037826 | AC128: -0.003783037826 | AD128: -0.003783037826 | AE128: -0.003783037826 | AF128: -0.003783037826 | AG128: -0.003783037826 | AH128: -0.003783037826 | AI128: -0.003783037826 | AJ128: x
A129: Venezuela | B129: Venezuela | C129: =C123 ->  | D129: 4 | E129: 4 | F129: 4 | G129: 4 | H129: 3 | I129: 0 | J129: 0 | K129: 0 | L129: 0 | M129: 0 | N129: 3 | O129: 3 | P129: 3 | Q129: 2 | R129: 2 | S129: 0 | T129: 0 | U129: 0 | V129: 0 | W129: 0 | X129: ='3'!$G$30 ->  | Y129: -0.07738095238 | Z129: -0.07738095238 | AA129: -0.07738095238 | AB129: -0.07738095238 | AC129: -0.07738095238 | AD129: -0.07738095238 | AE129: -0.07738095238 | AF129: -0.07738095238 | AG129: -0.07738095238 | AH129: -0.07738095238 | AI129: -0.07738095238 | AJ129: x
A130: VenezuelaTotal | B130: Venezuela | C130: ='3'!$BD$89 -> Total | D130: =IF($C125="",0,D125)+IF($C126="",0,D126)+IF($C127="",0,D127)+IF($C128="",0,D128)+IF($C129="",0,D129) -> 0 | E130: =IF($C125="",0,E125)+IF($C126="",0,E126)+IF($C127="",0,E127)+IF($C128="",0,E128)+IF($C129="",0,E129) -> 0 | F130: =IF($C125="",0,F125)+IF($C126="",0,F126)+IF($C127="",0,F127)+IF($C128="",0,F128)+IF($C129="",0,F129) -> 0 | G130: =IF($C125="",0,G125)+IF($C126="",0,G126)+IF($C127="",0,G127)+IF($C128="",0,G128)+IF($C129="",0,G129) -> 0 | H130: =IF($C125="",0,H125)+IF($C126="",0,H126)+IF($C127="",0,H127)+IF($C128="",0,H128)+IF($C129="",0,H129) -> 0 | I130: 0 | J130: 0 | K130: 0 | L130: 0 | M130: 0 | N130: =IF($C125="",0,N125)+IF($C126="",0,N126)+IF($C127="",0,N127)+IF($C128="",0,N128)+IF($C129="",0,N129) -> 0 | O130: =IF($C125="",0,O125)+IF($C126="",0,O126)+IF($C127="",0,O127)+IF($C128="",0,O128)+IF($C129="",0,O129) -> 0 | P130: =IF($C125="",0,P125)+IF($C126="",0,P126)+IF($C127="",0,P127)+IF($C128="",0,P128)+IF($C129="",0,P129) -> 0 | Q130: =IF($C125="",0,Q125)+IF($C126="",0,Q126)+IF($C127="",0,Q127)+IF($C128="",0,Q128)+IF($C129="",0,Q129) -> 0 | R130: =IF($C125="",0,R125)+IF($C126="",0,R126)+IF($C127="",0,R127)+IF($C128="",0,R128)+IF($C129="",0,R129) -> 0 | S130: 0 | T130: 0 | U130: 0 | V130: 0 | W130: 0 | X130: ='3'!$BG$94 -> Benznidazol 12,5 mg (III)
B131: LATAM

Sheet V (hidden)
A1: Variables de decisión
C3: Año | AL3: Filtro Avanzado
A4: País | B4: Variables con impacto en Nuevo escenario | C4: 2012 | D4: 2013 | E4: 2014 | F4: 2015 | G4: 2016 | H4: 2017 | I4: 2018 | J4: 2019 | K4: 2020 | L4: 2021 | AL4: País
A5: Argentina | B5: Programas especiales | C5: 0.15 | D5: 0.15 | E5: 0.15 | F5: 0.15 | G5: 0.15 | H5: 0.15 | I5: 0.15 | J5: 0.15 | K5: 0.15 | L5: 0.15 | AL5: ='3'!AW82 -> Argentina
A6: Argentina | B6: Incremento de Profesionales involucrados | C6: 0.1 | D6: 0.1 | E6: 0.1 | F6: 0.1 | G6: 0.1 | H6: 0.1 | I6: 0.1 | J6: 0.1 | K6: 0.1 | L6: 0.1 | AL6: ='3'!AW83 -> 0
A7: Argentina | B7: Incremento de Nuevos Centros | C7: 0.05 | D7: 0.05 | E7: 0.05 | F7: 0.05 | G7: 0.05 | H7: 0.05 | I7: 0.05 | J7: 0.05 | K7: 0.05 | L7: 0.05 | AL7: ='3'!AW84 -> 0
A8: Argentina | B8: Expansión de Tratamientos (sólo a Adultos) | AL8: ='3'!AW85 -> 0
A9: Belize | B9: Programas especiales | C9: 0.15 | D9: 0.15 | E9: 0.15 | F9: 0.15 | G9: 0.15 | H9: 0.15 | I9: 0.15 | J9: 0.15 | K9: 0.15 | L9: 0.15 | AL9: ='3'!AW86 -> 0
A10: Belize | B10: Incremento de Profesionales involucrados | C10: 0.1 | D10: 0.1 | E10: 0.1 | F10: 0.1 | G10: 0.1 | H10: 0.1 | I10: 0.1 | J10: 0.1 | K10: 0.1 | L10: 0.1 | AL10: ='3'!AW87 -> 0
A11: Belize | B11: Incremento de Nuevos Centros | C11: 0.05 | D11: 0.05 | E11: 0.05 | F11: 0.05 | G11: 0.05 | H11: 0.05 | I11: 0.05 | J11: 0.05 | K11: 0.05 | L11: 0.05 | AL11: ='3'!AW88 -> 0
A12: Belize | B12: Expansión de Tratamientos (sólo a Adultos) | AL12: ='3'!AW89 -> 0
A13: Bolivia | B13: Programas especiales | C13: 0.15 | D13: 0.15 | E13: 0.15 | F13: 0.15 | G13: 0.15 | H13: 0.15 | I13: 0.15 | J13: 0.15 | K13: 0.15 | L13: 0.15 | AL13: ='3'!AW90 -> 0
A14: Bolivia | B14: Incremento de Profesionales involucrados | C14: 0.1 | D14: 0.1 | E14: 0.1 | F14: 0.1 | G14: 0.1 | H14: 0.1 | I14: 0.1 | J14: 0.1 | K14: 0.1 | L14: 0.1 | AL14: ='3'!AW91 -> 0
A15: Bolivia | B15: Incremento de Nuevos Centros | C15: 0.05 | D15: 0.05 | E15: 0.05 | F15: 0.05 | G15: 0.05 | H15: 0.05 | I15: 0.05 | J15: 0.05 | K15: 0.05 | L15: 0.05 | AL15: ='3'!AW92 -> 0
A16: Bolivia | B16: Expansión de Tratamientos (sólo a Adultos) | AL16: ='3'!AW93 -> 0
A17: Brasil | B17: Programas especiales | C17: 0 | D17: 0.15 | E17: 0.15 | F17: 0.15 | G17: 0.15 | H17: 0.15 | I17: 0.15 | J17: 0.15 | K17: 0.15 | L17: 0.15 | AL17: ='3'!AW94 -> 0
A18: Brasil | B18: Incremento de Profesionales involucrados | C18: 0 | D18: 0.1 | E18: 0.1 | F18: 0.1 | G18: 0.1 | H18: 0.1 | I18: 0.1 | J18: 0.1 | K18: 0.1 | L18: 0.1 | AL18: ='3'!AW95 -> 0
A19: Brasil | B19: Incremento de Nuevos Centros | C19: 0 | D19: 0.05 | E19: 0.05 | F19: 0.05 | G19: 0.05 | H19: 0.05 | I19: 0.05 | J19: 0.05 | K19: 0.05 | L19: 0.05 | AL19: ='3'!AW96 -> 0
A20: Brasil | B20: Expansión de Tratamientos (sólo a Adultos) | C20: 0.1 | AL20: ='3'!AW97 -> 0
A21: Chile | B21: Programas especiales | C21: 0.15 | D21: 0.15 | E21: 0.15 | F21: 0.15 | G21: 0.15 | H21: 0.15 | I21: 0.15 | J21: 0.15 | K21: 0.15 | L21: 0.15 | AL21: ='3'!AW98 -> 0
A22: Chile | B22: Incremento de Profesionales involucrados | C22: 0.1 | D22: 0.1 | E22: 0.1 | F22: 0.1 | G22: 0.1 | H22: 0.1 | I22: 0.1 | J22: 0.1 | K22: 0.1 | L22: 0.1 | AL22: ='3'!AW99 -> 0
A23: Chile | B23: Incremento de Nuevos Centros | C23: 0.05 | D23: 0.05 | E23: 0.05 | F23: 0.05 | G23: 0.05 | H23: 0.05 | I23: 0.05 | J23: 0.05 | K23: 0.05 | L23: 0.05 | AL23: ='3'!AW100 -> 0
A24: Chile | B24: Expansión de Tratamientos (sólo a Adultos) | AL24: ='3'!AW101 -> 0
A25: Colombia | B25: Programas especiales | C25: 0.15 | D25: 0.15 | E25: 0.15 | F25: 0.15 | G25: 0.15 | H25: 0.15 | I25: 0.15 | J25: 0.15 | K25: 0.15 | L25: 0.15 | AL25: ='3'!AW102 -> 0
A26: Colombia | B26: Incremento de Profesionales involucrados | C26: 0.1 | D26: 0.1 | E26: 0.1 | F26: 0.1 | G26: 0.1 | H26: 0.1 | I26: 0.1 | J26: 0.1 | K26: 0.1 | L26: 0.1
A27: Colombia | B27: Incremento de Nuevos Centros | C27: 0.05 | D27: 0.05 | E27: 0.05 | F27: 0.05 | G27: 0.05 | H27: 0.05 | I27: 0.05 | J27: 0.05 | K27: 0.05 | L27: 0.05
A28: Colombia | B28: Expansión de Tratamientos (sólo a Adultos)
A29: Costa Rica | B29: Programas especiales | C29: 0.15 | D29: 0.15 | E29: 0.15 | F29: 0.15 | G29: 0.15 | H29: 0.15 | I29: 0.15 | J29: 0.15 | K29: 0.15 | L29: 0.15
A30: Costa Rica | B30: Incremento de Profesionales involucrados | C30: 0.1 | D30: 0.1 | E30: 0.1 | F30: 0.1 | G30: 0.1 | H30: 0.1 | I30: 0.1 | J30: 0.1 | K30: 0.1 | L30: 0.1
A31: Costa Rica | B31: Incremento de Nuevos Centros | C31: 0.05 | D31: 0.05 | E31: 0.05 | F31: 0.05 | G31: 0.05 | H31: 0.05 | I31: 0.05 | J31: 0.05 | K31: 0.05 | L31: 0.05
A32: Costa Rica | B32: Expansión de Tratamientos (sólo a Adultos)
A33: Ecuador | B33: Programas especiales | C33: 0.15 | D33: 0.15 | E33: 0.15 | F33: 0.15 | G33: 0.15 | H33: 0.15 | I33: 0.15 | J33: 0.15 | K33: 0.15 | L33: 0.15
A34: Ecuador | B34: Incremento de Profesionales involucrados | C34: 0.1 | D34: 0.1 | E34: 0.1 | F34: 0.1 | G34: 0.1 | H34: 0.1 | I34: 0.1 | J34: 0.1 | K34: 0.1 | L34: 0.1
A35: Ecuador | B35: Incremento de Nuevos Centros | C35: 0.05 | D35: 0.05 | E35: 0.05 | F35: 0.05 | G35: 0.05 | H35: 0.05 | I35: 0.05 | J35: 0.05 | K35: 0.05 | L35: 0.05
A36: Ecuador | B36: Expansión de Tratamientos (sólo a Adultos)
A37: El Salvador | B37: Programas especiales | C37: 0.15 | D37: 0.15 | E37: 0.15 | F37: 0.15 | G37: 0.15 | H37: 0.15 | I37: 0.15 | J37: 0.15 | K37: 0.15 | L37: 0.15
A38: El Salvador | B38: Incremento de Profesionales involucrados | C38: 0.1 | D38: 0.1 | E38: 0.1 | F38: 0.1 | G38: 0.1 | H38: 0.1 | I38: 0.1 | J38: 0.1 | K38: 0.1 | L38: 0.1
A39: El Salvador | B39: Incremento de Nuevos Centros | C39: 0.05 | D39: 0.05 | E39: 0.05 | F39: 0.05 | G39: 0.05 | H39: 0.05 | I39: 0.05 | J39: 0.05 | K39: 0.05 | L39: 0.05
A40: El Salvador | B40: Expansión de Tratamientos (sólo a Adultos)
A41: Guatemala | B41: Programas especiales | C41: 0.15 | D41: 0.15 | E41: 0.15 | F41: 0.15 | G41: 0.15 | H41: 0.15 | I41: 0.15 | J41: 0.15 | K41: 0.15 | L41: 0.15
A42: Guatemala | B42: Incremento de Profesionales involucrados | C42: 0.1 | D42: 0.1 | E42: 0.1 | F42: 0.1 | G42: 0.1 | H42: 0.1 | I42: 0.1 | J42: 0.1 | K42: 0.1 | L42: 0.1
A43: Guatemala | B43: Incremento de Nuevos Centros | C43: 0.05 | D43: 0.05 | E43: 0.05 | F43: 0.05 | G43: 0.05 | H43: 0.05 | I43: 0.05 | J43: 0.05 | K43: 0.05 | L43: 0.05
A44: Guatemala | B44: Expansión de Tratamientos (sólo a Adultos)
A45: Guyana | B45: Programas especiales | C45: 0.15 | D45: 0.15 | E45: 0.15 | F45: 0.15 | G45: 0.15 | H45: 0.15 | I45: 0.15 | J45: 0.15 | K45: 0.15 | L45: 0.15
A46: Guyana | B46: Incremento de Profesionales involucrados | C46: 0.1 | D46: 0.1 | E46: 0.1 | F46: 0.1 | G46: 0.1 | H46: 0.1 | I46: 0.1 | J46: 0.1 | K46: 0.1 | L46: 0.1
A47: Guyana | B47: Incremento de Nuevos Centros | C47: 0.05 | D47: 0.05 | E47: 0.05 | F47: 0.05 | G47: 0.05 | H47: 0.05 | I47: 0.05 | J47: 0.05 | K47: 0.05 | L47: 0.05
A48: Guyana | B48: Expansión de Tratamientos (sólo a Adultos)
A49: Guyana Francesa | B49: Programas especiales | C49: 0.15 | D49: 0.15 | E49: 0.15 | F49: 0.15 | G49: 0.15 | H49: 0.15 | I49: 0.15 | J49: 0.15 | K49: 0.15 | L49: 0.15
A50: Guyana Francesa | B50: Incremento de Profesionales involucrados | C50: 0.1 | D50: 0.1 | E50: 0.1 | F50: 0.1 | G50: 0.1 | H50: 0.1 | I50: 0.1 | J50: 0.1 | K50: 0.1 | L50: 0.1
A51: Guyana Francesa | B51: Incremento de Nuevos Centros | C51: 0.05 | D51: 0.05 | E51: 0.05 | F51: 0.05 | G51: 0.05 | H51: 0.05 | I51: 0.05 | J51: 0.05 | K51: 0.05 | L51: 0.05
A52: Guyana Francesa | B52: Expansión de Tratamientos (sólo a Adultos)
A53: Honduras | B53: Programas especiales | C53: 0.15 | D53: 0.15 | E53: 0.15 | F53: 0.15 | G53: 0.15 | H53: 0.15 | I53: 0.15 | J53: 0.15 | K53: 0.15 | L53: 0.15
A54: Honduras | B54: Incremento de Profesionales involucrados | C54: 0.1 | D54: 0.1 | E54: 0.1 | F54: 0.1 | G54: 0.1 | H54: 0.1 | I54: 0.1 | J54: 0.1 | K54: 0.1 | L54: 0.1
A55: Honduras | B55: Incremento de Nuevos Centros | C55: 0.05 | D55: 0.05 | E55: 0.05 | F55: 0.05 | G55: 0.05 | H55: 0.05 | I55: 0.05 | J55: 0.05 | K55: 0.05 | L55: 0.05
A56: Honduras | B56: Expansión de Tratamientos (sólo a Adultos)
A57: México | B57: Programas especiales | C57: 0.15 | D57: 0.15 | E57: 0.15 | F57: 0.15 | G57: 0.15 | H57: 0.15 | I57: 0.15 | J57: 0.15 | K57: 0.15 | L57: 0.15
A58: México | B58: Incremento de Profesionales involucrados | C58: 0.1 | D58: 0.1 | E58: 0.1 | F58: 0.1 | G58: 0.1 | H58: 0.1 | I58: 0.1 | J58: 0.1 | K58: 0.1 | L58: 0.1
A59: México | B59: Incremento de Nuevos Centros | C59: 0.05 | D59: 0.05 | E59: 0.05 | F59: 0.05 | G59: 0.05 | H59: 0.05 | I59: 0.05 | J59: 0.05 | K59: 0.05 | L59: 0.05
A60: México | B60: Expansión de Tratamientos (sólo a Adultos)
A61: Nicaragua | B61: Programas especiales | C61: 0.15 | D61: 0.15 | E61: 0.15 | F61: 0.15 | G61: 0.15 | H61: 0.15 | I61: 0.15 | J61: 0.15 | K61: 0.15 | L61: 0.15
A62: Nicaragua | B62: Incremento de Profesionales involucrados | C62: 0.1 | D62: 0.1 | E62: 0.1 | F62: 0.1 | G62: 0.1 | H62: 0.1 | I62: 0.1 | J62: 0.1 | K62: 0.1 | L62: 0.1
A63: Nicaragua | B63: Incremento de Nuevos Centros | C63: 0.05 | D63: 0.05 | E63: 0.05 | F63: 0.05 | G63: 0.05 | H63: 0.05 | I63: 0.05 | J63: 0.05 | K63: 0.05 | L63: 0.05
A64: Nicaragua | B64: Expansión de Tratamientos (sólo a Adultos)
A65: Panamá | B65: Programas especiales | C65: 0.15 | D65: 0.15 | E65: 0.15 | F65: 0.15 | G65: 0.15 | H65: 0.15 | I65: 0.15 | J65: 0.15 | K65: 0.15 | L65: 0.15
A66: Panamá | B66: Incremento de Profesionales involucrados | C66: 0.1 | D66: 0.1 | E66: 0.1 | F66: 0.1 | G66: 0.1 | H66: 0.1 | I66: 0.1 | J66: 0.1 | K66: 0.1 | L66: 0.1
A67: Panamá | B67: Incremento de Nuevos Centros | C67: 0.05 | D67: 0.05 | E67: 0.05 | F67: 0.05 | G67: 0.05 | H67: 0.05 | I67: 0.05 | J67: 0.05 | K67: 0.05 | L67: 0.05
A68: Panamá | B68: Expansión de Tratamientos (sólo a Adultos)
A69: Paraguay | B69: Programas especiales | C69: 0.15 | D69: 0.15 | E69: 0.15 | F69: 0.15 | G69: 0.15 | H69: 0.15 | I69: 0.15 | J69: 0.15 | K69: 0.15 | L69: 0.15
A70: Paraguay | B70: Incremento de Profesionales involucrados | C70: 0.1 | D70: 0.1 | E70: 0.1 | F70: 0.1 | G70: 0.1 | H70: 0.1 | I70: 0.1 | J70: 0.1 | K70: 0.1 | L70: 0.1
A71: Paraguay | B71: Incremento de Nuevos Centros | C71: 0.05 | D71: 0.05 | E71: 0.05 | F71: 0.05 | G71: 0.05 | H71: 0.05 | I71: 0.05 | J71: 0.05 | K71: 0.05 | L71: 0.05
A72: Paraguay | B72: Expansión de Tratamientos (sólo a Adultos)
A73: Perú | B73: Programas especiales | C73: 0.15 | D73: 0.15 | E73: 0.15 | F73: 0.15 | G73: 0.15 | H73: 0.15 | I73: 0.15 | J73: 0.15 | K73: 0.15 | L73: 0.15
A74: Perú | B74: Incremento de Profesionales involucrados | C74: 0.1 | D74: 0.1 | E74: 0.1 | F74: 0.1 | G74: 0.1 | H74: 0.1 | I74: 0.1 | J74: 0.1 | K74: 0.1 | L74: 0.1
A75: Perú | B75: Incremento de Nuevos Centros | C75: 0.05 | D75: 0.05 | E75: 0.05 | F75: 0.05 | G75: 0.05 | H75: 0.05 | I75: 0.05 | J75: 0.05 | K75: 0.05 | L75: 0.05
A76: Perú | B76: Expansión de Tratamientos (sólo a Adultos)
A77: Surinam | B77: Programas especiales | C77: 0.15 | D77: 0.15 | E77: 0.15 | F77: 0.15 | G77: 0.15 | H77: 0.15 | I77: 0.15 | J77: 0.15 | K77: 0.15 | L77: 0.15
A78: Surinam | B78: Incremento de Profesionales involucrados | C78: 0.1 | D78: 0.1 | E78: 0.1 | F78: 0.1 | G78: 0.1 | H78: 0.1 | I78: 0.1 | J78: 0.1 | K78: 0.1 | L78: 0.1
A79: Surinam | B79: Incremento de Nuevos Centros | C79: 0.05 | D79: 0.05 | E79: 0.05 | F79: 0.05 | G79: 0.05 | H79: 0.05 | I79: 0.05 | J79: 0.05 | K79: 0.05 | L79: 0.05
A80: Surinam | B80: Expansión de Tratamientos (sólo a Adultos)
A81: Uruguay | B81: Programas especiales | C81: 0.15 | D81: 0.15 | E81: 0.15 | F81: 0.15 | G81: 0.15 | H81: 0.15 | I81: 0.15 | J81: 0.15 | K81: 0.15 | L81: 0.15
A82: Uruguay | B82: Incremento de Profesionales involucrados | C82: 0.1 | D82: 0.1 | E82: 0.1 | F82: 0.1 | G82: 0.1 | H82: 0.1 | I82: 0.1 | J82: 0.1 | K82: 0.1 | L82: 0.1
A83: Uruguay | B83: Incremento de Nuevos Centros | C83: 0.05 | D83: 0.05 | E83: 0.05 | F83: 0.05 | G83: 0.05 | H83: 0.05 | I83: 0.05 | J83: 0.05 | K83: 0.05 | L83: 0.05
A84: Uruguay | B84: Expansión de Tratamientos (sólo a Adultos)
A85: Venezuela | B85: Programas especiales | C85: 0.15 | D85: 0.15 | E85: 0.15 | F85: 0.15 | G85: 0.15 | H85: 0.15 | I85: 0.15 | J85: 0.15 | K85: 0.15 | L85: 0.15
A86: Venezuela | B86: Incremento de Profesionales involucrados | C86: 0.1 | D86: 0.1 | E86: 0.1 | F86: 0.1 | G86: 0.1 | H86: 0.1 | I86: 0.1 | J86: 0.1 | K86: 0.1 | L86: 0.1
A87: Venezuela | B87: Incremento de Nuevos Centros | C87: 0.05 | D87: 0.05 | E87: 0.05 | F87: 0.05 | G87: 0.05 | H87: 0.05 | I87: 0.05 | J87: 0.05 | K87: 0.05 | L87: 0.05
A88: Venezuela | B88: Expansión de Tratamientos (sólo a Adultos)

Sheet rp (hidden)
B1: ="Resumen de los países "&"(Producto seleccionado: "&'3'!$BG$94&")" -> Resumen de los países (Producto seleccionado: Benznidazol 12,5 mg (III))
C3: ='3'!B8 -> 0 | E3: =IF(ISNA(VLOOKUP(E4,'3'!$AY$82:$AY$93,1,0)),FALSE,TRUE) -> TRUE | F3: =IF(ISNA(VLOOKUP(F4,'3'!$AY$82:$AY$93,1,0)),FALSE,TRUE) -> TRUE | G3: =IF(ISNA(VLOOKUP(G4,'3'!$AY$82:$AY$93,1,0)),FALSE,TRUE) -> TRUE | H3: =IF(ISNA(VLOOKUP(H4,'3'!$AY$82:$AY$93,1,0)),FALSE,TRUE) -> TRUE | I3: =IF(ISNA(VLOOKUP(I4,'3'!$AY$82:$AY$93,1,0)),FALSE,TRUE) -> TRUE | J3: =IF(ISNA(VLOOKUP(J4,'3'!$AY$82:$AY$93,1,0)),FALSE,TRUE) -> TRUE | K3: =IF(ISNA(VLOOKUP(K4,'3'!$AY$82:$AY$93,1,0)),FALSE,TRUE) -> TRUE | L3: =IF(ISNA(VLOOKUP(L4,'3'!$AY$82:$AY$93,1,0)),FALSE,TRUE) -> TRUE | M3: =IF(ISNA(VLOOKUP(M4,'3'!$AY$82:$AY$93,1,0)),FALSE,TRUE) -> FALSE | N3: =IF(ISNA(VLOOKUP(N4,'3'!$AY$82:$AY$93,1,0)),FALSE,TRUE) -> FALSE | P3: Filtro Avanzado
A4: ID | B4: País | C4: Escenario | D4: Variable | E4: 2012 | F4: 2013 | G4: 2014 | H4: 2015 | I4: 2016 | J4: 2017 | K4: 2018 | L4: 2019 | M4: 2020 | N4: 2021 | P4: País | Q4: Variable
A5: =B5&D5 -> LatinoaméricaPoblación general | B5: Latinoamérica | C5: 1 | D5: Población general | E5: =SUM(E18,E31,E44,E57,E70,E83,E96,E109,E122,E135,E148,E161,E174,E187,E200,E213,E226,E239,E252,E265,E278) -> 99891.03894 | F5: 99782.1966 | G5: 99673.47286 | H5: 99564.86759 | I5: 99456.38065 | J5: 99348.01192 | K5: 99239.76128 | L5: 99131.62858 | M5: 99023.6137 | N5: 98915.71652 | U5: =MATCH("R1",AR!A:A,0) -> 111
A6: LatinoaméricaZona endémica absoluta | B6: Latinoamérica | C6: 1 | D6: Zona endémica absoluta | E6: =SUM(E19,E32,E45,E58,E71,E84,E97,E110,E123,E136,E149,E162,E175,E188,E201,E214,E227,E240,E253,E266,E279) -> 49945.51947 | F6: 49891.0983 | G6: 49836.73643 | H6: 49782.43379 | I6: 49728.19033 | J6: 49674.00596 | K6: 49619.88064 | L6: 49565.81429 | M6: 49511.80685 | N6: 49457.85826 | U6: =MATCH("R2",AR!A:A,0) -> 112
A7: LatinoaméricaPorcentaje Zona endémica absoluta | B7: Latinoamérica | C7: 1 | D7: ="Porcentaje "&D6 -> Porcentaje Zona endémica absoluta | E7: =SUM(E20,E33,E46,E59,E72,E85,E98,E111,E124,E137,E150,E163,E176,E189,E202,E215,E228,E241,E254,E267,E280) ->  | U7: =MATCH("R3",AR!A:A,0) -> 113
A8: LatinoaméricaPoblación estimada positiva (prevalencia) | B8: Latinoamérica | C8: 1 | D8: Población estimada positiva (prevalencia) | E8: =SUM(E21,E34,E47,E60,E73,E86,E99,E112,E125,E138,E151,E164,E177,E190,E203,E216,E229,E242,E255,E268,E281) -> 44950.96752 | F8: 44901.98847 | G8: 44853.06279 | H8: 44804.19041 | I8: 44755.37129 | J8: 44706.60537 | K8: 44657.89257 | L8: 44609.23286 | M8: 44560.62617 | N8: 44512.07244 | U8: =MATCH("R4",AR!A:A,0) -> 114
A9: LatinoaméricaPorcentaje Población estimada positiva (prevalencia) | B9: Latinoamérica | C9: 1 | D9: ="Porcentaje "&D8 -> Porcentaje Población estimada positiva (prevalencia) | E9: =SUM(E22,E35,E48,E61,E74,E87,E100,E113,E126,E139,E152,E165,E178,E191,E204,E217,E230,E243,E256,E269,E282) ->  | U9: =MATCH("R5",AR!A:A,0) -> 115
A10: LatinoaméricaDiagnósticos Posibles | B10: Latinoamérica | C10: 1 | D10: Diagnósticos Posibles | E10: =SUM(E23,E36,E49,E62,E75,E88,E101,E114,E127,E140,E153,E166,E179,E192,E205,E218,E231,E244,E257,E270,E283) -> 22475.48376 | F10: 22450.99424 | G10: 22426.53139 | H10: 22402.09521 | I10: 22377.68565 | J10: 22353.30268 | K10: 22328.94629 | L10: 22304.61643 | M10: 22280.31308 | N10: 22256.03622 | U10: =MATCH("R9",AR!A:A,0) -> 119
A11: LatinoaméricaPorcentaje Diagnósticos Posibles | B11: Latinoamérica | C11: 1 | D11: ="Porcentaje "&D10 -> Porcentaje Diagnósticos Posibles | E11: =SUM(E24,E37,E50,E63,E76,E89,E102,E115,E128,E141,E154,E167,E180,E193,E206,E219,E232,E245,E258,E271,E284) ->  | U11: =MATCH("R10",AR!A:A,0) -> 120
A12: LatinoaméricaTratamientos Posibles - Requerimiento actual | B12: Latinoamérica | C12: 1 | D12: Tratamientos Posibles - Requerimiento actual | E12: =SUM(E25,E38,E51,E64,E77,E90,E103,E116,E129,E142,E155,E168,E181,E194,E207,E220,E233,E246,E259,E272,E285) -> 2247.548376 | F12: 2245.099424 | G12: 2242.653139 | H12: 2240.209521 | I12: 2237.768565 | J12: 2235.330268 | K12: 2232.894629 | L12: 2230.461643 | M12: 2228.031308 | N12: 2225.603622 | U12: =MATCH("R14",AR!A:A,0) -> 124
A13: LatinoaméricaPorcentaje Tratamientos Posibles - Requerimiento actual | B13: Latinoamérica | C13: 1 | D13: ="Porcentaje "&D12 -> Porcentaje Tratamientos Posibles - Requerimiento actual | E13: =SUM(E26,E39,E52,E65,E78,E91,E104,E117,E130,E143,E156,E169,E182,E195,E208,E221,E234,E247,E260,E273,E286) ->  | U13: =MATCH("R15",AR!A:A,0) -> 125
A14: LatinoaméricaTratamientos Posibles - Proyección | B14: Latinoamérica | C14: 2 | D14: Tratamientos Posibles - Proyección | E14: =SUM(E27,E40,E53,E66,E79,E92,E105,E118,E131,E144,E157,E170,E183,E196,E209,E222,E235,E248,E261,E274,E287) -> 2921.812889 | F14: 2918.629251 | G14: 2915.449081 | H14: 2912.272377 | I14: 2909.099134 | J14: 2905.929349 | K14: 2902.763017 | L14: 2899.600136 | M14: 2896.440701 | N14: 2893.284708 | U14: =MATCH("R19",AR!A:A,0) -> 129
A15: LatinoaméricaPorcentaje Tratamientos Posibles - Proyección | B15: Latinoamérica | C15: 2 | D15: ="Porcentaje "&D14 -> Porcentaje Tratamientos Posibles - Proyección | E15: =SUM(E28,E41,E54,E67,E80,E93,E106,E119,E132,E145,E158,E171,E184,E197,E210,E223,E236,E249,E262,E275,E288) ->  | U15: =MATCH("R20",AR!A:A,0) -> 130
A16: LatinoaméricaDemanda de comprimidos (Benznidazol 12,5 mg (III)) - Requerimiento actual | B16: Latinoamérica | C16: 1 | D16: ="Demanda de comprimidos"&" ("&'3'!$BG$94&") - Requerimiento actual" -> Demanda de comprimidos (Benznidazol 12,5 mg (III)) - Requerimiento actual | E16: =SUM(E29,E42,E55,E68,E81,E94,E107,E120,E133,E146,E159,E172,E185,E198,E211,E224,E237,E250,E263,E276,E289) -> 539411.6103 | F16: 538823.8617 | G16: 538236.7535 | H16: 537650.285 | I16: 537064.4555 | J16: 536479.2644 | K16: 535894.7109 | L16: 535310.7943 | M16: 534727.514 | N16: 534144.8692 | U16: =MATCH("R24",AR!A:A,0) -> 134
A17: LatinoaméricaDemanda de comprimidos (Benznidazol 12,5 mg (III)) - Proyección | B17: Latinoamérica | C17: 2 | D17: ="Demanda de comprimidos"&" ("&'3'!$BG$94&") - Proyección" -> Demanda de comprimidos (Benznidazol 12,5 mg (III)) - Proyección | E17: =SUM(E30,E43,E56,E69,E82,E95,E108,E121,E134,E147,E160,E173,E186,E199,E212,E225,E238,E251,E264,E277,E290) -> 701235.0933 | F17: 700471.0201 | G17: 699707.7795 | H17: 698945.3705 | I17: 698183.7922 | J17: 697423.0437 | K17: 696663.1242 | L17: 695904.0326 | M17: 695145.7682 | N17: 694388.33 | U17: =MATCH("R28",AR!A:A,0) -> 138
A18: ArgentinaPoblación general | B18: Argentina | C18: 1 | D18: Población general | E18: =INDIRECT(ADDRESS(U18,4,4,1,VLOOKUP(B18,'C'!$B$5:$D$25,2,0))) -> 99891.03894 | F18: =INDIRECT(ADDRESS(U18,5,4,1,VLOOKUP(B18,'C'!$B$5:$D$25,2,0))) -> 99782.1966 | G18: =INDIRECT(ADDRESS(U18,6,4,1,VLOOKUP(B18,'C'!$B$5:$D$25,2,0))) -> 99673.47286 | H18: =INDIRECT(ADDRESS(U18,7,4,1,VLOOKUP(B18,'C'!$B$5:$D$25,2,0))) -> 99564.86759 | I18: =INDIRECT(ADDRESS(U18,8,4,1,VLOOKUP(B18,'C'!$B$5:$D$25,2,0))) -> 99456.38065 | J18: =INDIRECT(ADDRESS(U18,9,4,1,VLOOKUP(B18,'C'!$B$5:$D$25,2,0))) -> 99348.01192 | K18: =INDIRECT(ADDRESS(U18,10,4,1,VLOOKUP(B18,'C'!$B$5:$D$25,2,0))) -> 99239.76128 | L18: =INDIRECT(ADDRESS(U18,11,4,1,VLOOKUP(B18,'C'!$B$5:$D$25,2,0))) -> 99131.62858 | M18: =INDIRECT(ADDRESS(U18,12,4,1,VLOOKUP(B18,'C'!$B$5:$D$25,2,0))) -> 99023.6137 | N18: =INDIRECT(ADDRESS(U18,13,4,1,VLOOKUP(B18,'C'!$B$5:$D$25,2,0))) -> 98915.71652 | U18: =MATCH("R1",AR!A:A,0) -> 111
A19: =B19&D19 -> ArgentinaZona endémica absoluta | B19: Argentina | C19: 1 | D19: Zona endémica absoluta | E19: =INDIRECT(ADDRESS(U19,4,4,1,VLOOKUP(B19,'C'!$B$5:$D$25,2,0))) -> 49945.51947 | F19: =INDIRECT(ADDRESS(U19,5,4,1,VLOOKUP(B19,'C'!$B$5:$D$25,2,0))) -> 49891.0983 | G19: =INDIRECT(ADDRESS(U19,6,4,1,VLOOKUP(B19,'C'!$B$5:$D$25,2,0))) -> 49836.73643 | H19: =INDIRECT(ADDRESS(U19,7,4,1,VLOOKUP(B19,'C'!$B$5:$D$25,2,0))) -> 49782.43379 | I19: =INDIRECT(ADDRESS(U19,8,4,1,VLOOKUP(B19,'C'!$B$5:$D$25,2,0))) -> 49728.19033 | J19: =INDIRECT(ADDRESS(U19,9,4,1,VLOOKUP(B19,'C'!$B$5:$D$25,2,0))) -> 49674.00596 | K19: =INDIRECT(ADDRESS(U19,10,4,1,VLOOKUP(B19,'C'!$B$5:$D$25,2,0))) -> 49619.88064 | L19: =INDIRECT(ADDRESS(U19,11,4,1,VLOOKUP(B19,'C'!$B$5:$D$25,2,0))) -> 49565.81429 | M19: =INDIRECT(ADDRESS(U19,12,4,1,VLOOKUP(B19,'C'!$B$5:$D$25,2,0))) -> 49511.80685 | N19: =INDIRECT(ADDRESS(U19,13,4,1,VLOOKUP(B19,'C'!$B$5:$D$25,2,0))) -> 49457.85826 | U19: =MATCH("R2",AR!A:A,0) -> 112
A20: ArgentinaPorcentaje Zona endémica absoluta | B20: Argentina | C20: 1 | D20: ="Porcentaje "&D19 -> Porcentaje Zona endémica absoluta | E20: =E19/E18 -> 0.5 | F20: =F19/F18 -> 0.5 | G20: 0.5 | H20: 0.5 | I20: 0.5 | J20: 0.5 | K20: 0.5 | L20: 0.5 | M20: 0.5 | N20: 0.5 | U20: =MATCH("R3",AR!A:A,0) -> 113
A21: ArgentinaPoblación estimada positiva (prevalencia) | B21: Argentina | C21: 1 | D21: Población estimada positiva (prevalencia) | E21: =INDIRECT(ADDRESS(U21,4,4,1,VLOOKUP(B21,'C'!$B$5:$D$25,2,0))) -> 44950.96752 | F21: =INDIRECT(ADDRESS(U21,5,4,1,VLOOKUP(B21,'C'!$B$5:$D$25,2,0))) -> 44901.98847 | G21: =INDIRECT(ADDRESS(U21,6,4,1,VLOOKUP(B21,'C'!$B$5:$D$25,2,0))) -> 44853.06279 | H21: =INDIRECT(ADDRESS(U21,7,4,1,VLOOKUP(B21,'C'!$B$5:$D$25,2,0))) -> 44804.19041 | I21: =INDIRECT(ADDRESS(U21,8,4,1,VLOOKUP(B21,'C'!$B$5:$D$25,2,0))) -> 44755.37129 | J21: =INDIRECT(ADDRESS(U21,9,4,1,VLOOKUP(B21,'C'!$B$5:$D$25,2,0))) -> 44706.60537 | K21: =INDIRECT(ADDRESS(U21,10,4,1,VLOOKUP(B21,'C'!$B$5:$D$25,2,0))) -> 44657.89257 | L21: =INDIRECT(ADDRESS(U21,11,4,1,VLOOKUP(B21,'C'!$B$5:$D$25,2,0))) -> 44609.23286 | M21: =INDIRECT(ADDRESS(U21,12,4,1,VLOOKUP(B21,'C'!$B$5:$D$25,2,0))) -> 44560.62617 | N21: =INDIRECT(ADDRESS(U21,13,4,1,VLOOKUP(B21,'C'!$B$5:$D$25,2,0))) -> 44512.07244 | U21: =MATCH("R4",AR!A:A,0) -> 114
A22: ArgentinaPorcentaje Población estimada positiva (prevalencia) | B22: Argentina | C22: 1 | D22: ="Porcentaje "&D21 -> Porcentaje Población estimada positiva (prevalencia) | E22: =E21/E18 -> 0.45 | F22: 0.45 | G22: 0.45 | H22: 0.45 | I22: 0.45 | J22: 0.45 | K22: 0.45 | L22: 0.45 | M22: 0.45 | N22: 0.45 | U22: =MATCH("R5",AR!A:A,0) -> 115
A23: ArgentinaDiagnósticos Posibles | B23: Argentina | C23: 1 | D23: Diagnósticos Posibles | E23: =INDIRECT(ADDRESS(U23,4,4,1,VLOOKUP(B23,'C'!$B$5:$D$25,2,0))) -> 22475.48376 | F23: =INDIRECT(ADDRESS(U23,5,4,1,VLOOKUP(B23,'C'!$B$5:$D$25,2,0))) -> 22450.99424 | G23: =INDIRECT(ADDRESS(U23,6,4,1,VLOOKUP(B23,'C'!$B$5:$D$25,2,0))) -> 22426.53139 | H23: =INDIRECT(ADDRESS(U23,7,4,1,VLOOKUP(B23,'C'!$B$5:$D$25,2,0))) -> 22402.09521 | I23: =INDIRECT(ADDRESS(U23,8,4,1,VLOOKUP(B23,'C'!$B$5:$D$25,2,0))) -> 22377.68565 | J23: =INDIRECT(ADDRESS(U23,9,4,1,VLOOKUP(B23,'C'!$B$5:$D$25,2,0))) -> 22353.30268 | K23: =INDIRECT(ADDRESS(U23,10,4,1,VLOOKUP(B23,'C'!$B$5:$D$25,2,0))) -> 22328.94629 | L23: =INDIRECT(ADDRESS(U23,11,4,1,VLOOKUP(B23,'C'!$B$5:$D$25,2,0))) -> 22304.61643 | M23: =INDIRECT(ADDRESS(U23,12,4,1,VLOOKUP(B23,'C'!$B$5:$D$25,2,0))) -> 22280.31308 | N23: =INDIRECT(ADDRESS(U23,13,4,1,VLOOKUP(B23,'C'!$B$5:$D$25,2,0))) -> 22256.03622 | U23: =MATCH("R9",AR!A:A,0) -> 119
A24: ArgentinaPorcentaje Diagnósticos Posibles | B24: Argentina | C24: 1 | D24: ="Porcentaje "&D23 -> Porcentaje Diagnósticos Posibles | E24: =E23/E21 -> 0.5 | F24: 0.5 | G24: 0.5 | H24: 0.5 | I24: 0.5 | J24: 0.5 | K24: 0.5 | L24: 0.5 | M24: 0.5 | N24: 0.5 | U24: =MATCH("R10",AR!A:A,0) -> 120
A25: ArgentinaTratamientos Posibles - Requerimiento actual | B25: Argentina | C25: 1 | D25: Tratamientos Posibles - Requerimiento actual | E25: =INDIRECT(ADDRESS(U25,4,4,1,VLOOKUP(B25,'C'!$B$5:$D$25,2,0))) -> 2247.548376 | F25: =INDIRECT(ADDRESS(U25,5,4,1,VLOOKUP(B25,'C'!$B$5:$D$25,2,0))) -> 2245.099424 | G25: =INDIRECT(ADDRESS(U25,6,4,1,VLOOKUP(B25,'C'!$B$5:$D$25,2,0))) -> 2242.653139 | H25: =INDIRECT(ADDRESS(U25,7,4,1,VLOOKUP(B25,'C'!$B$5:$D$25,2,0))) -> 2240.209521 | I25: =INDIRECT(ADDRESS(U25,8,4,1,VLOOKUP(B25,'C'!$B$5:$D$25,2,0))) -> 2237.768565 | J25: =INDIRECT(ADDRESS(U25,9,4,1,VLOOKUP(B25,'C'!$B$5:$D$25,2,0))) -> 2235.330268 | K25: =INDIRECT(ADDRESS(U25,10,4,1,VLOOKUP(B25,'C'!$B$5:$D$25,2,0))) -> 2232.894629 | L25: =INDIRECT(ADDRESS(U25,11,4,1,VLOOKUP(B25,'C'!$B$5:$D$25,2,0))) -> 2230.461643 | M25: =INDIRECT(ADDRESS(U25,12,4,1,VLOOKUP(B25,'C'!$B$5:$D$25,2,0))) -> 2228.031308 | N25: =INDIRECT(ADDRESS(U25,13,4,1,VLOOKUP(B25,'C'!$B$5:$D$25,2,0))) -> 2225.603622 | U25: =MATCH("R14",AR!A:A,0) -> 124
A26: ArgentinaPorcentaje Tratamientos Posibles - Requerimiento actual | B26: Argentina | C26: 1 | D26: ="Porcentaje "&D25 -> Porcentaje Tratamientos Posibles - Requerimiento actual | E26: =E25/E23 -> 0.1 | F26: 0.1 | G26: 0.1 | H26: 0.1 | I26: 0.1 | J26: 0.1 | K26: 0.1 | L26: 0.1 | M26: 0.1 | N26: 0.1 | U26: =MATCH("R15",AR!A:A,0) -> 125
A27: ArgentinaTratamientos Posibles - Proyección | B27: Argentina | C27: 2 | D27: Tratamientos Posibles - Proyección | E27: =INDIRECT(ADDRESS(U27,4,4,1,VLOOKUP(B27,'C'!$B$5:$D$25,2,0))) -> 2921.812889 | F27: =INDIRECT(ADDRESS(U27,5,4,1,VLOOKUP(B27,'C'!$B$5:$D$25,2,0))) -> 2918.629251 | G27: =INDIRECT(ADDRESS(U27,6,4,1,VLOOKUP(B27,'C'!$B$5:$D$25,2,0))) -> 2915.449081 | H27: =INDIRECT(ADDRESS(U27,7,4,1,VLOOKUP(B27,'C'!$B$5:$D$25,2,0))) -> 2912.272377 | I27: =INDIRECT(ADDRESS(U27,8,4,1,VLOOKUP(B27,'C'!$B$5:$D$25,2,0))) -> 2909.099134 | J27: =INDIRECT(ADDRESS(U27,9,4,1,VLOOKUP(B27,'C'!$B$5:$D$25,2,0))) -> 2905.929349 | K27: =INDIRECT(ADDRESS(U27,10,4,1,VLOOKUP(B27,'C'!$B$5:$D$25,2,0))) -> 2902.763017 | L27: =INDIRECT(ADDRESS(U27,11,4,1,VLOOKUP(B27,'C'!$B$5:$D$25,2,0))) -> 2899.600136 | M27: =INDIRECT(ADDRESS(U27,12,4,1,VLOOKUP(B27,'C'!$B$5:$D$25,2,0))) -> 2896.440701 | N27: =INDIRECT(ADDRESS(U27,13,4,1,VLOOKUP(B27,'C'!$B$5:$D$25,2,0))) -> 2893.284708 | U27: =MATCH("R19",AR!A:A,0) -> 129
A28: ArgentinaPorcentaje Tratamientos Posibles - Proyección | B28: Argentina | C28: 2 | D28: ="Porcentaje "&D27 -> Porcentaje Tratamientos Posibles - Proyección | E28: =E27/E23 -> 0.13 | F28: 0.13 | G28: 0.13 | H28: 0.13 | I28: 0.13 | J28: 0.13 | K28: 0.13 | L28: 0.13 | M28: 0.13 | N28: 0.13 | U28: =MATCH("R20",AR!A:A,0) -> 130
A29: ArgentinaDemanda de comprimidos (Benznidazol 12,5 mg (III)) - Requerimiento actual | B29: Argentina | C29: 1 | D29: ="Demanda de comprimidos"&" ("&'3'!$BG$94&") - Requerimiento actual" -> Demanda de comprimidos (Benznidazol 12,5 mg (III)) - Requerimiento actual | E29: =INDIRECT(ADDRESS(U29,4,4,1,VLOOKUP(B29,'C'!$B$5:$D$25,2,0))) -> 539411.6103 | F29: =INDIRECT(ADDRESS(U29,5,4,1,VLOOKUP(B29,'C'!$B$5:$D$25,2,0))) -> 538823.8617 | G29: =INDIRECT(ADDRESS(U29,6,4,1,VLOOKUP(B29,'C'!$B$5:$D$25,2,0))) -> 538236.7535 | H29: =INDIRECT(ADDRESS(U29,7,4,1,VLOOKUP(B29,'C'!$B$5:$D$25,2,0))) -> 537650.285 | I29: =INDIRECT(ADDRESS(U29,8,4,1,VLOOKUP(B29,'C'!$B$5:$D$25,2,0))) -> 537064.4555 | J29: =INDIRECT(ADDRESS(U29,9,4,1,VLOOKUP(B29,'C'!$B$5:$D$25,2,0))) -> 536479.2644 | K29: =INDIRECT(ADDRESS(U29,10,4,1,VLOOKUP(B29,'C'!$B$5:$D$25,2,0))) -> 535894.7109 | L29: =INDIRECT(ADDRESS(U29,11,4,1,VLOOKUP(B29,'C'!$B$5:$D$25,2,0))) -> 535310.7943 | M29: =INDIRECT(ADDRESS(U29,12,4,1,VLOOKUP(B29,'C'!$B$5:$D$25,2,0))) -> 534727.514 | N29: =INDIRECT(ADDRESS(U29,13,4,1,VLOOKUP(B29,'C'!$B$5:$D$25,2,0))) -> 534144.8692 | U29: =MATCH("R24",AR!A:A,0) -> 134
A30: ArgentinaDemanda de comprimidos (Benznidazol 12,5 mg (III)) - Proyección | B30: Argentina | C30: 2 | D30: ="Demanda de comprimidos"&" ("&'3'!$BG$94&") - Proyección" -> Demanda de comprimidos (Benznidazol 12,5 mg (III)) - Proyección | E30: =INDIRECT(ADDRESS(U30,4,4,1,VLOOKUP(B30,'C'!$B$5:$D$25,2,0))) -> 701235.0933 | F30: =INDIRECT(ADDRESS(U30,5,4,1,VLOOKUP(B30,'C'!$B$5:$D$25,2,0))) -> 700471.0201 | G30: =INDIRECT(ADDRESS(U30,6,4,1,VLOOKUP(B30,'C'!$B$5:$D$25,2,0))) -> 699707.7795 | H30: =INDIRECT(ADDRESS(U30,7,4,1,VLOOKUP(B30,'C'!$B$5:$D$25,2,0))) -> 698945.3705 | I30: =INDIRECT(ADDRESS(U30,8,4,1,VLOOKUP(B30,'C'!$B$5:$D$25,2,0))) -> 698183.7922 | J30: =INDIRECT(ADDRESS(U30,9,4,1,VLOOKUP(B30,'C'!$B$5:$D$25,2,0))) -> 697423.0437 | K30: =INDIRECT(ADDRESS(U30,10,4,1,VLOOKUP(B30,'C'!$B$5:$D$25,2,0))) -> 696663.1242 | L30: =INDIRECT(ADDRESS(U30,11,4,1,VLOOKUP(B30,'C'!$B$5:$D$25,2,0))) -> 695904.0326 | M30: =INDIRECT(ADDRESS(U30,12,4,1,VLOOKUP(B30,'C'!$B$5:$D$25,2,0))) -> 695145.7682 | N30: =INDIRECT(ADDRESS(U30,13,4,1,VLOOKUP(B30,'C'!$B$5:$D$25,2,0))) -> 694388.33 | U30: =MATCH("R28",AR!A:A,0) -> 138
A31: BelizePoblación general | B31: Belize | C31: 1 | D31: Población general | E31: =INDIRECT(ADDRESS(U31,4,4,1,VLOOKUP(B31,'C'!$B$5:$D$25,2,0))) -> 0 | F31: =INDIRECT(ADDRESS(U31,5,4,1,VLOOKUP(B31,'C'!$B$5:$D$25,2,0))) -> 0 | G31: =INDIRECT(ADDRESS(U31,6,4,1,VLOOKUP(B31,'C'!$B$5:$D$25,2,0))) -> 0 | H31: =INDIRECT(ADDRESS(U31,7,4,1,VLOOKUP(B31,'C'!$B$5:$D$25,2,0))) -> 0 | I31: =INDIRECT(ADDRESS(U31,8,4,1,VLOOKUP(B31,'C'!$B$5:$D$25,2,0))) -> 0 | J31: =INDIRECT(ADDRESS(U31,9,4,1,VLOOKUP(B31,'C'!$B$5:$D$25,2,0))) -> 0 | K31: =INDIRECT(ADDRESS(U31,10,4,1,VLOOKUP(B31,'C'!$B$5:$D$25,2,0))) -> 0 | L31: =INDIRECT(ADDRESS(U31,11,4,1,VLOOKUP(B31,'C'!$B$5:$D$25,2,0))) -> 0 | M31: =INDIRECT(ADDRESS(U31,12,4,1,VLOOKUP(B31,'C'!$B$5:$D$25,2,0))) -> 0 | N31: =INDIRECT(ADDRESS(U31,13,4,1,VLOOKUP(B31,'C'!$B$5:$D$25,2,0))) -> 0 | U31: =MATCH("R1",AR!A:A,0) -> 111
A32: BelizeZona endémica absoluta | B32: Belize | C32: 1 | D32: Zona endémica absoluta | E32: =INDIRECT(ADDRESS(U32,4,4,1,VLOOKUP(B32,'C'!$B$5:$D$25,2,0))) -> 0 | F32: =INDIRECT(ADDRESS(U32,5,4,1,VLOOKUP(B32,'C'!$B$5:$D$25,2,0))) -> 0 | G32: =INDIRECT(ADDRESS(U32,6,4,1,VLOOKUP(B32,'C'!$B$5:$D$25,2,0))) -> 0 | H32: =INDIRECT(ADDRESS(U32,7,4,1,VLOOKUP(B32,'C'!$B$5:$D$25,2,0))) -> 0 | I32: =INDIRECT(ADDRESS(U32,8,4,1,VLOOKUP(B32,'C'!$B$5:$D$25,2,0))) -> 0 | J32: =INDIRECT(ADDRESS(U32,9,4,1,VLOOKUP(B32,'C'!$B$5:$D$25,2,0))) -> 0 | K32: =INDIRECT(ADDRESS(U32,10,4,1,VLOOKUP(B32,'C'!$B$5:$D$25,2,0))) -> 0 | L32: =INDIRECT(ADDRESS(U32,11,4,1,VLOOKUP(B32,'C'!$B$5:$D$25,2,0))) -> 0 | M32: =INDIRECT(ADDRESS(U32,12,4,1,VLOOKUP(B32,'C'!$B$5:$D$25,2,0))) -> 0 | N32: =INDIRECT(ADDRESS(U32,13,4,1,VLOOKUP(B32,'C'!$B$5:$D$25,2,0))) -> 0 | U32: =MATCH("R2",AR!A:A,0) -> 112
A33: BelizePorcentaje Zona endémica absoluta | B33: Belize | C33: 1 | D33: ="Porcentaje "&D32 -> Porcentaje Zona endémica absoluta | E33: =E32/E31 ->  | F33: =F32/F31 ->  | U33: =MATCH("R3",AR!A:A,0) -> 113
A34: BelizePoblación estimada positiva (prevalencia) | B34: Belize | C34: 1 | D34: Población estimada positiva (prevalencia) | E34: =INDIRECT(ADDRESS(U34,4,4,1,VLOOKUP(B34,'C'!$B$5:$D$25,2,0))) -> 0 | F34: =INDIRECT(ADDRESS(U34,5,4,1,VLOOKUP(B34,'C'!$B$5:$D$25,2,0))) -> 0 | G34: =INDIRECT(ADDRESS(U34,6,4,1,VLOOKUP(B34,'C'!$B$5:$D$25,2,0))) -> 0 | H34: =INDIRECT(ADDRESS(U34,7,4,1,VLOOKUP(B34,'C'!$B$5:$D$25,2,0))) -> 0 | I34: =INDIRECT(ADDRESS(U34,8,4,1,VLOOKUP(B34,'C'!$B$5:$D$25,2,0))) -> 0 | J34: =INDIRECT(ADDRESS(U34,9,4,1,VLOOKUP(B34,'C'!$B$5:$D$25,2,0))) -> 0 | K34: =INDIRECT(ADDRESS(U34,10,4,1,VLOOKUP(B34,'C'!$B$5:$D$25,2,0))) -> 0 | L34: =INDIRECT(ADDRESS(U34,11,4,1,VLOOKUP(B34,'C'!$B$5:$D$25,2,0))) -> 0 | M34: =INDIRECT(ADDRESS(U34,12,4,1,VLOOKUP(B34,'C'!$B$5:$D$25,2,0))) -> 0 | N34: =INDIRECT(ADDRESS(U34,13,4,1,VLOOKUP(B34,'C'!$B$5:$D$25,2,0))) -> 0 | U34: =MATCH("R4",AR!A:A,0) -> 114
A35: BelizePorcentaje Población estimada positiva (prevalencia) | B35: Belize | C35: 1 | D35: ="Porcentaje "&D34 -> Porcentaje Población estimada positiva (prevalencia) | E35: =E34/E31 ->  | F35: =F34/F31 ->  | U35: =MATCH("R5",AR!A:A,0) -> 115
A36: BelizeDiagnósticos Posibles | B36: Belize | C36: 1 | D36: Diagnósticos Posibles | E36: =INDIRECT(ADDRESS(U36,4,4,1,VLOOKUP(B36,'C'!$B$5:$D$25,2,0))) -> 0 | F36: =INDIRECT(ADDRESS(U36,5,4,1,VLOOKUP(B36,'C'!$B$5:$D$25,2,0))) -> 0 | G36: =INDIRECT(ADDRESS(U36,6,4,1,VLOOKUP(B36,'C'!$B$5:$D$25,2,0))) -> 0 | H36: =INDIRECT(ADDRESS(U36,7,4,1,VLOOKUP(B36,'C'!$B$5:$D$25,2,0))) -> 0 | I36: =INDIRECT(ADDRESS(U36,8,4,1,VLOOKUP(B36,'C'!$B$5:$D$25,2,0))) -> 0 | J36: =INDIRECT(ADDRESS(U36,9,4,1,VLOOKUP(B36,'C'!$B$5:$D$25,2,0))) -> 0 | K36: =INDIRECT(ADDRESS(U36,10,4,1,VLOOKUP(B36,'C'!$B$5:$D$25,2,0))) -> 0 | L36: =INDIRECT(ADDRESS(U36,11,4,1,VLOOKUP(B36,'C'!$B$5:$D$25,2,0))) -> 0 | M36: =INDIRECT(ADDRESS(U36,12,4,1,VLOOKUP(B36,'C'!$B$5:$D$25,2,0))) -> 0 | N36: =INDIRECT(ADDRESS(U36,13,4,1,VLOOKUP(B36,'C'!$B$5:$D$25,2,0))) -> 0 | U36: =MATCH("R9",AR!A:A,0) -> 119
A37: BelizePorcentaje Diagnósticos Posibles | B37: Belize | C37: 1 | D37: ="Porcentaje "&D36 -> Porcentaje Diagnósticos Posibles | E37: =E36/E34 ->  | F37: =F36/F34 ->  | U37: =MATCH("R10",AR!A:A,0) -> 120
A38: BelizeTratamientos Posibles - Requerimiento actual | B38: Belize | C38: 1 | D38: Tratamientos Posibles - Requerimiento actual | E38: =INDIRECT(ADDRESS(U38,4,4,1,VLOOKUP(B38,'C'!$B$5:$D$25,2,0))) -> 0 | F38: =INDIRECT(ADDRESS(U38,5,4,1,VLOOKUP(B38,'C'!$B$5:$D$25,2,0))) -> 0 | G38: =INDIRECT(ADDRESS(U38,6,4,1,VLOOKUP(B38,'C'!$B$5:$D$25,2,0))) -> 0 | H38: =INDIRECT(ADDRESS(U38,7,4,1,VLOOKUP(B38,'C'!$B$5:$D$25,2,0))) -> 0 | I38: =INDIRECT(ADDRESS(U38,8,4,1,VLOOKUP(B38,'C'!$B$5:$D$25,2,0))) -> 0 | J38: =INDIRECT(ADDRESS(U38,9,4,1,VLOOKUP(B38,'C'!$B$5:$D$25,2,0))) -> 0 | K38: =INDIRECT(ADDRESS(U38,10,4,1,VLOOKUP(B38,'C'!$B$5:$D$25,2,0))) -> 0 | L38: =INDIRECT(ADDRESS(U38,11,4,1,VLOOKUP(B38,'C'!$B$5:$D$25,2,0))) -> 0 | M38: =INDIRECT(ADDRESS(U38,12,4,1,VLOOKUP(B38,'C'!$B$5:$D$25,2,0))) -> 0 | N38: =INDIRECT(ADDRESS(U38,13,4,1,VLOOKUP(B38,'C'!$B$5:$D$25,2,0))) -> 0 | U38: =MATCH("R14",AR!A:A,0) -> 124
A39: BelizePorcentaje Tratamientos Posibles - Requerimiento actual | B39: Belize | C39: 1 | D39: ="Porcentaje "&D38 -> Porcentaje Tratamientos Posibles - Requerimiento actual | E39: =E38/E36 ->  | F39: =F38/F36 ->  | U39: =MATCH("R15",AR!A:A,0) -> 125
A40: BelizeTratamientos Posibles - Proyección | B40: Belize | C40: 2 | D40: Tratamientos Posibles - Proyección | E40: =INDIRECT(ADDRESS(U40,4,4,1,VLOOKUP(B40,'C'!$B$5:$D$25,2,0))) -> 0 | F40: =INDIRECT(ADDRESS(U40,5,4,1,VLOOKUP(B40,'C'!$B$5:$D$25,2,0))) -> 0 | G40: =INDIRECT(ADDRESS(U40,6,4,1,VLOOKUP(B40,'C'!$B$5:$D$25,2,0))) -> 0 | H40: =INDIRECT(ADDRESS(U40,7,4,1,VLOOKUP(B40,'C'!$B$5:$D$25,2,0))) -> 0 | I40: =INDIRECT(ADDRESS(U40,8,4,1,VLOOKUP(B40,'C'!$B$5:$D$25,2,0))) -> 0 | J40: =INDIRECT(ADDRESS(U40,9,4,1,VLOOKUP(B40,'C'!$B$5:$D$25,2,0))) -> 0 | K40: =INDIRECT(ADDRESS(U40,10,4,1,VLOOKUP(B40,'C'!$B$5:$D$25,2,0))) -> 0 | L40: =INDIRECT(ADDRESS(U40,11,4,1,VLOOKUP(B40,'C'!$B$5:$D$25,2,0))) -> 0 | M40: =INDIRECT(ADDRESS(U40,12,4,1,VLOOKUP(B40,'C'!$B$5:$D$25,2,0))) -> 0 | N40: =INDIRECT(ADDRESS(U40,13,4,1,VLOOKUP(B40,'C'!$B$5:$D$25,2,0))) -> 0 | U40: =MATCH("R19",AR!A:A,0) -> 129
A41: BelizePorcentaje Tratamientos Posibles - Proyección | B41: Belize | C41: 2 | D41: ="Porcentaje "&D40 -> Porcentaje Tratamientos Posibles - Proyección | E41: =E40/E36 ->  | F41: =F40/F36 ->  | U41: =MATCH("R20",AR!A:A,0) -> 130
A42: BelizeDemanda de comprimidos (Benznidazol 12,5 mg (III)) - Requerimiento actual | B42: Belize | C42: 1 | D42: ="Demanda de comprimidos"&" ("&'3'!$BG$94&") - Requerimiento actual" -> Demanda de comprimidos (Benznidazol 12,5 mg (III)) - Requerimiento actual | E42: =INDIRECT(ADDRESS(U42,4,4,1,VLOOKUP(B42,'C'!$B$5:$D$25,2,0))) -> 0 | F42: =INDIRECT(ADDRESS(U42,5,4,1,VLOOKUP(B42,'C'!$B$5:$D$25,2,0))) -> 0 | G42: =INDIRECT(ADDRESS(U42,6,4,1,VLOOKUP(B42,'C'!$B$5:$D$25,2,0))) -> 0 | H42: =INDIRECT(ADDRESS(U42,7,4,1,VLOOKUP(B42,'C'!$B$5:$D$25,2,0))) -> 0 | I42: =INDIRECT(ADDRESS(U42,8,4,1,VLOOKUP(B42,'C'!$B$5:$D$25,2,0))) -> 0 | J42: =INDIRECT(ADDRESS(U42,9,4,1,VLOOKUP(B42,'C'!$B$5:$D$25,2,0))) -> 0 | K42: =INDIRECT(ADDRESS(U42,10,4,1,VLOOKUP(B42,'C'!$B$5:$D$25,2,0))) -> 0 | L42: =INDIRECT(ADDRESS(U42,11,4,1,VLOOKUP(B42,'C'!$B$5:$D$25,2,0))) -> 0 | M42: =INDIRECT(ADDRESS(U42,12,4,1,VLOOKUP(B42,'C'!$B$5:$D$25,2,0))) -> 0 | N42: =INDIRECT(ADDRESS(U42,13,4,1,VLOOKUP(B42,'C'!$B$5:$D$25,2,0))) -> 0 | U42: =MATCH("R24",AR!A:A,0) -> 134
A43: BelizeDemanda de comprimidos (Benznidazol 12,5 mg (III)) - Proyección | B43: Belize | C43: 2 | D43: ="Demanda de comprimidos"&" ("&'3'!$BG$94&") - Proyección" -> Demanda de comprimidos (Benznidazol 12,5 mg (III)) - Proyección | E43: =INDIRECT(ADDRESS(U43,4,4,1,VLOOKUP(B43,'C'!$B$5:$D$25,2,0))) -> 0 | F43: =INDIRECT(ADDRESS(U43,5,4,1,VLOOKUP(B43,'C'!$B$5:$D$25,2,0))) -> 0 | G43: =INDIRECT(ADDRESS(U43,6,4,1,VLOOKUP(B43,'C'!$B$5:$D$25,2,0))) -> 0 | H43: =INDIRECT(ADDRESS(U43,7,4,1,VLOOKUP(B43,'C'!$B$5:$D$25,2,0))) -> 0 | I43: =INDIRECT(ADDRESS(U43,8,4,1,VLOOKUP(B43,'C'!$B$5:$D$25,2,0))) -> 0 | J43: =INDIRECT(ADDRESS(U43,9,4,1,VLOOKUP(B43,'C'!$B$5:$D$25,2,0))) -> 0 | K43: =INDIRECT(ADDRESS(U43,10,4,1,VLOOKUP(B43,'C'!$B$5:$D$25,2,0))) -> 0 | L43: =INDIRECT(ADDRESS(U43,11,4,1,VLOOKUP(B43,'C'!$B$5:$D$25,2,0))) -> 0 | M43: =INDIRECT(ADDRESS(U43,12,4,1,VLOOKUP(B43,'C'!$B$5:$D$25,2,0))) -> 0 | N43: =INDIRECT(ADDRESS(U43,13,4,1,VLOOKUP(B43,'C'!$B$5:$D$25,2,0))) -> 0 | U43: =MATCH("R28",AR!A:A,0) -> 138
A44: BoliviaPoblación general | B44: Bolivia | C44: 1 | D44: Población general | E44: =INDIRECT(ADDRESS(U44,4,4,1,VLOOKUP(B44,'C'!$B$5:$D$25,2,0))) -> 0 | F44: =INDIRECT(ADDRESS(U44,5,4,1,VLOOKUP(B44,'C'!$B$5:$D$25,2,0))) -> 0 | G44: =INDIRECT(ADDRESS(U44,6,4,1,VLOOKUP(B44,'C'!$B$5:$D$25,2,0))) -> 0 | H44: =INDIRECT(ADDRESS(U44,7,4,1,VLOOKUP(B44,'C'!$B$5:$D$25,2,0))) -> 0 | I44: =INDIRECT(ADDRESS(U44,8,4,1,VLOOKUP(B44,'C'!$B$5:$D$25,2,0))) -> 0 | J44: =INDIRECT(ADDRESS(U44,9,4,1,VLOOKUP(B44,'C'!$B$5:$D$25,2,0))) -> 0 | K44: =INDIRECT(ADDRESS(U44,10,4,1,VLOOKUP(B44,'C'!$B$5:$D$25,2,0))) -> 0 | L44: =INDIRECT(ADDRESS(U44,11,4,1,VLOOKUP(B44,'C'!$B$5:$D$25,2,0))) -> 0 | M44: =INDIRECT(ADDRESS(U44,12,4,1,VLOOKUP(B44,'C'!$B$5:$D$25,2,0))) -> 0 | N44: =INDIRECT(ADDRESS(U44,13,4,1,VLOOKUP(B44,'C'!$B$5:$D$25,2,0))) -> 0 | U44: =MATCH("R1",AR!A:A,0) -> 111
A45: BoliviaZona endémica absoluta | B45: Bolivia | C45: 1 | D45: Zona endémica absoluta | E45: =INDIRECT(ADDRESS(U45,4,4,1,VLOOKUP(B45,'C'!$B$5:$D$25,2,0))) -> 0 | F45: =INDIRECT(ADDRESS(U45,5,4,1,VLOOKUP(B45,'C'!$B$5:$D$25,2,0))) -> 0 | G45: =INDIRECT(ADDRESS(U45,6,4,1,VLOOKUP(B45,'C'!$B$5:$D$25,2,0))) -> 0 | H45: =INDIRECT(ADDRESS(U45,7,4,1,VLOOKUP(B45,'C'!$B$5:$D$25,2,0))) -> 0 | I45: =INDIRECT(ADDRESS(U45,8,4,1,VLOOKUP(B45,'C'!$B$5:$D$25,2,0))) -> 0 | J45: =INDIRECT(ADDRESS(U45,9,4,1,VLOOKUP(B45,'C'!$B$5:$D$25,2,0))) -> 0 | K45: =INDIRECT(ADDRESS(U45,10,4,1,VLOOKUP(B45,'C'!$B$5:$D$25,2,0))) -> 0 | L45: =INDIRECT(ADDRESS(U45,11,4,1,VLOOKUP(B45,'C'!$B$5:$D$25,2,0))) -> 0 | M45: =INDIRECT(ADDRESS(U45,12,4,1,VLOOKUP(B45,'C'!$B$5:$D$25,2,0))) -> 0 | N45: =INDIRECT(ADDRESS(U45,13,4,1,VLOOKUP(B45,'C'!$B$5:$D$25,2,0))) -> 0 | U45: =MATCH("R2",AR!A:A,0) -> 112
A46: BoliviaPorcentaje Zona endémica absoluta | B46: Bolivia | C46: 1 | D46: ="Porcentaje "&D45 -> Porcentaje Zona endémica absoluta | E46: =E45/E44 ->  | F46: =F45/F44 ->  | U46: =MATCH("R3",AR!A:A,0) -> 113
A47: BoliviaPoblación estimada positiva (prevalencia) | B47: Bolivia | C47: 1 | D47: Población estimada positiva (prevalencia) | E47: =INDIRECT(ADDRESS(U47,4,4,1,VLOOKUP(B47,'C'!$B$5:$D$25,2,0))) -> 0 | F47: =INDIRECT(ADDRESS(U47,5,4,1,VLOOKUP(B47,'C'!$B$5:$D$25,2,0))) -> 0 | G47: =INDIRECT(ADDRESS(U47,6,4,1,VLOOKUP(B47,'C'!$B$5:$D$25,2,0))) -> 0 | H47: =INDIRECT(ADDRESS(U47,7,4,1,VLOOKUP(B47,'C'!$B$5:$D$25,2,0))) -> 0 | I47: =INDIRECT(ADDRESS(U47,8,4,1,VLOOKUP(B47,'C'!$B$5:$D$25,2,0))) -> 0 | J47: =INDIRECT(ADDRESS(U47,9,4,1,VLOOKUP(B47,'C'!$B$5:$D$25,2,0))) -> 0 | K47: =INDIRECT(ADDRESS(U47,10,4,1,VLOOKUP(B47,'C'!$B$5:$D$25,2,0))) -> 0 | L47: =INDIRECT(ADDRESS(U47,11,4,1,VLOOKUP(B47,'C'!$B$5:$D$25,2,0))) -> 0 | M47: =INDIRECT(ADDRESS(U47,12,4,1,VLOOKUP(B47,'C'!$B$5:$D$25,2,0))) -> 0 | N47: =INDIRECT(ADDRESS(U47,13,4,1,VLOOKUP(B47,'C'!$B$5:$D$25,2,0))) -> 0 | U47: =MATCH("R4",AR!A:A,0) -> 114
A48: BoliviaPorcentaje Población estimada positiva (prevalencia) | B48: Bolivia | C48: 1 | D48: ="Porcentaje "&D47 -> Porcentaje Población estimada positiva (prevalencia) | E48: =E47/E44 ->  | F48: =F47/F44 ->  | U48: =MATCH("R5",AR!A:A,0) -> 115
A49: BoliviaDiagnósticos Posibles | B49: Bolivia | C49: 1 | D49: Diagnósticos Posibles | E49: =INDIRECT(ADDRESS(U49,4,4,1,VLOOKUP(B49,'C'!$B$5:$D$25,2,0))) -> 0 | F49: =INDIRECT(ADDRESS(U49,5,4,1,VLOOKUP(B49,'C'!$B$5:$D$25,2,0))) -> 0 | G49: =INDIRECT(ADDRESS(U49,6,4,1,VLOOKUP(B49,'C'!$B$5:$D$25,2,0))) -> 0 | H49: =INDIRECT(ADDRESS(U49,7,4,1,VLOOKUP(B49,'C'!$B$5:$D$25,2,0))) -> 0 | I49: =INDIRECT(ADDRESS(U49,8,4,1,VLOOKUP(B49,'C'!$B$5:$D$25,2,0))) -> 0 | J49: =INDIRECT(ADDRESS(U49,9,4,1,VLOOKUP(B49,'C'!$B$5:$D$25,2,0))) -> 0 | K49: =INDIRECT(ADDRESS(U49,10,4,1,VLOOKUP(B49,'C'!$B$5:$D$25,2,0))) -> 0 | L49: =INDIRECT(ADDRESS(U49,11,4,1,VLOOKUP(B49,'C'!$B$5:$D$25,2,0))) -> 0 | M49: =INDIRECT(ADDRESS(U49,12,4,1,VLOOKUP(B49,'C'!$B$5:$D$25,2,0))) -> 0 | N49: =INDIRECT(ADDRESS(U49,13,4,1,VLOOKUP(B49,'C'!$B$5:$D$25,2,0))) -> 0 | U49: =MATCH("R9",AR!A:A,0) -> 119
A50: BoliviaPorcentaje Diagnósticos Posibles | B50: Bolivia | C50: 1 | D50: ="Porcentaje "&D49 -> Porcentaje Diagnósticos Posibles | E50: =E49/E47 ->  | F50: =F49/F47 ->  | U50: =MATCH("R10",AR!A:A,0) -> 120
A51: BoliviaTratamientos Posibles - Requerimiento actual | B51: Bolivia | C51: 1 | D51: Tratamientos Posibles - Requerimiento actual | E51: =INDIRECT(ADDRESS(U51,4,4,1,VLOOKUP(B51,'C'!$B$5:$D$25,2,0))) -> 0 | F51: =INDIRECT(ADDRESS(U51,5,4,1,VLOOKUP(B51,'C'!$B$5:$D$25,2,0))) -> 0 | G51: =INDIRECT(ADDRESS(U51,6,4,1,VLOOKUP(B51,'C'!$B$5:$D$25,2,0))) -> 0 | H51: =INDIRECT(ADDRESS(U51,7,4,1,VLOOKUP(B51,'C'!$B$5:$D$25,2,0))) -> 0 | I51: =INDIRECT(ADDRESS(U51,8,4,1,VLOOKUP(B51,'C'!$B$5:$D$25,2,0))) -> 0 | J51: =INDIRECT(ADDRESS(U51,9,4,1,VLOOKUP(B51,'C'!$B$5:$D$25,2,0))) -> 0 | K51: =INDIRECT(ADDRESS(U51,10,4,1,VLOOKUP(B51,'C'!$B$5:$D$25,2,0))) -> 0 | L51: =INDIRECT(ADDRESS(U51,11,4,1,VLOOKUP(B51,'C'!$B$5:$D$25,2,0))) -> 0 | M51: =INDIRECT(ADDRESS(U51,12,4,1,VLOOKUP(B51,'C'!$B$5:$D$25,2,0))) -> 0 | N51: =INDIRECT(ADDRESS(U51,13,4,1,VLOOKUP(B51,'C'!$B$5:$D$25,2,0))) -> 0 | U51: =MATCH("R14",AR!A:A,0) -> 124
A52: BoliviaPorcentaje Tratamientos Posibles - Requerimiento actual | B52: Bolivia | C52: 1 | D52: ="Porcentaje "&D51 -> Porcentaje Tratamientos Posibles - Requerimiento actual | E52: =E51/E49 ->  | F52: =F51/F49 ->  | U52: =MATCH("R15",AR!A:A,0) -> 125
A53: BoliviaTratamientos Posibles - Proyección | B53: Bolivia | C53: 2 | D53: Tratamientos Posibles - Proyección | E53: =INDIRECT(ADDRESS(U53,4,4,1,VLOOKUP(B53,'C'!$B$5:$D$25,2,0))) -> 0 | F53: =INDIRECT(ADDRESS(U53,5,4,1,VLOOKUP(B53,'C'!$B$5:$D$25,2,0))) -> 0 | G53: =INDIRECT(ADDRESS(U53,6,4,1,VLOOKUP(B53,'C'!$B$5:$D$25,2,0))) -> 0 | H53: =INDIRECT(ADDRESS(U53,7,4,1,VLOOKUP(B53,'C'!$B$5:$D$25,2,0))) -> 0 | I53: =INDIRECT(ADDRESS(U53,8,4,1,VLOOKUP(B53,'C'!$B$5:$D$25,2,0))) -> 0 | J53: =INDIRECT(ADDRESS(U53,9,4,1,VLOOKUP(B53,'C'!$B$5:$D$25,2,0))) -> 0 | K53: =INDIRECT(ADDRESS(U53,10,4,1,VLOOKUP(B53,'C'!$B$5:$D$25,2,0))) -> 0 | L53: =INDIRECT(ADDRESS(U53,11,4,1,VLOOKUP(B53,'C'!$B$5:$D$25,2,0))) -> 0 | M53: =INDIRECT(ADDRESS(U53,12,4,1,VLOOKUP(B53,'C'!$B$5:$D$25,2,0))) -> 0 | N53: =INDIRECT(ADDRESS(U53,13,4,1,VLOOKUP(B53,'C'!$B$5:$D$25,2,0))) -> 0 | U53: =MATCH("R19",AR!A:A,0) -> 129
A54: BoliviaPorcentaje Tratamientos Posibles - Proyección | B54: Bolivia | C54: 2 | D54: ="Porcentaje "&D53 -> Porcentaje Tratamientos Posibles - Proyección | E54: =E53/E49 ->  | F54: =F53/F49 ->  | U54: =MATCH("R20",AR!A:A,0) -> 130
A55: BoliviaDemanda de comprimidos (Benznidazol 12,5 mg (III)) - Requerimiento actual | B55: Bolivia | C55: 1 | D55: ="Demanda de comprimidos"&" ("&'3'!$BG$94&") - Requerimiento actual" -> Demanda de comprimidos (Benznidazol 12,5 mg (III)) - Requerimiento actual | E55: =INDIRECT(ADDRESS(U55,4,4,1,VLOOKUP(B55,'C'!$B$5:$D$25,2,0))) -> 0 | F55: =INDIRECT(ADDRESS(U55,5,4,1,VLOOKUP(B55,'C'!$B$5:$D$25,2,0))) -> 0 | G55: =INDIRECT(ADDRESS(U55,6,4,1,VLOOKUP(B55,'C'!$B$5:$D$25,2,0))) -> 0 | H55: =INDIRECT(ADDRESS(U55,7,4,1,VLOOKUP(B55,'C'!$B$5:$D$25,2,0))) -> 0 | I55: =INDIRECT(ADDRESS(U55,8,4,1,VLOOKUP(B55,'C'!$B$5:$D$25,2,0))) -> 0 | J55: =INDIRECT(ADDRESS(U55,9,4,1,VLOOKUP(B55,'C'!$B$5:$D$25,2,0))) -> 0 | K55: =INDIRECT(ADDRESS(U55,10,4,1,VLOOKUP(B55,'C'!$B$5:$D$25,2,0))) -> 0 | L55: =INDIRECT(ADDRESS(U55,11,4,1,VLOOKUP(B55,'C'!$B$5:$D$25,2,0))) -> 0 | M55: =INDIRECT(ADDRESS(U55,12,4,1,VLOOKUP(B55,'C'!$B$5:$D$25,2,0))) -> 0 | N55: =INDIRECT(ADDRESS(U55,13,4,1,VLOOKUP(B55,'C'!$B$5:$D$25,2,0))) -> 0 | U55: =MATCH("R24",AR!A:A,0) -> 134
A56: BoliviaDemanda de comprimidos (Benznidazol 12,5 mg (III)) - Proyección | B56: Bolivia | C56: 2 | D56: ="Demanda de comprimidos"&" ("&'3'!$BG$94&") - Proyección" -> Demanda de comprimidos (Benznidazol 12,5 mg (III)) - Proyección | E56: =INDIRECT(ADDRESS(U56,4,4,1,VLOOKUP(B56,'C'!$B$5:$D$25,2,0))) -> 0 | F56: =INDIRECT(ADDRESS(U56,5,4,1,VLOOKUP(B56,'C'!$B$5:$D$25,2,0))) -> 0 | G56: =INDIRECT(ADDRESS(U56,6,4,1,VLOOKUP(B56,'C'!$B$5:$D$25,2,0))) -> 0 | H56: =INDIRECT(ADDRESS(U56,7,4,1,VLOOKUP(B56,'C'!$B$5:$D$25,2,0))) -> 0 | I56: =INDIRECT(ADDRESS(U56,8,4,1,VLOOKUP(B56,'C'!$B$5:$D$25,2,0))) -> 0 | J56: =INDIRECT(ADDRESS(U56,9,4,1,VLOOKUP(B56,'C'!$B$5:$D$25,2,0))) -> 0 | K56: =INDIRECT(ADDRESS(U56,10,4,1,VLOOKUP(B56,'C'!$B$5:$D$25,2,0))) -> 0 | L56: =INDIRECT(ADDRESS(U56,11,4,1,VLOOKUP(B56,'C'!$B$5:$D$25,2,0))) -> 0 | M56: =INDIRECT(ADDRESS(U56,12,4,1,VLOOKUP(B56,'C'!$B$5:$D$25,2,0))) -> 0 | N56: =INDIRECT(ADDRESS(U56,13,4,1,VLOOKUP(B56,'C'!$B$5:$D$25,2,0))) -> 0 | U56: =MATCH("R28",AR!A:A,0) -> 138
A57: BrasilPoblación general | B57: Brasil | C57: 1 | D57: Población general | E57: =INDIRECT(ADDRESS(U57,4,4,1,VLOOKUP(B57,'C'!$B$5:$D$25,2,0))) -> 0 | F57: =INDIRECT(ADDRESS(U57,5,4,1,VLOOKUP(B57,'C'!$B$5:$D$25,2,0))) -> 0 | G57: =INDIRECT(ADDRESS(U57,6,4,1,VLOOKUP(B57,'C'!$B$5:$D$25,2,0))) -> 0 | H57: =INDIRECT(ADDRESS(U57,7,4,1,VLOOKUP(B57,'C'!$B$5:$D$25,2,0))) -> 0 | I57: =INDIRECT(ADDRESS(U57,8,4,1,VLOOKUP(B57,'C'!$B$5:$D$25,2,0))) -> 0 | J57: =INDIRECT(ADDRESS(U57,9,4,1,VLOOKUP(B57,'C'!$B$5:$D$25,2,0))) -> 0 | K57: =INDIRECT(ADDRESS(U57,10,4,1,VLOOKUP(B57,'C'!$B$5:$D$25,2,0))) -> 0 | L57: =INDIRECT(ADDRESS(U57,11,4,1,VLOOKUP(B57,'C'!$B$5:$D$25,2,0))) -> 0 | M57: =INDIRECT(ADDRESS(U57,12,4,1,VLOOKUP(B57,'C'!$B$5:$D$25,2,0))) -> 0 | N57: =INDIRECT(ADDRESS(U57,13,4,1,VLOOKUP(B57,'C'!$B$5:$D$25,2,0))) -> 0 | U57: =MATCH("R1",AR!A:A,0) -> 111
A58: BrasilZona endémica absoluta | B58: Brasil | C58: 1 | D58: Zona endémica absoluta | E58: =INDIRECT(ADDRESS(U58,4,4,1,VLOOKUP(B58,'C'!$B$5:$D$25,2,0))) -> 0 | F58: =INDIRECT(ADDRESS(U58,5,4,1,VLOOKUP(B58,'C'!$B$5:$D$25,2,0))) -> 0 | G58: =INDIRECT(ADDRESS(U58,6,4,1,VLOOKUP(B58,'C'!$B$5:$D$25,2,0))) -> 0 | H58: =INDIRECT(ADDRESS(U58,7,4,1,VLOOKUP(B58,'C'!$B$5:$D$25,2,0))) -> 0 | I58: =INDIRECT(ADDRESS(U58,8,4,1,VLOOKUP(B58,'C'!$B$5:$D$25,2,0))) -> 0 | J58: =INDIRECT(ADDRESS(U58,9,4,1,VLOOKUP(B58,'C'!$B$5:$D$25,2,0))) -> 0 | K58: =INDIRECT(ADDRESS(U58,10,4,1,VLOOKUP(B58,'C'!$B$5:$D$25,2,0))) -> 0 | L58: =INDIRECT(ADDRESS(U58,11,4,1,VLOOKUP(B58,'C'!$B$5:$D$25,2,0))) -> 0 | M58: =INDIRECT(ADDRESS(U58,12,4,1,VLOOKUP(B58,'C'!$B$5:$D$25,2,0))) -> 0 | N58: =INDIRECT(ADDRESS(U58,13,4,1,VLOOKUP(B58,'C'!$B$5:$D$25,2,0))) -> 0 | U58: =MATCH("R2",AR!A:A,0) -> 112
A59: BrasilPorcentaje Zona endémica absoluta | B59: Brasil | C59: 1 | D59: ="Porcentaje "&D58 -> Porcentaje Zona endémica absoluta | E59: =E58/E57 ->  | F59: =F58/F57 ->  | U59: =MATCH("R3",AR!A:A,0) -> 113
A60: BrasilPoblación estimada positiva (prevalencia) | B60: Brasil | C60: 1 | D60: Población estimada positiva (prevalencia) | E60: =INDIRECT(ADDRESS(U60,4,4,1,VLOOKUP(B60,'C'!$B$5:$D$25,2,0))) -> 0 | F60: =INDIRECT(ADDRESS(U60,5,4,1,VLOOKUP(B60,'C'!$B$5:$D$25,2,0))) -> 0 | G60: =INDIRECT(ADDRESS(U60,6,4,1,VLOOKUP(B60,'C'!$B$5:$D$25,2,0))) -> 0 | H60: =INDIRECT(ADDRESS(U60,7,4,1,VLOOKUP(B60,'C'!$B$5:$D$25,2,0))) -> 0 | I60: =INDIRECT(ADDRESS(U60,8,4,1,VLOOKUP(B60,'C'!$B$5:$D$25,2,0))) -> 0 | J60: =INDIRECT(ADDRESS(U60,9,4,1,VLOOKUP(B60,'C'!$B$5:$D$25,2,0))) -> 0 | K60: =INDIRECT(ADDRESS(U60,10,4,1,VLOOKUP(B60,'C'!$B$5:$D$25,2,0))) -> 0 | L60: =INDIRECT(ADDRESS(U60,11,4,1,VLOOKUP(B60,'C'!$B$5:$D$25,2,0))) -> 0 | M60: =INDIRECT(ADDRESS(U60,12,4,1,VLOOKUP(B60,'C'!$B$5:$D$25,2,0))) -> 0 | N60: =INDIRECT(ADDRESS(U60,13,4,1,VLOOKUP(B60,'C'!$B$5:$D$25,2,0))) -> 0 | U60: =MATCH("R4",AR!A:A,0) -> 114
A61: BrasilPorcentaje Población estimada positiva (prevalencia) | B61: Brasil | C61: 1 | D61: ="Porcentaje "&D60 -> Porcentaje Población estimada positiva (prevalencia) | E61: =E60/E57 ->  | F61: =F60/F57 ->  | U61: =MATCH("R5",AR!A:A,0) -> 115
A62: BrasilDiagnósticos Posibles | B62: Brasil | C62: 1 | D62: Diagnósticos Posibles | E62: =INDIRECT(ADDRESS(U62,4,4,1,VLOOKUP(B62,'C'!$B$5:$D$25,2,0))) -> 0 | F62: =INDIRECT(ADDRESS(U62,5,4,1,VLOOKUP(B62,'C'!$B$5:$D$25,2,0))) -> 0 | G62: =INDIRECT(ADDRESS(U62,6,4,1,VLOOKUP(B62,'C'!$B$5:$D$25,2,0))) -> 0 | H62: =INDIRECT(ADDRESS(U62,7,4,1,VLOOKUP(B62,'C'!$B$5:$D$25,2,0))) -> 0 | I62: =INDIRECT(ADDRESS(U62,8,4,1,VLOOKUP(B62,'C'!$B$5:$D$25,2,0))) -> 0 | J62: =INDIRECT(ADDRESS(U62,9,4,1,VLOOKUP(B62,'C'!$B$5:$D$25,2,0))) -> 0 | K62: =INDIRECT(ADDRESS(U62,10,4,1,VLOOKUP(B62,'C'!$B$5:$D$25,2,0))) -> 0 | L62: =INDIRECT(ADDRESS(U62,11,4,1,VLOOKUP(B62,'C'!$B$5:$D$25,2,0))) -> 0 | M62: =INDIRECT(ADDRESS(U62,12,4,1,VLOOKUP(B62,'C'!$B$5:$D$25,2,0))) -> 0 | N62: =INDIRECT(ADDRESS(U62,13,4,1,VLOOKUP(B62,'C'!$B$5:$D$25,2,0))) -> 0 | U62: =MATCH("R9",AR!A:A,0) -> 119
A63: BrasilPorcentaje Diagnósticos Posibles | B63: Brasil | C63: 1 | D63: ="Porcentaje "&D62 -> Porcentaje Diagnósticos Posibles | E63: =E62/E60 ->  | F63: =F62/F60 ->  | U63: =MATCH("R10",AR!A:A,0) -> 120
A64: BrasilTratamientos Posibles - Requerimiento actual | B64: Brasil | C64: 1 | D64: Tratamientos Posibles - Requerimiento actual | E64: =INDIRECT(ADDRESS(U64,4,4,1,VLOOKUP(B64,'C'!$B$5:$D$25,2,0))) -> 0 | F64: =INDIRECT(ADDRESS(U64,5,4,1,VLOOKUP(B64,'C'!$B$5:$D$25,2,0))) -> 0 | G64: =INDIRECT(ADDRESS(U64,6,4,1,VLOOKUP(B64,'C'!$B$5:$D$25,2,0))) -> 0 | H64: =INDIRECT(ADDRESS(U64,7,4,1,VLOOKUP(B64,'C'!$B$5:$D$25,2,0))) -> 0 | I64: =INDIRECT(ADDRESS(U64,8,4,1,VLOOKUP(B64,'C'!$B$5:$D$25,2,0))) -> 0 | J64: =INDIRECT(ADDRESS(U64,9,4,1,VLOOKUP(B64,'C'!$B$5:$D$25,2,0))) -> 0 | K64: =INDIRECT(ADDRESS(U64,10,4,1,VLOOKUP(B64,'C'!$B$5:$D$25,2,0))) -> 0 | L64: =INDIRECT(ADDRESS(U64,11,4,1,VLOOKUP(B64,'C'!$B$5:$D$25,2,0))) -> 0 | M64: =INDIRECT(ADDRESS(U64,12,4,1,VLOOKUP(B64,'C'!$B$5:$D$25,2,0))) -> 0 | N64: =INDIRECT(ADDRESS(U64,13,4,1,VLOOKUP(B64,'C'!$B$5:$D$25,2,0))) -> 0 | U64: =MATCH("R14",AR!A:A,0) -> 124
A65: BrasilPorcentaje Tratamientos Posibles - Requerimiento actual | B65: Brasil | C65: 1 | D65: ="Porcentaje "&D64 -> Porcentaje Tratamientos Posibles - Requerimiento actual | E65: =E64/E62 ->  | F65: =F64/F62 ->  | U65: =MATCH("R15",AR!A:A,0) -> 125
A66: BrasilTratamientos Posibles - Proyección | B66: Brasil | C66: 2 | D66: Tratamientos Posibles - Proyección | E66: =INDIRECT(ADDRESS(U66,4,4,1,VLOOKUP(B66,'C'!$B$5:$D$25,2,0))) -> 0 | F66: =INDIRECT(ADDRESS(U66,5,4,1,VLOOKUP(B66,'C'!$B$5:$D$25,2,0))) -> 0 | G66: =INDIRECT(ADDRESS(U66,6,4,1,VLOOKUP(B66,'C'!$B$5:$D$25,2,0))) -> 0 | H66: =INDIRECT(ADDRESS(U66,7,4,1,VLOOKUP(B66,'C'!$B$5:$D$25,2,0))) -> 0 | I66: =INDIRECT(ADDRESS(U66,8,4,1,VLOOKUP(B66,'C'!$B$5:$D$25,2,0))) -> 0 | J66: =INDIRECT(ADDRESS(U66,9,4,1,VLOOKUP(B66,'C'!$B$5:$D$25,2,0))) -> 0 | K66: =INDIRECT(ADDRESS(U66,10,4,1,VLOOKUP(B66,'C'!$B$5:$D$25,2,0))) -> 0 | L66: =INDIRECT(ADDRESS(U66,11,4,1,VLOOKUP(B66,'C'!$B$5:$D$25,2,0))) -> 0 | M66: =INDIRECT(ADDRESS(U66,12,4,1,VLOOKUP(B66,'C'!$B$5:$D$25,2,0))) -> 0 | N66: =INDIRECT(ADDRESS(U66,13,4,1,VLOOKUP(B66,'C'!$B$5:$D$25,2,0))) -> 0 | U66: =MATCH("R19",AR!A:A,0) -> 129
A67: BrasilPorcentaje Tratamientos Posibles - Proyección | B67: Brasil | C67: 2 | D67: ="Porcentaje "&D66 -> Porcentaje Tratamientos Posibles - Proyección | E67: =E66/E62 ->  | F67: =F66/F62 ->  | U67: =MATCH("R20",AR!A:A,0) -> 130
A68: BrasilDemanda de comprimidos (Benznidazol 12,5 mg (III)) - Requerimiento actual | B68: Brasil | C68: 1 | D68: ="Demanda de comprimidos"&" ("&'3'!$BG$94&") - Requerimiento actual" -> Demanda de comprimidos (Benznidazol 12,5 mg (III)) - Requerimiento actual | E68: =INDIRECT(ADDRESS(U68,4,4,1,VLOOKUP(B68,'C'!$B$5:$D$25,2,0))) -> 0 | F68: =INDIRECT(ADDRESS(U68,5,4,1,VLOOKUP(B68,'C'!$B$5:$D$25,2,0))) -> 0 | G68: =INDIRECT(ADDRESS(U68,6,4,1,VLOOKUP(B68,'C'!$B$5:$D$25,2,0))) -> 0 | H68: =INDIRECT(ADDRESS(U68,7,4,1,VLOOKUP(B68,'C'!$B$5:$D$25,2,0))) -> 0 | I68: =INDIRECT(ADDRESS(U68,8,4,1,VLOOKUP(B68,'C'!$B$5:$D$25,2,0))) -> 0 | J68: =INDIRECT(ADDRESS(U68,9,4,1,VLOOKUP(B68,'C'!$B$5:$D$25,2,0))) -> 0 | K68: =INDIRECT(ADDRESS(U68,10,4,1,VLOOKUP(B68,'C'!$B$5:$D$25,2,0))) -> 0 | L68: =INDIRECT(ADDRESS(U68,11,4,1,VLOOKUP(B68,'C'!$B$5:$D$25,2,0))) -> 0 | M68: =INDIRECT(ADDRESS(U68,12,4,1,VLOOKUP(B68,'C'!$B$5:$D$25,2,0))) -> 0 | N68: =INDIRECT(ADDRESS(U68,13,4,1,VLOOKUP(B68,'C'!$B$5:$D$25,2,0))) -> 0 | U68: =MATCH("R24",AR!A:A,0) -> 134
A69: BrasilDemanda de comprimidos (Benznidazol 12,5 mg (III)) - Proyección | B69: Brasil | C69: 2 | D69: ="Demanda de comprimidos"&" ("&'3'!$BG$94&") - Proyección" -> Demanda de comprimidos (Benznidazol 12,5 mg (III)) - Proyección | E69: =INDIRECT(ADDRESS(U69,4,4,1,VLOOKUP(B69,'C'!$B$5:$D$25,2,0))) -> 0 | F69: =INDIRECT(ADDRESS(U69,5,4,1,VLOOKUP(B69,'C'!$B$5:$D$25,2,0))) -> 0 | G69: =INDIRECT(ADDRESS(U69,6,4,1,VLOOKUP(B69,'C'!$B$5:$D$25,2,0))) -> 0 | H69: =INDIRECT(ADDRESS(U69,7,4,1,VLOOKUP(B69,'C'!$B$5:$D$25,2,0))) -> 0 | I69: =INDIRECT(ADDRESS(U69,8,4,1,VLOOKUP(B69,'C'!$B$5:$D$25,2,0))) -> 0 | J69: =INDIRECT(ADDRESS(U69,9,4,1,VLOOKUP(B69,'C'!$B$5:$D$25,2,0))) -> 0 | K69: =INDIRECT(ADDRESS(U69,10,4,1,VLOOKUP(B69,'C'!$B$5:$D$25,2,0))) -> 0 | L69: =INDIRECT(ADDRESS(U69,11,4,1,VLOOKUP(B69,'C'!$B$5:$D$25,2,0))) -> 0 | M69: =INDIRECT(ADDRESS(U69,12,4,1,VLOOKUP(B69,'C'!$B$5:$D$25,2,0))) -> 0 | N69: =INDIRECT(ADDRESS(U69,13,4,1,VLOOKUP(B69,'C'!$B$5:$D$25,2,0))) -> 0 | U69: =MATCH("R28",AR!A:A,0) -> 138
A70: ChilePoblación general | B70: Chile | C70: 1 | D70: Población general | E70: =INDIRECT(ADDRESS(U70,4,4,1,VLOOKUP(B70,'C'!$B$5:$D$25,2,0))) -> 0 | F70: =INDIRECT(ADDRESS(U70,5,4,1,VLOOKUP(B70,'C'!$B$5:$D$25,2,0))) -> 0 | G70: =INDIRECT(ADDRESS(U70,6,4,1,VLOOKUP(B70,'C'!$B$5:$D$25,2,0))) -> 0 | H70: =INDIRECT(ADDRESS(U70,7,4,1,VLOOKUP(B70,'C'!$B$5:$D$25,2,0))) -> 0 | I70: =INDIRECT(ADDRESS(U70,8,4,1,VLOOKUP(B70,'C'!$B$5:$D$25,2,0))) -> 0 | J70: =INDIRECT(ADDRESS(U70,9,4,1,VLOOKUP(B70,'C'!$B$5:$D$25,2,0))) -> 0 | K70: =INDIRECT(ADDRESS(U70,10,4,1,VLOOKUP(B70,'C'!$B$5:$D$25,2,0))) -> 0 | L70: =INDIRECT(ADDRESS(U70,11,4,1,VLOOKUP(B70,'C'!$B$5:$D$25,2,0))) -> 0 | M70: =INDIRECT(ADDRESS(U70,12,4,1,VLOOKUP(B70,'C'!$B$5:$D$25,2,0))) -> 0 | N70: =INDIRECT(ADDRESS(U70,13,4,1,VLOOKUP(B70,'C'!$B$5:$D$25,2,0))) -> 0 | U70: =MATCH("R1",AR!A:A,0) -> 111
A71: ChileZona endémica absoluta | B71: Chile | C71: 1 | D71: Zona endémica absoluta | E71: =INDIRECT(ADDRESS(U71,4,4,1,VLOOKUP(B71,'C'!$B$5:$D$25,2,0))) -> 0 | F71: =INDIRECT(ADDRESS(U71,5,4,1,VLOOKUP(B71,'C'!$B$5:$D$25,2,0))) -> 0 | G71: =INDIRECT(ADDRESS(U71,6,4,1,VLOOKUP(B71,'C'!$B$5:$D$25,2,0))) -> 0 | H71: =INDIRECT(ADDRESS(U71,7,4,1,VLOOKUP(B71,'C'!$B$5:$D$25,2,0))) -> 0 | I71: =INDIRECT(ADDRESS(U71,8,4,1,VLOOKUP(B71,'C'!$B$5:$D$25,2,0))) -> 0 | J71: =INDIRECT(ADDRESS(U71,9,4,1,VLOOKUP(B71,'C'!$B$5:$D$25,2,0))) -> 0 | K71: =INDIRECT(ADDRESS(U71,10,4,1,VLOOKUP(B71,'C'!$B$5:$D$25,2,0))) -> 0 | L71: =INDIRECT(ADDRESS(U71,11,4,1,VLOOKUP(B71,'C'!$B$5:$D$25,2,0))) -> 0 | M71: =INDIRECT(ADDRESS(U71,12,4,1,VLOOKUP(B71,'C'!$B$5:$D$25,2,0))) -> 0 | N71: =INDIRECT(ADDRESS(U71,13,4,1,VLOOKUP(B71,'C'!$B$5:$D$25,2,0))) -> 0 | U71: =MATCH("R2",AR!A:A,0) -> 112
A72: ChilePorcentaje Zona endémica absoluta | B72: Chile | C72: 1 | D72: ="Porcentaje "&D71 -> Porcentaje Zona endémica absoluta | E72: =E71/E70 ->  | F72: =F71/F70 ->  | U72: =MATCH("R3",AR!A:A,0) -> 113
A73: ChilePoblación estimada positiva (prevalencia) | B73: Chile | C73: 1 | D73: Población estimada positiva (prevalencia) | E73: =INDIRECT(ADDRESS(U73,4,4,1,VLOOKUP(B73,'C'!$B$5:$D$25,2,0))) -> 0 | F73: =INDIRECT(ADDRESS(U73,5,4,1,VLOOKUP(B73,'C'!$B$5:$D$25,2,0))) -> 0 | G73: =INDIRECT(ADDRESS(U73,6,4,1,VLOOKUP(B73,'C'!$B$5:$D$25,2,0))) -> 0 | H73: =INDIRECT(ADDRESS(U73,7,4,1,VLOOKUP(B73,'C'!$B$5:$D$25,2,0))) -> 0 | I73: =INDIRECT(ADDRESS(U73,8,4,1,VLOOKUP(B73,'C'!$B$5:$D$25,2,0))) -> 0 | J73: =INDIRECT(ADDRESS(U73,9,4,1,VLOOKUP(B73,'C'!$B$5:$D$25,2,0))) -> 0 | K73: =INDIRECT(ADDRESS(U73,10,4,1,VLOOKUP(B73,'C'!$B$5:$D$25,2,0))) -> 0 | L73: =INDIRECT(ADDRESS(U73,11,4,1,VLOOKUP(B73,'C'!$B$5:$D$25,2,0))) -> 0 | M73: =INDIRECT(ADDRESS(U73,12,4,1,VLOOKUP(B73,'C'!$B$5:$D$25,2,0))) -> 0 | N73: =INDIRECT(ADDRESS(U73,13,4,1,VLOOKUP(B73,'C'!$B$5:$D$25,2,0))) -> 0 | U73: =MATCH("R4",AR!A:A,0) -> 114
A74: ChilePorcentaje Población estimada positiva (prevalencia) | B74: Chile | C74: 1 | D74: ="Porcentaje "&D73 -> Porcentaje Población estimada positiva (prevalencia) | E74: =E73/E70 ->  | F74: =F73/F70 ->  | U74: =MATCH("R5",AR!A:A,0) -> 115
A75: ChileDiagnósticos Posibles | B75: Chile | C75: 1 | D75: Diagnósticos Posibles | E75: =INDIRECT(ADDRESS(U75,4,4,1,VLOOKUP(B75,'C'!$B$5:$D$25,2,0))) -> 0 | F75: =INDIRECT(ADDRESS(U75,5,4,1,VLOOKUP(B75,'C'!$B$5:$D$25,2,0))) -> 0 | G75: =INDIRECT(ADDRESS(U75,6,4,1,VLOOKUP(B75,'C'!$B$5:$D$25,2,0))) -> 0 | H75: =INDIRECT(ADDRESS(U75,7,4,1,VLOOKUP(B75,'C'!$B$5:$D$25,2,0))) -> 0 | I75: =INDIRECT(ADDRESS(U75,8,4,1,VLOOKUP(B75,'C'!$B$5:$D$25,2,0))) -> 0 | J75: =INDIRECT(ADDRESS(U75,9,4,1,VLOOKUP(B75,'C'!$B$5:$D$25,2,0))) -> 0 | K75: =INDIRECT(ADDRESS(U75,10,4,1,VLOOKUP(B75,'C'!$B$5:$D$25,2,0))) -> 0 | L75: =INDIRECT(ADDRESS(U75,11,4,1,VLOOKUP(B75,'C'!$B$5:$D$25,2,0))) -> 0 | M75: =INDIRECT(ADDRESS(U75,12,4,1,VLOOKUP(B75,'C'!$B$5:$D$25,2,0))) -> 0 | N75: =INDIRECT(ADDRESS(U75,13,4,1,VLOOKUP(B75,'C'!$B$5:$D$25,2,0))) -> 0 | U75: =MATCH("R9",AR!A:A,0) -> 119
A76: ChilePorcentaje Diagnósticos Posibles | B76: Chile | C76: 1 | D76: ="Porcentaje "&D75 -> Porcentaje Diagnósticos Posibles | E76: =E75/E73 ->  | F76: =F75/F73 ->  | U76: =MATCH("R10",AR!A:A,0) -> 120
A77: ChileTratamientos Posibles - Requerimiento actual | B77: Chile | C77: 1 | D77: Tratamientos Posibles - Requerimiento actual | E77: =INDIRECT(ADDRESS(U77,4,4,1,VLOOKUP(B77,'C'!$B$5:$D$25,2,0))) -> 0 | F77: =INDIRECT(ADDRESS(U77,5,4,1,VLOOKUP(B77,'C'!$B$5:$D$25,2,0))) -> 0 | G77: =INDIRECT(ADDRESS(U77,6,4,1,VLOOKUP(B77,'C'!$B$5:$D$25,2,0))) -> 0 | H77: =INDIRECT(ADDRESS(U77,7,4,1,VLOOKUP(B77,'C'!$B$5:$D$25,2,0))) -> 0 | I77: =INDIRECT(ADDRESS(U77,8,4,1,VLOOKUP(B77,'C'!$B$5:$D$25,2,0))) -> 0 | J77: =INDIRECT(ADDRESS(U77,9,4,1,VLOOKUP(B77,'C'!$B$5:$D$25,2,0))) -> 0 | K77: =INDIRECT(ADDRESS(U77,10,4,1,VLOOKUP(B77,'C'!$B$5:$D$25,2,0))) -> 0 | L77: =INDIRECT(ADDRESS(U77,11,4,1,VLOOKUP(B77,'C'!$B$5:$D$25,2,0))) -> 0 | M77: =INDIRECT(ADDRESS(U77,12,4,1,VLOOKUP(B77,'C'!$B$5:$D$25,2,0))) -> 0 | N77: =INDIRECT(ADDRESS(U77,13,4,1,VLOOKUP(B77,'C'!$B$5:$D$25,2,0))) -> 0 | U77: =MATCH("R14",AR!A:A,0) -> 124
A78: ChilePorcentaje Tratamientos Posibles - Requerimiento actual | B78: Chile | C78: 1 | D78: ="Porcentaje "&D77 -> Porcentaje Tratamientos Posibles - Requerimiento actual | E78: =E77/E75 ->  | F78: =F77/F75 ->  | U78: =MATCH("R15",AR!A:A,0) -> 125
A79: ChileTratamientos Posibles - Proyección | B79: Chile | C79: 2 | D79: Tratamientos Posibles - Proyección | E79: =INDIRECT(ADDRESS(U79,4,4,1,VLOOKUP(B79,'C'!$B$5:$D$25,2,0))) -> 0 | F79: =INDIRECT(ADDRESS(U79,5,4,1,VLOOKUP(B79,'C'!$B$5:$D$25,2,0))) -> 0 | G79: =INDIRECT(ADDRESS(U79,6,4,1,VLOOKUP(B79,'C'!$B$5:$D$25,2,0))) -> 0 | H79: =INDIRECT(ADDRESS(U79,7,4,1,VLOOKUP(B79,'C'!$B$5:$D$25,2,0))) -> 0 | I79: =INDIRECT(ADDRESS(U79,8,4,1,VLOOKUP(B79,'C'!$B$5:$D$25,2,0))) -> 0 | J79: =INDIRECT(ADDRESS(U79,9,4,1,VLOOKUP(B79,'C'!$B$5:$D$25,2,0))) -> 0 | K79: =INDIRECT(ADDRESS(U79,10,4,1,VLOOKUP(B79,'C'!$B$5:$D$25,2,0))) -> 0 | L79: =INDIRECT(ADDRESS(U79,11,4,1,VLOOKUP(B79,'C'!$B$5:$D$25,2,0))) -> 0 | M79: =INDIRECT(ADDRESS(U79,12,4,1,VLOOKUP(B79,'C'!$B$5:$D$25,2,0))) -> 0 | N79: =INDIRECT(ADDRESS(U79,13,4,1,VLOOKUP(B79,'C'!$B$5:$D$25,2,0))) -> 0 | U79: =MATCH("R19",AR!A:A,0) -> 129
A80: ChilePorcentaje Tratamientos Posibles - Proyección | B80: Chile | C80: 2 | D80: ="Porcentaje "&D79 -> Porcentaje Tratamientos Posibles - Proyección | E80: =E79/E75 ->  | F80: =F79/F75 ->  | U80: =MATCH("R20",AR!A:A,0) -> 130
A81: ChileDemanda de comprimidos (Benznidazol 12,5 mg (III)) - Requerimiento actual | B81: Chile | C81: 1 | D81: ="Demanda de comprimidos"&" ("&'3'!$BG$94&") - Requerimiento actual" -> Demanda de comprimidos (Benznidazol 12,5 mg (III)) - Requerimiento actual | E81: =INDIRECT(ADDRESS(U81,4,4,1,VLOOKUP(B81,'C'!$B$5:$D$25,2,0))) -> 0 | F81: =INDIRECT(ADDRESS(U81,5,4,1,VLOOKUP(B81,'C'!$B$5:$D$25,2,0))) -> 0 | G81: =INDIRECT(ADDRESS(U81,6,4,1,VLOOKUP(B81,'C'!$B$5:$D$25,2,0))) -> 0 | H81: =INDIRECT(ADDRESS(U81,7,4,1,VLOOKUP(B81,'C'!$B$5:$D$25,2,0))) -> 0 | I81: =INDIRECT(ADDRESS(U81,8,4,1,VLOOKUP(B81,'C'!$B$5:$D$25,2,0))) -> 0 | J81: =INDIRECT(ADDRESS(U81,9,4,1,VLOOKUP(B81,'C'!$B$5:$D$25,2,0))) -> 0 | K81: =INDIRECT(ADDRESS(U81,10,4,1,VLOOKUP(B81,'C'!$B$5:$D$25,2,0))) -> 0 | L81: =INDIRECT(ADDRESS(U81,11,4,1,VLOOKUP(B81,'C'!$B$5:$D$25,2,0))) -> 0 | M81: =INDIRECT(ADDRESS(U81,12,4,1,VLOOKUP(B81,'C'!$B$5:$D$25,2,0))) -> 0 | N81: =INDIRECT(ADDRESS(U81,13,4,1,VLOOKUP(B81,'C'!$B$5:$D$25,2,0))) -> 0 | U81: =MATCH("R24",AR!A:A,0) -> 134
A82: ChileDemanda de comprimidos (Benznidazol 12,5 mg (III)) - Proyección | B82: Chile | C82: 2 | D82: ="Demanda de comprimidos"&" ("&'3'!$BG$94&") - Proyección" -> Demanda de comprimidos (Benznidazol 12,5 mg (III)) - Proyección | E82: =INDIRECT(ADDRESS(U82,4,4,1,VLOOKUP(B82,'C'!$B$5:$D$25,2,0))) -> 0 | F82: =INDIRECT(ADDRESS(U82,5,4,1,VLOOKUP(B82,'C'!$B$5:$D$25,2,0))) -> 0 | G82: =INDIRECT(ADDRESS(U82,6,4,1,VLOOKUP(B82,'C'!$B$5:$D$25,2,0))) -> 0 | H82: =INDIRECT(ADDRESS(U82,7,4,1,VLOOKUP(B82,'C'!$B$5:$D$25,2,0))) -> 0 | I82: =INDIRECT(ADDRESS(U82,8,4,1,VLOOKUP(B82,'C'!$B$5:$D$25,2,0))) -> 0 | J82: =INDIRECT(ADDRESS(U82,9,4,1,VLOOKUP(B82,'C'!$B$5:$D$25,2,0))) -> 0 | K82: =INDIRECT(ADDRESS(U82,10,4,1,VLOOKUP(B82,'C'!$B$5:$D$25,2,0))) -> 0 | L82: =INDIRECT(ADDRESS(U82,11,4,1,VLOOKUP(B82,'C'!$B$5:$D$25,2,0))) -> 0 | M82: =INDIRECT(ADDRESS(U82,12,4,1,VLOOKUP(B82,'C'!$B$5:$D$25,2,0))) -> 0 | N82: =INDIRECT(ADDRESS(U82,13,4,1,VLOOKUP(B82,'C'!$B$5:$D$25,2,0))) -> 0 | U82: =MATCH("R28",AR!A:A,0) -> 138
A83: =B83&D83 -> ColombiaPoblación general | B83: Colombia | C83: 1 | D83: Población general | E83: =INDIRECT(ADDRESS(U83,4,4,1,VLOOKUP(B83,'C'!$B$5:$D$25,2,0))) -> 0 | F83: =INDIRECT(ADDRESS(U83,5,4,1,VLOOKUP(B83,'C'!$B$5:$D$25,2,0))) -> 0 | G83: =INDIRECT(ADDRESS(U83,6,4,1,VLOOKUP(B83,'C'!$B$5:$D$25,2,0))) -> 0 | H83: =INDIRECT(ADDRESS(U83,7,4,1,VLOOKUP(B83,'C'!$B$5:$D$25,2,0))) -> 0 | I83: =INDIRECT(ADDRESS(U83,8,4,1,VLOOKUP(B83,'C'!$B$5:$D$25,2,0))) -> 0 | J83: =INDIRECT(ADDRESS(U83,9,4,1,VLOOKUP(B83,'C'!$B$5:$D$25,2,0))) -> 0 | K83: =INDIRECT(ADDRESS(U83,10,4,1,VLOOKUP(B83,'C'!$B$5:$D$25,2,0))) -> 0 | L83: =INDIRECT(ADDRESS(U83,11,4,1,VLOOKUP(B83,'C'!$B$5:$D$25,2,0))) -> 0 | M83: =INDIRECT(ADDRESS(U83,12,4,1,VLOOKUP(B83,'C'!$B$5:$D$25,2,0))) -> 0 | N83: =INDIRECT(ADDRESS(U83,13,4,1,VLOOKUP(B83,'C'!$B$5:$D$25,2,0))) -> 0 | U83: =MATCH("R1",AR!A:A,0) -> 111
A84: ColombiaZona endémica absoluta | B84: Colombia | C84: 1 | D84: Zona endémica absoluta | E84: =INDIRECT(ADDRESS(U84,4,4,1,VLOOKUP(B84,'C'!$B$5:$D$25,2,0))) -> 0 | F84: =INDIRECT(ADDRESS(U84,5,4,1,VLOOKUP(B84,'C'!$B$5:$D$25,2,0))) -> 0 | G84: =INDIRECT(ADDRESS(U84,6,4,1,VLOOKUP(B84,'C'!$B$5:$D$25,2,0))) -> 0 | H84: =INDIRECT(ADDRESS(U84,7,4,1,VLOOKUP(B84,'C'!$B$5:$D$25,2,0))) -> 0 | I84: =INDIRECT(ADDRESS(U84,8,4,1,VLOOKUP(B84,'C'!$B$5:$D$25,2,0))) -> 0 | J84: =INDIRECT(ADDRESS(U84,9,4,1,VLOOKUP(B84,'C'!$B$5:$D$25,2,0))) -> 0 | K84: =INDIRECT(ADDRESS(U84,10,4,1,VLOOKUP(B84,'C'!$B$5:$D$25,2,0))) -> 0 | L84: =INDIRECT(ADDRESS(U84,11,4,1,VLOOKUP(B84,'C'!$B$5:$D$25,2,0))) -> 0 | M84: =INDIRECT(ADDRESS(U84,12,4,1,VLOOKUP(B84,'C'!$B$5:$D$25,2,0))) -> 0 | N84: =INDIRECT(ADDRESS(U84,13,4,1,VLOOKUP(B84,'C'!$B$5:$D$25,2,0))) -> 0 | U84: =MATCH("R2",AR!A:A,0) -> 112
A85: ColombiaPorcentaje Zona endémica absoluta | B85: Colombia | C85: 1 | D85: ="Porcentaje "&D84 -> Porcentaje Zona endémica absoluta | E85: =E84/E83 ->  | F85: =F84/F83 ->  | U85: =MATCH("R3",AR!A:A,0) -> 113
A86: ColombiaPoblación estimada positiva (prevalencia) | B86: Colombia | C86: 1 | D86: Población estimada positiva (prevalencia) | E86: =INDIRECT(ADDRESS(U86,4,4,1,VLOOKUP(B86,'C'!$B$5:$D$25,2,0))) -> 0 | F86: =INDIRECT(ADDRESS(U86,5,4,1,VLOOKUP(B86,'C'!$B$5:$D$25,2,0))) -> 0 | G86: =INDIRECT(ADDRESS(U86,6,4,1,VLOOKUP(B86,'C'!$B$5:$D$25,2,0))) -> 0 | H86: =INDIRECT(ADDRESS(U86,7,4,1,VLOOKUP(B86,'C'!$B$5:$D$25,2,0))) -> 0 | I86: =INDIRECT(ADDRESS(U86,8,4,1,VLOOKUP(B86,'C'!$B$5:$D$25,2,0))) -> 0 | J86: =INDIRECT(ADDRESS(U86,9,4,1,VLOOKUP(B86,'C'!$B$5:$D$25,2,0))) -> 0 | K86: =INDIRECT(ADDRESS(U86,10,4,1,VLOOKUP(B86,'C'!$B$5:$D$25,2,0))) -> 0 | L86: =INDIRECT(ADDRESS(U86,11,4,1,VLOOKUP(B86,'C'!$B$5:$D$25,2,0))) -> 0 | M86: =INDIRECT(ADDRESS(U86,12,4,1,VLOOKUP(B86,'C'!$B$5:$D$25,2,0))) -> 0 | N86: =INDIRECT(ADDRESS(U86,13,4,1,VLOOKUP(B86,'C'!$B$5:$D$25,2,0))) -> 0 | U86: =MATCH("R4",AR!A:A,0) -> 114
A87: ColombiaPorcentaje Población estimada positiva (prevalencia) | B87: Colombia | C87: 1 | D87: ="Porcentaje "&D86 -> Porcentaje Población estimada positiva (prevalencia) | E87: =E86/E83 ->  | F87: =F86/F83 ->  | U87: =MATCH("R5",AR!A:A,0) -> 115
A88: ColombiaDiagnósticos Posibles | B88: Colombia | C88: 1 | D88: Diagnósticos Posibles | E88: =INDIRECT(ADDRESS(U88,4,4,1,VLOOKUP(B88,'C'!$B$5:$D$25,2,0))) -> 0 | F88: =INDIRECT(ADDRESS(U88,5,4,1,VLOOKUP(B88,'C'!$B$5:$D$25,2,0))) -> 0 | G88: =INDIRECT(ADDRESS(U88,6,4,1,VLOOKUP(B88,'C'!$B$5:$D$25,2,0))) -> 0 | H88: =INDIRECT(ADDRESS(U88,7,4,1,VLOOKUP(B88,'C'!$B$5:$D$25,2,0))) -> 0 | I88: =INDIRECT(ADDRESS(U88,8,4,1,VLOOKUP(B88,'C'!$B$5:$D$25,2,0))) -> 0 | J88: =INDIRECT(ADDRESS(U88,9,4,1,VLOOKUP(B88,'C'!$B$5:$D$25,2,0))) -> 0 | K88: =INDIRECT(ADDRESS(U88,10,4,1,VLOOKUP(B88,'C'!$B$5:$D$25,2,0))) -> 0 | L88: =INDIRECT(ADDRESS(U88,11,4,1,VLOOKUP(B88,'C'!$B$5:$D$25,2,0))) -> 0 | M88: =INDIRECT(ADDRESS(U88,12,4,1,VLOOKUP(B88,'C'!$B$5:$D$25,2,0))) -> 0 | N88: =INDIRECT(ADDRESS(U88,13,4,1,VLOOKUP(B88,'C'!$B$5:$D$25,2,0))) -> 0 | U88: =MATCH("R9",AR!A:A,0) -> 119
A89: ColombiaPorcentaje Diagnósticos Posibles | B89: Colombia | C89: 1 | D89: ="Porcentaje "&D88 -> Porcentaje Diagnósticos Posibles | E89: =E88/E86 ->  | F89: =F88/F86 ->  | U89: =MATCH("R10",AR!A:A,0) -> 120
A90: ColombiaTratamientos Posibles - Requerimiento actual | B90: Colombia | C90: 1 | D90: Tratamientos Posibles - Requerimiento actual | E90: =INDIRECT(ADDRESS(U90,4,4,1,VLOOKUP(B90,'C'!$B$5:$D$25,2,0))) -> 0 | F90: =INDIRECT(ADDRESS(U90,5,4,1,VLOOKUP(B90,'C'!$B$5:$D$25,2,0))) -> 0 | G90: =INDIRECT(ADDRESS(U90,6,4,1,VLOOKUP(B90,'C'!$B$5:$D$25,2,0))) -> 0 | H90: =INDIRECT(ADDRESS(U90,7,4,1,VLOOKUP(B90,'C'!$B$5:$D$25,2,0))) -> 0 | I90: =INDIRECT(ADDRESS(U90,8,4,1,VLOOKUP(B90,'C'!$B$5:$D$25,2,0))) -> 0 | J90: =INDIRECT(ADDRESS(U90,9,4,1,VLOOKUP(B90,'C'!$B$5:$D$25,2,0))) -> 0 | K90: =INDIRECT(ADDRESS(U90,10,4,1,VLOOKUP(B90,'C'!$B$5:$D$25,2,0))) -> 0 | L90: =INDIRECT(ADDRESS(U90,11,4,1,VLOOKUP(B90,'C'!$B$5:$D$25,2,0))) -> 0 | M90: =INDIRECT(ADDRESS(U90,12,4,1,VLOOKUP(B90,'C'!$B$5:$D$25,2,0))) -> 0 | N90: =INDIRECT(ADDRESS(U90,13,4,1,VLOOKUP(B90,'C'!$B$5:$D$25,2,0))) -> 0 | U90: =MATCH("R14",AR!A:A,0) -> 124
A91: ColombiaPorcentaje Tratamientos Posibles - Requerimiento actual | B91: Colombia | C91: 1 | D91: ="Porcentaje "&D90 -> Porcentaje Tratamientos Posibles - Requerimiento actual | E91: =E90/E88 ->  | F91: =F90/F88 ->  | U91: =MATCH("R15",AR!A:A,0) -> 125
A92: ColombiaTratamientos Posibles - Proyección | B92: Colombia | C92: 2 | D92: Tratamientos Posibles - Proyección | E92: =INDIRECT(ADDRESS(U92,4,4,1,VLOOKUP(B92,'C'!$B$5:$D$25,2,0))) -> 0 | F92: =INDIRECT(ADDRESS(U92,5,4,1,VLOOKUP(B92,'C'!$B$5:$D$25,2,0))) -> 0 | G92: =INDIRECT(ADDRESS(U92,6,4,1,VLOOKUP(B92,'C'!$B$5:$D$25,2,0))) -> 0 | H92: =INDIRECT(ADDRESS(U92,7,4,1,VLOOKUP(B92,'C'!$B$5:$D$25,2,0))) -> 0 | I92: =INDIRECT(ADDRESS(U92,8,4,1,VLOOKUP(B92,'C'!$B$5:$D$25,2,0))) -> 0 | J92: =INDIRECT(ADDRESS(U92,9,4,1,VLOOKUP(B92,'C'!$B$5:$D$25,2,0))) -> 0 | K92: =INDIRECT(ADDRESS(U92,10,4,1,VLOOKUP(B92,'C'!$B$5:$D$25,2,0))) -> 0 | L92: =INDIRECT(ADDRESS(U92,11,4,1,VLOOKUP(B92,'C'!$B$5:$D$25,2,0))) -> 0 | M92: =INDIRECT(ADDRESS(U92,12,4,1,VLOOKUP(B92,'C'!$B$5:$D$25,2,0))) -> 0 | N92: =INDIRECT(ADDRESS(U92,13,4,1,VLOOKUP(B92,'C'!$B$5:$D$25,2,0))) -> 0 | U92: =MATCH("R19",AR!A:A,0) -> 129
A93: ColombiaPorcentaje Tratamientos Posibles - Proyección | B93: Colombia | C93: 2 | D93: ="Porcentaje "&D92 -> Porcentaje Tratamientos Posibles - Proyección | E93: =E92/E88 ->  | F93: =F92/F88 ->  | U93: =MATCH("R20",AR!A:A,0) -> 130
